{"text_format":"1","workbook":"xlsx","n_sheets":10,"sheets":["Menú P.","ForEntrFX","Mod_FichaX","FichaX","ORGFUN2018","CENTRO","U.T.","ECON","Ficha Libre","Personalización"],"not_rendered":{"charts":0,"images":1,"macros":1,"external_links":0,"defined_names":2,"comments":3,"pivot_tables":0},"unopened":[],"bounds":{"document_bytes":16777216,"sheet_cells":100000,"rows_first":2000,"rows_last":500,"rows_between":2000,"halvings":0,"cell_chars":16384,"cell_head_chars":4096},"cells_cut":0,"cells_raw":0,"read":"whole","date_system":"1900"}

{"sheet":"Menú P.","index":0,"n_rows":11,"n_cols":3,"rows_kept":11,"cut":false,"hidden":false,"merged":[[2,2,2,4]]}
[]
[]
[null,null,{"$f":"CONCATENATE(Personalización!D4,\"  \",Personalización!C6)","v":"   "}]
[null,null,"     "]
[]
[null,"Inicio","Personalizar  a Folla "]
[]
[]
[null,null,"Encher formulario  con todas as partidas do centro para a programación anual da actividade contractual do centro."]
[]
[null,null,"Para modificar unha entrada xa realizada no formulario"]

{"sheet":"ForEntrFX","index":1,"n_rows":55,"n_cols":37,"rows_kept":55,"cut":false,"hidden":false,"merged":[[3,2,3,5],[49,28,49,29],[49,34,49,35],[11,2,12,2],[15,2,16,2],[20,2,20,3],[21,2,21,3]]}
[]
[]
[]
[null,null,{"$f":"CONCATENATE(Personalización!D4,\"  \",Personalización!C6)","v":"   "}]
[]
[]
[]
[]
[]
[]
[null,null,null,"Nº Asento",{"$f":"AB52","v":1}]
[null,null,"Aplicación orzamentaria ","Orgánica e Funcional",null,null,{"$f":"IF(ISBLANK(E12),\" \",VLOOKUP(E12,ORGFUN2018!$A:$B,2,0))","v":" "}]
[null,null,null,"Económica",null,null,{"$f":"IF(ISBLANK(E13),\" \",VLOOKUP(E13,ECON!$A:$B,2,0))","v":" "}]
[null,null,"Importe con IVE","Importe"]
[null,null,"Descrición da Obra, subministro ou Servizo. ","Detallarase de forma xenérica o material que vamos a adquirir, posteriormente faráse unha ficha detallada co número de líneas que se necesite."]
[null,null,"Prazo de execución","  Data Inicio  - (dd/mm/aa)"]
[null,null,null,"  Data fin……. - (dd/mm/aa)"]
[]
[]
[]
[]
[]
[]
[]
[]
[]
[]
[]
[]
[]
[]
[]
[]
[]
[]
[]
[]
[]
[]
[]
[]
[]
[]
[]
[]
[]
[]
[]
[]
[null,null,null,null,null,null,null,null,null,null,null,null,null,null,null,null,null,null,null,null,null,null,null,null,null,null,null,null,"Aplicación orzamentaria ",null,"Título da aplicación orzamentaria","Título da aplicación económica","Importe","Descrición da Obra, Subministro ou Servizo.","Plazo de execución"]
[null,null,null,null,null,null,null,null,null,null,null,null,null,null,null,null,null,null,null,null,null,null,null,null,null,null,null,"Nº asento","Orgánica Funcional","Económica",null,"(Debe ser adecuada á natureza do gasto)",null,"(Detallarase o máis pormenorizadamente posible)","Data Incio","Data Fin","CONTROL"]
[null,null,null,null,null,null,null,null,null,null,null,null,null,null,null,null,null,null,null,null,null,null,null,null,null,null,null,{"$f":"AC54","v":1},{"$f":"E12","v":0},{"$f":"E13","v":0},{"$f":"IF(ISBLANK(AC52),\" \",VLOOKUP(AC52,ORGFUN2018!$A:$B,2,0))","v":{"$error":"#N/A"}},{"$f":"IF(ISBLANK(AD52),\" \",VLOOKUP(AD52,ECON!$A:$B,2,0))","v":{"$error":"#N/A"}},{"$f":"E14","v":0},{"$f":"E15","v":0},{"$f":"E16","v":"00:00:00"},{"$f":"E17","v":"00:00:00"}]
[]
[null,null,null,null,null,null,null,null,null,null,null,null,null,null,null,null,null,null,null,null,null,null,null,null,null,null,null,"Nº  de asiento PROXIMO",1]
[null,null,null,null,null,null,null,null,null,null,null,null,null,null,null,null,null,null,null,null,null,null,null,null,null,null,null,"Nº  de asiento anterior",0]

{"sheet":"Mod_FichaX","index":2,"n_rows":60,"n_cols":36,"rows_kept":60,"cut":false,"hidden":false,"merged":[[4,1,4,4],[56,33,56,34],[12,1,13,1],[18,1,19,1],[16,27,17,27],[56,27,56,28]]}
[]
[]
[]
[]
[null,{"$f":"CONCATENATE(Personalización!D4,\"  \",Personalización!C6)","v":"   "}]
[]
[]
[]
[]
[]
[null,null,null,null,null,null,null,null,null,null,null,null,null,null,null,null,null,null,null,null,null,null,null,null,null,null,null,null,null,"Módulo restauración"]
[null,"Nº Asento a modificar"]
[null,"Aplicación orzamentaria ","Orgánica e Funcional",{"$f":"IF(ISBLANK($C$12),\" \",VLOOKUP($C$12,FichaX!$A:$I,2,0))","v":" "},{"$f":"$D$13","v":" "},null,null,null,null,null,null,null,null,null,null,null,null,null,null,null,null,null,null,null,null,null,null,null,null,{"$f":"$D$13","v":" "}]
[null,null,"Económica",{"$f":"IF(ISBLANK($C$12),\" \",VLOOKUP($C$12,FichaX!$A:$I,3,0))","v":" "},{"$f":"$D$14","v":" "},null,null,null,null,null,null,null,null,null,null,null,null,null,null,null,null,null,null,null,null,null,null,null,null,{"$f":"$D$14","v":" "}]
[null,{"$f":"IF(ISBLANK($D$13),\" \",VLOOKUP($D$13,ORGFUN2018!$A:$B,2,0))","v":{"$error":"#N/A"}},null,null,{"$f":"IF(ISBLANK($E13),\" \",VLOOKUP($E$13,ORGFUN2018!$A:$B,2,0))","v":{"$error":"#N/A"}},null,null,null,null,null,null,null,null,null,null,null,null,null,null,null,null,null,null,null,null,null,null,null,null,{"$f":"IF(ISBLANK($E13),\" \",VLOOKUP($E$13,ORGFUN2018!$A:$B,2,0))","v":{"$error":"#N/A"}}]
[null,{"$f":"IF(ISBLANK($D$14),\" \",VLOOKUP($D$14,ECON!$A:$B,2,0))","v":{"$error":"#N/A"}},null,null,{"$f":"IF(ISBLANK($E$14),\" \",VLOOKUP($E$14,ECON!$A:$B,2,0))","v":{"$error":"#N/A"}},null,null,null,null,null,null,null,null,null,null,null,null,null,null,null,null,null,null,null,null,null,null,null,null,{"$f":"IF(ISBLANK($E$14),\" \",VLOOKUP($E$14,ECON!$A:$B,2,0))","v":{"$error":"#N/A"}}]
[null,"Importe con IVE","Importe",{"$f":"IF(ISBLANK($C$12),\" \",VLOOKUP($C$12,FichaX!$A:$I,6,0))","v":" "},{"$f":"$D$17","v":" "},null,null,null,null,null,null,null,null,null,null,null,null,null,null,null,null,null,null,null,null,null,null,null,null,{"$f":"$D$17","v":" "}]
[null,"Descrición da Obra, subministro ou Servizo. ",{"$f":"IF(ISBLANK($C$12),\" \",VLOOKUP($C$12,FichaX!$A:$I,7,0))","v":" "},"Detallarase de forma xenérica o material que vamos a adquirir, posteriormente faráse unha ficha detallada co número de líneas que se necesite.",{"$f":"$C$18","v":" "},null,null,null,null,null,null,null,null,null,null,null,null,null,null,null,null,null,null,null,null,null,null,null,null,{"$f":"$C$18","v":" "}]
[null,"Prazo de execución","  Data Inicio  - (dd/mm/aa)",{"$f":"IF(ISBLANK($C$12),\" \",VLOOKUP($C$12,FichaX!$A:$I,8,0))","v":" "},{"$f":"$D$19","v":" "},null,null,null,null,null,null,null,null,null,null,null,null,null,null,null,null,null,null,null,null,null,null,null,null,{"$f":"$D$19","v":" "}]
[null,null,"  Data fin……. - (dd/mm/aa)",{"$f":"IF(ISBLANK($C$12),\" \",VLOOKUP($C$12,FichaX!$A:$I,9,0))","v":" "},{"$f":"$D$20","v":" "},null,null,null,null,null,null,null,null,null,null,null,null,null,null,null,null,null,null,null,null,null,null,null,null,{"$f":"$D$20","v":" "}]
[]
[]
[]
[]
[]
[]
[]
[]
[]
[]
[]
[]
[]
[]
[]
[]
[]
[]
[]
[]
[]
[]
[]
[]
[]
[]
[]
[]
[]
[]
[]
[]
[]
[]
[]
[]
[null,null,null,null,null,null,null,null,null,null,null,null,null,null,null,null,null,null,null,null,null,null,null,null,null,null,null,"Aplicación orzamentaria ",null,"Título da aplicación orzamentaria","Título da aplicación económica","Importe","Descrición da Obra, Subministro ou Servizo.","Plazo de execución"]
[null,null,null,null,null,null,null,null,null,null,null,null,null,null,null,null,null,null,null,null,null,null,null,null,null,null,"Nº asento","Orgánica Funcional","Económica",null,"(Debe ser adecuada á natureza do gasto)",null,"(Detallarase o máis pormenorizadamente posible)","Data Incio","Data Fin","control modificación"]
[null,null,null,null,null,null,null,null,null,null,null,null,null,null,null,null,null,null,null,null,null,null,null,null,"Copia insercción",null,{"$f":"$C$12","v":0},{"$f":"E$13","v":" "},{"$f":"E$14","v":" "},{"$f":"E$15","v":{"$error":"#N/A"}},{"$f":"E$16","v":{"$error":"#N/A"}},{"$f":"E$17","v":" "},{"$f":"E$18","v":" "},{"$f":"E$19","v":" "},{"$f":"E$20","v":" "},{"$f":"IF($J$2=A6,1,0)","v":1}]
[null,null,null,null,null,null,null,null,null,null,null,null,null,null,null,null,null,null,null,null,null,null,null,null,"Reponer en macro",null,{"$f":"$C$12","v":0},{"$f":"E$13","v":" "},{"$f":"E$14","v":" "},{"$f":"E$15","v":{"$error":"#N/A"}},{"$f":"E$16","v":{"$error":"#N/A"}},{"$f":"E$17","v":" "},{"$f":"E$18","v":" "},{"$f":"E$19","v":" "},{"$f":"E$20","v":" "},{"$f":"IF($J$2=A7,1,0)","v":1}]

{"sheet":"FichaX","index":3,"n_rows":525,"n_cols":10,"rows_kept":525,"cut":false,"hidden":false,"merged":[[3,1,3,2],[3,7,3,8],[0,4,0,5],[3,6,4,6],[1,1,1,4]]}
[]
[null,{"$f":"CONCATENATE(Personalización!D4,\"  \",Personalización!C6)","v":"   "},null,null,null,null,null,null,"Control modificación",{"$f":"Mod_FichaX!C12","v":0}]
[]
[null,"Aplicación orzamentaria ",null,"Título da aplicación orzamentaria","Título da aplicación económica","Importe","Descrición da Obra, Subministro ou Servizo.","Plazo de execución"]
["Nº asento","Orgánica Funcional","Económica",null,"(Debe ser adecuada á natureza do gasto)",null,null,"Data Incio","Data Fin","control modificación"]
[0,null,null,null,null,null,null,null,null,{"$f":"IF($J$2=A6,1,0)","v":1}]
[null,null,null,null,null,null,null,null,null,1]
[null,null,null,null,null,null,null,null,null,1]
[null,null,null,null,null,null,null,null,null,1]
[null,null,null,null,null,null,null,null,null,1]
[null,null,null,null,null,null,null,null,null,1]
[null,null,null,null,null,null,null,null,null,1]
[null,null,null,null,null,null,null,null,null,1]
[null,null,null,null,null,null,null,null,null,1]
[null,null,null,null,null,null,null,null,null,1]
[null,null,null,null,null,null,null,null,null,1]
[null,null,null,null,null,null,null,null,null,1]
[null,null,null,null,null,null,null,null,null,1]
[null,null,null,null,null,null,null,null,null,1]
[null,null,null,null,null,null,null,null,null,1]
[null,null,null,null,null,null,null,null,null,1]
[null,null,null,null,null,null,null,null,null,1]
[null,null,null,null,null,null,null,null,null,1]
[null,null,null,null,null,null,null,null,null,1]
[null,null,null,null,null,null,null,null,null,1]
[null,null,null,null,null,null,null,null,null,1]
[null,null,null,null,null,null,null,null,null,1]
[null,null,null,null,null,null,null,null,null,1]
[null,null,null,null,null,null,null,null,null,1]
[null,null,null,null,null,null,null,null,null,1]
[null,null,null,null,null,null,null,null,null,1]
[null,null,null,null,null,null,null,null,null,1]
[null,null,null,null,null,null,null,null,null,1]
[null,null,null,null,null,null,null,null,null,1]
[null,null,null,null,null,null,null,null,null,1]
[null,null,null,null,null,null,null,null,null,1]
[null,null,null,null,null,null,null,null,null,1]
[null,null,null,null,null,null,null,null,null,{"$f":"IF($J$2=A38,1,0)","v":1}]
[null,null,null,null,null,null,null,null,null,1]
[null,null,null,null,null,null,null,null,null,1]
[null,null,null,null,null,null,null,null,null,1]
[null,null,null,null,null,null,null,null,null,1]
[null,null,null,null,null,null,null,null,null,1]
[null,null,null,null,null,null,null,null,null,1]
[null,null,null,null,null,null,null,null,null,1]
[null,null,null,null,null,null,null,null,null,1]
[null,null,null,null,null,null,null,null,null,1]
[null,null,null,null,null,null,null,null,null,1]
[null,null,null,null,null,null,null,null,null,1]
[null,null,null,null,null,null,null,null,null,1]
[null,null,null,null,null,null,null,null,null,1]
[null,null,null,null,null,null,null,null,null,1]
[null,null,null,null,null,null,null,null,null,1]
[null,null,null,null,null,null,null,null,null,1]
[null,null,null,null,null,null,null,null,null,1]
[null,null,null,null,null,null,null,null,null,1]
[null,null,null,null,null,null,null,null,null,1]
[null,null,null,null,null,null,null,null,null,1]
[null,null,null,null,null,null,null,null,null,1]
[null,null,null,null,null,null,null,null,null,1]
[null,null,null,null,null,null,null,null,null,1]
[null,null,null,null,null,null,null,null,null,1]
[null,null,null,null,null,null,null,null,null,1]
[null,null,null,null,null,null,null,null,null,1]
[null,null,null,null,null,null,null,null,null,1]
[null,null,null,null,null,null,null,null,null,1]
[null,null,null,null,null,null,null,null,null,1]
[null,null,null,null,null,null,null,null,null,1]
[null,null,null,null,null,null,null,null,null,1]
[null,null,null,null,null,null,null,null,null,{"$f":"IF($J$2=A70,1,0)","v":1}]
[null,null,null,null,null,null,null,null,null,1]
[null,null,null,null,null,null,null,null,null,1]
[null,null,null,null,null,null,null,null,null,1]
[null,null,null,null,null,null,null,null,null,1]
[null,null,null,null,null,null,null,null,null,1]
[null,null,null,null,null,null,null,null,null,1]
[null,null,null,null,null,null,null,null,null,1]
[null,null,null,null,null,null,null,null,null,1]
[null,null,null,null,null,null,null,null,null,1]
[null,null,null,null,null,null,null,null,null,1]
[null,null,null,null,null,null,null,null,null,1]
[null,null,null,null,null,null,null,null,null,1]
[null,null,null,null,null,null,null,null,null,1]
[null,null,null,null,null,null,null,null,null,1]
[null,null,null,null,null,null,null,null,null,1]
[null,null,null,null,null,null,null,null,null,1]
[null,null,null,null,null,null,null,null,null,1]
[null,null,null,null,null,null,null,null,null,1]
[null,null,null,null,null,null,null,null,null,1]
[null,null,null,null,null,null,null,null,null,1]
[null,null,null,null,null,null,null,null,null,1]
[null,null,null,null,null,null,null,null,null,1]
[null,null,null,null,null,null,null,null,null,1]
[null,null,null,null,null,null,null,null,null,1]
[null,null,null,null,null,null,null,null,null,1]
[null,null,null,null,null,null,null,null,null,1]
[null,null,null,null,null,null,null,null,null,1]
[null,null,null,null,null,null,null,null,null,1]
[null,null,null,null,null,null,null,null,null,1]
[null,null,null,null,null,null,null,null,null,1]
[null,null,null,null,null,null,null,null,null,1]
[null,null,null,null,null,null,null,null,null,{"$f":"IF($J$2=A102,1,0)","v":1}]
[null,null,null,null,null,null,null,null,null,1]
[null,null,null,null,null,null,null,null,null,1]
[null,null,null,null,null,null,null,null,null,1]
[null,null,null,null,null,null,null,null,null,1]
[null,null,null,null,null,null,null,null,null,1]
[null,null,null,null,null,null,null,null,null,1]
[null,null,null,null,null,null,null,null,null,1]
[null,null,null,null,null,null,null,null,null,1]
[null,null,null,null,null,null,null,null,null,1]
[null,null,null,null,null,null,null,null,null,1]
[null,null,null,null,null,null,null,null,null,1]
[null,null,null,null,null,null,null,null,null,1]
[null,null,null,null,null,null,null,null,null,1]
[null,null,null,null,null,null,null,null,null,1]
[null,null,null,null,null,null,null,null,null,1]
[null,null,null,null,null,null,null,null,null,1]
[null,null,null,null,null,null,null,null,null,1]
[null,null,null,null,null,null,null,null,null,1]
[null,null,null,null,null,null,null,null,null,1]
[null,null,null,null,null,null,null,null,null,1]
[null,null,null,null,null,null,null,null,null,1]
[null,null,null,null,null,null,null,null,null,1]
[null,null,null,null,null,null,null,null,null,1]
[null,null,null,null,null,null,null,null,null,1]
[null,null,null,null,null,null,null,null,null,1]
[null,null,null,null,null,null,null,null,null,1]
[null,null,null,null,null,null,null,null,null,1]
[null,null,null,null,null,null,null,null,null,1]
[null,null,null,null,null,null,null,null,null,1]
[null,null,null,null,null,null,null,null,null,1]
[null,null,null,null,null,null,null,null,null,1]
[null,null,null,null,null,null,null,null,null,{"$f":"IF($J$2=A134,1,0)","v":1}]
[null,null,null,null,null,null,null,null,null,1]
[null,null,null,null,null,null,null,null,null,1]
[null,null,null,null,null,null,null,null,null,1]
[null,null,null,null,null,null,null,null,null,1]
[null,null,null,null,null,null,null,null,null,1]
[null,null,null,null,null,null,null,null,null,1]
[null,null,null,null,null,null,null,null,null,1]
[null,null,null,null,null,null,null,null,null,1]
[null,null,null,null,null,null,null,null,null,1]
[null,null,null,null,null,null,null,null,null,1]
[null,null,null,null,null,null,null,null,null,1]
[null,null,null,null,null,null,null,null,null,1]
[null,null,null,null,null,null,null,null,null,1]
[null,null,null,null,null,null,null,null,null,1]
[null,null,null,null,null,null,null,null,null,1]
[null,null,null,null,null,null,null,null,null,1]
[null,null,null,null,null,null,null,null,null,1]
[null,null,null,null,null,null,null,null,null,1]
[null,null,null,null,null,null,null,null,null,1]
[null,null,null,null,null,null,null,null,null,1]
[null,null,null,null,null,null,null,null,null,1]
[null,null,null,null,null,null,null,null,null,1]
[null,null,null,null,null,null,null,null,null,1]
[null,null,null,null,null,null,null,null,null,1]
[null,null,null,null,null,null,null,null,null,1]
[null,null,null,null,null,null,null,null,null,1]
[null,null,null,null,null,null,null,null,null,1]
[null,null,null,null,null,null,null,null,null,1]
[null,null,null,null,null,null,null,null,null,1]
[null,null,null,null,null,null,null,null,null,1]
[null,null,null,null,null,null,null,null,null,1]
[null,null,null,null,null,null,null,null,null,{"$f":"IF($J$2=A166,1,0)","v":1}]
[null,null,null,null,null,null,null,null,null,1]
[null,null,null,null,null,null,null,null,null,1]
[null,null,null,null,null,null,null,null,null,1]
[null,null,null,null,null,null,null,null,null,1]
[null,null,null,null,null,null,null,null,null,1]
[null,null,null,null,null,null,null,null,null,1]
[null,null,null,null,null,null,null,null,null,1]
[null,null,null,null,null,null,null,null,null,1]
[null,null,null,null,null,null,null,null,null,1]
[null,null,null,null,null,null,null,null,null,1]
[null,null,null,null,null,null,null,null,null,1]
[null,null,null,null,null,null,null,null,null,1]
[null,null,null,null,null,null,null,null,null,1]
[null,null,null,null,null,null,null,null,null,1]
[null,null,null,null,null,null,null,null,null,1]
[null,null,null,null,null,null,null,null,null,1]
[null,null,null,null,null,null,null,null,null,1]
[null,null,null,null,null,null,null,null,null,1]
[null,null,null,null,null,null,null,null,null,1]
[null,null,null,null,null,null,null,null,null,1]
[null,null,null,null,null,null,null,null,null,1]
[null,null,null,null,null,null,null,null,null,1]
[null,null,null,null,null,null,null,null,null,1]
[null,null,null,null,null,null,null,null,null,1]
[null,null,null,null,null,null,null,null,null,1]
[null,null,null,null,null,null,null,null,null,1]
[null,null,null,null,null,null,null,null,null,1]
[null,null,null,null,null,null,null,null,null,1]
[null,null,null,null,null,null,null,null,null,1]
[null,null,null,null,null,null,null,null,null,1]
[null,null,null,null,null,null,null,null,null,1]
[null,null,null,null,null,null,null,null,null,1]
[null,null,null,null,null,null,null,null,null,1]
[null,null,null,null,null,null,null,null,null,1]
[null,null,null,null,null,null,null,null,null,{"$f":"IF($J$2=A201,1,0)","v":1}]
[null,null,null,null,null,null,null,null,null,1]
[null,null,null,null,null,null,null,null,null,1]
[null,null,null,null,null,null,null,null,null,1]
[null,null,null,null,null,null,null,null,null,1]
[null,null,null,null,null,null,null,null,null,1]
[null,null,null,null,null,null,null,null,null,{"$f":"IF($J$2=A207,1,0)","v":1}]
[null,null,null,null,null,null,null,null,null,{"$f":"IF($J$2=A208,1,0)","v":1}]
[null,null,null,null,null,null,null,null,null,{"$f":"IF($J$2=A209,1,0)","v":1}]
[null,null,null,null,null,null,null,null,null,{"$f":"IF($J$2=A210,1,0)","v":1}]
[null,null,null,null,null,null,null,null,null,{"$f":"IF($J$2=A211,1,0)","v":1}]
[null,null,null,null,null,null,null,null,null,{"$f":"IF($J$2=A212,1,0)","v":1}]
[null,null,null,null,null,null,null,null,null,{"$f":"IF($J$2=A213,1,0)","v":1}]
[null,null,null,null,null,null,null,null,null,{"$f":"IF($J$2=A214,1,0)","v":1}]
[null,null,null,null,null,null,null,null,null,{"$f":"IF($J$2=A215,1,0)","v":1}]
[null,null,null,null,null,null,null,null,null,{"$f":"IF($J$2=A216,1,0)","v":1}]
[null,null,null,null,null,null,null,null,null,{"$f":"IF($J$2=A217,1,0)","v":1}]
[null,null,null,null,null,null,null,null,null,{"$f":"IF($J$2=A218,1,0)","v":1}]
[null,null,null,null,null,null,null,null,null,{"$f":"IF($J$2=A219,1,0)","v":1}]
[null,null,null,null,null,null,null,null,null,{"$f":"IF($J$2=A220,1,0)","v":1}]
[null,null,null,null,null,null,null,null,null,{"$f":"IF($J$2=A221,1,0)","v":1}]
[null,null,null,null,null,null,null,null,null,{"$f":"IF($J$2=A222,1,0)","v":1}]
[null,null,null,null,null,null,null,null,null,{"$f":"IF($J$2=A223,1,0)","v":1}]
[null,null,null,null,null,null,null,null,null,{"$f":"IF($J$2=A226,1,0)","v":1}]
[null,null,null,null,null,null,null,null,null,1]
[null,null,null,null,null,null,null,null,null,1]
[null,null,null,null,null,null,null,null,null,1]
[null,null,null,null,null,null,null,null,null,1]
[null,null,null,null,null,null,null,null,null,1]
[null,null,null,null,null,null,null,null,null,1]
[null,null,null,null,null,null,null,null,null,1]
[null,null,null,null,null,null,null,null,null,1]
[null,null,null,null,null,null,null,null,null,1]
[null,null,null,null,null,null,null,null,null,1]
[null,null,null,null,null,null,null,null,null,1]
[null,null,null,null,null,null,null,null,null,1]
[null,null,null,null,null,null,null,null,null,1]
[null,null,null,null,null,null,null,null,null,1]
[null,null,null,null,null,null,null,null,null,1]
[null,null,null,null,null,null,null,null,null,1]
[null,null,null,null,null,null,null,null,null,1]
[null,null,null,null,null,null,null,null,null,1]
[null,null,null,null,null,null,null,null,null,1]
[null,null,null,null,null,null,null,null,null,1]
[null,null,null,null,null,null,null,null,null,1]
[null,null,null,null,null,null,null,null,null,1]
[null,null,null,null,null,null,null,null,null,1]
[null,null,null,null,null,null,null,null,null,1]
[null,null,null,null,null,null,null,null,null,1]
[null,null,null,null,null,null,null,null,null,1]
[null,null,null,null,null,null,null,null,null,1]
[null,null,null,null,null,null,null,null,null,1]
[null,null,null,null,null,null,null,null,null,1]
[null,null,null,null,null,null,null,null,null,1]
[null,null,null,null,null,null,null,null,null,1]
[null,null,null,null,null,null,null,null,null,1]
[null,null,null,null,null,null,null,null,null,1]
[null,null,null,null,null,null,null,null,null,1]
[null,null,null,null,null,null,null,null,null,1]
[null,null,null,null,null,null,null,null,null,1]
[null,null,null,null,null,null,null,null,null,1]
[null,null,null,null,null,null,null,null,null,1]
[null,null,null,null,null,null,null,null,null,1]
[null,null,null,null,null,null,null,null,null,1]
[null,null,null,null,null,null,null,null,null,1]
[null,null,null,null,null,null,null,null,null,1]
[null,null,null,null,null,null,null,null,null,1]
[null,null,null,null,null,null,null,null,null,1]
[null,null,null,null,null,null,null,null,null,1]
[null,null,null,null,null,null,null,null,null,1]
[null,null,null,null,null,null,null,null,null,1]
[null,null,null,null,null,null,null,null,null,1]
[null,null,null,null,null,null,null,null,null,1]
[null,null,null,null,null,null,null,null,null,1]
[null,null,null,null,null,null,null,null,null,1]
[null,null,null,null,null,null,null,null,null,1]
[null,null,null,null,null,null,null,null,null,1]
[null,null,null,null,null,null,null,null,null,1]
[null,null,null,null,null,null,null,null,null,1]
[null,null,null,null,null,null,null,null,null,1]
[null,null,null,null,null,null,null,null,null,1]
[null,null,null,null,null,null,null,null,null,1]
[null,null,null,null,null,null,null,null,null,1]
[null,null,null,null,null,null,null,null,null,1]
[null,null,null,null,null,null,null,null,null,1]
[null,null,null,null,null,null,null,null,null,1]
[null,null,null,null,null,null,null,null,null,1]
[null,null,null,null,null,null,null,null,null,{"$f":"IF($J$2=A290,1,0)","v":1}]
[null,null,null,null,null,null,null,null,null,1]
[null,null,null,null,null,null,null,null,null,1]
[null,null,null,null,null,null,null,null,null,1]
[null,null,null,null,null,null,null,null,null,1]
[null,null,null,null,null,null,null,null,null,1]
[null,null,null,null,null,null,null,null,null,1]
[null,null,null,null,null,null,null,null,null,1]
[null,null,null,null,null,null,null,null,null,1]
[null,null,null,null,null,null,null,null,null,1]
[null,null,null,null,null,null,null,null,null,1]
[null,null,null,null,null,null,null,null,null,1]
[null,null,null,null,null,null,null,null,null,1]
[null,null,null,null,null,null,null,null,null,1]
[null,null,null,null,null,null,null,null,null,1]
[null,null,null,null,null,null,null,null,null,1]
[null,null,null,null,null,null,null,null,null,1]
[null,null,null,null,null,null,null,null,null,1]
[null,null,null,null,null,null,null,null,null,1]
[null,null,null,null,null,null,null,null,null,1]
[null,null,null,null,null,null,null,null,null,1]
[null,null,null,null,null,null,null,null,null,1]
[null,null,null,null,null,null,null,null,null,1]
[null,null,null,null,null,null,null,null,null,1]
[null,null,null,null,null,null,null,null,null,1]
[null,null,null,null,null,null,null,null,null,1]
[null,null,null,null,null,null,null,null,null,1]
[null,null,null,null,null,null,null,null,null,1]
[null,null,null,null,null,null,null,null,null,1]
[null,null,null,null,null,null,null,null,null,1]
[null,null,null,null,null,null,null,null,null,1]
[null,null,null,null,null,null,null,null,null,1]
[null,null,null,null,null,null,null,null,null,1]
[null,null,null,null,null,null,null,null,null,1]
[null,null,null,null,null,null,null,null,null,1]
[null,null,null,null,null,null,null,null,null,1]
[null,null,null,null,null,null,null,null,null,1]
[null,null,null,null,null,null,null,null,null,1]
[null,null,null,null,null,null,null,null,null,1]
[null,null,null,null,null,null,null,null,null,1]
[null,null,null,null,null,null,null,null,null,1]
[null,null,null,null,null,null,null,null,null,1]
[null,null,null,null,null,null,null,null,null,1]
[null,null,null,null,null,null,null,null,null,1]
[null,null,null,null,null,null,null,null,null,1]
[null,null,null,null,null,null,null,null,null,1]
[null,null,null,null,null,null,null,null,null,1]
[null,null,null,null,null,null,null,null,null,1]
[null,null,null,null,null,null,null,null,null,1]
[null,null,null,null,null,null,null,null,null,1]
[null,null,null,null,null,null,null,null,null,1]
[null,null,null,null,null,null,null,null,null,1]
[null,null,null,null,null,null,null,null,null,1]
[null,null,null,null,null,null,null,null,null,1]
[null,null,null,null,null,null,null,null,null,1]
[null,null,null,null,null,null,null,null,null,1]
[null,null,null,null,null,null,null,null,null,1]
[null,null,null,null,null,null,null,null,null,1]
[null,null,null,null,null,null,null,null,null,1]
[null,null,null,null,null,null,null,null,null,1]
[null,null,null,null,null,null,null,null,null,1]
[null,null,null,null,null,null,null,null,null,1]
[null,null,null,null,null,null,null,null,null,1]
[null,null,null,null,null,null,null,null,null,1]
[null,null,null,null,null,null,null,null,null,{"$f":"IF($J$2=A354,1,0)","v":1}]
[null,null,null,null,null,null,null,null,null,1]
[null,null,null,null,null,null,null,null,null,1]
[null,null,null,null,null,null,null,null,null,1]
[null,null,null,null,null,null,null,null,null,1]
[null,null,null,null,null,null,null,null,null,1]
[null,null,null,null,null,null,null,null,null,1]
[null,null,null,null,null,null,null,null,null,1]
[null,null,null,null,null,null,null,null,null,1]
[null,null,null,null,null,null,null,null,null,1]
[null,null,null,null,null,null,null,null,null,1]
[null,null,null,null,null,null,null,null,null,1]
[null,null,null,null,null,null,null,null,null,1]
[null,null,null,null,null,null,null,null,null,1]
[null,null,null,null,null,null,null,null,null,1]
[null,null,null,null,null,null,null,null,null,1]
[null,null,null,null,null,null,null,null,null,1]
[null,null,null,null,null,null,null,null,null,1]
[null,null,null,null,null,null,null,null,null,1]
[null,null,null,null,null,null,null,null,null,1]
[null,null,null,null,null,null,null,null,null,1]
[null,null,null,null,null,null,null,null,null,1]
[null,null,null,null,null,null,null,null,null,1]
[null,null,null,null,null,null,null,null,null,1]
[null,null,null,null,null,null,null,null,null,1]
[null,null,null,null,null,null,null,null,null,1]
[null,null,null,null,null,null,null,null,null,1]
[null,null,null,null,null,null,null,null,null,1]
[null,null,null,null,null,null,null,null,null,1]
[null,null,null,null,null,null,null,null,null,1]
[null,null,null,null,null,null,null,null,null,1]
[null,null,null,null,null,null,null,null,null,1]
[null,null,null,null,null,null,null,null,null,1]
[null,null,null,null,null,null,null,null,null,1]
[null,null,null,null,null,null,null,null,null,1]
[null,null,null,null,null,null,null,null,null,1]
[null,null,null,null,null,null,null,null,null,1]
[null,null,null,null,null,null,null,null,null,1]
[null,null,null,null,null,null,null,null,null,1]
[null,null,null,null,null,null,null,null,null,1]
[null,null,null,null,null,null,null,null,null,1]
[null,null,null,null,null,null,null,null,null,1]
[null,null,null,null,null,null,null,null,null,1]
[null,null,null,null,null,null,null,null,null,1]
[null,null,null,null,null,null,null,null,null,1]
[null,null,null,null,null,null,null,null,null,1]
[null,null,null,null,null,null,null,null,null,1]
[null,null,null,null,null,null,null,null,null,1]
[null,null,null,null,null,null,null,null,null,1]
[null,null,null,null,null,null,null,null,null,1]
[null,null,null,null,null,null,null,null,null,1]
[null,null,null,null,null,null,null,null,null,1]
[null,null,null,null,null,null,null,null,null,1]
[null,null,null,null,null,null,null,null,null,1]
[null,null,null,null,null,null,null,null,null,1]
[null,null,null,null,null,null,null,null,null,1]
[null,null,null,null,null,null,null,null,null,1]
[null,null,null,null,null,null,null,null,null,1]
[null,null,null,null,null,null,null,null,null,1]
[null,null,null,null,null,null,null,null,null,1]
[null,null,null,null,null,null,null,null,null,1]
[null,null,null,null,null,null,null,null,null,1]
[null,null,null,null,null,null,null,null,null,1]
[null,null,null,null,null,null,null,null,null,1]
[null,null,null,null,null,null,null,null,null,{"$f":"IF($J$2=A418,1,0)","v":1}]
[null,null,null,null,null,null,null,null,null,1]
[null,null,null,null,null,null,null,null,null,1]
[null,null,null,null,null,null,null,null,null,1]
[null,null,null,null,null,null,null,null,null,1]
[null,null,null,null,null,null,null,null,null,1]
[null,null,null,null,null,null,null,null,null,1]
[null,null,null,null,null,null,null,null,null,1]
[null,null,null,null,null,null,null,null,null,1]
[null,null,null,null,null,null,null,null,null,1]
[null,null,null,null,null,null,null,null,null,1]
[null,null,null,null,null,null,null,null,null,1]
[null,null,null,null,null,null,null,null,null,1]
[null,null,null,null,null,null,null,null,null,1]
[null,null,null,null,null,null,null,null,null,1]
[null,null,null,null,null,null,null,null,null,1]
[null,null,null,null,null,null,null,null,null,1]
[null,null,null,null,null,null,null,null,null,1]
[null,null,null,null,null,null,null,null,null,1]
[null,null,null,null,null,null,null,null,null,1]
[null,null,null,null,null,null,null,null,null,1]
[null,null,null,null,null,null,null,null,null,1]
[null,null,null,null,null,null,null,null,null,1]
[null,null,null,null,null,null,null,null,null,1]
[null,null,null,null,null,null,null,null,null,1]
[null,null,null,null,null,null,null,null,null,1]
[null,null,null,null,null,null,null,null,null,1]
[null,null,null,null,null,null,null,null,null,1]
[null,null,null,null,null,null,null,null,null,1]
[null,null,null,null,null,null,null,null,null,1]
[null,null,null,null,null,null,null,null,null,1]
[null,null,null,null,null,null,null,null,null,1]
[null,null,null,null,null,null,null,null,null,1]
[null,null,null,null,null,null,null,null,null,1]
[null,null,null,null,null,null,null,null,null,1]
[null,null,null,null,null,null,null,null,null,1]
[null,null,null,null,null,null,null,null,null,1]
[null,null,null,null,null,null,null,null,null,1]
[null,null,null,null,null,null,null,null,null,1]
[null,null,null,null,null,null,null,null,null,1]
[null,null,null,null,null,null,null,null,null,1]
[null,null,null,null,null,null,null,null,null,1]
[null,null,null,null,null,null,null,null,null,1]
[null,null,null,null,null,null,null,null,null,1]
[null,null,null,null,null,null,null,null,null,1]
[null,null,null,null,null,null,null,null,null,1]
[null,null,null,null,null,null,null,null,null,1]
[null,null,null,null,null,null,null,null,null,1]
[null,null,null,null,null,null,null,null,null,1]
[null,null,null,null,null,null,null,null,null,1]
[null,null,null,null,null,null,null,null,null,1]
[null,null,null,null,null,null,null,null,null,1]
[null,null,null,null,null,null,null,null,null,1]
[null,null,null,null,null,null,null,null,null,1]
[null,null,null,null,null,null,null,null,null,1]
[null,null,null,null,null,null,null,null,null,1]
[null,null,null,null,null,null,null,null,null,1]
[null,null,null,null,null,null,null,null,null,1]
[null,null,null,null,null,null,null,null,null,1]
[null,null,null,null,null,null,null,null,null,1]
[null,null,null,null,null,null,null,null,null,1]
[null,null,null,null,null,null,null,null,null,1]
[null,null,null,null,null,null,null,null,null,1]
[null,null,null,null,null,null,null,null,null,1]
[null,null,null,null,null,null,null,null,null,{"$f":"IF($J$2=A482,1,0)","v":1}]
[null,null,null,null,null,null,null,null,null,1]
[null,null,null,null,null,null,null,null,null,1]
[null,null,null,null,null,null,null,null,null,1]
[null,null,null,null,null,null,null,null,null,1]
[null,null,null,null,null,null,null,null,null,1]
[null,null,null,null,null,null,null,null,null,1]
[null,null,null,null,null,null,null,null,null,1]
[null,null,null,null,null,null,null,null,null,1]
[null,null,null,null,null,null,null,null,null,1]
[null,null,null,null,null,null,null,null,null,1]
[null,null,null,null,null,null,null,null,null,1]
[null,null,null,null,null,null,null,null,null,1]
[null,null,null,null,null,null,null,null,null,1]
[null,null,null,null,null,null,null,null,null,1]
[null,null,null,null,null,null,null,null,null,1]
[null,null,null,null,null,null,null,null,null,1]
[null,null,null,null,null,null,null,null,null,1]
[null,null,null,null,null,null,null,null,null,1]
[null,null,null,null,null,null,null,null,null,1]
[null,null,null,null,null,null,null,null,null,1]
[null,null,null,null,null,null,null,null,null,1]
[null,null,null,null,null,null,null,null,null,1]
[null,null,null,null,null,null,null,null,null,1]
[null,null,null,null,null,null,null,null,null,1]
[null,null,null,null,null,null,null,null,null,1]
[null,null,null,null,null,null,null,null,null,1]
[null,null,null,null,null,null,null,null,null,1]
[null,null,null,null,null,null,null,null,null,1]
[null,null,null,null,null,null,null,null,null,1]
[null,null,null,null,null,null,null,null,null,1]
[null,null,null,null,null,null,null,null,null,1]
[null,null,null,null,null,null,null,null,null,1]
[null,null,null,null,null,null,null,null,null,1]
[null,null,null,null,null,null,null,null,null,1]
[null,null,null,null,null,null,null,null,null,1]
[null,null,null,null,null,null,null,null,null,1]
[null,null,null,null,null,null,null,null,null,1]
[null,null,null,null,null,null,null,null,null,1]
[null,null,null,null,null,null,null,null,null,1]
[null,null,null,null,null,null,null,null,null,1]
[null,null,null,null,null,null,null,null,null,1]
[null,null,null,null,null,null,null,null,null,1]
[null,null,null,null,null,null,null,null,null,1]
[null,null,null,null,null,null,null,null,null,1]
[null,null,null,null,null,null,null,null,null,1]

{"sheet":"ORGFUN2018","index":4,"n_rows":2351,"n_cols":6,"rows_kept":2351,"cut":false,"hidden":true,"merged":[]}
["ORGANICA FUNCIONAL","DESCRICION_ORGANICA","ORGANICA","FUNCIONAL","DESCRICIÓN FUNCIONAL"]
["0100 122B","SECRETARÍA XERAL","0100","122B","BIBLIOTECAS","SE(ENBRANCO(D2);\" \";BUSCARV(D2;'FUN2018'!$A:$D;2;0))"]
["0100 422D","SECRETARÍA XERAL","0100","422D","ENSINANZA UNIVERSITARIA"]
["0100010001 422D","25  ANIVERSARIO DA UDC. SRIA XERAL","0100010001","422D","ENSINANZA UNIVERSITARIA"]
["0100010002 422D","AXUDA 2015,XUNTA,CONS.CULT.ED.e OU ,EN MATERIA DE ARQUIVOS. SRIA.XERAL.","0100010002","422D","ENSINANZA UNIVERSITARIA"]
["0100010003 422D","XORN.COMUNIC.E RESPONSABILIDADE SOCIAL ,ORGANIZA REGACUE","0100010003","422D","ENSINANZA UNIVERSITARIA"]
["01000102 422D","GABINETE DE COMUNICACIÓN E MEDIOS AUDIOVISUAIS","01000102","422D","ENSINANZA UNIVERSITARIA"]
["01000105 422D","SERVIZO DE REXISTRO, DOCUMENTACIÓN E ARQUIVO","01000105","422D","ENSINANZA UNIVERSITARIA"]
["01000107 422D","SERVIZO DE NORMALIZACIÓN LINGÜÍSTICA","01000107","422D","ENSINANZA UNIVERSITARIA"]
["0100010701 422D","C.VERAN 2016-PROF.RIOS NOYA-XII CURSO VERAN SOBRE DINAMIZACION LINGUISTICA.TRABALLANDO EN LINGUA.DINAMIZACION DA LINGUA NO SECTOR SOCIOECONOMICO","0100010701","422D","ENSINANZA UNIVERSITARIA"]
["0100010702 422D","C.VERÁN.2015 (XI), SERV. NORM.LINGÜÍSTICA.: DINAMIZACIÓN LINGÜÍSTICA, TRAB. EN LINGUA?","0100010702","422D","ENSINANZA UNIVERSITARIA"]
["0100010703 422D","CONV. 13-ACTVD. DE FORMACIÓN- CURSO EILC. SERV. DE NORMALIZACIÓN","0100010703","422D","ENSINANZA UNIVERSITARIA"]
["01000107C1 422D","2018 XIV CURSO DE VERÁN SOBRE DINAMIZACIÓN LINGUISTICA, TRABALLANDO EN LINGUA NA MUSICA","01000107C1","422D","ENSINANZA UNIVERSITARIA"]
["01000108 422D","XESTOR DE RELAC. CIENTF. TEC.- SEC. XERAL","01000108","422D","ENSINANZA UNIVERSITARIA"]
["0100440093 422D","CONV.2018,XUNTA,C.EDUC.ACTUACIÓNS MAT.NORMALIZ.LINGÏÍSTICA.Sº.NORMLING.SRÍA.X.","0100440093","422D","ENSINANZA UNIVERSITARIA"]
["0100470102 422D","XORN.COMUNIC.E RESPONSABILIDADE SOCIAL ,ORGANIZA REGACUE","0100470102","422D","ENSINANZA UNIVERSITARIA"]
["0200 100A","VICERREITORÍA DE ECONOMÍA, INFRAESTRUCTURAS E SUSTENTABILIDADE","0200","100A","EQUILIBRIO FINANCEIRO"]
["0200 422D","VICERREITORÍA DE ECONOMÍA, INFRAESTRUCTURAS E SUSTENTABILIDADE","0200","422D","ENSINANZA UNIVERSITARIA"]
["0200 541A","VICERREITORÍA DE ECONOMÍA, INFRAESTRUCTURAS E SUSTENTABILIDADE","0200","541A","INVESTIGACIÓN"]
["0200020001 422D","REPRESENTANTES UDC NO CES GALICIA","0200020001","422D","ENSINANZA UNIVERSITARIA"]
["0200020003 422D","C. VERÁN 14 - OFIC. M. AMBIENTE \"INICIATIVAS DE CONSERV. AMBIENTAL E PARTIC. SOCIAL.\"","0200020003","422D","ENSINANZA UNIVERSITARIA"]
["0200020004 422D","EXECUCIÓN SENTENZA ALDESA , S.A.","0200020004","422D","ENSINANZA UNIVERSITARIA"]
["0200020005 422D","OFICINA DE MEDIO AMBIENTE","0200020005","422D","ENSINANZA UNIVERSITARIA"]
["0200280091 422D","PROX. 2017, ALCOA FUNDATION-EDUCATING FOR ENVIROMENTAL CONSCIOUNESS. PROF: MANUEL SOTO","0200280091","422D","ENSINANZA UNIVERSITARIA"]
["0200440097 422D","CONV.XUNTA 16/17 .ACTUAC.A)CENTROS INNOVACIÓN TECNOLÓXICA UDC","0200440097","422D","ENSINANZA UNIVERSITARIA"]
["0200440097 541A","CONV.XUNTA 16/17 .ACTUAC.A)CENTROS INNOVACIÓN TECNOLÓXICA UDC","0200440097","541A","INVESTIGACIÓN"]
["0200440098 541A","REFORZO DE CAPITAL HUMANO:CICA E ESCI. 2017-2018","0200440098","541A","INVESTIGACIÓN"]
["0200440100 422D","CONV.XUNTA ,DESENVOLVEMENTO DE ACCIÓNS DE I+D+I","0200440100","422D","ENSINANZA UNIVERSITARIA"]
["0200440100 541A","CONV.XUNTA ,DESENVOLVEMENTO DE ACCIÓNS DE I+D+I","0200440100","541A","INVESTIGACIÓN"]
["020044A220 422D","CONV.XUNTA,2018,ACTUACIÓN 2) CAMPUS DE ESPECIALIZACIÓN.","020044A220","422D","ENSINANZA UNIVERSITARIA"]
["020044A320 422D","CONV.XUNTA 2018, ACTUACIÓN 3) INVESTIMENTO MATERIAL E INMATERIAL","020044A320","422D","ENSINANZA UNIVERSITARIA"]
["0200460002 422D","CONVENIO  14/09/16, CONCELLO DA CORUÑA,INFRAESTRUCTURAS E ESPAZOS URBANOS USO PEONIL","0200460002","422D","ENSINANZA UNIVERSITARIA"]
["0200460014 422D","CONV.2016. C.CORUÑA RENOVAC.PISTA ATLETÍSMO ESTADIO CAMPUS ELVIÑA","0200460014","422D","ENSINANZA UNIVERSITARIA"]
["0300 422D","VICERREITORÍA DE ESTUDANTES, PARTICIPACIÓN E EXTENSIÓN UNIVERSITARIA","0300","422D","ENSINANZA UNIVERSITARIA"]
["0300 541A","VICERREITORÍA DE ESTUDANTES, PARTICIPACIÓN E EXTENSIÓN UNIVERSITARIA","0300","541A","INVESTIGACIÓN"]
["0300030001 422D","CURSOS/ XORNADAS PROFESORES. VEPEU","0300030001","422D","ENSINANZA UNIVERSITARIA"]
["0300030002 422D","COMP.DEGASTOSDESPRAZAMENTOPROFESORES.PROGR.OTEUFUTURO","0300030002","422D","ENSINANZA UNIVERSITARIA"]
["0300030003 422D","AULA NAÚTICA -VEPEU","0300030003","422D","ENSINANZA UNIVERSITARIA"]
["0300030004 422D","C.VERÁN 14- PROF. GONZÁLEZ TIZÓN- \"CIENCIAS FORENSES NA INVESTIGACIÓN\"","0300030004","422D","ENSINANZA UNIVERSITARIA"]
["0300030005 422D","II CURSO VERÁN.2015,ORIENTATE E PLANIFICA O TEU FUTURO.PROF.ÁLVAREZ GARCÍA","0300030005","422D","ENSINANZA UNIVERSITARIA"]
["0300030006 422D","AXUDAS OLIMPÍADAS CIENTÍFICAS. VEPEU","0300030006","422D","ENSINANZA UNIVERSITARIA"]
["0300030007 422D","PREMIOS DE DIVULGACIÓN CIENTÍFICA. VEPEU","0300030007","422D","ENSINANZA UNIVERSITARIA"]
["0300030008 422D","BOLSAS  SANTANDER  CRUE  CEPYME,PRÁCT.EMPRESAS11/12E12/13.","0300030008","422D","ENSINANZA UNIVERSITARIA"]
["0300030009 422D","AMPLIACION BOLSAS TRANSPORTE-LA CAIXA","0300030009","422D","ENSINANZA UNIVERSITARIA"]
["0300030010 422D","CURSO VERAN 2016,MOD.D.PAS LORENZO CARIDAD III ORIENTATE E PLANIF.O TEU FUTURO","0300030010","422D","ENSINANZA UNIVERSITARIA"]
["0300030011 422D","FEIRA DE ASOCIACIÓNS DE ESTUDANTES.VEPEU","0300030011","422D","ENSINANZA UNIVERSITARIA"]
["0300030012 422D","BOLSAS- PRÁCTICAS FUNDACIÓN ONCE-CRUE CONVOC. 2016/2017","0300030012","422D","ENSINANZA UNIVERSITARIA"]
["0300030013 422D","BOLSAS SANTANDER CRUE CEPYME,PRÁCTICAS EN EMPRESAS CONVOC.CURSO 2016/2017","0300030013","422D","ENSINANZA UNIVERSITARIA"]
["0300030014 422D","BOLSAS- PRÁCTICAS FUNDACIÓN ONCE-CRUE PARA ESTUDIANTES UNIVERSITARIOS CON DISCAPACIDADE.CONV, 2017/2018.COFINANCIADO FSE","0300030014","422D","ENSINANZA UNIVERSITARIA"]
["0300030015 422D","BOLSAS COLABORACIÓN ESTUDANTES","0300030015","422D","ENSINANZA UNIVERSITARIA"]
["0300030016 422D","EXPOSICIÓNS.","0300030016","422D","ENSINANZA UNIVERSITARIA"]
["0300030017 422D","UNIDADE DE DIVULGACIÓN CIENTÍFICA E CULTURAL","0300030017","422D","ENSINANZA UNIVERSITARIA"]
["0300030018 422D","BOLSAS MÁSTER UDC-SANTANDER","0300030018","422D","ENSINANZA UNIVERSITARIA"]
["0300030021 422D","BOLSAS SANTANDER CRUE-CEPYME,PRÁCTICAS EN EMPRESA 2017/2018","0300030021","422D","ENSINANZA UNIVERSITARIA"]
["0300030022 422D","AXUDAS ASOCIACIÓNS E GRUPOS DE ESTUDANTES","0300030022","422D","ENSINANZA UNIVERSITARIA"]
["0300030023 422D","AXUDAS A ESTUDANTES PARA VIAXES DE ESTUDOS","0300030023","422D","ENSINANZA UNIVERSITARIA"]
["0300030025 422D","BOLSAS RESIDENCIAS.","0300030025","422D","ENSINANZA UNIVERSITARIA"]
["0300030026 422D","BOLSAS BONO-BUS","0300030026","422D","ENSINANZA UNIVERSITARIA"]
["0300030028 422D","SEGUROS ESTUDANTES","0300030028","422D","ENSINANZA UNIVERSITARIA"]
["0300030029 422D","PREMIOS EXCEL. ACADÉMICA BACHARELATO","0300030029","422D","ENSINANZA UNIVERSITARIA"]
["0300030030 422D","OUTRAS BOLSAS A ESTUDANTES","0300030030","422D","ENSINANZA UNIVERSITARIA"]
["0300030031 422D","BOLSAS CONVOCATORIA ÚNICA- VIC. ESTUD. DEPORT. E CULTURA","0300030031","422D","ENSINANZA UNIVERSITARIA"]
["0300030033 422D","AXUDAS FONDO SOCIAL.","0300030033","422D","ENSINANZA UNIVERSITARIA"]
["0300030034 422D","BOLSAS E AXUDAS AO ESTUDO UDC","0300030034","422D","ENSINANZA UNIVERSITARIA"]
["0300030035 422D","XXV OLIMPIADAS ESPAÑOLA DE FÍSICA (SUVB, XUNTA 05/02/14)","0300030035","422D","ENSINANZA UNIVERSITARIA"]
["03000304 422D","CLUBE UNIVERSITARIO","03000304","422D","ENSINANZA UNIVERSITARIA"]
["03000305 422D","SERVIZO DE EXTENSIÓN UNIVERSITARIA","03000305","422D","ENSINANZA UNIVERSITARIA"]
["03000307 422D","SERVIZO DE PUBLICACIÓNS","03000307","422D","ENSINANZA UNIVERSITARIA"]
["0300030810 422D","TEATRO","0300030810","422D","ENSINANZA UNIVERSITARIA"]
["0300030811 422D","CINE E ACTIV.SOCIO CULT.","0300030811","422D","ENSINANZA UNIVERSITARIA"]
["0300030812 422D","MÚSICA","0300030812","422D","ENSINANZA UNIVERSITARIA"]
["0300030814 422D","OBRADOIRO E ROTAS","0300030814","422D","ENSINANZA UNIVERSITARIA"]
["0300030820 422D","ÁREA DE CULTURA.CAMP.DE FERROL","0300030820","422D","ENSINANZA UNIVERSITARIA"]
["0300030823 422D","CAMPAMENTOS DE VERÁN-  ÁREA DE CULTURA","0300030823","422D","ENSINANZA UNIVERSITARIA"]
["0300030833 422D","ACIÓNS DE INTERVENCIÓN CULTURAL","0300030833","422D","ENSINANZA UNIVERSITARIA"]
["0300030834 422D","COLABORACIÓN AULA DE TEATRO E DANZA","0300030834","422D","ENSINANZA UNIVERSITARIA"]
["0300030835 422D","C. VERÁN 2015- PAS PEÑA FDEZ. \"5 ACTITUDES PARA O ÉXITO\"","0300030835","422D","ENSINANZA UNIVERSITARIA"]
["0300030836 422D","C.VERÁN 2015, RESP.PAS CASTRO DE PAZ \"CINEMA E HOLOCAUSTO NAZI?..\"","0300030836","422D","ENSINANZA UNIVERSITARIA"]
["0300030837 422D","PROMOCIÓN,INFORMACIÓN E DIVULGACIÓN MASTERS","0300030837","422D","ENSINANZA UNIVERSITARIA"]
["0300030838 422D","BOLSAS COMEDOR","0300030838","422D","ENSINANZA UNIVERSITARIA"]
["03000310 422D","ÁREA DE DEPORTES","03000310","422D","ENSINANZA UNIVERSITARIA"]
["0300031015 422D","ACTIV.DEPORT.CORUÑA-FERROL","0300031015","422D","ENSINANZA UNIVERSITARIA"]
["0300031019 422D","ÁREA DE DEPORTES.CAMPUS DE FERROL","0300031019","422D","ENSINANZA UNIVERSITARIA"]
["0300031022 422D","ACTIVID.DEPORTIVAS\"CAMPUS MAURO SILVA\"","0300031022","422D","ENSINANZA UNIVERSITARIA"]
["0300031023 422D","CAMPAMENTOS DE VERÁN -ÁREA D DEPORTES","0300031023","422D","ENSINANZA UNIVERSITARIA"]
["0300031040 422D","ACTIVIDADES NATUREZA DEPORTE CORUÑA","0300031040","422D","ENSINANZA UNIVERSITARIA"]
["0300031041 422D","ACTIVIDADES NAÚTICAS DEPORTE CORUÑA","0300031041","422D","ENSINANZA UNIVERSITARIA"]
["0300031042 422D","CURSOS DEPORTIVOS DEPORTES CORUÑA","0300031042","422D","ENSINANZA UNIVERSITARIA"]
["0300031043 422D","ESCALADA DEPORTIVA DEPORTES CORUÑA","0300031043","422D","ENSINANZA UNIVERSITARIA"]
["0300031044 422D","IOGA DEPORTES CORUÑA","0300031044","422D","ENSINANZA UNIVERSITARIA"]
["0300031045 422D","IUDO DEPORTES CORUÑA","0300031045","422D","ENSINANZA UNIVERSITARIA"]
["0300031046 422D","MONITOR DE TEMPO LIBRE DEPORT. CORUÑA","0300031046","422D","ENSINANZA UNIVERSITARIA"]
["0300031047 422D","PADEL DEPORTES CORUÑA","0300031047","422D","ENSINANZA UNIVERSITARIA"]
["0300031048 422D","PILATES DEPORTES CORUÑA","0300031048","422D","ENSINANZA UNIVERSITARIA"]
["0300031049 422D","SALA MUSCULACIÓN DEPORTES","0300031049","422D","ENSINANZA UNIVERSITARIA"]
["0300031050 422D","TAEKWONDO DEPORTES CORUÑA","0300031050","422D","ENSINANZA UNIVERSITARIA"]
["0300031051 422D","TENIS DEPORTES CORUÑA","0300031051","422D","ENSINANZA UNIVERSITARIA"]
["0300031052 422D","TENIS DE MESA DEPORTES CORUÑA","0300031052","422D","ENSINANZA UNIVERSITARIA"]
["0300031053 422D","TIRO CON ARCO DEPORTE CORUÑA","0300031053","422D","ENSINANZA UNIVERSITARIA"]
["0300031054 422D","PERSOAL TRAINING. DEP. CORUÑA","0300031054","422D","ENSINANZA UNIVERSITARIA"]
["0300031055 422D","BONO FITNESS DEPORTES CORUÑA","0300031055","422D","ENSINANZA UNIVERSITARIA"]
["0300031056 422D","ACTIVIDADES DIRIXIDAS SALA FITNESS DEPORTES FERROL","0300031056","422D","ENSINANZA UNIVERSITARIA"]
["0300031057 422D","ACTIVIDADES NÁUTICAS DEPORTES FERROL","0300031057","422D","ENSINANZA UNIVERSITARIA"]
["0300031058 422D","ESGRIMA DEPORTES FERROL","0300031058","422D","ENSINANZA UNIVERSITARIA"]
["0300031059 422D","NADO LIBRE PISICINAS DEPORTES FERROL","0300031059","422D","ENSINANZA UNIVERSITARIA"]
["0300031060 422D","PÁDEL DEPORTES FERROL","0300031060","422D","ENSINANZA UNIVERSITARIA"]
["0300031062 422D","TENIS DE MESA DEPORTES FERROL","0300031062","422D","ENSINANZA UNIVERSITARIA"]
["0300031063 422D","USO LIBRE SALA DE FITNES DEPORTES FERROL","0300031063","422D","ENSINANZA UNIVERSITARIA"]
["0300031064 422D","XADREZ DEPORTES CORUÑA","0300031064","422D","ENSINANZA UNIVERSITARIA"]
["0300031065 422D","VOLEIBOL DEPORTES CORUÑA","0300031065","422D","ENSINANZA UNIVERSITARIA"]
["0300031066 422D","PERSONAL TRAINING DEPORTES FERROL","0300031066","422D","ENSINANZA UNIVERSITARIA"]
["0300031067 422D","MULLERES + DEPORTES CORUÑA","0300031067","422D","ENSINANZA UNIVERSITARIA"]
["0300031068 422D","UDC CORRE-UDC GAMES.DEPORTES CORUÑA","0300031068","422D","ENSINANZA UNIVERSITARIA"]
["0300031069 422D","UDC CORRE-UDC GAMES.DEPORTES FERROL","0300031069","422D","ENSINANZA UNIVERSITARIA"]
["0300031070 422D","PREMIOS EXCELENCIA DEPORTIVA","0300031070","422D","ENSINANZA UNIVERSITARIA"]
["03000311 422D","OBSERVATORIO OCUPACIONAL","03000311","422D","ENSINANZA UNIVERSITARIA"]
["0300430005 422D","CONV.14.UNIV.POL.MADRID,OBRA SOC.LA CAIXA,LA CRUE PARA FINANC.DO CRAI RET.13%","0300430005","422D","ENSINANZA UNIVERSITARIA"]
["0300460017 422D","CONV.2017,DIPUTAC.CORUÑA,FINANC.PROGR.CULTURAL E DIVULG.COÑECEMENTO CIENT.ANO 2017","0300460017","422D","ENSINANZA UNIVERSITARIA"]
["0300460066 422D","CONTR.13- DEPT. PROF. FREIRE SEOANE- OB. OCUP. \"POSTA EN MARCHA DO OBSERV. SOC. REDEXIANA2\"-","0300460066","422D","ENSINANZA UNIVERSITARIA"]
["0300460068 422D","CONV. 14- CONC. DA CORUÑA-UDC- PROF. FREIRE SEOANE - OB. OCUP. \"DES. DE LOS RR. EE.DE CORUÑA\"","0300460068","422D","ENSINANZA UNIVERSITARIA"]
["0300460069 422D","CONV.14- CONV. DA CORUÑA-UDC- PROF. FREEIRE SEOANE -OB.OCUP. \"DES. SOBRE NECES. DE INNOV.\"","0300460069","422D","ENSINANZA UNIVERSITARIA"]
["0300460070 422D","CONV.16-CONC.CORU-UDC.PROF.FREIRE SEOANE-ESTUDO PROSPECCION SECTORES XERADORES EMPREGO","0300460070","422D","ENSINANZA UNIVERSITARIA"]
["0300470006 422D","CONV.2015,GRUPO COREN,AXUDAS A ESTUDANTES CON DIFICUT. ECONÓMICAS SOBREVIDAS","0300470006","422D","ENSINANZA UNIVERSITARIA"]
["0300490026 422D","ACORDO COLAB.2018,UDC  COA SOCIEDADE ARTÍSTICA FERROLANA","0300490026","422D","ENSINANZA UNIVERSITARIA"]
["0300ACDO 422D","VEPEU. ACTIVIDADES CULTURAIS, DEPORTIVAS E OUTRAS","0300ACDO","422D","ENSINANZA UNIVERSITARIA"]
["0300ACDO08 422D","VEPEU. ACTIVIDADES ÁREA CULTURA","0300ACDO08","422D","ENSINANZA UNIVERSITARIA"]
["0300ACDO09 422D","VEPEU. CAMPAMENTOS ÁREA CULTURA","0300ACDO09","422D","ENSINANZA UNIVERSITARIA"]
["0300ACDO11 422D","VEPEU. CAMPAMENTOS ÁREA DEPORTES","0300ACDO11","422D","ENSINANZA UNIVERSITARIA"]
["0400 422D","VICERREITORÍA DE OFERTA ACADÉMICA E INNOVACIÓN DOCENTE","0400","422D","ENSINANZA UNIVERSITARIA"]
["0400040001 422D","CURSOS E CONFERENCIAS","0400040001","422D","ENSINANZA UNIVERSITARIA"]
["0400040002 422D","PREMIOS EXCEL.ACADÉM.UDC-BCO.DE SANTANDER","0400040002","422D","ENSINANZA UNIVERSITARIA"]
["0400040005 422D","ESCOLA INTERNACIONAL DE DOUTORAMENTO","0400040005","422D","ENSINANZA UNIVERSITARIA"]
["0400040005 541A","ESCOLA INTERNACIONAL DE DOUTORAMENTO","0400040005","541A","INVESTIGACIÓN"]
["0400040006 422D","MESTRADO UNIVER. EN AVOGACÍA.CONV. UDC-ICACOR(ESCOLA PRÁCTICA XURÍD.)","0400040006","422D","ENSINANZA UNIVERSITARIA"]
["0400040007 422D","MESTR. UNIVER. CONTB. SUP. E AUDITORIA DE CONTAS CONV. UDC-ICECOR (COLEX. ECONO CORU.)","0400040007","422D","ENSINANZA UNIVERSITARIA"]
["0400040008 422D","INVESTIMENTOS PARA APOIO Á XESTIÓN","0400040008","422D","ENSINANZA UNIVERSITARIA"]
["0400040009 422D","UTC.ACCIÓNS DE MELLORA E CERTIFICACIÓN","0400040009","422D","ENSINANZA UNIVERSITARIA"]
["0400040010 422D","IMPRESIÓN TÍTULOS OFICIAIS","0400040010","422D","ENSINANZA UNIVERSITARIA"]
["0400040012 422D","UNIVERSIDADE SENIOR,PROGRAMA COSTA DA MORTE","0400040012","422D","ENSINANZA UNIVERSITARIA"]
["04000405 422D","CENTRO UNIVERSITARIO DE FORMACIÓN E INNOVACIÓN EDUCATIVA","04000405","422D","ENSINANZA UNIVERSITARIA"]
["0400040501 422D","AX.UDC.CURSO VERÁN 2017,MODAL.A. CUFIE,PROF.DE LA TORRE FDEZ.DOCENTES CONECT@DOS?.","0400040501","422D","ENSINANZA UNIVERSITARIA"]
["0400420007 422D","CONV.13 Mº DE DEFENSA  \"PROP. CAPACIDADES DOCENTES","0400420007","422D","ENSINANZA UNIVERSITARIA"]
["0400430003 422D","CONV.15 ACSUG.IMPLANT.PROGR.DOCENTIA APOIO AVALIAC.ACTIV.DOCENTE PROF.UNIVERS.NA UDC.","0400430003","422D","ENSINANZA UNIVERSITARIA"]
["0400440008 422D","CONVENIO XUNTA UNIVERSIDADE SENIOR","0400440008","422D","ENSINANZA UNIVERSITARIA"]
["0400440011 422D","CONV.15,XUNTA,C.CULT,EDU.ELABORAR PLAN ESTRAT. E  PROGR.NECE.FUNC.CAMPUS FERROL.VTCNT","0400440011","422D","ENSINANZA UNIVERSITARIA"]
["0400470001 422D","BOLSAS ESTADÍAS INTERN.EIDUDC, UDC-INDITEX  2016.","0400470001","422D","ENSINANZA UNIVERSITARIA"]
["0400490045 422D","CONV.ICACOR,MESTRADO UNIVERS.EN ABOGACÍA(ESCOLA PRÁCTICA XURÍDICA)","0400490045","422D","ENSINANZA UNIVERSITARIA"]
["0500 122B","VICERREITORÍA DE POLÍTICA CIENTÍFICA, INVESTIGACIÓN E TRANSFERENCIA","0500","122B","BIBLIOTECAS"]
["0500 422D","VICERREITORÍA DE POLÍTICA CIENTÍFICA, INVESTIGACIÓN E TRANSFERENCIA","0500","422D","ENSINANZA UNIVERSITARIA"]
["0500 541A","VICERREITORÍA DE POLÍTICA CIENTÍFICA, INVESTIGACIÓN E TRANSFERENCIA","0500","541A","INVESTIGACIÓN"]
["0500050001 541A","PROGRAMAS UNIVERS.","0500050001","541A","INVESTIGACIÓN"]
["0500050002 541A","GASTOS ADSCRITOS A PROGRAMAS DE INVESTIGACION.","0500050002","541A","INVESTIGACIÓN"]
["0500050004 541A","AXS.SUBPR.E.MOB.ESTADÍAS BREVES MINECO CONVOC.2014","0500050004","541A","INVESTIGACIÓN"]
["0500050005 541A","MINECO CONV.2014 (FPI2014)","0500050005","541A","INVESTIGACIÓN"]
["0500050006 541A","MECD. CONV.2012 (FPU CONTRATOS 2015)","0500050006","541A","INVESTIGACIÓN"]
["0500050007 541A","MINECO POSDOUTORAL. CONVOC.2013 (CONTRATO 2015)","0500050007","541A","INVESTIGACIÓN"]
["0500050008 541A","SUBV.MECD ESTADÍAS MOV.-mod.B \"JOSÉ CASTILLEJO\" CONV.2013-2016","0500050008","541A","INVESTIGACIÓN"]
["0500050009 541A","ACHEGA AMPLIACIÓN DE CAPITAL A TORUS SOFTWARE SOLUTIONS, SL","0500050009","541A","INVESTIGACIÓN"]
["0500050010 541A","VPCIT- PERSOAL","0500050010","541A","INVESTIGACIÓN"]
["0500050011 541A","MINECO CONV.2013( PTA-RES.CONCESIÓN 2015)","0500050011","541A","INVESTIGACIÓN"]
["0500050012 541A","ISIDRO PARGA PONDAL 2009","0500050012","541A","INVESTIGACIÓN"]
["0500050013 541A",".MINECO CONVOC.2013 (FPI 2013)","0500050013","541A","INVESTIGACIÓN"]
["0500050014 541A","MECD CONVOC,2008-2011( FPU 2014)","0500050014","541A","INVESTIGACIÓN"]
["0500050015 541A","XUNTA POSDOUT CONVOCT. 2013","0500050015","541A","INVESTIGACIÓN"]
["0500050016 541A","AXS.SUBPR.E.MOB.ESTADÍAS BREVES MINECO CONVOC.2013","0500050016","541A","INVESTIGACIÓN"]
["0500050017 541A","MINECO - PTA (CONVOC.2013)","0500050017","541A","INVESTIGACIÓN"]
["0500050018 541A","MECD-PREDOCTORAL FPU(CONV.2013)","0500050018","541A","INVESTIGACIÓN"]
["0500050019 541A","XUNTA POSDOUTORAL CONVOC.2014","0500050019","541A","INVESTIGACIÓN"]
["0500050020 541A","MINECO - FPI  CONVOC.2011. CONTRATOS 2014","0500050020","541A","INVESTIGACIÓN"]
["0500050021 541A","AX.ESTADÍAS BREVES MECD.PROGR.EST.PROM.TALENTO CONV.2014","0500050021","541A","INVESTIGACIÓN"]
["0500050022 541A","SUBV.MECD.ESTADÍAS PROF.SÉNIOR CONV.2013-2016","0500050022","541A","INVESTIGACIÓN"]
["0500050023 541A","MINECO 2013, RAMÓN Y CAJAL. E COFIN.XUNTA (RESOLUC.17/11/14)","0500050023","541A","INVESTIGACIÓN"]
["0500050024 541A","POSDOUTORAIS XUNTA-CONVOC. 2014 (CONTRATOS 2015-FASE ESTADÍA)","0500050024","541A","INVESTIGACIÓN"]
["0500050025 541A","PREDOUTORAIS XUNTA-CONVOC.2014","0500050025","541A","INVESTIGACIÓN"]
["0500050026 541A","AXUDA EUROPEAN FOUNDATION FOR THE STUDY OF DIABETES. DOC.VARELA RGUEZ.","0500050026","541A","INVESTIGACIÓN"]
["0500050027 541A","PREDOUTORAIS FPU-MECD convocatoria 2014","0500050027","541A","INVESTIGACIÓN"]
["0500050028 541A","MINECO-CONV.2014(PTA-Res.Concesión 05/10/2015","0500050028","541A","INVESTIGACIÓN"]
["0500050029 541A","MINECO-CONV.2014(PEJ-Res.Concesión 23/10/2015","0500050029","541A","INVESTIGACIÓN"]
["0500050030 541A","Predoutoral MINECO CONV.2015(FPI2015)","0500050030","541A","INVESTIGACIÓN"]
["0500050031 541A","MINECO J. de la  CIERVA (JCI) CONVOCATORIA .2014","0500050031","541A","INVESTIGACIÓN"]
["0500050032 541A","SUBV.MECD,ESTADÍAS PROFESORES.MODALID.A (PROEXT) CONV.2015","0500050032","541A","INVESTIGACIÓN"]
["0500050033 541A","AX.SUBPR.ESTATAL MOBILID.ESTADÍAS BREVES MINECO CONV.2015","0500050033","541A","INVESTIGACIÓN"]
["0500050034 541A","AX 2016.MEDC,CONV.2015, MOVIL.ESTADÍAS BREVES  ESTRANX.SUBPRO.FPU.3 EST15/620,465,396","0500050034","541A","INVESTIGACIÓN"]
["0500050035 541A","PREDOUTORAIS XUNTA CONVOC.2016","0500050035","541A","INVESTIGACIÓN"]
["0500050036 541A","POSDOUTORAIS XUNTA CONVOC.2016","0500050036","541A","INVESTIGACIÓN"]
["0500050038 541A","AXUD. MECD-PREDOUTORAL FPU (CONV. 2015). VPCIT","0500050038","541A","INVESTIGACIÓN"]
["0500050039 541A","ACHEGA CETAL","0500050039","541A","INVESTIGACIÓN"]
["0500050041 541A","ACHEGA CLUSTER ALIMENTARIO DE GALICIA","0500050041","541A","INVESTIGACIÓN"]
["0500050042 541A","AXUD. MEC FPI 2008-2010.","0500050042","541A","INVESTIGACIÓN"]
["0500050043 541A","AXUD. MCI BOLSAS FPU 2008/2010(CONVOCATORIA2007)","0500050043","541A","INVESTIGACIÓN"]
["0500050044 541A","ACHEGA ENERGYLAB","0500050044","541A","INVESTIGACIÓN"]
["0500050056 541A","AX. COMPLE. 2009-MEC- BOLSAS PRED. FPI EST. BREVES ESP. ESTR.","0500050056","541A","INVESTIGACIÓN"]
["0500050058 541A","AXUDAS MEC BOLSAS FPU 2009/2011(CONVOCATORIA2008)","0500050058","541A","INVESTIGACIÓN"]
["0500050062 541A","RAMÓN Y CAJAL 2009.AXUDA ADICIONAL,MICINN.(CONTRAT:EIRINLÓPEZ)","0500050062","541A","INVESTIGACIÓN"]
["0500050063 541A","TÉCNICOS DE APOIO MICINN CONV.2009).(RES.30/12/2009","0500050063","541A","INVESTIGACIÓN"]
["0500050069 541A","AXUDAS CONTRATOS MEC FPU(2010) CONVOCATORIA 2007","0500050069","541A","INVESTIGACIÓN"]
["0500050070 541A","BOLSAS MEC FPU 2010 CONVOCATORIA2009","0500050070","541A","INVESTIGACIÓN"]
["0500050073 541A","TÉCN.DE APOIO MICINN( CONV.2010).(RES.17/12/2010","0500050073","541A","INVESTIGACIÓN"]
["0500050078 541A","AXUDA MICIIN FPI 2009,CONTRATOS 2011","0500050078","541A","INVESTIGACIÓN"]
["0500050079 541A","PROGRAMA I.PARGA PONDAL (CONVOCATORIA2010)","0500050079","541A","INVESTIGACIÓN"]
["0500050080 541A","MEC. CONTRATOS FPU (2011)CONVOCAT.2008","0500050080","541A","INVESTIGACIÓN"]
["0500050082 541A","XUNTA.C.EDUC.AXUDAS PREDOUTORAIS 2011(28CONTRATOS) PLAN12C","0500050082","541A","INVESTIGACIÓN"]
["0500050083 541A","BOLSAS MEC FPU(2012)CONVOCATORIA2011","0500050083","541A","INVESTIGACIÓN"]
["0500050088 541A","SUBV.MICIN.2011,CONTRATOS PERSOAL TÉCNICOS APOIO","0500050088","541A","INVESTIGACIÓN"]
["0500050094 541A","AXUDAS MICIIN.FPI CONV.(CONV.2010)CONTRATOS 2012","0500050094","541A","INVESTIGACIÓN"]
["0500050095 541A","CONTRATOS-MEC-FPU(2010) CONVOCATORIA 2009","0500050095","541A","INVESTIGACIÓN"]
["0500050096 541A","AXUDAS PREDOUTORAIS 2012 XUNTA.COFINANC. UDC (16TIPOA+4TIPOB)-PLAN12C","0500050096","541A","INVESTIGACIÓN"]
["0500050098 541A","XUNTA.12 C..CULT. PROGR. POS DOUTORAL 2012 (PLAN 12C)","0500050098","541A","INVESTIGACIÓN"]
["0500050099 541A","MECD,BOLSAS FPU CONVOCATORIA 2012","0500050099","541A","INVESTIGACIÓN"]
["0500050102 541A","AX.INV.2013.ESTADÍAS INVEST-(MÍNIMO 16 DÍAS)","0500050102","541A","INVESTIGACIÓN"]
["0500050105 541A","ESTADÍAS BREVES FPI CONV.2012,MECD","0500050105","541A","INVESTIGACIÓN"]
["0500050106 541A","ESTADÍAS PROF.SENIORES CONV.2012.SUBV.MECD.","0500050106","541A","INVESTIGACIÓN"]
["0500050107 541A","ESTADÍAS JOSÉ CASTILLEJO CONV.2012, SUBV.MECD.","0500050107","541A","INVESTIGACIÓN"]
["0500050108 541A","UDC 13,PREDOC2013 . Sº INVESTIGAC.","0500050108","541A","INVESTIGACIÓN"]
["0500050109 541A","AX.MICIN FPI CONV. 2011, CONTRATOS 2013.","0500050109","541A","INVESTIGACIÓN"]
["0500050110 541A","XUNTA 13- C. CULT. PREDOUTORAL (PLAN 12C)","0500050110","541A","INVESTIGACIÓN"]
["0500050111 541A","AX.INV.2016. VISITAS - ENCONTROS INVESTIGADORES","0500050111","541A","INVESTIGACIÓN"]
["0500050112 541A","AX.INV.2016. ORG.CONGRESOS-XORNADAS INVESTIG.","0500050112","541A","INVESTIGACIÓN"]
["0500050113 541A","AX.INV.2016. PARTICIPACION PROGRAMA H2020","0500050113","541A","INVESTIGACIÓN"]
["0500050114 541A","AX.INV.ESTADIAS POSDOUTORAIS INVESTIG.","0500050114","541A","INVESTIGACIÓN"]
["0500050115 541A","AX.INV.2016. PATENTES","0500050115","541A","INVESTIGACIÓN"]
["0500050116 541A","AXUDAS MECD ESTADIAS BREVES PROM. TALENTO CONV. 2013","0500050116","541A","INVESTIGACIÓN"]
["0500050117 541A","AXUDAS MECD TRASLADOS TEMPORAIS PROM. TALENTO CONV. 2013","0500050117","541A","INVESTIGACIÓN"]
["0500050118 541A","MINECO AXUDA 2013.-COFIN.XUNTA PR. JUAN DL CIERVA (RES. 31/10/13)","0500050118","541A","INVESTIGACIÓN"]
["0500050119 541A","BOLSAS PROGR. NILS CIEN. E SOST. CONVC. ABEL-IM-2013 -(COORD. UNIV. COMPLUTE)-","0500050119","541A","INVESTIGACIÓN"]
["0500050120 541A","BOLSA PROGR. NILS CIEN. E SOST. CONVC. 004-ABEL-IM-2014 -GRCIA MAGARIÑOS","0500050120","541A","INVESTIGACIÓN"]
["0500050121 541A","BOLSAS PROGR.NILS CIENC.E SOST.CONVC.028-ABEL-IM-2014.A. FDEZ,PERNAS (UNIV.COMPL.MADRID)","0500050121","541A","INVESTIGACIÓN"]
["0500050122 541A","BOLSAS PROGR.NILS CIEN.E SOST.CONVC.ABEL-IM-2014.B.","0500050122","541A","INVESTIGACIÓN"]
["0500050123 541A","BOLSAS PROGR.NILS CIENC.E SOST.CONVOC. ACITIVIDADES BILATERALES (UNIV.COMPL.MADRID)","0500050123","541A","INVESTIGACIÓN"]
["0500050124 541A","VPCIT- PERSOAL","0500050124","541A","INVESTIGACIÓN"]
["0500050125 541A","AXUDAS INVESTIGACION 2018","0500050125","541A","INVESTIGACIÓN"]
["0500050126 541A","COFINANCIAMENTO PROGRAMAS RECURSOS HUMANOS","0500050126","541A","INVESTIGACIÓN"]
["05000502 122B","SERVIZO DE BIBLIOTECA UNIVERSITARIA","05000502","122B","BIBLIOTECAS"]
["05000502 422D","SERVIZO DE BIBLIOTECA UNIVERSITARIA","05000502","422D","ENSINANZA UNIVERSITARIA"]
["05000502 541A","SERVIZO DE BIBLIOTECA UNIVERSITARIA","05000502","541A","INVESTIGACIÓN"]
["05000504 541A","SERVIZOS DE APOIO Á INVESTIGACIÓN (SAI)","05000504","541A","INVESTIGACIÓN"]
["0500050401 422D","CURSOS. S.A.I.","0500050401","422D","ENSINANZA UNIVERSITARIA"]
["05000505 541A","OFICINA DE TRANSFERENCIA DE RESULTADOS E INVESTIGACIÓN (OTRI)","05000505","541A","INVESTIGACIÓN"]
["0500050501 541A","CONVENIO UDC - INTIDEX PROGRAMA INTALENT - OTRI","0500050501","541A","INVESTIGACIÓN"]
["05000506 541A","CENTRO DE INNOVACIÓN TÉCNICA EN EDIFICACIÓN E ENXEÑERÍA CIVIL (CITEEC)","05000506","541A","INVESTIGACIÓN"]
["0500050609 541A","ACC.COMPL.10.MICIIN.PROF.PUERTAS AGUDO.CITEEC.\"RED DE LAB.EN HIDRAUL.DE ESPAÑA\"","0500050609","541A","INVESTIGACIÓN"]
["0500050661 541A","ENXEÑARÍA DA AUGA E DO MEDIO AMBIENTE  G000256","0500050661","541A","INVESTIGACIÓN"]
["0500050662 541A","GRUPO DE CONSTRUCIÓN G000261","0500050662","541A","INVESTIGACIÓN"]
["0500050664 541A","MECÁNICA DE ESTRUTURAS G00455","0500050664","541A","INVESTIGACIÓN"]
["0500050665 541A","GRUPO DE ESTRADAS, XEOTECNICA E MATERIAIS G00602","0500050665","541A","INVESTIGACIÓN"]
["0500050666 541A","G.I.: MÉTODOS NUMÉRICOS EN ENXEÑARÍA G000177 -CITEEC","0500050666","541A","INVESTIGACIÓN"]
["0500050667 541A","G.I.: FERROCARRÍS E TRANSPORTES G000284- CITEEC","0500050667","541A","INVESTIGACIÓN"]
["0500050701 541A","AX.C.I.22/09/14,PROF.ABAD LÓPEZ \"POLYMER COMPOSITES REINFORC","0500050701","541A","INVESTIGACIÓN"]
["0500050702 541A","AX.C.I.26/10/16,PROF.GZLEZ CASTRO,CIT.PATENTES:MÉTODO RESIST. APERT.MALLAS DUNHA REDE","0500050702","541A","INVESTIGACIÓN"]
["0500050703 422D","C. VERÁN.14 - PROF. VILARIÑO LÓPEZ -CIT \"NOVAS TEC. EN SEGURIDADE ALIMENTARIA\"","0500050703","422D","ENSINANZA UNIVERSITARIA"]
["0500050761 541A","GRUPO DE POLÍMEROS  G00064","0500050761","541A","INVESTIGACIÓN"]
["0500050762 541A","GRUPO INTEGRADO DE ENXEÑARÍA G00098","0500050762","541A","INVESTIGACIÓN"]
["0500050763 541A","LABORATORIO DE APLICACIÓNS INDUSTRIAIS DO LÁSER G000188","0500050763","541A","INVESTIGACIÓN"]
["0500050765 541A","G.I.LABORAT.COMBUSTIBLES.G00309-COORD.FDEZ.FEAL.CIT","0500050765","541A","INVESTIGACIÓN"]
["0500050766 541A","G.I.: RADIOACTIVIDADE AMBIENTAL G000245 -CIT","0500050766","541A","INVESTIGACIÓN"]
["0500050767 541A","G.I.: LABORATORIO DE ENXEÑARÍA MECÁNICA G00072 .CIT","0500050767","541A","INVESTIGACIÓN"]
["05000522 541A","INSTITUTO UNIVERSITARIO DE XEOLOXÍA","05000522","541A","INVESTIGACIÓN"]
["0500052201 541A","AXUD.C.I.23/03/2015,PROF.VIDAL ROMANI.IU.XEOL.INT.WORKSHOP ON SOIL STRUCTURE AND","0500052201","541A","INVESTIGACIÓN"]
["0500052202 541A","AX.CI.21/04/16 GRANDAL D.ANGLADE-VISITA DR.VILLEM VIVEEN","0500052202","541A","INVESTIGACIÓN"]
["0500052261 541A","G.I.: AUGA E  SOLO G000668","0500052261","541A","INVESTIGACIÓN"]
["0500052262 541A","GRUP. INV. INTERDIS. DE PATRI. CULTU. E XEOLÓXICO- G 0339- COORD. GRANDAL D'ANGLADE -I.U. XEOLOXIA","0500052262","541A","INVESTIGACIÓN"]
["05000524 541A","INSTITUTO UNIV. DE ESTUDOS EUROPEOS","05000524","541A","INVESTIGACIÓN"]
["0500052401 422D","CENTRO EXCELENCIA J.MONET 2013-16.IU EE.EUROP.\"INSTIT.DEREITO DA U.E.\"","0500052401","422D","ENSINANZA UNIVERSITARIA"]
["0500052402 422D","CURSO 15, IU.EE.EUROPEOS, TRAINING SCHOOL. LAW OF THE SEA AND DEVELOPMENT","0500052402","422D","ENSINANZA UNIVERSITARIA"]
["0500052404 422D","XORN. 14- PROF. SOBRINO HEREDIA - I. U. DE EE. EUROP \"I CONFLICTO DE CRIMEA ASP. HIST?\"","0500052404","422D","ENSINANZA UNIVERSITARIA"]
["0500052405 422D","MODULO JEAN MONET,POLÍTICA MARÍTIMA INTEGRADA DA U.E.COORD.G.OANTA.IU.EE.EUROPEOS","0500052405","422D","ENSINANZA UNIVERSITARIA"]
["0500052461 541A","G.I.: CUESTIÓNS ACTUAIS DE DEREITO INTERNACIONAL E EUROPEO G000498","0500052461","541A","INVESTIGACIÓN"]
["05000526 541A","INSTITUTO UNIVERSITARIO DE MEDIO AMBIENTE","05000526","541A","INVESTIGACIÓN"]
["05000527 541A","INSTITUTO UNIVERSITARIO DE ESTUDOS IRLANDESES","05000527","541A","INVESTIGACIÓN"]
["0500052701 422D","CONGR.2015.IU EE.IRLAND.PROF.ESTÉVEZ SAÁ.NEW TYPOLOGIES(E/IM) MIGRATION?","0500052701","422D","ENSINANZA UNIVERSITARIA"]
["0500052702 422D","CONGR.2016. IU.EE.IRLAND. PROF. DAVID CLARK- \"REGION AND NATION\"","0500052702","422D","ENSINANZA UNIVERSITARIA"]
["0500052761 541A","G.I.: ESTUDOS IRLANDESES G000224","0500052761","541A","INVESTIGACIÓN"]
["05000528 541A","INSTITUTO UNIVERSITARIO DE CIENCIAS DA SAÚDE","05000528","541A","INVESTIGACIÓN"]
["0500052801 541A","AXUDA DA SOCIEDAD EUR.CARDIOLOGIA,IU.CC.SAÚDE.BENEF,:COSTA GRAÑA.TUTELA PROF.MUÑIZ GARCÍA","0500052801","541A","INVESTIGACIÓN"]
["0500052862 541A","G.I.: INVESTIGACIÓN CARDIOVASCULAR G000222","0500052862","541A","INVESTIGACIÓN"]
["05000529 541A","INST.UNIV.ESTUDOS MARÍTIMOS","05000529","541A","INVESTIGACIÓN"]
["0500052901 422D","XORN.14- PROF. RODRÍGUEZ GÓMEZ \"O VALOR DO COÑEC.MARÍTIMO NO ÁMBITO TERREST.\"","0500052901","422D","ENSINANZA UNIVERSITARIA"]
["0500052961 541A","G.I.: DEREITO PÚBL GLOBAL.OBSERV. LITORAL G000257.COORD.RGUEZ ARANA","0500052961","541A","INVESTIGACIÓN"]
["0500052962 541A","G.I.ESTUD.ECON.TRANSP,TRABA.SOST.G00580-COORD.FREIRE SEOANE. IU EE.MAR.","0500052962","541A","INVESTIGACIÓN"]
["0500052963 541A","GRUP.INV.ENXEÑARÍA ENERXÉTICA,G000723,COORD.BALIÑA INSUA","0500052963","541A","INVESTIGACIÓN"]
["0500210211 541A","PROX.HERRERO LÓPEZ.REF.OTRI 2004.0092.B.C04.04.INTEGR.DE","0500210211","541A","INVESTIGACIÓN"]
["0500210230 541A","AXUDA MEC,CONTR.PERS.TEC.APOIO.PROX.SUÁREZ LÓPEZ.CITEEC.","0500210230","541A","INVESTIGACIÓN"]
["0500210325 541A","PROX.08 PROF.TOBAR VIDAL.CIT.,REF:DPI2008-06664,MºCIENC.INN","0500210325","541A","INVESTIGACIÓN"]
["0500210376 541A","PROX.10.MICIIN-REF.OTRI2010-022\"PETRA-PLAN ESTRATEXICO","0500210376","541A","INVESTIGACIÓN"]
["0500210385 541A","PROX.10.MICNIN-I.U.MEDIO AMBIENTE PROF.LÓPEZ MAHIA-REF.BIA2010-18145\"DETERM..NANO\"","0500210385","541A","INVESTIGACIÓN"]
["0500210392 541A","PROX.10.MICNIN-I.UNV.EE.EUROP.PROF.SOBRINO HEREDIA-REF.DER2010-21732\"CONV.DENA.\"","0500210392","541A","INVESTIGACIÓN"]
["0500210411 541A","PROX.10.MICIIN-CIT.PROF.FRAGUELA FORMOSO.ENE2010-20680-C03-03.\"SIST.ANCLAXEPLATAF.","0500210411","541A","INVESTIGACIÓN"]
["0500210414 541A","PROX.11.MICIIN-CITEEC PROF.PEÑA GLEZ.-REF:BIA2011-29031-C02-02-","0500210414","541A","INVESTIGACIÓN"]
["0500210417 541A","PROX.11.MICIIN-IUXEOLOX.PROF.VIDAL ROMANÍ.REF:CGL2011-30141","0500210417","541A","INVESTIGACIÓN"]
["0500210424 541A","PROX.11 MICIIN - IUEE. MARIT-PROF. PERNAS GARCIA. REF. DER2011-28994","0500210424","541A","INVESTIGACIÓN"]
["0500210436 541A","PROX.11.MICIIN-CIT-PROF.YAÑEZ CASAL-MAT2011-28492-C03-03","0500210436","541A","INVESTIGACIÓN"]
["0500210453 541A","MINECO.12-REF.CGL2012-34688- PROF.RABUÑAL DOPICO- CITEEC \"ANAL. EFICIEN. ESC. PECES..\"","0500210453","541A","INVESTIGACIÓN"]
["0500210463 541A","MINECO.12-REF.DER2012-33513- PROF. FERREIRO GALGUERA.IU EE.MARÍT.","0500210463","541A","INVESTIGACIÓN"]
["0500210466 541A","MINECO.12-REF.DER2012-37359- PROF. QUINDIMIL LÓPEZ IU.EE.EUROP.","0500210466","541A","INVESTIGACIÓN"]
["0500210474 541A","MINECO.12-REF.FFI2012-38790- PROF. ESTEVEZ SAA- IU EE. IRLAND- \"NOVA TIPOLOX. DE MIGRACI.\"","0500210474","541A","INVESTIGACIÓN"]
["0500210475 541A","MINECO.13-REF. A-TEMPO-FEDER 2007-2013\"AVAN EN TEC. MARINAS: PROD. NAVAL OFFSHOE","0500210475","541A","INVESTIGACIÓN"]
["0500210476 541A","MINECO 13-REF.BIA2013-47987-C3-2-R-PROF.PÉREZ PÉREZ. CITEEC.","0500210476","541A","INVESTIGACIÓN"]
["0500210486 541A","MINECO 13-REF.DER2013-45995-R-PROF.SOBRINO HEREDIA. I.U. EE.EUROPEOS","0500210486","541A","INVESTIGACIÓN"]
["0500210501 541A","MINECO 14, REF.DER2013-42210-P, PROF.RGUEZ-ARANA M.IU.EE.MARIT.\"?CONTRATAC.PÚBLICA","0500210501","541A","INVESTIGACIÓN"]
["0500210515 541A","MINECO 15.REF:MAT2014-53764-C3-2-R.PROF.YAÑEZ CASAL. CIT MOD.1:RETOS INVEST.MODIF.SUPERF.ALEA.","0500210515","541A","INVESTIGACIÓN"]
["0500210529 541A","MINECO 15,REF;CGL2014-57209-P,PROF.GRANDAL DANGLADE.I.U.XEOL.PROG   EXCELENCIA.MOD.1.PROX.I+D","0500210529","541A","INVESTIGACIÓN"]
["0500210531 541A","MINECO 15,REF:PCIN-2015-170-C02-01, PROF.MUNIATEGUI LORENZO. I.U.MED.AMBIEN..IPI OCEANS:MICROPL","0500210531","541A","INVESTIGACIÓN"]
["0500210532 541A","MINECO 15,REF:DER2015-70965-RDT,PROF.SOBRINO HEREDIA.I.U.EE.EUROPEOS,\"REDES DE EXCELENCIA\"","0500210532","541A","INVESTIGACIÓN"]
["0500210540 541A","MINECO 16,REF.:CGL2015-69094-R, PROF.ANTA ÁLVAREZ., CITEEC. PROGR.RETOS DA SOCIEDADE","0500210540","541A","INVESTIGACIÓN"]
["0500210542 541A","MINECO 16,REF.:TIN2015-63646-C5-1-R,PROF. DURO FDEZ. CIT, PROGR.RETOS DA SOCIEDADE","0500210542","541A","INVESTIGACIÓN"]
["0500220066 541A","Mº EDUC.C.D.15-PROF.RGUEZ.-ARANA.I.EE.MARÍT.PROX.\"SEMIN.INT.CORRUPCIÓN..BRASIL","0500220066","541A","INVESTIGACIÓN"]
["0500230020 541A","PROX.UNIV.CANTABRIA.PR.GLEZ.LAXE-IUEE MARÍT.AX.MºFOM.:E11/08","0500230020","541A","INVESTIGACIÓN"]
["0500242212 541A","XUNTA12.C.E.PROF.SAMPER CALVETE-I.U.XEOLO-G.REF.COMPET.REF:CN2012/181","0500242212","541A","INVESTIGACIÓN"]
["0500242215 541A","XUNTA12.C.ED.PROF.RDGUEZ-ARANA MUÑOZ-IU EE.MART.G.DEPOT.CREC.RE","0500242215","541A","INVESTIGACIÓN"]
["0500242220 541A","XUNTA12.C.ED.PROF.VIDAL ROMANÍ-I.UXEOLO-G.DEPOT.CREC.REF:CN2012/08","0500242220","541A","INVESTIGACIÓN"]
["0500242306 541A","XUNTA 13 C.ED.PROF.SANJURJO SÁNCHEZ.IU.XEOLOX.Nº:EM2013/056 INV.EME","0500242306","541A","INVESTIGACIÓN"]
["0500242307 541A","XUNTA 13 C.ED.PROF.MUÑIZ GARCÍA.IU CC.SAÚDE.Nº:GRC2013-061,GR.REF.COM(feder anual. 2014 cofinanc)","0500242307","541A","INVESTIGACIÓN"]
["0500242309 541A","XUNTA 13 C.ED.PROF.DURO FDEZ.-CIT-Nº:GRC2013-050,GR.REF.COMPET","0500242309","541A","INVESTIGACIÓN"]
["0500242310 541A","XUNTA 13 C.ED.PROF.FREIRE SEOANE:IU.EE.MARÍTIM.GRC2013-059,GR.REF.CO","0500242310","541A","INVESTIGACIÓN"]
["0500242311 541A","XUNTA 13 C.ED.PROF HERNÁNDEZ IBÁÑEZ.-CITEEC-Nº:GRC2013-056,GR.REF.CO","0500242311","541A","INVESTIGACIÓN"]
["0500242320 541A","XUNTA 13 C.ED.PROFMTNEZ ABELLA- CITEEC-.Nº:GPC2013-059,GR.POT.CRECEM","0500242320","541A","INVESTIGACIÓN"]
["0500242322 541A","XUNTA 13 C.ED.PROF.YÁÑEZ CASAL CIT-Nº:GPC2013-071,GR.POT.CRECEM.","0500242322","541A","INVESTIGACIÓN"]
["0500242413 541A","XUNTA 14 C.CULT.,EDUC.PROF.PEÑA GLEZ.CITEEC, Nº GRC2014/041,GRUP.REFER. COMP","0500242413","541A","INVESTIGACIÓN"]
["0500242420 541A","XUNTA 14 C.CULT.,EDUC.PROF.RGUEZ-ARANA.UI.EE.MARIT.Nº GPC2014/051,","0500242420","541A","INVESTIGACIÓN"]
["0500242427 541A","XUNTA 14 C.CULT.,EDUC.PROF.SANZ LARRUGA IU.EE.MARIT.Nº R2014/040,MOD.REDES","0500242427","541A","INVESTIGACIÓN"]
["0500242429 541A","XUNTA 14,VICEPR.,PROF.PEÑA GZLEZ..CITEEC.Nº:PR815 A 2014-11.MOZAMBIQUE","0500242429","541A","INVESTIGACIÓN"]
["0500242504 541A","XUNTA 15,C.CULT.E.OU,PROF.GRANDAL D`ANGLADE,I.U.XEOLOXÍA, Nº:GPC2015/024,GR.POTENC.CRECEM.","0500242504","541A","INVESTIGACIÓN"]
["0500270012 541A","PROX.14.SILENUS CONSULT. S.L(ART.83 LOU) CITEEC. PROF.RABUÑAL DOPICO.","0500270012","541A","INVESTIGACIÓN"]
["0500270013 541A","PROX.14.HIFAS DA TERRA S.L.(ART.83 LOU)CIT.PROF.GZALEZ. RGUEZ. CONE.PEME","0500270013","541A","INVESTIGACIÓN"]
["0500270014 541A","PROX.14 LUVENOR LAB.S.L.(ART.83 LOU) CIT.PROF.GZLEZ.RGUEZ.\"FERR.TEC.COSMÉTICA\" PR CONECTA PEME","0500270014","541A","INVESTIGACIÓN"]
["0500270015 541A","PROX.14 CAROL LINE COSM.SL.(ART.83 LOU) CIT.PROF.GZLEZ.RGUEZ.","0500270015","541A","INVESTIGACIÓN"]
["0500270016 541A","PROX.14, ORGANISTRY SERVICIOS I+D SLU(ART.83 LOU) CIT.PROF.GZLEZ.RGUEZ.","0500270016","541A","INVESTIGACIÓN"]
["0500270024 541A","PROX.14,J.J.CHICOLINO,S.L(ART.83 LOU)PROF.ABAD LÓPEZ.CIT.PR.CONECTA PEME","0500270024","541A","INVESTIGACIÓN"]
["0500270036 541A","PROX.15 BIOSELECCIÓN S.L.(ART.83 LOU) CIT.PROF.GZLEZ.RGUEZ.\"PROD.ALIMEN.GAL...\" PR CONECTA PEME","0500270036","541A","INVESTIGACIÓN"]
["0500280060 541A","PROX.UE.12.PROF.LÓPEZ MAHÍA,IU.MED.AMB.\"MOSSCLONE\"GRANTAGREEMENTNº222953","0500280060","541A","INVESTIGACIÓN"]
["0500280061 541A","PROX.UE.11.PROF.FREIRE SEOANE.IUEM.\"EMIC-EUR.MARKETING\"REF:2011-1-PT-ERASMUS-ECUE","0500280061","541A","INVESTIGACIÓN"]
["0500290009 541A","PROX.2017.UDC.UNIVERSIDADE DE VIGO.FUNDAC.EMPRESA-UNIVERSIDAD(FEUGA) E REPSOL, S.A. - VPCIT","0500290009","541A","INVESTIGACIÓN"]
["0500311001 541A","INFRAEST.2010(MICIIN)FEDER-UNLC10-1E-823-PROF.RABUÑAL DOPICO","0500311001","541A","INVESTIGACIÓN"]
["0500311002 541A","INFRAEST.2010(MICIIN)FEDER-UNLC10-1E-824-PROF.RABUÑAL DOPICO","0500311002","541A","INVESTIGACIÓN"]
["0500311003 541A","INFRAT.2010(MICIIN)FEDER-UNLC10-1E-1226-PROF.RODRIG","0500311003","541A","INVESTIGACIÓN"]
["0500311004 541A","INFRAEST. 2010 (MICIIN) FEDER- UNLC10- 1E-1150-PROF. RODRIGUEZ GLEZ.","0500311004","541A","INVESTIGACIÓN"]
["0500311005 541A","INFRAEST.2010(MICIIN)FEDER-UNLC10-1E-718--PROF.GUIJA","0500311005","541A","INVESTIGACIÓN"]
["0500311006 541A","INFRAEST. 2010 (MICIIN) FEDER- UNLC10-1E-780-PROF.RABUÑAL DOPICO","0500311006","541A","INVESTIGACIÓN"]
["0500311007 541A","INFRAEST. 2010 (MICIIN) FEDER- UNLC10-1E-1149- PROF. RODRIGUEZ GLEZ.","0500311007","541A","INVESTIGACIÓN"]
["0500311008 541A","INFRAEST.2010(MICIIN)FEDER-UNLC10-1E-822-PROF.RABUÑAL DOPICO","0500311008","541A","INVESTIGACIÓN"]
["0500311009 541A","INFRAEST.2010(MICIIN)FEDER-UNLC10-1E-1221-PROF.RODRIGUEZ GLEZ.","0500311009","541A","INVESTIGACIÓN"]
["0500311010 541A","INFRAEST.2010(MICIIN)FEDER-UNLC10-1E-728-PROF.DOALLO","0500311010","541A","INVESTIGACIÓN"]
["0500311011 541A","INFRAEST.2010(MICIIN)FEDER-UNLC10-1E-1285-PROF.RODRIGUEZ GLEZ.","0500311011","541A","INVESTIGACIÓN"]
["0500311012 541A","INFRAEST.2010(MICIIN)FEDER-UNLC10-1E-816-PROF.RABUÑAL DOPICO","0500311012","541A","INVESTIGACIÓN"]
["0500311401 541A","INFR.2014 MINECO,FEDER-UNLC13-1E-1651,PROF.RGUEZ GZLEZ.CICA","0500311401","541A","INVESTIGACIÓN"]
["0500311402 541A","INFR.2014 MINECO,FEDER-UNLC13-1E-1848,PROF.RGUEZ GZLEZ.CICA","0500311402","541A","INVESTIGACIÓN"]
["0500311403 541A","INFR.2014 MINECO,FEDER-UNLC13-1E-2123,PROF.JURADO ALBARRACIN-MARTINÓN.CITTEC","0500311403","541A","INVESTIGACIÓN"]
["0500311404 541A","INFR.2014 MINECO,FEDER-UNLC13-1E-2274,PROF.BARRAL LOSADA. CIT","0500311404","541A","INVESTIGACIÓN"]
["0500311405 541A","INFR.2014 MINECO,FEDER-UNLC13-1E-2278,PROF.LÓPEZ PEÑA,CIT","0500311405","541A","INVESTIGACIÓN"]
["0500311406 541A","INFR.2014 MINECO,FEDER-UNLC13-1E-2280,PROF.PEÑA GZLEZ. CITEEC","0500311406","541A","INVESTIGACIÓN"]
["0500311407 541A","INFR.2014 MINECO,FEDER-UNLC13-1E-2291,PROF.HERRADOR BARRIOS, CITEEC","0500311407","541A","INVESTIGACIÓN"]
["0500311408 541A","INFR.2014 MINECO,FEDER-UNLC13-1E-2318,PROF.CASTRO ROMERO, CIT","0500311408","541A","INVESTIGACIÓN"]
["0500311409 541A","INFR.2014 MINECO,FEDER-UNLC13-1E-2395,PROF.CABEZA GRAS ,SAI","0500311409","541A","INVESTIGACIÓN"]
["0500311410 541A","INFR.2014 MINECO,FEDER-UNLC13-1E-2399,PROF.BARREIRA RGUEZ,CITIC","0500311410","541A","INVESTIGACIÓN"]
["0500311411 541A","INFR.2014 MINECO,FEDER-UNLC13-1E-2434,PROF.YÁÑEZ CASAL, CIT","0500311411","541A","INVESTIGACIÓN"]
["0500311412 541A","INFR.2014 MINECO,FEDER-UNLC13-1E-2503,PROF.PÁZOS SIERRA,CITIC","0500311412","541A","INVESTIGACIÓN"]
["0500311413 541A","INFR.2014 MINECO,FEDER-UNLC13-1E-2545,PROF.CABEZA GRAS, SAI","0500311413","541A","INVESTIGACIÓN"]
["0500311601 541A","INFR.2016,MINECO,FEDER.UNLC15-DE-3752, PROF.DE VEGA MARTÍN.SAI","0500311601","541A","INVESTIGACIÓN"]
["0500311602 541A","INFR.2016,MINECO,FEDER.UNLC15-DE-3882, PROF.DE VEGA MARTÍN.SAI","0500311602","541A","INVESTIGACIÓN"]
["0500311603 541A","INFR.2016,MINECO,FEDER.UNLC15-DE-3691, PROF.DE VEGA MARTÍN.SAI","0500311603","541A","INVESTIGACIÓN"]
["0500311604 541A","INFR.2016,MINECO,FEDER.UNLC15-DE-3431, PROF.DE VEGA MARTÍN.SAI","0500311604","541A","INVESTIGACIÓN"]
["0500311605 541A","INFR.2016,MINECO,FEDER.UNLC15-DE-3383, PROF.GONZÁLEZ PENEDO.CITIC","0500311605","541A","INVESTIGACIÓN"]
["0500311606 541A","INFR.2016,MINECO,FEDER.UNLC15-DE-3097, PROF.MUNIATEGUI LORENZO.IUMA","0500311606","541A","INVESTIGACIÓN"]
["0500311607 541A","INFR.2016,MINECO,FEDER.UNLC15-DE-3627, PROF.RODRÍGUEZ GONZÁLEZ.CICA","0500311607","541A","INVESTIGACIÓN"]
["0500311608 541A","INFR.2016,MINECO,FEDER.UNLC15-DE-2862, PROF.RABUÑAL DOPICO.CITEEC","0500311608","541A","INVESTIGACIÓN"]
["0500311609 541A","INFR.2016,MINECO,FEDER.UNLC15-DE-3570, PROF.RABUÑAL DOPICO.CITEEC","0500311609","541A","INVESTIGACIÓN"]
["0500311610 541A","INFR.16,MINECO,FEDER.UNLC15-DE-3595,PR.RABUÑAL DOPICO.CITEEC","0500311610","541A","INVESTIGACIÓN"]
["0500311611 541A","INFR.2016,MINECO,FEDER.UNLC15-DE-3597, PROF.RABUÑAL DOPICO.CITEEC","0500311611","541A","INVESTIGACIÓN"]
["0500311612 541A","INFR.2016,MINECO,FEDER.UNLC15-DE-3600, PROF.RABUÑAL DOPICO.CITEEC","0500311612","541A","INVESTIGACIÓN"]
["0500311613 541A","INFR.2016,MINECO,FEDER.UNLC15-DE-3116, PROF.SANJURJO SÁNCHEZ.IU.XEOLOX.","0500311613","541A","INVESTIGACIÓN"]
["0500312008 541A","EQUIPAM,INFRAESTR.CIENTIF.TECNOLOX.2008.MICINN.","0500312008","541A","INVESTIGACIÓN"]
["0500312108 541A","EXP.2013/1009.SIST.INTEGR.DE SEGURIDADE NAS COMUNICACIÓNS","0500312108","541A","INVESTIGACIÓN"]
["0500352013 541A","EXP.2013/1009.SIST.INTEGR.DE SEGURIDADE NAS COMUNICACIÓNS","0500352013","541A","INVESTIGACIÓN"]
["0500430001 541A","CONVENIO UDC-UVI \"CAMPUS DO MAR\"","0500430001","541A","INVESTIGACIÓN"]
["0500430022 122B","ACHEGA A BUGALICIA","0500430022","122B","BIBLIOTECAS"]
["0500430023 541A","ACHEGA ITMATI","0500430023","541A","INVESTIGACIÓN"]
["0500430038 541A","CONV.12 -AUGAS DE GALICIA- PROF. PEÑA GLEZ- CITEEC \"PROX. PARC. DE A. TEC.MOZAMBIQUE\"","0500430038","541A","INVESTIGACIÓN"]
["0500430039 422D","CONTR.13 FUND. CETAQUA - PROF. ANTA ÁLVAREZ. CITEEC. (ART. 83 LOU)","0500430039","422D","ENSINANZA UNIVERSITARIA"]
["0500430040 422D","CONTR.13- PUERTOS DEL ESTADO- I.U.EE. MARIT. PROF. MARTÍN PALMERO \"REV. METOD¿\"","0500430040","422D","ENSINANZA UNIVERSITARIA"]
["0500430047 541A","CONTR.14 - UNIV. SANTIAGO- ENC. DE TRABALLO- I UNIV. XEO- PROF. GRANDAL/VIDAL ROMANI (ART. 83 LOU)","0500430047","541A","INVESTIGACIÓN"]
["0500430050 122B","ADENDA AO CONVENIO 5% BUGALICIA","0500430050","122B","BIBLIOTECAS"]
["0500440003 541A","CONV.14,XUNTA.C.CULT.ED.- 3 UNV.GAL DESENVOLV.DOS S.X.A.I  E AS OTRI","0500440003","541A","INVESTIGACIÓN"]
["0500440004 541A","CONV.C.ECON.IND.CIT.FDEZ.FEAL.PROBAS CALID.HIDROCARBUROS","0500440004","541A","INVESTIGACIÓN"]
["0500440005 541A","CONV.16 XUNTA C.CULT.EDU.COAS 3 UNIV.GAL. INVEST.SUG ACCESO RECURSOS SUPERCOMPUTACIÓN","0500440005","541A","INVESTIGACIÓN"]
["0500440006 541A","CONV.,XUNTA C.ED. E SUG. FINAN.CENTROS INV. (CITIC)","0500440006","541A","INVESTIGACIÓN"]
["0500440017 541A","CONV.16,XUNTA,C.CULT.E.OU,16/09/2016,COAS 3 UNIV.GAL IMPULSO EFICIENTE ESTRUCT.INVEST.","0500440017","541A","INVESTIGACIÓN"]
["0500440099 541A","REFORZO DE CAPITAL HUMANO PARA SERVIZOS XERAIS","0500440099","541A","INVESTIGACIÓN"]
["050044A320 422D","CONV.XUNTA 2018, ACTUACIÓN 3) INVESTIMENTO MATERIAL E INMATERIAL. VPCIT","050044A320","422D","ENSINANZA UNIVERSITARIA"]
["0500450001 541A","CONV.14 ACHEGA UDC-CITIC- CONV.13 XUNTA C.EDC. \"FINAN. CENTROS DE INVES (CITIC)","0500450001","541A","INVESTIGACIÓN"]
["0500460051 422D","CONV.DIPUTAC.CORUÑA.IU.EE.EUROP.MASTER ESTUDOS DA UE.","0500460051","422D","ENSINANZA UNIVERSITARIA"]
["0500470001 422D","BOLSAS ESTADÍAS INTERN.EIDUDC, UDC-INDITEX 14-15","0500470001","422D","ENSINANZA UNIVERSITARIA"]
["0500470013 541A","CONTR.13 NegoRed LLC, VENTA SOFTWARE, PROF.DURO FDEZ. CIT. (REG.PATENTES UDC)","0500470013","541A","INVESTIGACIÓN"]
["0500470040 422D","CONV.2017 EMALCSA-UDC,CREA E REGULA CÁTEDRA EMALCSA","0500470040","422D","ENSINANZA UNIVERSITARIA"]
["0500470070 541A","CONT.11 PROX.UDC-C.TEC.DO GRANITO DEGAL.-PROF.DELGADO MARTÍN\"ENSAIO PILOTO\"","0500470070","541A","INVESTIGACIÓN"]
["0500470078 541A","CONTR.16 SANOR,SL SAI (ART.83 LOU) PROGR.CONECTA PEME,TECNOL.DETECC.IMPACTO MICOTOXINAS","0500470078","541A","INVESTIGACIÓN"]
["0500470083 541A","CONTR.13 AFOEX .PROF RODRIGUEZ GLEZ.- SAI - (ART.83 LOU) PROX.METOD.","0500470083","541A","INVESTIGACIÓN"]
["0500470088 422D","CONV.13 UDC-INDITEX BOLSAS  INTERNACION. ESTUDOS DOUTORADO.","0500470088","422D","ENSINANZA UNIVERSITARIA"]
["0500490004 541A","CONV.14,FUND.SCIENTIA (REPR.FIRST LEGO League INT.)-UDC. CIT .PROF. DURO FDEZ.","0500490004","541A","INVESTIGACIÓN"]
["0500490007 541A","CONTR.13 - FUAC - PROF. GARCÍA PÉREZ- INST. UNIV. EE. MM-  PROX. NETMAR V..(ART. 83 LOU)","0500490007","541A","INVESTIGACIÓN"]
["0500510001 541A","AXUD. MECD-PREDOUTORAL FPU (CONV. 2015). VPCIT","0500510001","541A","INVESTIGACIÓN"]
["0500510002 541A","AX.2016,MINECO RAMÓN Y CAJAL CONV.2015.","0500510002","541A","INVESTIGACIÓN"]
["0500510003 541A","AXUDAS SUBPR.ESTATAL MOBILIDADE ESTADÍAS BREVES MINECO CONV.2015.","0500510003","541A","INVESTIGACIÓN"]
["0500510004 541A","AX.SUBPR.ESTATAL MOBILIDADE ESTADÍAS BREVES.MINECO CONVOC.2015.","0500510004","541A","INVESTIGACIÓN"]
["0500510005 541A","SUBV.MECD,ESTADÍAS PROFESORES,MODALIDADE B-JOSE CASTILLEJO.CONV,13-16","0500510005","541A","INVESTIGACIÓN"]
["0500510006 541A","SUBV.MECD,ESTADÍAS PROFESORES,MODALIDADE A-(PROEXT).CONV,13-16","0500510006","541A","INVESTIGACIÓN"]
["0500510007 541A","AXUDAS MINECO FPI CONVOC.2016, REF:BES2016-011:076901 E 077330 (2 CONTR. PREDOUTORAIS)","0500510007","541A","INVESTIGACIÓN"]
["0500510008 541A","AXUDAS MECD,MOVILIDADE ESTADÍAS BREVES FPU CONVOC.2016,","0500510008","541A","INVESTIGACIÓN"]
["0500510009 541A","SUBV.MECD,ESTADÍAS PROFESORES,MODALIDADE B-JOSE CASTILLEJO.CONV,13-16","0500510009","541A","INVESTIGACIÓN"]
["0500510010 541A","AXUDAS MECD, FORMACIÓN INV. EN PROG. DE DOCTORADO. FPU CONVOC.2016.","0500510010","541A","INVESTIGACIÓN"]
["0500510011 541A","ESTADIAS MOBILIDADE MECD. MODALIDADE A. PROF. SENIOR","0500510011","541A","INVESTIGACIÓN"]
["0500510012 541A","AXUDA MEIC PARA A CONTRATACIÓN DE PERSOAL TÉCNICO DE APOIO A I+D+I.CONV.2016. RESOL CONC:23/11/17","0500510012","541A","INVESTIGACIÓN"]
["0500510013 541A","SUBPROGRAMA JUAN DE LA CIERVA-INCORPORACIÓN CONV.2016",500510013,"541A","INVESTIGACIÓN"]
["0500510014 541A","AXUDA MEIC,PROGR.RAMÓN Y CAJAL CONVOC.2016","0500510014","541A","INVESTIGACIÓN"]
["0500510015 541A","AXUDA MEIC JUAN DE LA CIERVA,SUBPROGRAMA FORMACIÓN CONV.2016","0500510015","541A","INVESTIGACIÓN"]
["0500540001 541A","AX.2016,GAIN,PROGR.PRINCIPIA  CONTRAT.PERSOAL TÉCNICO REF:IN848C_2016_1895435","0500540001","541A","INVESTIGACIÓN"]
["0500540002 541A","AX. 2017, XUNTA COFINANCIAMENTO SUBPROGRAMA RAMÓN Y CAJAL 2015","0500540002","541A","INVESTIGACIÓN"]
["0500540003 541A","AX.2017,XUNTA COFINANCIAM. PROGR. RAMON Y CAJAL 2013. NOA FOGELSON","0500540003","541A","INVESTIGACIÓN"]
["0500540004 541A","AX.2017 XUNTA COFINANCIAMENTO PROGR- JUAN DE LA CIERVA 2014","0500540004","541A","INVESTIGACIÓN"]
["0500540005 541A","AX.XUNTA,POSDOUTORAIS CONC.2017, MODAL.A, CONTR.","0500540005","541A","INVESTIGACIÓN"]
["0500540006 541A","AX.XUNTA,POSDOUTORAIS,MODAL.B, CONV.2017.CONTR.","0500540006","541A","INVESTIGACIÓN"]
["0500540007 541A","AX.XUNTA,PREDOUTORAIS CONVOC.2017 (11 CONTR.MOD.A, e 7 CONTR.MOD.B) E MOVILID. ESTADÍAS EXTRANX.","0500540007","541A","INVESTIGACIÓN"]
["0500540008 541A","AX.XUNTA,PREDOUTORAIS CONVOC.2018 (12 CONTR.MODAL.A, e 4 CONTR.MODAL.B)","0500540008","541A","INVESTIGACIÓN"]
["0504 541A","SERVIZOS DE APOIO Á INVESTIGACIÓN (SAI)","0504","541A","INVESTIGACIÓN"]
["050401 422D","CURSOS SAI","050401","422D","ENSINANZA UNIVERSITARIA"]
["0504470078 541A","CONTR.16 SANOR,SL SAI (ART.83 LOU) PROGR.CONECTA PEME,TECNOL.DETECC.IMPACTO MICOTOXINAS","0504470078","541A","INVESTIGACIÓN"]
["0505 541A","OFICINA DE TRANSFERENCIA DE RESULTADOS E INVESTIGACIÓN (OTRI)","0505","541A","INVESTIGACIÓN"]
["050501 541A","CONVENIO UDC - INTIDEX PROGRAMA INTALENT - OTRI","050501","541A","INVESTIGACIÓN"]
["0505210605 541A","MEIC  17. REF:ECT-2017-0356. OTRI, PROGR:EUROPA REDES GESTORES-EUROPA CENTROS TECNOLÓGICOS 2017","0505210605","541A","INVESTIGACIÓN"]
["0505281721 541A","CUSTOS INDIRECTOS 20% OTRI. INSTRUCCIÓN PROXECTOS EUROPEOS (28 SET. 2017)","0505281721","541A","INVESTIGACIÓN"]
["0506 541A","CENTRO DE INNOVACION TÉCNICA EN EDIFICACIÓN E ENXEÑERÍA CIVIL. CITEEC","0506","541A","INVESTIGACIÓN"]
["050601 541A","AXUDA C.I.04/05/2017,(CONGR PROF.MTNEZ.ABELLA,VII CONGR TRIENAL DE ACHE","050601","541A","INVESTIGACIÓN"]
["050602 541A","AXUDA C.I.04/05/2017,(XORN) PROF.PEÑA GLEZ.,V X,ENXEÑ. AUGA,JIA2017","050602","541A","INVESTIGACIÓN"]
["050603 541A","AXUDA C.I.04/05/2017,VISITA PROF.VAJA TARIELADZE/CURSO LIE GROUP?PROF.NAVARRINA MTNEZ","050603","541A","INVESTIGACIÓN"]
["0506210476 541A","MINECO 13-REF.BIA2013-47987-C3-2-R-PROF.PÉREZ PÉREZ. CITEEC. \"DESENV.SOSTIBL","0506210476","541A","INVESTIGACIÓN"]
["0506210540 541A","MINECO 16,REF.:CGL2015-69094-R, PROF.ANTA ÁLVAREZ.,PROGR.RETOS SOCIEDADE.CITEEC","0506210540","541A","INVESTIGACIÓN"]
["0506210564 541A","MINECO 17,REF:RTC-2016-4987-5,PROF.ANTA ALVAREZ,CITEEC,OVALPIPE II,PROGR. RETOS-COLABORACIÓN","0506210564","541A","INVESTIGACIÓN"]
["0506210580 541A","MINECO 17, REF:BIA2016-80317-R, PROF. PÉREZ PÉREZ, CITEEC.PROGR.RETOS DA SOCIEDADE","0506210580","541A","INVESTIGACIÓN"]
["0506210621 541A","MEIC 18,REF:BIA2017-86738-R,PROF.PEÑA GZLEZ.PROGR.RETOS SOCIEDADE","0506210621","541A","INVESTIGACIÓN"]
["0506242413 541A","XUNTA 14 C.CULT.,EDUC.PROF.PEÑA GLEZ.CITEEC, Nº GRC2014/041,GRUP.REFER. COMPETITIVA","0506242413","541A","INVESTIGACIÓN"]
["0506242713 541A","XUNTA 17-C.EDU E C.ECO- PROF. PÈREZ PÉREZ I. -ED431B 2017/09","0506242713","541A","INVESTIGACIÓN"]
["050661 541A","GRUP. INV. ENX. AUGA E MEDIO AMBIENTE. G0256","050661","541A","INVESTIGACIÓN"]
["050662 541A","GRUP. INV. GRUPO DE CONSTRUCCIÓN. G0261","050662","541A","INVESTIGACIÓN"]
["050664 541A","GRUP. INV. MECÁNICA DE ESTRUC. G0455","050664","541A","INVESTIGACIÓN"]
["050665 541A","GRUP. INV.CGM (ESTRADAS,XEOTEC. E MAT.) G0602","050665","541A","INVESTIGACIÓN"]
["050666 541A","GRUP. INV. METODOS NUMERICOS EN ENXEÑERÍA- G0177","050666","541A","INVESTIGACIÓN"]
["050667 541A","GRUP. INV. FERROCARRÍS E TRANSPORTES G- 0284","050667","541A","INVESTIGACIÓN"]
["0506G17779 541A","Grupo de Métodos Numéricos en Enxeñaría Fermín Luis Navarrina Martínez (G000177)","0506G17779","541A","INVESTIGACIÓN"]
["0506G25679 541A","Enxeñaría da Auga e do Medio Ambiente Enrique Peña González (G000256)","0506G25679","541A","INVESTIGACIÓN"]
["0506G26179 541A","Grupo de Construción Fernando Martínez Abella (G000261)","0506G26179","541A","INVESTIGACIÓN"]
["0506G28479 541A","Grupo de Ferrocarrís e Transportes Miguel Rodríguez Bugarín (G000284)","0506G28479","541A","INVESTIGACIÓN"]
["0506G45579 541A","Mecánica de Estruturas Santiago Hernández Ibáñez (G000455)","0506G45579","541A","INVESTIGACIÓN"]
["0506G60279 541A","Grupo de Estradas, Xeotecnia e  Materiais Ignacio Pérez Pérez (G000602)","0506G60279","541A","INVESTIGACIÓN"]
["0506I71779 541A","DELGADO MARTÍN, JORGE (I000717)","0506I71779","541A","INVESTIGACIÓN"]
["050701 541A","AXUDA C.I.04/05/2017,(CONGR.XORN) PROF.DURO FDEZ.7th INT.WORK-CONFER?..","050701","541A","INVESTIGACIÓN"]
["0507210515 541A","MINECO 15.REF:MAT2014-53764-C3-2-R.PROF.YAÑEZ CASAL. CIT MOD.1:RETOS INVEST.MODIF.SUPERF.ALEA","0507210515","541A","INVESTIGACIÓN"]
["0507210542 541A","MINECO 16,REF.:TIN2015-63646-C5-1-R,PROF. DURO FDEZ. CIT, PROGR.RETOS DA SOCIEDADE","0507210542","541A","INVESTIGACIÓN"]
["0507242704 541A","XUNTA 17-C.EDU E C.ECO- PROF. DURO FERNANDEZ -ED431C 2017/12","0507242704","541A","INVESTIGACIÓN"]
["0507430011 422D","CONTR.2016,ESCUELA ESPEC.ANTONIO DE ESCAÑO.A.M.FERROL,PROF. FDEZ FEAL(ART.83 LOU)","0507430011","422D","ENSINANZA UNIVERSITARIA"]
["0507440004 541A","CONV.C.ECON.IND.CIT.FDEZ.FEAL.PROBAS CALID.HIDROCARBUROS","0507440004","541A","INVESTIGACIÓN"]
["050761 541A","GRUP. INV. GRUPO POLÍMEROS. G064","050761","541A","INVESTIGACIÓN"]
["050762 541A","GRUP. INV. GRUPO INTEGRADO ENXEÑERÍA . G0098","050762","541A","INVESTIGACIÓN"]
["050763 541A","GRUP. INV. LABORATORIO DE APLICACIÓNS  INDUSTRIAIS DO LÁSER.G0188","050763","541A","INVESTIGACIÓN"]
["050764 541A","GRUP,INV.GEM (GR.ENXEÑ.MIXTO) G0734, COORD.CARRAL COUCE,CIT","050764","541A","INVESTIGACIÓN"]
["050765 541A","GRUP. INV. LABORATORIO DE COMBUSTIBLES. G0309","050765","541A","INVESTIGACIÓN"]
["050766 541A","GRUP. INV. RADIOACTIVIDADE AMBIENTAL G0245","050766","541A","INVESTIGACIÓN"]
["050767 541A","GRUP. INV. LABORATORIO DE ENXEÑERIA MECÁNICA G-0072","050767","541A","INVESTIGACIÓN"]
["0507G06479 541A","Grupo de Polímeros Luis Fernando Barral Losada (G00064)","0507G06479","541A","INVESTIGACIÓN"]
["0507G07279 541A","Laboratorio de Enxeñaría Mecánica Javier Cuadrado Aranda (G00072)","0507G07279","541A","INVESTIGACIÓN"]
["0507G09879 541A","Grupo Integrado de Enxeñaría Richard José Duro Fernández (G00098)","0507G09879","541A","INVESTIGACIÓN"]
["0507G18879 541A","Laboratorio de Aplicacións Industriais do Láser Armando José Yáñez Casal (G000188)","0507G18879","541A","INVESTIGACIÓN"]
["0507G24579 541A","Radioactividade Ambiental Jesús Manuel Castro Romero (G000245)","0507G24579","541A","INVESTIGACIÓN"]
["0507G73479 541A","Enxeñaría Mixto Luis Carral Couce (G000734)","0507G73479","541A","INVESTIGACIÓN"]
["0508 541A","CENTRO DE INVESTIGACIÓN EN TECNOLOXÍAS DA INFORMACIÓN E DA COMUNICACIÓN (CITIC)","0508","541A","INVESTIGACIÓN"]
["0509 541A","CENTRO DE INVESTIGACIÓNS CIENTÍFICAS AVANZADAS (CICA)","0509","541A","INVESTIGACIÓN"]
["0515240001 541A","UMI.AXUD.XUNTA-AGAIN PARA A UMI UDC-NAVANTIA \"O ESTALEIRO DO FUTURO\".VIT-PROF.PENA AGRAS","0515240001","541A","INVESTIGACIÓN"]
["0515250001 541A","ACHEGA UDC,UMI  NAVANTIA GAIN O ESTALEIRO DO FUTURO.","0515250001","541A","INVESTIGACIÓN"]
["0515270001 541A","CONV. NAVANTIA PARA UMI AGAIN-UDC-NAVANTIA \"O ESTALEIRO DO FUTURO\".VIT-PROF.PENA AGRAS","0515270001","541A","INVESTIGACIÓN"]
["0522 541A","INSTITUTO UNIVERSITARIO DE XEOLOXÍA (IUX)","0522","541A","INVESTIGACIÓN"]
["0522210529 541A","MINECO 15,REF;CGL2014-57209-P,PROF.GRANDAL DANGLADE.I.U.XEOL.PROG   EXCELENCIA.MOD.1.PROX.I+D","0522210529","541A","INVESTIGACIÓN"]
["0522242504 541A","XUNTA 15,C.CULT.E.OU,PROF.GRANDAL D`ANGLADE,I.U.XEOLOXÍA, Nº:GPC2015/024,GR.POTENC.CRECEM.","0522242504","541A","INVESTIGACIÓN"]
["0522242709 541A","XUNTA 17-C.EDU E C.ECO- PROF. SAMPER CALVETE - ED431C 2017/67","0522242709","541A","INVESTIGACIÓN"]
["0522430051 541A","CONV. 18.- UDC-USC REDE DA INVESTIGACIÓN \"CONSILIENCIA\". PROF: SANJURJO SÁNCHEZ","0522430051","541A","INVESTIGACIÓN"]
["0522440007 422D","CONTR.17,XUNTA,C.MED AMB.PROF.VIDAL ROMANÍ,IU XEO ESTUDO S/ PRAIA DAS CATEDRAIS(ART.83 LOU)","0522440007","422D","ENSINANZA UNIVERSITARIA"]
["052261 541A","GRUP. INV. AUGA E SOLO  G0668","052261","541A","INVESTIGACIÓN"]
["052262 541A","GRUP. INV. INTERDIS. DE PATRIMONIO  CULTURAL  E XEOLÓXICO- G 0339-","052262","541A","INVESTIGACIÓN"]
["0522C02518 422D","C.VERÁN ARQUEOLOXÍA NO BERCE DA CIVILIZACIÓN:EXIPTO E ORIENTE II. RESP:MONTERO FERNOLLÓS","0522C02518","422D","ENSINANZA UNIVERSITARIA"]
["0522G33979 541A","Grupo Interdisciplinar de Patrimonio Cultural e Xeolóxico Aurora Grandal D'Anglade (G000339)","0522G33979","541A","INVESTIGACIÓN"]
["0522G66879 541A","Auga e Chan Javier Samper Calvete (G000668)","0522G66879","541A","INVESTIGACIÓN"]
["0524 541A","INSTITUTO UNIVERSITARIO DE ESTUDOS EUROPEOS (IUEU)","0524","541A","INVESTIGACIÓN"]
["0524052405 422D","MODULO JEAN MONET,POLÍTICA MARÍTIMA INTEGRADA DA U.E.COORD.G.OANTA.IU.EE.EUROPEOS","0524052405","422D","ENSINANZA UNIVERSITARIA"]
["0524210486 541A","MINECO 13-REF.DER2013-45995-R-PROF.SOBRINO HEREDIA. I.U. EE.EUROPEOS.\"ALIANZA","0524210486","541A","INVESTIGACIÓN"]
["0524210532 541A","MINECO 15,REF:DER2015-70965-RDT,PROF.SOBRINO HEREDIA.I.U.EE.EUROPEOS,\"REDES DE EXCELENCIA\"","0524210532","541A","INVESTIGACIÓN"]
["0524210576 541A","MINECO 17, REF:DER2016-78979-R,PROF.SOBRINO HEREDIA.I.U.EE.EUROP, PROGR:RETOS DA SOCIEDADE","0524210576","541A","INVESTIGACIÓN"]
["0524242717 541A","XUNTA 17-C.EDU E C.ECO- PROF. SOBRINO HEREDIA -ED431B 2017/06","0524242717","541A","INVESTIGACIÓN"]
["0524460051 422D","CONV.DIPUTAC.CORUÑA.IU.EE.EUROP.MASTER ESTUDOS DA UE.","0524460051","422D","ENSINANZA UNIVERSITARIA"]
["052461 541A","GRUP. INV. DEREITO INTERNACIONAL E EUROPEO. G0498","052461","541A","INVESTIGACIÓN"]
["0524C00618 422D","CURSO POSGR.POLÍTICA MARÍTIMA INTEGR.DA UE.PROF.OANTA,G.MODULO JEAN MONET","0524C00618","422D","ENSINANZA UNIVERSITARIA"]
["0524G49879 541A","Cuestións actuais de Dereito Internacional e Europeo José Manuel Sobrino Heredia (G000498)","0524G49879","541A","INVESTIGACIÓN"]
["0526 541A","INSTITUTO UNIVERSITARIO DE MEDIO AMBIENTE (IUMA)","0526","541A","INVESTIGACIÓN"]
["0526210531 541A","MINECO 15,REF:PCIN-2015-170-C02-01, PROF.MUNIATEGUI LORENZO. I.U.MED.AMBIEN..IPI OCEANS","0526210531","541A","INVESTIGACIÓN"]
["0527 422D","INSTITUTO UNIVERSITARIO DE ESTUDOS IRLANDESES (IUEI)","0527","422D","ENSINANZA UNIVERSITARIA"]
["0527 541A","INSTITUTO UNIVERSITARIO DE ESTUDOS IRLANDESES (IUEI)","0527","541A","INVESTIGACIÓN"]
["052703 422D","XXVIII ENCONTROS DA ASOCIACIÓN ESPAÑOLA DE JAMES JOYCE.IU.EE.IRLANDESES.PROF.DE TORO S.","052703","422D","ENSINANZA UNIVERSITARIA"]
["052704 422D","AXUDA C.I.04/05/2017,(CONGR.XORN) PROF.CLARK MITCHELL, TRANSLOCATION:PATHWAYS?","052704","422D","ENSINANZA UNIVERSITARIA"]
["052704 541A","AXUDA C.I.04/05/2017,(CONGR.XORN) PROF.CLARK MITCHELL, TRANSLOCATION:PATHWAYS?","052704","541A","INVESTIGACIÓN"]
["0527210474 541A","MINECO.12-REF.FFI2012-38790- PROF. ESTEVEZ SAA- IU EE. IRLAND- \"NOVA TIPOLOX. DE MIGRACI.\"","0527210474","541A","INVESTIGACIÓN"]
["0527430046 422D","CONTR. 16 - UNIV. ATENEUM SZKOLA - PROF. DE TORO SANTOS - I.U. ESTD. IRLAND. (ART. 83 LOU)","0527430046","422D","ENSINANZA UNIVERSITARIA"]
["052761 541A","GRUP. INV. ESTUDOS IRLANDESES. G0224","052761","541A","INVESTIGACIÓN"]
["0527G22479 541A","Estudos Irlandeses Antonio Raúl De Toro Santos (G000224)","0527G22479","541A","INVESTIGACIÓN"]
["0528 541A","INSTITUTO UNIVERSITARIO DE CIENCIAS DA SAÚDE (IUCS)","0528","541A","INVESTIGACIÓN"]
["052861 541A","GRUP.INV. INVESTIGACIÓN CARDIOVASCULAR. -G0222","052861","541A","INVESTIGACIÓN"]
["052862 541A","GRUP.INV. INVESTIGACIÓN CARDIOVASCULAR. -G0222","052862","541A","INVESTIGACIÓN"]
["0528G22279 541A","Grupo de investigación cardiovascular Javier Muñiz García(G000222)","0528G22279","541A","INVESTIGACIÓN"]
["0529 541A","INSTITUTO UNIVERSITARIO DE ESTUDOS MARÍTIMOS (IUEM)","0529","541A","INVESTIGACIÓN"]
["0529210501 541A","MINECO 14, REF.DER2013-42210-P, PROF.RGUEZ-ARANA M.IU.EE.MARIT.\"?CONTRATAC.PÚBLICA??\"","0529210501","541A","INVESTIGACIÓN"]
["0529242714 541A","XUNTA 17-C.EDU E C.ECO- PROF. RODRÍGUEZ-ARANA M. ED431B 2017/35","0529242714","541A","INVESTIGACIÓN"]
["052961 541A","GRUP.INV.DEREITO PÚBL,GLOBAL.OBSERV.DO LITORAL -G0257","052961","541A","INVESTIGACIÓN"]
["052962 541A","GRUP.INV.ESTUD. ECONÓMICOS.:TRANSPOR.,TRABALLO E SOSTENIB. G0580","052962","541A","INVESTIGACIÓN"]
["052963 541A","GRUP.INV.ENXEÑARÍA ENERXÉTICA,G000723,COORD.BALIÑA INSUA","052963","541A","INVESTIGACIÓN"]
["0529G25779 541A","Dereito Público Global Jaime Rodríguez-Arana Muñoz (G000257)","0529G25779","541A","INVESTIGACIÓN"]
["0529G58079 541A","Estudos económicos: transporte, traballo e sostibilidade Mª Jesús Luisa Freire Seoane (G000580)","0529G58079","541A","INVESTIGACIÓN"]
["0529G72379 541A","Enxeñaría Enerxética Álvaro Baliña Insua (G000723)","0529G72379","541A","INVESTIGACIÓN"]
["0700 422D","VICERREITORÍA DE PROFESORADO E PLANIFICACIÓN DOCENTE","0700","422D","ENSINANZA UNIVERSITARIA"]
["0800 422D","VICERREITORÍA DE INTERNACIONALIZACIÓN E COOPERACIÓN","0800","422D","ENSINANZA UNIVERSITARIA"]
["0800021617 422D","BOLSAS MOBILIDADE BILATERAL ESTUDANTES 16/17","0800021617","422D","ENSINANZA UNIVERSITARIA"]
["0800021718 422D","BOLSAS MOBILIDADE BILATERAL ESTUDANTES 17/18","0800021718","422D","ENSINANZA UNIVERSITARIA"]
["0800021819 422D","BOLSAS MOBILIDADE BILATERAL ESTUDANTES 18/19","0800021819","422D","ENSINANZA UNIVERSITARIA"]
["0800031517 422D","PROGRAMA ERASMUS+ KA103 15/17","0800031517","422D","ENSINANZA UNIVERSITARIA"]
["0800031618 422D","PROGRAMA ERASMUS+KA103 023001 16/18","0800031618","422D","ENSINANZA UNIVERSITARIA"]
["0800031619 422D","CONVOC. MOBILIDADE ESTUDANTES ERASMUS FINS ESTUDOS CURSO 2017-2018","0800031619","422D","ENSINANZA UNIVERSITARIA"]
["0800031719 422D","PROGRAMA ERASMUS KA103 17/19","0800031719","422D","ENSINANZA UNIVERSITARIA"]
["0800071517 422D","PROGRAMA ERASMUS+KA107 15/17","0800071517","422D","ENSINANZA UNIVERSITARIA"]
["0800071618 422D","PROGRAMA ERASMUS+KA107 16/18","0800071618","422D","ENSINANZA UNIVERSITARIA"]
["0800071719 422D","PROGRAMA ERASMUS KA107 17/19","0800071719","422D","ENSINANZA UNIVERSITARIA"]
["0800080002 422D","BOLSAS IBEROAMÉRICA-ESTD.GRADO-SANTANDER UDC-2015/2016","0800080002","422D","ENSINANZA UNIVERSITARIA"]
["0800080003 422D","BOLSAS FÓRMULA SANTANDER 2014 -UDC","0800080003","422D","ENSINANZA UNIVERSITARIA"]
["0800080004 422D","PROGRAMA STELLA, MOBILIDADE.GRUPO COMPOSTELA.","0800080004","422D","ENSINANZA UNIVERSITARIA"]
["0800080005 422D","BOLSAS IBEROAMERICA-ESTD. GRADO- SANTANDER 2013/2014","0800080005","422D","ENSINANZA UNIVERSITARIA"]
["0800080006 422D","BOLSAS IBEROAMÉRICAESTUDANTES DE GRAO.SANTANDER UNIVERSIDADES 2016/2017","0800080006","422D","ENSINANZA UNIVERSITARIA"]
["0800080007 422D","BOLSAS IBEROAMERICA.SANTANDER INVESTIGACIÓN 2016/2017","0800080007","422D","ENSINANZA UNIVERSITARIA"]
["0800080008 422D","INTERNATIONAL SUMMER SCHOOL.VIC.","0800080008","422D","ENSINANZA UNIVERSITARIA"]
["0800080009 422D","CURSOS IDIOMAS-ACTIVIDADES VIC.","0800080009","422D","ENSINANZA UNIVERSITARIA"]
["0800080010 422D","CONVOCATORIA MENTORIZACIÓN DE ALUMNADO ESTRANXEIRO","0800080010","422D","ENSINANZA UNIVERSITARIA"]
["0800080012 422D","CONVENIO FUNDACIÓN CAROLINA","0800080012","422D","ENSINANZA UNIVERSITARIA"]
["0800080013 422D","CONV. ADNAN MENDERES UNIVERSITY- TURQUIA. PROF., GUILLEN","0800080013","422D","ENSINANZA UNIVERSITARIA"]
["0800080014 422D","BOLSAS CURSO13/14 - POITIERS (CONC. MECD)","0800080014","422D","ENSINANZA UNIVERSITARIA"]
["0800080015 422D","BOLSAS IBEROAMERIA-ESTD. GRADO- SANTANDER UDC-2014/2015","0800080015","422D","ENSINANZA UNIVERSITARIA"]
["0800080016 422D","CONV.VILNIUS- UNIV. LITHUANIA - ERASMUS- PROF.  GUILLEN","0800080016","422D","ENSINANZA UNIVERSITARIA"]
["0800080017 422D","CONV. VILNIUS GEDIMINAS TECH. UNIV.  - I.P.LLP-ERA-IP-2013-LT-0906","0800080017","422D","ENSINANZA UNIVERSITARIA"]
["0800080018 422D","CONVENIO FUNDACIÓN CAROLINA 2016/2017","0800080018","422D","ENSINANZA UNIVERSITARIA"]
["0800080021 422D","INGRESO HOLY CROSS","0800080021","422D","ENSINANZA UNIVERSITARIA"]
["0800080023 422D","CURSOS ALUMNADO CONVENIO GEC","0800080023","422D","ENSINANZA UNIVERSITARIA"]
["0800080024 422D","CURSOS ALUMNADO CONVENIO UNIVERS. NEBRASKA-KEARNEY","0800080024","422D","ENSINANZA UNIVERSITARIA"]
["0800080025 422D","CURSOS ALUMNADO CONVENIO UNIVERSIDADE KENNESAW","0800080025","422D","ENSINANZA UNIVERSITARIA"]
["0800080026 422D","CURSOS PROFESORADO LINGUISTIC HORIZONS","0800080026","422D","ENSINANZA UNIVERSITARIA"]
["0800080027 422D","CONVOCATORIA PROFESORES VISITANTES DE PAÍSES DE FALA INGLESA","0800080027","422D","ENSINANZA UNIVERSITARIA"]
["0800080028 422D","PROGRAMA DE MARKETING PARA PROXECCIÓN EXTERIOR DA UDC","0800080028","422D","ENSINANZA UNIVERSITARIA"]
["0800080029 422D","PAGAMENTO.FACTURA.FUAC CONVOC.FORMACIÓN LINGÜÍSTICA DO PROFESORADO","0800080029","422D","ENSINANZA UNIVERSITARIA"]
["0800080030 422D","PAGAMENTO.FACTURA.FUAC CONVOC.FORMACIÓN LINGÜÍSTICA DO ESTUDANTADO","0800080030","422D","ENSINANZA UNIVERSITARIA"]
["0800080031 422D","PROGR.IBEROAMERICA SANTANDER BOLSAS INVESTIGACIÓN 2017/2018.","0800080031","422D","ENSINANZA UNIVERSITARIA"]
["0800080032 422D","PROGR.IBEROAMERICA SANTANDER BOLSAS GRADOS 2017/2018","0800080032","422D","ENSINANZA UNIVERSITARIA"]
["0800080034 422D","PROGR.IBEROAMERICA SANTANDER BOLSAS INVESTIGACIÓN 2018/2019","0800080034","422D","ENSINANZA UNIVERSITARIA"]
["08000806 422D","OFICINA DE COOPERACIÓN E VOLUNTARIADO","08000806","422D","ENSINANZA UNIVERSITARIA"]
["0800080601 422D","III CONVOC. AXUDAS DE EPD. OCV","0800080601","422D","ENSINANZA UNIVERSITARIA"]
["08000813 422D","OFICINA DE RELACIÓNS INTERNACIONAIS (ORI)","08000813","422D","ENSINANZA UNIVERSITARIA"]
["0800081301 422D","PARTICIPACIÓN NO PROX. TEMPO- ORI","0800081301","422D","ENSINANZA UNIVERSITARIA"]
["0800081302 422D","BOLSAS  ERASMUS 14-15. O.R.I","0800081302","422D","ENSINANZA UNIVERSITARIA"]
["0800081303 422D","BOLSAS MÁSTER LATINOAMÉRICA 14-15 ORI","0800081303","422D","ENSINANZA UNIVERSITARIA"]
["0800081304 422D","PRÁCTICAS ERASMUS 14-15, ORI","0800081304","422D","ENSINANZA UNIVERSITARIA"]
["0800081305 422D","BOLSAS PROGRMA NILS 14-15.ORI","0800081305","422D","ENSINANZA UNIVERSITARIA"]
["0800081306 422D","CURSO INTERNATIONAL SUMMER SCHOOL. ORI","0800081306","422D","ENSINANZA UNIVERSITARIA"]
["0800081307 422D","C.VERAN 2016-PROF.VARELA PEDREIRA-THE FUTURE OF THE EUROPEAN UNION 5","0800081307","422D","ENSINANZA UNIVERSITARIA"]
["0800081308 422D","BOLSAS EM TEMPO ESTUDOS .14-15.ORI","0800081308","422D","ENSINANZA UNIVERSITARIA"]
["0800081309 422D","C.VERÁN 2015.RESP.PAS VARELA PEDREIRA,THE FUTURE OF THE EUROPEAN UNION 4","0800081309","422D","ENSINANZA UNIVERSITARIA"]
["0800081310 422D","BOLSAS UDC,ESTUD.E TITUL.RECENT.INSCR.UDC-TUIASI INT.SUMMER SCHOOL (ROMANÍA","0800081310","422D","ENSINANZA UNIVERSITARIA"]
["0800081311 422D","BOLSAS LEONARDO DA VINCI.13-14.O.R.I.","0800081311","422D","ENSINANZA UNIVERSITARIA"]
["0800081312 422D","BOLSAS LEONARDO DA VINCI.14-15 ,O.R.I.","0800081312","422D","ENSINANZA UNIVERSITARIA"]
["0800081313 422D","ORGANIZACIÓN DA MOBILIDADE LEONARDO DA VINCI 14-15. ORI","0800081313","422D","ENSINANZA UNIVERSITARIA"]
["0800081314 422D","ORGANIZACIÓN DA MOBILIDADE ERASMUS.14-15.ORI","0800081314","422D","ENSINANZA UNIVERSITARIA"]
["0800081315 422D","BOLSAS MOB.BILATERAL ESTUDANTES 14-15.ORI","0800081315","422D","ENSINANZA UNIVERSITARIA"]
["0800081316 422D","C. VERÁN 14- PAS VARELA PEDREIRA- ORI - \"THE FUTURE OF THE EUROPEAN UNION 3: IN SEARCH?\"","0800081316","422D","ENSINANZA UNIVERSITARIA"]
["0800081317 422D","ORGANIZACIÓN MOBILIDADE PROX.ERASMUS+KA103 023001 CONV.2016-1-ESO1.2016-2018.ORI","0800081317","422D","ENSINANZA UNIVERSITARIA"]
["0800081318 422D","BOLSAS PROX.ERASMUS+KA103 023001 CONV.2016-1-ESO1.VALIDEZ 2016-2018.ORI","0800081318","422D","ENSINANZA UNIVERSITARIA"]
["0800081319 422D","AXUD.MOBILIDADE STT/STA PROX.ERASMUS+KA103 023001 CONV.2016-1-ESO1.2016-2018.ORI","0800081319","422D","ENSINANZA UNIVERSITARIA"]
["0800081320 422D","MOBILIDADE BILATERAL ESTUDANTES 16-17.","0800081320","422D","ENSINANZA UNIVERSITARIA"]
["0800081335 422D","PRÁCTICAS PROX.ERASMUS+KA103 023001 CONV.2016-1-ESO1.VALIDEZ 01/06//2016-31/05/2018.OR","0800081335","422D","ENSINANZA UNIVERSITARIA"]
["0800081337 422D","ERASMUS-ACHE.COMPL.XERALMEC12-13ESTUD.-ORI-","0800081337","422D","ENSINANZA UNIVERSITARIA"]
["0800081338 422D","ERASMUS-ACHE.COMPL.BOLS.MEC12-13ESTUD.-ORI","0800081338","422D","ENSINANZA UNIVERSITARIA"]
["0800081339 422D","BOLSASERASMUSPRÁCTICAS12-13-ORI","0800081339","422D","ENSINANZA UNIVERSITARIA"]
["0800081341 422D","ERASMUS-ACHE. COMPL. BOLSE.MEC12-13PRACTICAS.-ORI","0800081341","422D","ENSINANZA UNIVERSITARIA"]
["0800081342 422D","AXUDAS MOBILIDADE STA/STT 12-13--ORI","0800081342","422D","ENSINANZA UNIVERSITARIA"]
["0800081345 422D","BOLSAS ERASMUS 13-14 - ORI","0800081345","422D","ENSINANZA UNIVERSITARIA"]
["0800081346 422D","PRÁCTICAS ERASMUS 13-14. ORI","0800081346","422D","ENSINANZA UNIVERSITARIA"]
["0800081347 422D","BOLSAS MOBIL. BIL. INT. ESTUDANTES 13-14. ORI","0800081347","422D","ENSINANZA UNIVERSITARIA"]
["0800081348 422D","BOLSAS MÁSTER LATINOAMÉRICA 13-14 ORI","0800081348","422D","ENSINANZA UNIVERSITARIA"]
["0800081349 422D","BOLSAS IDIOMAS  (PAGAMENTO FUAC EXAMES ERASMUS)","0800081349","422D","ENSINANZA UNIVERSITARIA"]
["0800081351 422D","ORGANIZ. MOBILIDADE EM TEMPO 13/14. ORI","0800081351","422D","ENSINANZA UNIVERSITARIA"]
["0800081352 422D","BOLSAS EM TEMPO ESTUDOS 13/14- ORI","0800081352","422D","ENSINANZA UNIVERSITARIA"]
["0800081353 422D","BOLSAS EM TEMPO PDI/ PAS 13/14. ORI","0800081353","422D","ENSINANZA UNIVERSITARIA"]
["0800081355 422D","ORGANIZACIÓN MOBILIDADE INTERNACIONAL 13-14- ORI","0800081355","422D","ENSINANZA UNIVERSITARIA"]
["0800081356 422D","AXUDAS MOBILIDADE STA/STT 13-14","0800081356","422D","ENSINANZA UNIVERSITARIA"]
["0800081357 422D","AXUDAS MOBILIDADE STA/STT 14-15","0800081357","422D","ENSINANZA UNIVERSITARIA"]
["0800081358 422D","ACHEGAS COMPL. ERASMUS- BOL. MEC SMS 13/14 - ORI","0800081358","422D","ENSINANZA UNIVERSITARIA"]
["0800081359 422D","ACHEGAS COMPL.ERASMUS BOLS. MEC SMP 13/14","0800081359","422D","ENSINANZA UNIVERSITARIA"]
["0800081360 422D","ACHEGAS MEC COMPL.ERASMUS-NON BOLSEIROS SMS 13/14 - ORI","0800081360","422D","ENSINANZA UNIVERSITARIA"]
["0800081361 422D","ACHEGAS MEC COMPL. ERASMUS-NON BOLSEIROS SMP 13/14 - ORI-","0800081361","422D","ENSINANZA UNIVERSITARIA"]
["0800081363 422D","BOLSAS EM TEMPO ESTUDOS 14/15- ORI","0800081363","422D","ENSINANZA UNIVERSITARIA"]
["0800081364 422D","BOLSAS EM TEMPO PDI/PAS 14/15 - ORI","0800081364","422D","ENSINANZA UNIVERSITARIA"]
["0800081365 422D","AXUDAS MOBILIDADE STA/STT PROX.ERASMUS+K103 013180 CONV.2015-1-ESO1, 01/06/2015 A 31/05/2017. ORI","0800081365","422D","ENSINANZA UNIVERSITARIA"]
["0800081366 422D","BOLSAS PROX.ERASMUS+K103 013180 CONV.2015-1-ESO1,VALIDEZ 01/06/2015 A 31/05/2017 . ORI","0800081366","422D","ENSINANZA UNIVERSITARIA"]
["0800081367 422D","BOLSAS MOBILID.BILATERAL ESTUDANT. 15-16. ORI","0800081367","422D","ENSINANZA UNIVERSITARIA"]
["0800081368 422D","BOLSAS EM TEMPO PDI/PAS 15/16 - ORI","0800081368","422D","ENSINANZA UNIVERSITARIA"]
["0800081369 422D","PRÁCTICAS PROX.ERASMUS+K103 013180 CONV.2015-1-ESO1,VALIDEZ 01/06/2015 A 31/05/2017 . ORI","0800081369","422D","ENSINANZA UNIVERSITARIA"]
["0800081370 422D","MECD XESTIÓN AXUD.ERASMUS.ES 15/16,CONVENIO.14/09/15","0800081370","422D","ENSINANZA UNIVERSITARIA"]
["0800081371 422D","ORGANIZACIÓN DA MOBILIDADE PROX.ERASMUS+K103 013180 CONV.2015-1-ESO1.2015-2017.ORI","0800081371","422D","ENSINANZA UNIVERSITARIA"]
["0800081372 422D","BOLSAS EM TEMPO ESTUDOS 15/16- ORI","0800081372","422D","ENSINANZA UNIVERSITARIA"]
["0800081373 422D","XEORXIA PROX.ERASMUS+K107 015080 CONV.2015-ESO1. VALIDEZ 01/06/2015 A 31/05/2017. ORI","0800081373","422D","ENSINANZA UNIVERSITARIA"]
["0800081374 422D","ERASMUS+2016 ESO1-KA107-023795(OM ORGANIZ.MOVILIDADE)CAPITULO II","0800081374","422D","ENSINANZA UNIVERSITARIA"]
["0800081375 422D","ERASMUS+2016 ESO1-KA107-023795(APOIO INDIVIDUAL E VIAXE)CAPITULO IV","0800081375","422D","ENSINANZA UNIVERSITARIA"]
["0800220068 541A","PROX.AECID-MZ-2015-ACDE-002970.OCV,PROF.LIZANCOS MORA.FUAC, UNIV.E.MONDLANE-MOZAMBIQUE","0800220068","541A","INVESTIGACIÓN"]
["0800280072 541A","UE14 TEMPUS RETHINK Nº:544178PR.PROF.PEÑA LÓPEZ.UNV.LISBOA.OF.RR.II.","0800280072","541A","INVESTIGACIÓN"]
["0800280081 541A","PROX.15,UNIVERS.TIMISOARA.COORD.VERELA PEDREIRA,O.R.I., \" INSTITUTIONAL ?.DESABILITIES","0800280081","541A","INVESTIGACIÓN"]
["0800281720 541A","PROX. 2017-1-ES01-KA203-038344,ERASMUS+ KA203 \"IACOBUS+:CULTURA, PATRIMONIO E INTEGRACIÓN\".IP:CRISTOBAL CRESPO","0800281720","541A","INVESTIGACIÓN"]
["0800440010 422D","CONV.14 XUNTA-C. PRES.-3 UNIV.GAL.\"REDE GAL.COOPER.DESENVOLV.\" OCV.","0800440010","422D","ENSINANZA UNIVERSITARIA"]
["0800470011 422D","CONV.2014.LINGUIST HORIZONS,CURSOS VERANO E PRÁCT.ESTUD.USA. O.R.I.","0800470011","422D","ENSINANZA UNIVERSITARIA"]
["0800470012 422D","CONV.CÁTEDRA INDITEX LINGUA E CULT ESPAÑOLA","0800470012","422D","ENSINANZA UNIVERSITARIA"]
["0800470103 422D","PROGR.IBEROAMERICA SANTANDER BOLSAS GRAO 2018/2019.","0800470103","422D","ENSINANZA UNIVERSITARIA"]
["0800470104 422D","PROGR.IBEROAMERICA SANTANDER BOLSAS INVESTIGACIÓN 2018/2019","0800470104","422D","ENSINANZA UNIVERSITARIA"]
["0800480007 422D","CONV. 2007 UDC - THE COLLEGE HOLY CROSS","0800480007","422D","ENSINANZA UNIVERSITARIA"]
["0800E1517 422D","PROGRAMA ERASMUS+KA103 15/17","0800E1517","422D","ENSINANZA UNIVERSITARIA"]
["0800E31517 422D","PROGRAMA ERASMUS+KA103 15/17","0800E31517","422D","ENSINANZA UNIVERSITARIA"]
["0800E31618 422D","PROGRAMA ERASMUS+KA103 035589 16/18","0800E31618","422D","ENSINANZA UNIVERSITARIA"]
["0800E31619 422D","CONVOCATORIA MOBILIDADE ESTUDANTES ERASMUS FINS ESTUDOS CURSO 2017-2018","0800E31619","422D","ENSINANZA UNIVERSITARIA"]
["0800E31719 422D","PROGRAMA ERASMUS+KA103 17/19","0800E31719","422D","ENSINANZA UNIVERSITARIA"]
["0800E31720 422D","CONVOC.MOBILIDADE ERASMUS ESTUDOS CURSO 18/19","0800E31720","422D","ENSINANZA UNIVERSITARIA"]
["0800E31820 422D","PROGRAMA ERASMUS KA103 18/20","0800E31820","422D","ENSINANZA UNIVERSITARIA"]
["0800E71618 422D","PROGRAMA ERASMUS KA107 16/18","0800E71618","422D","ENSINANZA UNIVERSITARIA"]
["0800E71719 422D","PROGRAMA ERASMUS+KA107 17/19","0800E71719","422D","ENSINANZA UNIVERSITARIA"]
["0800E71820 422D","PROGRAMA ERASMUS KA107 18/20","0800E71820","422D","ENSINANZA UNIVERSITARIA"]
["0900 122B","VIC. DO CAMPUS DE FERROL E RESPONSABILIDADE SOCIAL","0900","122B","BIBLIOTECAS"]
["0900 422D","VIC. DO CAMPUS DE FERROL E RESPONSABILIDADE SOCIAL","0900","422D","ENSINANZA UNIVERSITARIA"]
["0900090001 422D","CURSO14/13,Hª DA TEORIA FEMINISTA. VIC FERRROL E R.S.","0900090001","422D","ENSINANZA UNIVERSITARIA"]
["0900090002 422D","UDC SAUDABLE . VIC. C. FERROL E RESP. SOCIAL","0900090002","422D","ENSINANZA UNIVERSITARIA"]
["0900090003 422D","PREMIOSINVEST.CONCELLOFERROLUDC.VIC.FERROLEREL.UNIV.EMPRESA","0900090003","422D","ENSINANZA UNIVERSITARIA"]
["0900090005 422D","CATEDRAJORGEJUANVIC.FERROLEREL.UNIV.EMPR","0900090005","422D","ENSINANZA UNIVERSITARIA"]
["0900090010 422D","PROGRAMAADI.VIC.CAMPUSFERROLERESPONSABILIDADESOCIAL","0900090010","422D","ENSINANZA UNIVERSITARIA"]
["0900090011 422D","CAMPUS INCLUSIVO,SUBV. MECD,FUNDAC.ONCE E FUNDAC.REPSOL.CONVOC.2016","0900090011","422D","ENSINANZA UNIVERSITARIA"]
["0900090012 422D","ACCIÓNS ADI - ESPAZO COMPARTIDO","0900090012","422D","ENSINANZA UNIVERSITARIA"]
["09000907 422D","OFICINA DA IGUALDADE DE XÉNERO","09000907","422D","ENSINANZA UNIVERSITARIA"]
["0900090701 422D","PREMIOS OIX: CERTAME FOTOGRÁFICO E CONC. TRABALLOS ACAD.- OFICINA DE IGUALDADE","0900090701","422D","ENSINANZA UNIVERSITARIA"]
["0900440097 422D","CONV.XUNTA 16/17 .ACTUAC.B) IMPLEMENTACIÓN DA 1º FASE DO PLAN INDUSTRIAL DE FERROL","0900440097","422D","ENSINANZA UNIVERSITARIA"]
["0900440097 541A","CONV.XUNTA 16/17 .ACTUAC.B) IMPLEMENTACIÓN DA 1º FASE DO PLAN INDUSTRIAL DE FERROL","0900440097","541A","INVESTIGACIÓN"]
["090044A120 422D","CONV.XUNTA,2018,CAMPUS INDUSTRIAL .ACTUACIÓN 1)","090044A120","422D","ENSINANZA UNIVERSITARIA"]
["0900470063 422D","CONV.NOVACAIXAGALICIA01/04/11,FINANC.OBSERVAT.OCUPAC.UDC","0900470063","422D","ENSINANZA UNIVERSITARIA"]
["0900470101 422D","CÁTEDRA COSME ÁLVAREZ DE LOS RÍOS.CONV. 17.- NAVANTIA-UDC.","0900470101","422D","ENSINANZA UNIVERSITARIA"]
["0900490017 422D","CONV.20/06/16,FUNDAC.LA CAIXA,PROGR.INCLUSIVO MENTORING Y BOLSAS ESTUDANTES","0900490017","422D","ENSINANZA UNIVERSITARIA"]
["0900490044 422D","AXUDA F. ONCE EMPREGO XUVENIL 2014-2020, CONFINANC POR EL FSE. XÓVENES DISC. INTELECTUAIS. CURSO 2017/2018","0900490044","422D","ENSINANZA UNIVERSITARIA"]
["1000 422D","XERENCIA","1000","422D","ENSINANZA UNIVERSITARIA"]
["1000 541A","XERENCIA","1000","541A","INVESTIGACIÓN"]
["1000000002 422D","PRAZASPDI","1000000002","422D","ENSINANZA UNIVERSITARIA"]
["1000000003 422D","TESESDOUTORAMENTO","1000000003","422D","ENSINANZA UNIVERSITARIA"]
["10000400 422D","XERENCIA,XESTIÓN DELEGADA RESOLUC.REITORAL 12/01/2016","10000400","422D","ENSINANZA UNIVERSITARIA"]
["10000400 541A","XERENCIA,XESTIÓN DELEGADA RESOLUC.REITORAL 12/01/2016","10000400","541A","INVESTIGACIÓN"]
["1000040008 422D","INVESTIMENTOS PARA APOIO Á XESTIÓN.XERENCIA,XESTIÓN DELEGADA RESOLUC.REITORAL 12/01/2016","1000040008","422D","ENSINANZA UNIVERSITARIA"]
["1000100001 422D","RESIDENCIA UNIV.- CAMPUS DE FERROL- XERENCIA","1000100001","422D","ENSINANZA UNIVERSITARIA"]
["1000100002 422D","XORNADAS XERENCIAS UNIVERSITARIAS-CRUE-UDC","1000100002","422D","ENSINANZA UNIVERSITARIA"]
["1000100003 422D","AXUDAS ESCOLA INFANTIL-(ESTUDANTES)- XERENCIA","1000100003","422D","ENSINANZA UNIVERSITARIA"]
["1000100004 422D","ACHEGA CONSELLO SOCIAL : FINANCIACIÓN AFECTADA E OUTROS TRABALLOS","1000100004","422D","ENSINANZA UNIVERSITARIA"]
["1000100008 422D","XUNTA,C.TRAB.D.X.EMP.AX.APOIODIVERS.SERVIZOSUDC(48TR)TR352A2009/228-0","1000100008","422D","ENSINANZA UNIVERSITARIA"]
["1000100015 422D","XERENCIA - INCORPORADOS 2015","1000100015","422D","ENSINANZA UNIVERSITARIA"]
["10001007 422D","SERVIZO DE PREVENCIÓN DE RISCOS LABORAIS","10001007","422D","ENSINANZA UNIVERSITARIA"]
["10001007 541A","SERVIZO DE PREVENCIÓN DE RISCOS LABORAIS","10001007","541A","INVESTIGACIÓN"]
["1000104906 422D","C.TRABALL.INSERCIÓN LABORAL,AXENTES EMPREGO","1000104906","422D","ENSINANZA UNIVERSITARIA"]
["1000104907 422D","SALARIO TRAMITACIÓN CUMPLIMENTO SENTENCIA","1000104907","422D","ENSINANZA UNIVERSITARIA"]
["1000104913 422D","XUNTA 11,C.TRAB.D.X.PR.EMPR.REF.TR352A 2011/214-0.CONTR PERS, APOIO SERV.UDC.","1000104913","422D","ENSINANZA UNIVERSITARIA"]
["1000430020 541A","ACHEGA A CEIDA","1000430020","541A","INVESTIGACIÓN"]
["1000430021 541A","ACHEGA MUSEO DE POBO GALEGO","1000430021","541A","INVESTIGACIÓN"]
["1000430049 422D","CONV. 17 - CONSEJO SUPERIOR DE INVESTIGACIONES CIENTÍFICAS - UDC. USO SEDE BRUXELAS","1000430049","422D","ENSINANZA UNIVERSITARIA"]
["1000440097 422D","CONVENIO XUNTA 2016-IMPLEMENTACIÓN 1ª FASE-PLAN INDUSTRIAL FERROL","1000440097","422D","ENSINANZA UNIVERSITARIA"]
["1000440097 541A","CONVENIO XUNTA 2016-IMPLEMENTACIÓN 1ª FASE-PLAN INDUSTRIAL FERROL","1000440097","541A","INVESTIGACIÓN"]
["1000470019 422D","CONTR.16/18,UDC-CEDRO- VEGAP,USOS DIXITAIS PARA A UDC","1000470019","422D","ENSINANZA UNIVERSITARIA"]
["1000490023 541A","ACHEGA FUNDACION RIO DO POZO","1000490023","541A","INVESTIGACIÓN"]
["1000E001 422D","EDIFICIO REITORIA","1000E001","422D","ENSINANZA UNIVERSITARIA"]
["1000E002 422D","EDIFICIO AULA NAUTICA","1000E002","422D","ENSINANZA UNIVERSITARIA"]
["1000E003 422D","EDIFICIO FACULTADE DE CIENCIAS","1000E003","422D","ENSINANZA UNIVERSITARIA"]
["1000E004 422D","EDIFICIO FACTULDADE DE FILOLOXIA","1000E004","422D","ENSINANZA UNIVERSITARIA"]
["1000E005 422D","EDIFCIO ESCOLA TECNICA SUPERIOR DE ARQUITECTURA","1000E005","422D","ENSINANZA UNIVERSITARIA"]
["1000E006 422D","EDIFICIO DE DEPARTAMENTOS DA ETSA","1000E006","422D","ENSINANZA UNIVERSITARIA"]
["1000E007 422D","EDIFICIO ESCOLA UNIVERSITARIA DE ARQUITECTURA TECNICA","1000E007","422D","ENSINANZA UNIVERSITARIA"]
["1000E009 422D","EDIFICIO INSTALACIONS DEPORTIVAS E DESPACHOS ASOCIACION","1000E009","422D","ENSINANZA UNIVERSITARIA"]
["1000E010 422D","EDIFICIO  FACULTADE DE DEREITO","1000E010","422D","ENSINANZA UNIVERSITARIA"]
["1000E012 422D","EDIFICIO FACULTADE DE SOCIOLOXIA E FACULTADE DE CIENCIAS DA COMUNICACION","1000E012","422D","ENSINANZA UNIVERSITARIA"]
["1000E013 422D","EDIFICIO FACULTADE DE ECONOMIA E EMPRESA","1000E013","422D","ENSINANZA UNIVERSITARIA"]
["1000E014 422D","EDIFICIO ETS ENXEÑEIROS CAMIÑOS, CANAIS E PORTOS","1000E014","422D","ENSINANZA UNIVERSITARIA"]
["1000E015 422D","EDIFICIO CITEEC","1000E015","422D","ENSINANZA UNIVERSITARIA"]
["1000E018 422D","EDIFICIO PAVILLON DE DEPORTES","1000E018","422D","ENSINANZA UNIVERSITARIA"]
["1000E019 422D","EDIFICIO ESTADIO UNIVERSITARIO","1000E019","422D","ENSINANZA UNIVERSITARIA"]
["1000E022 422D","EDIFICIO DE SERVIZOS CENTRAIS DE INVESTIGACION (ESCI)","1000E022","422D","ENSINANZA UNIVERSITARIA"]
["1000E029 422D","EDIFICIO FACULTADE DE FISIOTERAPIA","1000E029","422D","ENSINANZA UNIVERSITARIA"]
["1000E030 422D","EDIFICIO O FORTIN","1000E030","422D","ENSINANZA UNIVERSITARIA"]
["1000E031 422D","EDIFICIO PAVILLON MODERNISTA","1000E031","422D","ENSINANZA UNIVERSITARIA"]
["1000E032 422D","EDIFICIO DA FACULTADE DE CIENCIAS DA SAUDE","1000E032","422D","ENSINANZA UNIVERSITARIA"]
["1000E034 422D","EDIFICIO FACULTADE DE HUMANIDADES E DOCUMENTACION","1000E034","422D","ENSINANZA UNIVERSITARIA"]
["1000E035 422D","EDIFICIO ESCOLA POLITECNICA SUPERIOR","1000E035","422D","ENSINANZA UNIVERSITARIA"]
["1000E036 422D","EDIFICIO FACULTADE DE ENFERMARIA E PODOLOXIA (DEPENDENCIAS CLINICA PODOLOX. E POSGRAO INTEVENC.FAMILIAR NO HOSPITAL NAVAL FERROl)","1000E036","422D","ENSINANZA UNIVERSITARIA"]
["1000E037 422D","EDIFICIO FACULTADE CIENCIAS DO TRABALLO","1000E037","422D","ENSINANZA UNIVERSITARIA"]
["1000E038 422D","EDIFICIO ESCOLA UNIVERSITARIA DE DESEÑO INDUSTRIAL","1000E038","422D","ENSINANZA UNIVERSITARIA"]
["1000E039 422D","EDIFICIO CENTRO DE INVESTIGACIONS TECNOLOXICAS (CIT)","1000E039","422D","ENSINANZA UNIVERSITARIA"]
["1000E040 422D","EDIFICIO CASA DO PATIN","1000E040","422D","ENSINANZA UNIVERSITARIA"]
["1000E041 422D","EDIFICIO TALLERES TECNOLOXICOS","1000E041","422D","ENSINANZA UNIVERSITARIA"]
["1000E042 422D","EDIFICIO VICERREITORIA FERROL","1000E042","422D","ENSINANZA UNIVERSITARIA"]
["1000E043 422D","EDIFICIO SALON DE ACTOS - FERROL","1000E043","422D","ENSINANZA UNIVERSITARIA"]
["1000E044 422D","EDIFICIO DE USOS ADMINISTRATIVOS-FERROL","1000E044","422D","ENSINANZA UNIVERSITARIA"]
["1000E045 422D","EDIFICIO DE APOIO AO ESTUDO FERROL","1000E045","422D","ENSINANZA UNIVERSITARIA"]
["1000E046 422D","EDIFICIO CENTRO DE INVESTIGACIONS TECNOLOXICAS 2 (CIT)","1000E046","422D","ENSINANZA UNIVERSITARIA"]
["1000E047 422D","EDIFICIO ESCOLA UNIVERSITARIA POLITECNICA","1000E047","422D","ENSINANZA UNIVERSITARIA"]
["1000E049 422D","EDIFICIO PAZO FACULTADE DE CIENCIAS DO DEPORTE E DA EDUCACION FISICA","1000E049","422D","ENSINANZA UNIVERSITARIA"]
["1000E050 422D","EDIFICIO USOS MULTIPLES.FACULTADE CIENCIAS DEPORTE E EDUCACION FISICA","1000E050","422D","ENSINANZA UNIVERSITARIA"]
["1000E051 422D","EDIFICIO PISCINA.FACULTADE CIENCIAS DO DEPORTE E DA EDUCACION FISICA","1000E051","422D","ENSINANZA UNIVERSITARIA"]
["1000E052 422D","EDIFICIO SALA DE MUSCULACION.FACULTADE CIENCIAS DEPORTE E EDUCACION FISICA","1000E052","422D","ENSINANZA UNIVERSITARIA"]
["1000E053 422D","EDIFICIO DE DEPARTAMENTOS DA FACULTADE DE FILOLOXIA","1000E053","422D","ENSINANZA UNIVERSITARIA"]
["1000E054 422D","EDIFICIO APARCADOIRO ESCOLA UNIVERSITARIA ARQUITECTURA TECNICA","1000E054","422D","ENSINANZA UNIVERSITARIA"]
["1000E055 422D","EDIFICIO APARCADOIRO FACULTADE DE CIENCIAS","1000E055","422D","ENSINANZA UNIVERSITARIA"]
["1000E057 422D","EDIFICIO CENTRO CULTURAL UNIVERSITARIO - FERROL","1000E057","422D","ENSINANZA UNIVERSITARIA"]
["1000E059 422D","EDIFICIO CENTRO INVESTIGACIONS CIENTIFICAS AVANZADAS","1000E059","422D","ENSINANZA UNIVERSITARIA"]
["1100 111A","CONSELLO SOCIAL","1100","111A","CONSELLO SOCIAL"]
["1100110001 111A","ACORDO  INDITEX. RSU .CONSELLO SOCIAL","1100110001","111A","CONSELLO SOCIAL"]
["1100110003 111A","ACORDO MEGASA SIDERURGICA, S.L . CONSELLO SOCIAL","1100110003","111A","CONSELLO SOCIAL"]
["1300 422D","VALEDOR UNIVERSITARIO","1300","422D","ENSINANZA UNIVERSITARIA"]
["6100 122B","FACULTADE DE CIENCIAS","6100","122B","BIBLIOTECAS"]
["6100 300C","FACULTADE DE CIENCIAS","6100","300C","CENTROS"]
["6100 422D","FACULTADE DE CIENCIAS","6100","422D","ENSINANZA UNIVERSITARIA"]
["6100 541A","FACULTADE DE CIENCIAS","6100","541A","INVESTIGACIÓN"]
["61000VFA 300C","FACULTADE DE CIENCIAS. VIAXES FORMACIÓN ALUMNADO","61000VFA","300C","CENTROS"]
["61001010 122B","DEPARTAMENTO DE BIOLOXÍA ANIMAL, BIOLOXÍA VEXETAL E ECOLOXÍA","61001010","122B","BIBLIOTECAS"]
["61001010 541A","DEPARTAMENTO DE BIOLOXÍA ANIMAL, BIOLOXÍA VEXETAL E ECOLOXÍA","61001010","541A","INVESTIGACIÓN"]
["6100101061 541A","G.I.: FISIOLOXÍA DAS PLANTAS G000209","6100101061","541A","INVESTIGACIÓN"]
["6100101062 541A","G.I.: RECURSOS MARIÑOS E PESQUEIRAS G000253","6100101062","541A","INVESTIGACIÓN"]
["6100101063 541A","G.I.: BIOLOXÍA COSTEIRA G000255","6100101063","541A","INVESTIGACIÓN"]
["6100101064 541A","G.I.: INVESTIGACIÓN EN BIOLOXÍA EVOLUTIVA G000268","6100101064","541A","INVESTIGACIÓN"]
["6100101065 541A","GRUP.INV.FISIOLOXÍA E APLICAC.DAS PLANTAS, G000722,COORD. DÍAZ VARELA","6100101065","541A","INVESTIGACIÓN"]
["6100101081 541A","UNID.INV.RECURSOS BENTÓNICOS MARIÑOS,E000721,COORD.FDEZ.RGUEZ.","6100101081","541A","INVESTIGACIÓN"]
["61001020 122B","DEPARTAMENTO DE BIOLOXÍA CELULAR E MOLECULAR","61001020","122B","BIBLIOTECAS"]
["61001020 422D","DEPARTAMENTO DE BIOLOXÍA CELULAR E MOLECULAR","61001020","422D","ENSINANZA UNIVERSITARIA"]
["61001020 541A","DEPARTAMENTO DE BIOLOXÍA CELULAR E MOLECULAR","61001020","541A","INVESTIGACIÓN"]
["6100102061 541A","G.I.: REGULACIÓN DA EXPRESIÓN XÉNICA EN LEVADURAS E AS SÚAS APLICACIÓNS G000115","6100102061","541A","INVESTIGACIÓN"]
["6100102062 541A","G.I.: ESTUDO E APLICACIÓNS DAS MICROALGAS G000117","6100102062","541A","INVESTIGACIÓN"]
["6100102063 541A","G.I.: XENÉTICA DE ORGANISMOS MARIÑOS G000250","6100102063","541A","INVESTIGACIÓN"]
["6100102064 541A","G.I.: NEUROANATOMÍA DE VERTEBRADOS G000264","6100102064","541A","INVESTIGACIÓN"]
["6100102081 541A","UNID.INV.COMUN.CELULAR E EXPRESIÓN XENÉTICA,E000720,COORD.FREIRE PICOS","6100102081","541A","INVESTIGACIÓN"]
["61001150 122B","DEPARTAMENTO DE FÍSICA","61001150","122B","BIBLIOTECAS"]
["61001150 422D","DEPARTAMENTO DE FÍSICA","61001150","422D","ENSINANZA UNIVERSITARIA"]
["61001150 541A","DEPARTAMENTO DE FÍSICA","61001150","541A","INVESTIGACIÓN"]
["6100115061 541A","G.I.: MESTURAS G000347","6100115061","541A","INVESTIGACIÓN"]
["61001220 122B","DEPARTAMENTO DE QUÍMICA ANALÍTICA","61001220","122B","BIBLIOTECAS"]
["61001220 541A","DEPARTAMENTO DE QUÍMICA ANALÍTICA","61001220","541A","INVESTIGACIÓN"]
["6100122061 541A","G.I.: RADIOACTIVIDADE AMBIENTAL G000245","6100122061","541A","INVESTIGACIÓN"]
["6100122062 541A","G.I.: QUÍMICA ANALÍTICA APLICADA G000343","6100122062","541A","INVESTIGACIÓN"]
["61001490 122B","AREAS DPTO CC.NAVE.TERRA.CRIST.E MINER.EDAF.QUIM.AGRA.GEO.","61001490","122B","BIBLIOTECAS"]
["61001530 122B","DEPARTAMENTO DE QUÍMICA FUNDAMENTAL","61001530","122B","BIBLIOTECAS"]
["61001530 422D","DEPARTAMENTO DE QUÍMICA FUNDAMENTAL","61001530","422D","ENSINANZA UNIVERSITARIA"]
["61001530 541A","DEPARTAMENTO DE QUÍMICA FUNDAMENTAL","61001530","541A","INVESTIGACIÓN"]
["6100153001 422D","CONF.16-PROF.FDEZ.SANCHEZ-XII CICLO DE CONF.PERSPECTIVAS DA INVESTIGACION QUIMICA ACTUAL","6100153001","422D","ENSINANZA UNIVERSITARIA"]
["6100153002 422D","CICLO CONF.15, PROF.FDEZ.SÁCHEZ, XI CICLO CONF.\"PERSP.INVES.QUÍMICA ACTUAL\"","6100153002","422D","ENSINANZA UNIVERSITARIA"]
["6100153003 422D","C.VERÁN 2015,PROF.PLATAS IGLESIAS, A PROCURA DA CIENCIA EN FEITOS COTIÁNS.","6100153003","422D","ENSINANZA UNIVERSITARIA"]
["6100153063 541A","G.I.: QUÍMICA DA COORDINACIÓN G000119","6100153063","541A","INVESTIGACIÓN"]
["6100153065 541A","G.I.: QUÍMICA DO ESTADO SÓLIDO G000174","6100153065","541A","INVESTIGACIÓN"]
["6100153066 541A","G.I.: QUÍMICA ORGANOMETÁLICA G000220","6100153066","541A","INVESTIGACIÓN"]
["6100153068 541A","G.I.: QUÍMICA ORGÁNICA, SINTÉTICA, BIOLÓXICA E  SUPRAMOLECULAR G000670","6100153068","541A","INVESTIGACIÓN"]
["6100153069 541A","GRUP.INV. QUIMICA MOLECULAR E DE MATERIAIS -G0709- COORD. QUINTELA LÓPEZ","6100153069","541A","INVESTIGACIÓN"]
["6100153081 541A","E96-QUÍMICA BIOINORG.AVECILLA PORTO","6100153081","541A","INVESTIGACIÓN"]
["61001540 122B","DEPARTAMENTO DE QUÍMICA, FÍSICA E ENXEÑARÍA QUÍMICA I","61001540","122B","BIBLIOTECAS"]
["61001540 422D","DEPARTAMENTO DE QUÍMICA, FÍSICA E ENXEÑARÍA QUÍMICA I","61001540","422D","ENSINANZA UNIVERSITARIA"]
["61001540 541A","DEPARTAMENTO DE QUÍMICA, FÍSICA E ENXEÑARÍA QUÍMICA I","61001540","541A","INVESTIGACIÓN"]
["6100154061 541A","G.I.: REACTIVIDADE QUÍMICA E FOTORREACTIVIDADE G000138","6100154061","541A","INVESTIGACIÓN"]
["6100154062 541A","G000159: METAIS NO MEDIO AMBIENTE E MEDICINA","6100154062","541A","INVESTIGACIÓN"]
["6100154063 541A","G.I.: ENXEÑARÍA QUÍMICA AMBIENTAL G000219","6100154063","541A","INVESTIGACIÓN"]
["6100154064 541A","G000293:BIOENXEÑARÍA AMBIENTAL E CONTROL DE CALIDADE","6100154064","541A","INVESTIGACIÓN"]
["6100154065 541A","G.I.: CATÁLISE SUPRAMOLECULAR G000501","6100154065","541A","INVESTIGACIÓN"]
["6100210245 541A","PROX.06 PAZ GLEZ. CGL2006-13068-C02-01.MODELIZAC?..PLANTACIÓN EUC","6100210245","541A","INVESTIGACIÓN"]
["6100210257 541A","PROX.06PROF. HERRERO RGUEZ. REF.:CTM2006-03142. CARACTERIZACIÓN E DESENV..","6100210257","541A","INVESTIGACIÓN"]
["6100210259 541A","PROX.06.PROF. QUINTELA LOPEZ, CTQ2006-04728. DESEÑO, SINTESE","6100210259","541A","INVESTIGACIÓN"]
["6100210260 541A","PROX.06.PROF. SARANDESES DA COSTA, CTQ2006-06166. COMPOS","6100210260","541A","INVESTIGACIÓN"]
["6100210261 541A","PROX.06,PROF. FREIRE BOTANA, CTM2006-09043. DA DINAMICA DE METAPOBLACI","6100210261","541A","INVESTIGACIÓN"]
["6100210279 541A","PROX.07,CABEZA GRAS, REF:FIS2007-66823-C02-01.","6100210279","541A","INVESTIGACIÓN"]
["6100210284 541A","PROX.07PROF.GLEZ.TIZÓN , MEC ,CTM2007-62034, IDENTIFICACIÓN MARCADORES MOLEC","6100210284","541A","INVESTIGACIÓN"]
["6100210289 541A","PROX.07,PROF.VILA TABOADA ,REF: CGL2007-63549 \"XENÉTICA CONSERV.LEPIDOPTERO.","6100210289","541A","INVESTIGACIÓN"]
["6100210296 541A","PROX. 07 PROF.  BARREIRO LOZANO, REF: CTM2007-61011. \" DIVERSIDAD?.","6100210296","541A","INVESTIGACIÓN"]
["6100210352 541A","PROX.09.PROF.CERDANVILLANUEVAREF:BFUI2009-08854MICIIN\"REG.MEDIADAPORIXR1P..\".","6100210352","541A","INVESTIGACIÓN"]
["6100210384 541A","PROX.10.MICNIN-PROF.CIDBLANCO-REF.CGL2010-15993\"CHLAM","6100210384","541A","INVESTIGACIÓN"]
["6100210396 541A","PROX.10.MICIIN-PROF.SEÑARISRDGUEZ-REF.MAT2010-21342-C02-01\"NUEV.MAT.DIALECTRIC\"","6100210396","541A","INVESTIGACIÓN"]
["6100210401 541A","PROX.10.MICIIN-PROF.CANLELOPEZ-ACI2010-1093-DES.DENANOMAT.FOTOV.","6100210401","541A","INVESTIGACIÓN"]
["6100210406 541A","PROX.10.MICIIN-PROF.BARREIROLOZANO-REF:CTM2010-18787\"DES.YAPLIC.MARD.MOLEC.\"","6100210406","541A","INVESTIGACIÓN"]
["6100210413 541A","PROX.11.MICIIN-PROF.MARTINEZLAGE-REF:AGL2011-23689-","6100210413","541A","INVESTIGACIÓN"]
["6100210415 541A","PROX.11.MICIIN-PROF.EIRÍNLÓPEZREF:CGL2011-24812","6100210415","541A","INVESTIGACIÓN"]
["6100210419 541A","PROX.11.MICIIN-PROF.SOTOCASTIÑEIRA-REF:CTM2011-28384","6100210419","541A","INVESTIGACIÓN"]
["6100210420 541A","PROX.11.MICIIN-PROF.DEVEGAMARTÍN-REF:CTM2011-28506-C02-02","6100210420","541A","INVESTIGACIÓN"]
["6100210449 541A","MINECO 12.PROF.JIMÉNEZ GLEZ.REF:AGL2012-39274-C02-02. \"ANÁLISE ESTR","6100210449","541A","INVESTIGACIÓN"]
["6100210451 541A","MINECO 12.PROF. MÉNDEZ FELPETO.REF:AGL2012-30897","6100210451","541A","INVESTIGACIÓN"]
["6100210458 541A","MINECO.12-REF.CGL2012-39953-C02-02- PROF. SAHUQUILLO BALBUENA \"GENOMICA COMPARADA","6100210458","541A","INVESTIGACIÓN"]
["6100210459 541A","MINECO.12-REF.CTM2012-37272- PROF. BARRIADA PEREIRA \"FUNC. DE BIOMASA PARA. DES¿\"","6100210459","541A","INVESTIGACIÓN"]
["6100210460 541A","MINECO.12-REF.CTQ2012-31200- PROF. SARANDESES DA COSTA \"ORGANOMETA. DE INDIO E OURO\"","6100210460","541A","INVESTIGACIÓN"]
["6100210482 541A","MINECO 13-REF.CGL2013-44519-R-PROF.RGUEZ. ROILOA","6100210482","541A","INVESTIGACIÓN"]
["6100210483 541A","MINECO 13-REF.CGL2013-47814-C2-1-R-PROF. PAZ GZLEZ.","6100210483","541A","INVESTIGACIÓN"]
["6100210484 541A","MINECO 13-REF.CTM2013-48194-C3-2-R-PROF. MUNIATEGUI LORENZO","6100210484","541A","INVESTIGACIÓN"]
["6100210485 541A","MINECO 13-REF.CTQ2013-45581-R-PROF.KENNES,CHRISTIAN.","6100210485","541A","INVESTIGACIÓN"]
["6100210494 541A","MINECO 14,REF.CTQ2013-41097-PROF.PEINADOR VEIRA.FEDER.\"METALOCICLOS AUTOENSAMBLADOS?\"","6100210494","541A","INVESTIGACIÓN"]
["6100210498 541A","MINECO 14, REF.CTQ2013-43243-P, PROF.PLATAS IGLESIAS.FEDER \"NOVAS SONDAS INTELIXENTES?..","6100210498","541A","INVESTIGACIÓN"]
["6100210513 541A","MINECO 15,REF:CGL2014-56907-R,PROF.RGUEZ.BLANCO.MOD.1:RETOS INVEST.INCIDENCIA DA ESCORRENT","6100210513","541A","INVESTIGACIÓN"]
["6100210514 541A","MINECO 15,REF:ENE2014-56237-C4-4-R,FEDER.PROF.CASTRO GARCÍA.MOD.1:RETOS INVEST.MATERIA.EMER.","6100210514","541A","INVESTIGACIÓN"]
["6100210518 541A","MINECO 15,REF:CTM2014-53838-R,FEDER,PROF.MTNEZ.LAGE,MOD.1:RETOS INVEST. SOST.POBLAC.CENTOLA","6100210518","541A","INVESTIGACIÓN"]
["6100210524 541A","MINECO 15,REF;CGL2014-53332-C5-3-P,PROF.PARAPAR VEGAS ,PROGR?EXCELENCIA.MOD.1.PROX.I+D","6100210524","541A","INVESTIGACIÓN"]
["6100210525 541A","MINECO 15,REF;MAT2014-57943-C3-3-P,PROF.CABEZA GRAS ,PROGR?EXCELENCIA.MOD.1.PROX.I+D.","6100210525","541A","INVESTIGACIÓN"]
["6100210543 541A","MINECO 16,REF.:CTQ2015-68369-P, PROF. SARANDESES DA COSTA,CICA.PROGR.EXCELENCIA","6100210543","541A","INVESTIGACIÓN"]
["6100210547 541A","MINECO 16,REF:AGL2015-63740-C2-2-R,PROF.JIMÉNEZ GLEZ.,CICA.,PROGR.RETOS DA SOCIEDADE","6100210547","541A","INVESTIGACIÓN"]
["6100210551 541A","MINECO16,REF:CTQ2015-71238-R, PROF.CANLE LÓPEZ, PROGR.RETOS DA SOCIEDADE","6100210551","541A","INVESTIGACIÓN"]
["6100210560 541A","MINECO 17,REF:CTM2016-77945-C3-3-R,PROF.MUNIATEGUI LORENZO, PROGR. RETOS DA SOCIEDADE","6100210560","541A","INVESTIGACIÓN"]
["6100210563 541A","MINECO 17,REF:RTC2016-4611-1,PROF.RDGUEZ.GZLEZ ,INMUNOTOP PROGR. RETOS-COLABORACIÓN","6100210563","541A","INVESTIGACIÓN"]
["6100210568 541A","MINECO 17,REF:AGL2016-75288-R,PROF.MENDEZ FELPETO,PROGR. RETOS DA SOCIEDADE","6100210568","541A","INVESTIGACIÓN"]
["6100210585 541A","MINECO 17,REF:CTQ2016-80473-P, PROF. HERRERO RGUEZ, PROGR. EXCELENCIA","6100210585","541A","INVESTIGACIÓN"]
["6100210586 541A","MINECO 17, REF:CTQ2016-74862-P, PROF.RGUEZ. BLAS, PROGR. EXCELENCIA","6100210586","541A","INVESTIGACIÓN"]
["6100210587 541A","MINECO 17,REF:CTQ2016-75629-P, PROF. PEINADOR VEIRA, PROGR. EXCELENCIA","6100210587","541A","INVESTIGACIÓN"]
["6100210592 541A","MINECO 17,REF:CGL2016-75281-C2-2-R,PROF. BAO CASAL PROGR. RETOS DA SOCIEDADE","6100210592","541A","INVESTIGACIÓN"]
["6100210594 541A","MINECO 17,REF:CTQ2016-76756-P,PROF. PLATAS IGLESIAS.PROGR. EXCELENCIA","6100210594","541A","INVESTIGACIÓN"]
["6100210602 541A","MINECO 17,REF:PCIN-2016-148,PROF.C.KENNES NULL,ACC.PROGR.CONJUNTA INTERN","6100210602","541A","INVESTIGACIÓN"]
["6100210604 541A","MEIC  17, REF:RTA2015-00042-C02-02.PROF. SILVAR PEREIRO, PROGR. RETOS DE LA SOCIEDAD. COF; FEDER","6100210604","541A","INVESTIGACIÓN"]
["6100210608 541A","MEIC 18 REF:CTQ2017-89166-R. I.P.;PAZOS CHANTERO.PROGR. RETOS SOCIEDADE","6100210608","541A","INVESTIGACIÓN"]
["6100210615 541A","MEIC 18,REF:MAT2017-86453-R,PROF.SÁNCHEZ ANDÚJAR.PROGR.RETOS","6100210615","541A","INVESTIGACIÓN"]
["6100210619 541A","MEIC 18,REF:CTQ2017-88292-R,PROF.KENNES,CHRISTIAN,PROGR.RETOS SOCIEDADE","6100210619","541A","INVESTIGACIÓN"]
["6100210622 541A","MEIC 18,REF:MAT2017-89239-C2-2-P,PROF.CABEZA GRAS,PROGR.EXCELENCIA","6100210622","541A","INVESTIGACIÓN"]
["6100220060 541A","INIA.PROX.11PROF.SILVARPEREIROREF:RTA12011-00118-C02-02\"DES.EAPLIC.DETÉC¿..\"","6100220060","541A","INVESTIGACIÓN"]
["6100220065 541A","INIA,PROX.2014,PROF.DÍAZ VARELA,REF:RTA2013-00060-C05-02 \"?BIOCONTROL DE PENICILLIUM OXALICUM?\"","6100220065","541A","INVESTIGACIÓN"]
["6100240002 541A","PROX.XUNTA.PROF.JAIME RGUEZ.GLEZ.CICA-INIBIC-CREAC.RECOÑEC.E ETRUC.AGRUP.ESTRATEX.SUG","6100240002","541A","INVESTIGACIÓN"]
["6100242201 541A","XUNTA12.C.EDUC.PROF.CABEZAGRAS-MOD.REDES.REF:CN2012/210","6100242201","541A","INVESTIGACIÓN"]
["6100242205 541A","XUNTA12.C.ED.PROF.ESTEBANGÓMEZ-INV.EMERXREF:EM2012/88","6100242205","541A","INVESTIGACIÓN"]
["6100242213 541A","XUNTA12.C.ED.PROF.CERDÁNVILLANUEVA-G.REF.COMPET.REF:CN2012/118","6100242213","541A","INVESTIGACIÓN"]
["6100242216 541A","XUNTA12.C.ED.PROF.RDGUEZ.BLAS-G.DEPOT.CREC.REF:CN2012/2011","6100242216","541A","INVESTIGACIÓN"]
["6100242218 541A","XUNTA12.C.ED.PROF.VEIGABARBAZÁN-G.DEPOT.CREC.REF:CN2012/291","6100242218","541A","INVESTIGACIÓN"]
["6100242302 541A","XUNTA 13,C.ED.PROF.FDEZ.RGUEZ...Nº:EM2013/051.INV.EMERXENTE","6100242302","541A","INVESTIGACIÓN"]
["6100242312 541A","XUNTA 13 C.ED.PROF.PRADA RGUEZ..Nº:GRC2013-047,GR.REF.COMPET","6100242312","541A","INVESTIGACIÓN"]
["6100242403 541A","XUNTA 14 C.CULT,EDUC.PROF.SILVAR PEREIRO.Nº EM2014/048, INV.EMERXENTES","6100242403","541A","INVESTIGACIÓN"]
["6100242404 541A","XUNTA 14 C.CULT,EDUC.PROF.VÁZQUEZ GARCÍA.Nº EM2014/056,INVEST.EMERXENTES","6100242404","541A","INVESTIGACIÓN"]
["6100242405 541A","XUNTA 14 C.CULT,EDUC.PROF.VIDAL VÁZQUEZ, Nº EM2014/047,INVEST.EMERXENTE","6100242405","541A","INVESTIGACIÓN"]
["6100242410 541A","XUNTA 14 C.CULT.,EDUC.PROF.GZLEZ.TIZÓN Nº GRC2014/050,GRUP.REFER. COMPETITIVA","6100242410","541A","INVESTIGACIÓN"]
["6100242414 541A","XUNTA 14 C.CULT.,EDUC.PROF.QUINTELA LÓPEZ,Nº GRC2014/042,GRUP.REFER. COMP","6100242414","541A","INVESTIGACIÓN"]
["6100242421 541A","XUNTA 14 C.CULT.,EDUC.PROF.BARREIRO LOZANO Nº R2014/036,MODAL.REDES","6100242421","541A","INVESTIGACIÓN"]
["6100242502 541A","XUNTA 15,C.CULT.E.OU,PROF.BARREIRO LOZANO,Nº:GPC2015/025,GRUPOS POTENCIAL CRECEMENTO","6100242502","541A","INVESTIGACIÓN"]
["6100242610 541A","XUNTA 16,C.CULT.EDU.e O.U.,PROF.CERDÁN VILLANUEVA,Nº EXP.:ED431C 2016-012,GR. REFERENC.COMPET.","6100242610","541A","INVESTIGACIÓN"]
["6100242615 541A","XUNTA 16,C.CULT.EDU.E O.U.,PROF.VEGA MARTÍN,Nº EXPTE:ED431B 2016/051","6100242615","541A","INVESTIGACIÓN"]
["6100242701 541A","XUNTA 17,FEADER,PROF.PAZ GLEZ.CGO/2017/084.GR.OPERATIVO.MANEXO EFICIENTE SUELO ?..","6100242701","541A","INVESTIGACIÓN"]
["6100242702 541A","XUNTA 17,FEADER,PROF.LADO LIÑARES.CGO/2017/091.GR.OPERATIVO REUTILIZAC.SUSTRATOS..","6100242702","541A","INVESTIGACIÓN"]
["6100242707 541A","XUNTA 17-C.EDU E C.ECO- PROF. MUNIATEGUI LORENZO - ED431C 2017/28","6100242707","541A","INVESTIGACIÓN"]
["6100242710 541A","XUNTA 17-C.EDU E C.ECO- PROF. VEIGA BARBAZÁN -ED431C 2017/66","6100242710","541A","INVESTIGACIÓN"]
["6100242715 541A","XUNTA 17-C.EDU E C.ECO- PROF. SANTABALLA LÓPEZ -ED431B 2017/59","6100242715","541A","INVESTIGACIÓN"]
["6100242718 541A","XUNTA 17-C.EDU E C.ECO- PROF. BARREIRO LOZANO -ED431D 2017/20","6100242718","541A","INVESTIGACIÓN"]
["6100242725 541A","XUNTA 17-C.MEDIO RURAL PROF.FAGUNDE DÍAZ,FEADER 2017/049B,AXUDAS MR331B","6100242725","541A","INVESTIGACIÓN"]
["6100280038 541A","PROX.EUROP.09.FDEZ.RGUEZ.NURIA.\"MAIA\"-MARINEPROT.AREASIN","6100280038","541A","INVESTIGACIÓN"]
["6100280043 541A","PROX.UE.11,PROF.JIMÉNEZGLEZ.BacterialStress.PIIF-GA-2010-274660","6100280043","541A","INVESTIGACIÓN"]
["6100280044 541A","PROX.UE.11.PROF.MUIÑOBOEDO-\"GAP2\"GRANTAGREEMENTMUMBE","6100280044","541A","INVESTIGACIÓN"]
["6100280065 541A","UE13. HOTDROPS IAPP.PR.MARIE CURIE.PROF.GLEZ.SISO..PIAPP-GA-2012-324439","6100280065","541A","INVESTIGACIÓN"]
["6100280066 541A","U.S.NAVY.NAMRU-6-UDC.PROF.VILA SANJURJO.PROX..ESTUDO.CONV,M","6100280066","541A","INVESTIGACIÓN"]
["6100280083 541A","NAMRU6 2016 US NAVY.I.P.DR.VILA SANJURJO,PROX.RIBOSOME PROFILING OF PBMCs","6100280083","541A","INVESTIGACIÓN"]
["6100280090 541A","PROX.UE, LIFE IN COMMON LAND (LIFE16 NAT/ES/000707).PROF:FAGÚNDEZ DÍAZ.PROG LIFE NAT AND BIO 16","6100280090","541A","INVESTIGACIÓN"]
["6100280092 541A","PROX.EU 2017,HIGH ADDED-VALUE INDUSTRIAL OPPORTUNITIES FOR MICROALGAE IN THE ATLANTIC AREA (ENHANCE MICROALGAE). PROF. SASTRE DE VICENTE","6100280092","541A","INVESTIGACIÓN"]
["6100290005 541A","PROX.2011.FUND.BARRIÉ.PROF.CERDÁNVILLANUEVA.REF:BIO-ALFA-GAL","6100290005","541A","INVESTIGACIÓN"]
["6100430002 541A","ACORDO 14 UN.COMPL.MADRID VISITA PREP.PR. NILS PROX.ABEL 14.MUIÑO B.","6100430002","541A","INVESTIGACIÓN"]
["6100430007 422D","CONTR. 2015- UNIV. FED. RURAL DE PERNAMBUCO- PROF. PAZ GONZALEZ (ART. 83 LOU)","6100430007","422D","ENSINANZA UNIVERSITARIA"]
["6100440012 422D","CONV,15 XUNTA,C.CULT.XXXV REUNIÓN BIENAL D REAL SOCIED.ESP.QUÍMICA,PROF.CANLE LÓPEZ","6100440012","422D","ENSINANZA UNIVERSITARIA"]
["6100440019 541A","CONV.17,XUNTAC.EDU E 3 UNIV.GAL.AGRUPAC.ESTRATÉXICAS INVEST.CICA-INIBIC,PROF.J. RGUEZ.GZLEZ.","6100440019","541A","INVESTIGACIÓN"]
["6100470004 422D","CONTR.13 - XUNTA PROF. MENDEZ FELPETO \"ESTUDO DE BANCO NATURAIS DE COQUINA\"","6100470004","422D","ENSINANZA UNIVERSITARIA"]
["6100470004 541A","CONTR.13 - XUNTA PROF. MENDEZ FELPETO \"ESTUDO DE BANCO NATURAIS DE COQUINA\"","6100470004","541A","INVESTIGACIÓN"]
["6100470014 422D","CONTR.2016- CZVETERINARIA, S.A. PROF. FREIRE PICOS (ART. 83 LOU)","6100470014","422D","ENSINANZA UNIVERSITARIA"]
["6100470035 422D","ENCARGO.2017.CONS.DE MEDIO RURAL.PROF.SILVAR PEREIRO(ART.83LOU)","6100470035","422D","ENSINANZA UNIVERSITARIA"]
["6100470038 422D","CONTR.2018.CERAMICA VEREA SA.PROF.DE BLAS VARELA(ART.83 LOU) PREST.SERVIZO","6100470038","422D","ENSINANZA UNIVERSITARIA"]
["6100470038 541A","CONTR.2018.CERAMICA VEREA SA.PROF.DE BLAS VARELA(ART.83 LOU) PREST.SERVIZO","6100470038","541A","INVESTIGACIÓN"]
["6100470092 541A","CONTR.13- BIOBEL FORESTAL, SL- PROF. DE VEGA MARTIN (ART. 83 LOU)","6100470092","541A","INVESTIGACIÓN"]
["6100470095 541A","CONTR. PHARMA MAR- UDC- PROF. RDGUEZ. GONZALEZ  \"ESTUDOS RESONANCIA MAGNETICA\"","6100470095","541A","INVESTIGACIÓN"]
["6100470100 541A","CONTR 17- ORGANISTRY SERVICIOS DE I+D S.L.U, PROF: RODRÍGUEZ GONZÁLEZ (ART. 83 LOU) \"DETER. ESTRUCT. IMP. EN PROP. FARMA.\"","6100470100","541A","INVESTIGACIÓN"]
["6100470101 541A","CONTR 18- ORGANISTRY SERVICIOS DE I+D S.L.U, PROF: RODRÍGUEZ GONZÁLEZ (ART. 83 LOU)","6100470101","541A","INVESTIGACIÓN"]
["6100480003 422D","CONTR.17-UNIV.TÉCNICA DE MACHALA(ECUADOR) - PROF PAZ GLEZ. (ART.83LOU)","6100480003","422D","ENSINANZA UNIVERSITARIA"]
["6100480004 541A","CONV.17,FUNDAC,IHE DELFT,TRAB.:PROJECT:104905,REALIZA.S.CHAKRABORTY, INV.VISITANTE PREDOUT.","6100480004","541A","INVESTIGACIÓN"]
["6100480006 422D","CONTR.18-INSTTO SUPERIOR DE AGRONOMIA.UNIV. DE LISBOA - PROF PAZ GLEZ. (ART.83LOU)","6100480006","422D","ENSINANZA UNIVERSITARIA"]
["6100610001 422D","CONF.16-PROF.MARTINEZ LAGE-XV CICLO DE CONF.CIENCIA E CULTURA","6100610001","422D","ENSINANZA UNIVERSITARIA"]
["6100610002 422D","CURSO DE NIVELACIÓN. FAC CIENCIAS","6100610002","422D","ENSINANZA UNIVERSITARIA"]
["6100610003 422D","AXUD.UDC,XORN.2017,PROF.BERNAL PITA DA VEIGA,II X. DIVULG BIOTECNOL. VEGETAL","6100610003","422D","ENSINANZA UNIVERSITARIA"]
["6100610004 422D","XORN.16-PROF.BERNAL PITA DA VEIGA- I XORNADA DIVULGATIVA SOBRE BIOTECNOLOXIA VEXETAL E A SUA APLICACION EN ESTUDOS DO MEDIO","6100610004","422D","ENSINANZA UNIVERSITARIA"]
["6100610005 541A","AX.FECYT,INCRÚST@TE,REF:FCT-16-11492,PROF.RGUEZ.GZLEZ.","6100610005","541A","INVESTIGACIÓN"]
["6100610006 422D","XXXV RB RSEQ,PROF.CANLE LÓPEZ ( REAL SOCIEDAD ESPAÑOLA DE QUÍMICA, REUNIÓN BIENAL)","6100610006","422D","ENSINANZA UNIVERSITARIA"]
["6100610006 541A","XXXV RB RSEQ,PROF.CANLE LÓPEZ ( REAL SOCIEDAD ESPAÑOLA DE QUÍMICA, REUNIÓN BIENAL)","6100610006","541A","INVESTIGACIÓN"]
["6100610007 422D","AX.CURSO VERÁN 2017,MOD.A.PROF.GZLEZ.TIZÓN, UN CEO DE CIENCIA","6100610007","422D","ENSINANZA UNIVERSITARIA"]
["6100610008 422D","AX.CURSO VERÁN 2017,MOD.A.PROF.COUCEIRO LÓPEZ, II S/TARTARUGAS E MAMÍF. MARIÑOS EN GALICIA","6100610008","422D","ENSINANZA UNIVERSITARIA"]
["6100610009 541A","AXUDA C.I.04/05/2017,PROF.VEIGA BARBAZAN: 7TH INT. CONF.ON BIOTECNIQUES?","6100610009","541A","INVESTIGACIÓN"]
["6100610010 422D","CURSO VERÁN 2016-PROF.FDEZ.RGUEZ.-TARTARUGAS E MAMIFEROS MARIÑOS EN GALICIA","6100610010","422D","ENSINANZA UNIVERSITARIA"]
["6100610010 541A","CURSO VERÁN 2016-PROF.FDEZ.RGUEZ.-TARTARUGAS E MAMIFEROS MARIÑOS EN GALICIA","6100610010","541A","INVESTIGACIÓN"]
["6100610011 541A","AX.PATENTES-PROF.VEIGA BARBAZAN \"PROC.OBTENCIÓN DE HIDROX.A PARTIR DE AUGA RESIDUAL?..","6100610011","541A","INVESTIGACIÓN"]
["6100610012 541A","AXUDA C.I.04/05/2017,(VISIT.ENCONTR)PROF.BARREIRO LOZANO, ROLES OF CIONAN GROWTH..","6100610012","541A","INVESTIGACIÓN"]
["6100610013 541A","AX.CI.21/04/16 SANTABALLA LOPEZ-I INTERNATIONAL SYMPOSIUM JULIO PALACIOS","6100610013","541A","INVESTIGACIÓN"]
["6100610015 541A","AXUDA COMPLEMENT. PARA LIÑA PROPIA DE INVESTIGACIÓN I.P. PEÑA FREIRE","6100610015","541A","INVESTIGACIÓN"]
["6100610016 541A","AXUDA C.I. 04/05/2017,PROGR.H2020,PROF.CABEZA GRAS,\"CONSORTIUM MEETING\"","6100610016","541A","INVESTIGACIÓN"]
["6100610017 541A","AX.XUNTA AO  POSDOUT.DÍAZ TAPIA,CREACIÓN NOVA LIÑA DE INVESTIGACIÓN","6100610017","541A","INVESTIGACIÓN"]
["6100610020 541A","ACC. COMPLEM- MCT- PROF. FREIRE BOTANA -CTM2007-31152","6100610020","541A","INVESTIGACIÓN"]
["6100610032 541A","MINECO 11,ACC.COMPL. PROF.KENNES - REF.: CTM2011-12544-E","6100610032","541A","INVESTIGACIÓN"]
["6100610050 422D","PROGRAMA O TEU FUTURO EN BOAS MANS. FAC. CIENCIAS","6100610050","422D","ENSINANZA UNIVERSITARIA"]
["6100ACDO 300C","FACULTADE DE CIENCIAS. ACTIVIDADES CULTURAIS, DEPORTIVAS E OUTRAS","6100ACDO","300C","CENTROS"]
["6100C01518 422D","III XOR.DIVULGAT. SOBRE BIOTECNOLOXÍA VEXETAL E A SÚA APLIC.EST.MEDIORESP:BERNAL PITA DA VEIGA","6100C01518","422D","ENSINANZA UNIVERSITARIA"]
["6100C02418 422D","III C.VERÁN TARTARUGAS E MAMÍFEROS MARIÑOS EN GALICIA RESP:FDEZ.RODRÍGUEZ, NURIA","6100C02418","422D","ENSINANZA UNIVERSITARIA"]
["6100D158 422D","DEPARTAMENTO DE BIOLOXÍA","6100D158","422D","ENSINANZA UNIVERSITARIA"]
["6100D158 541A","DEPARTAMENTO DE BIOLOXÍA","6100D158","541A","INVESTIGACIÓN"]
["6100D169 422D","DEPARTAMENTO DE FÍSICA E CIENCIAS DA TERRA","6100D169","422D","ENSINANZA UNIVERSITARIA"]
["6100D169 541A","DEPARTAMENTO DE FÍSICA E CIENCIAS DA TERRA","6100D169","541A","INVESTIGACIÓN"]
["6100D16901 422D","CONF.2017,ILMAT IV. PROF. CABEZA GRAS","6100D16901","422D","ENSINANZA UNIVERSITARIA"]
["6100D172 422D","DEPARTAMENTO DE QUÍMICA","6100D172","422D","ENSINANZA UNIVERSITARIA"]
["6100D172 541A","DEPARTAMENTO DE QUÍMICA","6100D172","541A","INVESTIGACIÓN"]
["6100D172C1 422D","2018 XII CICLO CONF.PERSPECTIVAS INVESTIGACIÓN QUÍMICA ACTUAL RESP: SARANDESES  DACOSTA","6100D172C1","422D","ENSINANZA UNIVERSITARIA"]
["6100G11579 541A","Regulación da expresión xénica e aplicacións Mª Esperanza Cerdán Villanueva (G00115)","6100G11579","541A","INVESTIGACIÓN"]
["6100G11779 541A","Estudo e Aplicacións das Microalgas Ángeles Cid Blanco (G000117)","6100G11779","541A","INVESTIGACIÓN"]
["6100G13879 541A","Reactividade Química e Fotorreactividade J. Arturo Santaballa López (G000138)","6100G13879","541A","INVESTIGACIÓN"]
["6100G14779 541A","Cambio Ambiental Mª Teresa Taboada Castro (G000147)","6100G14779","541A","INVESTIGACIÓN"]
["6100G15979 541A","Metais no medio Ambiente e Medicina Manuel Esteban Sastre de Vicente (G000159)","6100G15979","541A","INVESTIGACIÓN"]
["6100G21979 541A","Enxeñaría Química Ambiental Alberto de Vega Martín (G000219)","6100G21979","541A","INVESTIGACIÓN"]
["6100G25079 541A","Xenética de organismos mariños Josefina Méndez Felpeto (G000250)","6100G25079","541A","INVESTIGACIÓN"]
["6100G25579 541A","Bioloxía Costeira Rodolfo Barreiro Lozano (G000255)","6100G25579","541A","INVESTIGACIÓN"]
["6100G26479 541A","Neuroanatomía de vertebrados Mª Jesús Manso Revilla (G000264)","6100G26479","541A","INVESTIGACIÓN"]
["6100G26879 541A","Bioloxía evolutiva Ana Mª González Tizón (G000268)","6100G26879","541A","INVESTIGACIÓN"]
["6100G29379 541A","Enxeñaría Ambiental e Control de Calidade Mª del Carmen Veiga Barbazán (G000293)","6100G29379","541A","INVESTIGACIÓN"]
["6100G34379 541A","Química Analítica Aplicada Soledad Muniategui Lorenzo (G000343)","6100G34379","541A","INVESTIGACIÓN"]
["6100G34779 541A","Mesturas Óscar Cabeza Gras (G000347)","6100G34779","541A","INVESTIGACIÓN"]
["6100G70979 541A","Química Molecular e de Materiais José María Quintela López (G000709)","6100G70979","541A","INVESTIGACIÓN"]
["6100G72279 541A","Fisioloxía e Aplicacións das plantas José Diaz Varela (G000722)","6100G72279","541A","INVESTIGACIÓN"]
["6100I55179 541A","PARAPAR VEGAS, JULIO (I000551)","6100I55179","541A","INVESTIGACIÓN"]
["6100I57379 541A","SERVIA GARCÍA, JOSÉ MARÍA (I000573)","6100I57379","541A","INVESTIGACIÓN"]
["6100I68179 541A","FAGÚNDEZ DÍAZ, JAIME (I000681)","6100I68179","541A","INVESTIGACIÓN"]
["6100I72579 541A","GONZÁLEZ GURRIARÁN, EDUARDO (I000725)","6100I72579","541A","INVESTIGACIÓN"]
["6100I72679 541A","FERNÁNDEZ RODRÍGUEZ, NURIA (I000726)","6100I72679","541A","INVESTIGACIÓN"]
["6100PIDM 422D","FAC. CIENCIAS PROMOCIÓN, INFORMACIÓN E DIVULGACIÓN DE MESTRADOS","6100PIDM","422D","ENSINANZA UNIVERSITARIA"]
["6100U72079 541A","Comunicación Celular e Expresión Xénica M. Angeles Freire Picos (E000720)","6100U72079","541A","INVESTIGACIÓN"]
["6100U72179 541A","Recursos Bentónicos Mariños Luis Fernández Rodríguez (E000721)","6100U72179","541A","INVESTIGACIÓN"]
["6120 122B","FACULTADE DE DEREITO","6120","122B","BIBLIOTECAS"]
["6120 300C","FACULTADE DE DEREITO","6120","300C","CENTROS"]
["6120 422D","FACULTADE DE DEREITO","6120","422D","ENSINANZA UNIVERSITARIA"]
["6120 541A","FACULTADE DE DEREITO","6120","541A","INVESTIGACIÓN"]
["61200VFA 300C","FACULTADE DE DEREITO. VIAXES FORMACIÓN ALUMNADO","61200VFA","300C","CENTROS"]
["61201060 122B","DEPARTAMENTO DE DEREITO PÚBLICO","61201060","122B","BIBLIOTECAS"]
["61201060 422D","DEPARTAMENTO DE DEREITO PÚBLICO","61201060","422D","ENSINANZA UNIVERSITARIA"]
["61201060 541A","DEPARTAMENTO DE DEREITO PÚBLICO","61201060","541A","INVESTIGACIÓN"]
["6120106061 541A","G.I.: CRIMINALIDADE E XUSTIZA PENAL NO SÉCULO XXI G000225","6120106061","541A","INVESTIGACIÓN"]
["6120106062 541A","G.I.: ESTUDOS DE DEREITO PROCESUAL: GALICIA, ESPAÑA, UE E IBEROAMERICANA G000266","6120106062","541A","INVESTIGACIÓN"]
["6120106063 541A","G.I. DEREITO PÚBLICO GLOBAL-G00257-COORD.RODRIGUEZ ARANA","6120106063","541A","INVESTIGACIÓN"]
["61201070 122B","DEPARTAMENTO DE DEREITO PRIVADO","61201070","122B","BIBLIOTECAS"]
["61201070 422D","DEPARTAMENTO DE DEREITO PRIVADO","61201070","422D","ENSINANZA UNIVERSITARIA"]
["61201070 541A","DEPARTAMENTO DE DEREITO PRIVADO","61201070","541A","INVESTIGACIÓN"]
["6120107061 541A","G.I.PROTECC.XURÍDICA DA PERSOA E DA FAMILIA.PYF.G0150","6120107061","541A","INVESTIGACIÓN"]
["6120107063 541A","G.I.: COLABORACIÓN, CONFLITO E COMPETENCIA ENTRE EMPRESARIOS G000433","6120107063","541A","INVESTIGACIÓN"]
["6120107064 541A","G.I.: DEREITO DO CONSUMO E PROTECCIÓN DO CONSUMIDOR G000499","6120107064","541A","INVESTIGACIÓN"]
["6120107065 541A","G.I.: PROXECTOS E ESTUDOS DE DEREITO CIVIL (EUROPA, ESPAÑA, GALICIA) G000603","6120107065","541A","INVESTIGACIÓN"]
["6120107066 541A","GRUP. INV. SOCIED. MULTICUL. E RR. XURÍDICA INTERPESONAIS -G0707-  COORD. MONTANOS FERRÍN","6120107066","541A","INVESTIGACIÓN"]
["6120107067 541A","GRUP. INV EMPRESA, CONSUMO E DEREITO -G0708- COORD. BUSTO LAGO","6120107067","541A","INVESTIGACIÓN"]
["61201310 122B","DEPARTAMENTO DE DEREITO PÚBLICO ESPECIAL","61201310","122B","BIBLIOTECAS"]
["61201310 422D","DEPARTAMENTO DE DEREITO PÚBLICO ESPECIAL","61201310","422D","ENSINANZA UNIVERSITARIA"]
["61201310 541A","DEPARTAMENTO DE DEREITO PÚBLICO ESPECIAL","61201310","541A","INVESTIGACIÓN"]
["6120131001 422D","C.VERÁN 15,PROF.FERREIRO GALGUERA,\"SEMIN.INT.SOBRE A PRIMAVERA ÁRABE","6120131001","422D","ENSINANZA UNIVERSITARIA"]
["6120131061 541A","G.I.: FILOSOFÍA, CONSTITUCIÓN E RACCIONALIDADE G00080","6120131061","541A","INVESTIGACIÓN"]
["6120131062 541A","G.I.: DEREITO DO TRABALLO E SEGURIDADE SOCIAL, ESPAÑOL E COMPARADO G000129","6120131062","541A","INVESTIGACIÓN"]
["6120210303 541A","PROX.07,MEC,PROF.BUSTO LAGO, REF:SEJ2007-64777","6120210303","541A","INVESTIGACIÓN"]
["6120210314 541A","PROX.08, PROF.GARCÍA-PITA LASTRES .REF:DER2008-06320","6120210314","541A","INVESTIGACIÓN"]
["6120210315 541A","PROX.08, PROF.CEBREIROS ÁLVAREZ .REF:DER2008-05985-C06-05,","6120210315","541A","INVESTIGACIÓN"]
["6120210316 541A","PROX.08, PROF.GARCÍA CACHEFEIRO .REF:DER2008-04791","6120210316","541A","INVESTIGACIÓN"]
["6120210317 541A","PROX.08PR.FARALDOANTESMTNEZ-,BUJÁNREF:DER2008-01523.","6120210317","541A","INVESTIGACIÓN"]
["6120210388 541A","PROX.10.MICNIN-PROF.ÁLVAREZLATA-REF.DER2010-16925\"CRÉDITORESP.YPROT.CONS.\"","6120210388","541A","INVESTIGACIÓN"]
["6120210389 541A","PROX.10.MICNIN-PROF.SERNABERMÚDEZ-REF.DER2010-17357\"PRINC.YTEORÍADELAARGUT.\"","6120210389","541A","INVESTIGACIÓN"]
["6120210391 541A","PROX.10.MICNIN-PROF.COLINAGAREA-REF.DER2010-21596\"POLIT.PUBLC.VERSUSINIC.\"","6120210391","541A","INVESTIGACIÓN"]
["6120210423 541A","PROX.11.MICIIN-PROF.FARALDOCABANA-DER2011-24030","6120210423","541A","INVESTIGACIÓN"]
["6120210424 541A","PROX.11.MICIIN-PROF.PERNASGARCÍA-DER2011-28994","6120210424","541A","INVESTIGACIÓN"]
["6120210425 541A","PROX.11.MICIIN-PROF.QUINTÁNSEIRAS-DER2011-29238","6120210425","541A","INVESTIGACIÓN"]
["6120210462 541A","MINECO.12-REF.DER2012-31265- PROF. MONTANOS FERRIN \"XURISTA DE FROMACIÓN EUROPEA\"","6120210462","541A","INVESTIGACIÓN"]
["6120210464 541A","MINECO.12-REF.DER2012-34302- PROF. PUENTE ABA \"PROTC. PENAL DA INVERS. E O CRÉDITO\"","6120210464","541A","INVESTIGACIÓN"]
["6120210465 541A","MINECO.12-REF.DER2012-34765- PROF. GARCIMARTIN MONTERO \"A RELIGIÓN NO ESPAZO PÚBLICO\"","6120210465","541A","INVESTIGACIÓN"]
["6120210467 541A","MINECO.12-REF.DER2012-38745- PROF. MARTINEZ GIRÓN \"NOVAS MEDIDAS ESTRUTU. MERC. TRA.\"","6120210467","541A","INVESTIGACIÓN"]
["6120210486 541A","MINECO 13-REF.DER2013-45995-R-PROF.SOBRINO HEREDIA.","6120210486","541A","INVESTIGACIÓN"]
["6120210487 541A","MINECO 13-REF.DER2013-47331-R-PROF.CACHAFEIRO GARCÍA","6120210487","541A","INVESTIGACIÓN"]
["6120210502 541A","MINECO 14, REF.DER2013-47516-P, PROF.CALDERÓN CARRERO,\"A REFORM.SOCIEDADE SOCIETARIA NA UE","6120210502","541A","INVESTIGACIÓN"]
["6120210503 541A","MINECO 14, REF.DER2013-47711-P, PROF.BUSTO LAGO,\"AVALIAC.SOLVENCIA CONSUMIDOR CRÉDITO.","6120210503","541A","INVESTIGACIÓN"]
["6120210519 541A","MINECO 15,REF;DER2014-52674-R,PROF.FARALDO CABANA.,MOD.1:RETOS INVEST.O SIST.PENAL ESPAÑ","6120210519","541A","INVESTIGACIÓN"]
["6120210526 541A","MINECO 15,REF;DER2014-53670-C2-1-P,PROF.GARCÍA-PITA LASTRES,PROGR?EXCELENCIA.MOD.1.PROX.I+D.","6120210526","541A","INVESTIGACIÓN"]
["6120210530 541A","MINECO 15,REF;DER2014-52811-P,PROF.SEOANE RGUEZ. ,PROGR?..EXCELENCIA.MOD.1.PROX.I+D","6120210530","541A","INVESTIGACIÓN"]
["6120210536 541A","MINECO 16,REF:DER2015-65411-R, PROF.PUENTE ABA,PROGR.RETOS DA SOCIEDADE","6120210536","541A","INVESTIGACIÓN"]
["6120210555 541A","MINECO16 REF:DER2015-68433-P,PROF. MONTANOS FERRIN,PROGR. EXCELENCIA","6120210555","541A","INVESTIGACIÓN"]
["6120210558 541A","MINECO 16,REF:DER2015-67947-R,PROF.PERNAS GARCÍA, PROGR.RETOS DA SOCIEDADE","6120210558","541A","INVESTIGACIÓN"]
["6120210575 541A","MINECO 17, REF:DER2016-79070-R,PROF.CACHAFEIRO GARCÍA, PROGR:RETOS DA SOCIEDADE","6120210575","541A","INVESTIGACIÓN"]
["6120210583 541A","MINECO 17,REF:DER2016-75741-P,PROF. MTNEZ. GIRÓN, PROGR. EXCELENCIA","6120210583","541A","INVESTIGACIÓN"]
["6120230031 541A","INSTIT.SALUD CARLOS III, PROX AC15/75,PROF. SEOANE RGUEZ. ACC.COMPL. PROGR.CONJ. INT.","6120230031","541A","INVESTIGACIÓN"]
["6120242208 541A","XUNTA12.C.ED.PROF.PUENTEABA.-INV.EMERXREF:EM2012/","6120242208","541A","INVESTIGACIÓN"]
["6120242209 541A","XUNTA12.C.ED.PROF.RAMOSVÁZQUEZ-INV.EMERXREF:EM2012/70","6120242209","541A","INVESTIGACIÓN"]
["6120242217 541A","XUNTA12.C.ED.PROF.BELLOJANEIRO-G.DEPOT.CREC.REF:CN2012/199","6120242217","541A","INVESTIGACIÓN"]
["6120242219 541A","XUNTA12.C.ED.PROF.FARALDOCABANA-G.DEPOT.CREC.REF:CN2012/169","6120242219","541A","INVESTIGACIÓN"]
["6120242222 541A","XUNTA12.C.ED.PROF.SERNABERMÚDEZ-G.DEPOT.CREC.REF:CN2012/283","6120242222","541A","INVESTIGACIÓN"]
["6120242501 541A","XUNTA 15,C.CULT.E.OU,PROF.FARALDO CABANA,Nº:GRC2015/021,GRUPOS REFERENC.COMPETITIVA","6120242501","541A","INVESTIGACIÓN"]
["6120242503 541A","XUNTA 15,C.CULT.E.OU,PROF.BUSTO LAGO,Nº:GPC2015/027,GRUPOS POTENCIAL CRECEMENTO","6120242503","541A","INVESTIGACIÓN"]
["6120242601 541A","XUNTA 16.TSXG 00500/2015, PROF.AMOEDO SOUTO, PROX O IMPACTO DA CRISE DE GASTO PÚBLICO?.","6120242601","541A","INVESTIGACIÓN"]
["6120242716 541A","XUNTA 17-C.EDU E C.ECO- PROF. SEOANE RODRÍGUEZ J -ED431B 2017/43","6120242716","541A","INVESTIGACIÓN"]
["6120280071 541A","UE14 TEMPUS ABDEM,(MAGREB)Nº 544664-1-2013PROF.FERREIRO GALGUERA.","6120280071","541A","INVESTIGACIÓN"]
["6120280085 541A","UE16,WATER CRIMES,PROF.PUENTE ABA Nº:30-CE-0740635/00-53,COORD.SITI,HOME/2014/ISPF/AG/EFCE/7241","6120280085","541A","INVESTIGACIÓN"]
["6120280094 541A","PROX.EU 2017, REPERS,MUTUAL TRUST AND SOCIAL REHABIL.INTO PRACTICE.PROF: FARALDO CABANA","6120280094","541A","INVESTIGACIÓN"]
["6120430012 422D","CONTR.2016,UNIVERS.INT.RIOJA .PROF.BOBADILLA PÉREZ (ART.83 LOU) PREST.SERVIZOS","6120430012","422D","ENSINANZA UNIVERSITARIA"]
["6120460013 422D","CONTR.2016,CONCELLO VIMIANZO,PROF.AMOEDO SOUTO.(ART.83 LOU),APOIO TEC.ELABORAR RPT","6120460013","422D","ENSINANZA UNIVERSITARIA"]
["6120460016 422D","CONTR.2017,CONCELLO CORUÑA,PROF.AMOEDO SOUTO (ART. 83 LOU) PREST. SERVIZOS.","6120460016","422D","ENSINANZA UNIVERSITARIA"]
["6120460071 422D","CONV. 17 DEPUTACIÓN A CORUÑA-UDC PARA CREACIÓN DA \"CÁTEDRA DE DEREITO LOCAL\".PROF:AMOEDO SOUTO","6120460071","422D","ENSINANZA UNIVERSITARIA"]
["6120470005 422D","CONTR. 14 -ERNST & YOUNG ABOGADOS. PROF. CALDERON CARRERO - (ART. 83 LOU)","6120470005","422D","ENSINANZA UNIVERSITARIA"]
["6120470008 422D","CONTR.15,GÓMEZ ACEBO & POMBO S.L.P.,PROF.ÁLVAREZ BARBEITO (ART.83 LOU)","6120470008","422D","ENSINANZA UNIVERSITARIA"]
["6120470015 422D","CONTR.16- GONZALEZ FRANCO ABOGADOS- PROF. MARTÍNEZ BUJÁN (ART. 83 LOU)","6120470015","422D","ENSINANZA UNIVERSITARIA"]
["6120470016 422D","CONTR.16- BUFETE RAUL MEIZOSO ABOGADOS, SCP- PROF. MARTÍNEZ BUJÁN (ART. 83 LOU)","6120470016","422D","ENSINANZA UNIVERSITARIA"]
["6120470018 422D","CONTR.16,CAAMAÑO,CONCHEIRO E SEOANE,S.L.PROF.FARALDO CABANA (ART.83 LOU).","6120470018","422D","ENSINANZA UNIVERSITARIA"]
["6120470027 422D","CONTR.2016,CAAMAÑO,CONCHEIRO & SEOANE,S.L.,PROF.FARALDO CABANA (ART.83 LOU),CONSULTORÍA","6120470027","422D","ENSINANZA UNIVERSITARIA"]
["6120470029 422D","CONTR.2016,CAAMAÑO,CONCHEIRO & SEOANE,S.L.,PROF.GARCÍA PÉREZ(ART.83 LOU)","6120470029","422D","ENSINANZA UNIVERSITARIA"]
["6120470032 422D","CONTR.2017,TATO BECERRA,PROF.AMOEDO SOUTO,PREST.SERV.(ART.83 LOU) INFORMES","6120470032","422D","ENSINANZA UNIVERSITARIA"]
["6120470041 422D","CONTR.2017,UNIVERS.INT.RIOJA .PROF.VERGARA LACALLE(ART.83 LOU) PREST.SERVIZO","6120470041","422D","ENSINANZA UNIVERSITARIA"]
["6120470089 422D","CONTR.13- VALES, ABOGADOS Y ASES. TRIBUTARIOS- PROF. BUSTO  LAGO (ART. 83 LOU)","6120470089","422D","ENSINANZA UNIVERSITARIA"]
["6120470096 422D","CONTR.14- MANUEL MATA GÓMEZ- UDC- PROF. ROURA GÓMEZ (ART. 83 LOU)","6120470096","422D","ENSINANZA UNIVERSITARIA"]
["6120470099 422D","CONTR.14-LUMIEIRA GESTIÓN URBANISTICA- PROF. BUSTO LAGO (ART. 83 LOU)","6120470099","422D","ENSINANZA UNIVERSITARIA"]
["6120490007 541A","CONTR.13 - FUAC - PROF. GARCÍA PÉREZ \"ANALISIS JURIDIDO-ECONO PROX. NETMAR V..(ART. 83 LOU)","6120490007","541A","INVESTIGACIÓN"]
["6120490008 422D","CONV.2014,AULA \"FUNDACIÓN PAIDEIA\", PROF. SEOANE RGUEZ.","6120490008","422D","ENSINANZA UNIVERSITARIA"]
["6120490012 422D","CONV.08,ADENDA FUNDACIÓ UNIV.OBERTA CATALUNYA,PROF.CEBREIROS ÁLVAREZ (ART.83 LOU)","6120490012","422D","ENSINANZA UNIVERSITARIA"]
["6120490016 422D","CONV.04/12/2015,UDC-FUND.INADE.PROF. PEÑA LÓPEZ,CREA E REGULA CÁTEDRA FUND.INADE-XEST.RIESGO E SEGURO","6120490016","422D","ENSINANZA UNIVERSITARIA"]
["6120490020 422D","CONTR.2017,OSCAR AÑON SANDE ,PROF.MTNEZ-BUJÁN P.(ART.83 LOU),DICTAMEN","6120490020","422D","ENSINANZA UNIVERSITARIA"]
["6120490021 422D","CONTR.2017,JOSE ABEL PATIÑO GARCÍA, PROF.RAMOS VÁZQUEZ(ART.83 LOU) DICTAMEN","6120490021","422D","ENSINANZA UNIVERSITARIA"]
["6120490022 422D","CONTR.2017,DIEGO DE RAMÓN HERNANDEZ,PROF. PUENTE ABA (ART.83 LOU) INFORME XURI.","6120490022","422D","ENSINANZA UNIVERSITARIA"]
["6120490025 422D","CONTR.2018,DIEGO DE RAMÓN HERNANDEZ,PROF.PUENTE ABA (ART.83 LOU) INFORME XURID.","6120490025","422D","ENSINANZA UNIVERSITARIA"]
["6120600014 422D","IIMASTEROFIC.09,ASESOR.XURID.EMPRESAR.COOR.SANZLARRUGA","6120600014","422D","ENSINANZA UNIVERSITARIA"]
["6120612001 422D","XORN.16-PROF.LEGEREN MOLINA-A CONVENCION DAS NACIONS UNIDAS SOBRE OS DEREITOS DAS PERSOAS CON DISCAPACIDADE","6120612001","422D","ENSINANZA UNIVERSITARIA"]
["6120612002 422D","AX.CURSO VERÁN 2017,MOD.A.PROF.PÉREZ-CRUZ MARTÍN, CUESTIÓNS ACTUAIS DEREITO PROCESUAL","6120612002","422D","ENSINANZA UNIVERSITARIA"]
["6120612003 541A","AXUDA C.I.04/05/2017,(CONGR.XORN) PROF.FARALDO CABANA, SPRING MEETING OF THE EUR?","6120612003","541A","INVESTIGACIÓN"]
["6120612004 422D","AXUD.UDC, XORN.C.CONF. 2017,PROF.CACHAFEIRO GARCÍA,I XORN.SOBRE DEREITO E ECONOMÍA COLAB.","6120612004","422D","ENSINANZA UNIVERSITARIA"]
["6120612005 541A","AXUDA C.I.04/05/2017,(CONGR.XORN) PROF.SEOANE RGUEZ.,VIII SIMP.INT.DITO.CONCORDATORIO","6120612005","541A","INVESTIGACIÓN"]
["6120612006 541A","AXUDA C.I.29/04/14 (OR. CONG. E XOR.) PROF. FARALDO CABANA \"THE POLITICA ECONOMY ?\"","6120612006","541A","INVESTIGACIÓN"]
["6120612007 541A","AXUDA C.I.29/04/14 (OR. CONG. E XOR.) PROF. MONTANOS FERRIN \"SIMP. INTERN. FAMILIA Y RELIGION ?\"","6120612007","541A","INVESTIGACIÓN"]
["6120612008 422D","CURSO VERÁN 14. PROF. FERREIRO BAAMONDE \"RELAC. TC , TRIB.DE CONTAS E TS\"","6120612008","422D","ENSINANZA UNIVERSITARIA"]
["6120612009 422D","AXU.COMIS.EXT.UNIV.21/11/14,COORD.CACHAFEIRO GARCÍA \"TENDEN.ACT.REFORMA DEREITO COMPETENCIA","6120612009","422D","ENSINANZA UNIVERSITARIA"]
["6120612010 422D","CONTRAT.15 PROF.SEOANE RGUEZ.(ANTES SERNA B )UNIV.INT.RIOJA (UNIR) SERV.DOCENTES","6120612010","422D","ENSINANZA UNIVERSITARIA"]
["6120612011 422D","XORN.15,PROF.LEGEREN MOLINA \" A CONVENCIÓN DAS NACIÓNS UNIDAS SOBRE DEREITOS PERS.MINUSVA","6120612011","422D","ENSINANZA UNIVERSITARIA"]
["6120612012 541A","AXUDA, 2007 2ª COMIS INV. 07- REUNIÓN CINTÍFICA - PROF. MONTANOS FERRIN","6120612012","541A","INVESTIGACIÓN"]
["6120612013 541A","AX.CI.21/04/16 FARALDO CABANA-CRISES,ECONOMY AND PUNSHMENT: THE INFLUENCE?..","6120612013","541A","INVESTIGACIÓN"]
["6120612014 422D","CURSO VERAN 2016,MODALID.D, PROF.ABA CATOIRA, DEREITO,INTELIXENCIA E GUERRA ECONÓMICA","6120612014","422D","ENSINANZA UNIVERSITARIA"]
["6120612026 422D","XORN.2014 PROF. FERREIRO GALGUEA \"CONFER. SOBRE PRIMAVERA ARABE\"","6120612026","422D","ENSINANZA UNIVERSITARIA"]
["6120612050 422D","PROGRAMA O TEU FUTURO EN BOAS MANS. FAC. DEREITO","6120612050","422D","ENSINANZA UNIVERSITARIA"]
["6120D106 422D","DEPARTAMENTO DE DEREITO PÚBLICO","6120D106","422D","ENSINANZA UNIVERSITARIA"]
["6120D106 541A","DEPARTAMENTO DE DEREITO PÚBLICO","6120D106","541A","INVESTIGACIÓN"]
["6120D107 422D","DEPARTAMENTO DE DEREITO PRIVADO","6120D107","422D","ENSINANZA UNIVERSITARIA"]
["6120D107 541A","DEPARTAMENTO DE DEREITO PRIVADO","6120D107","541A","INVESTIGACIÓN"]
["6120D10701 422D","AXUD.UDC,XORN.C.CONF.2017,PROF.LEGERÉN MOLINA, A CONVENC.DA ONU SOBRE PERSOAS DISCAPAC.","6120D10701","422D","ENSINANZA UNIVERSITARIA"]
["6120G08079 541A","Filosofía, Constitución e Racionalidade José Antonio Seoane Rodríguez (G00080)","6120G08079","541A","INVESTIGACIÓN"]
["6120G12979 541A","Dereito do Traballo e Seguridade Social, Español e Comparado Jesús Martínez Girón (G000129)","6120G12979","541A","INVESTIGACIÓN"]
["6120G15079 541A","Protección Xurídica da Persoa e da Familia Miguel Ángel Pérez Álvarez (G000150)","6120G15079","541A","INVESTIGACIÓN"]
["6120G22579 541A","Criminoloxía, Xustiza Penal e Psicoloxía Xurídica no século XX Patricia Faraldo Cabana (G000225)","6120G22579","541A","INVESTIGACIÓN"]
["6120G70779 541A","Sociedade Multicultural  e Relacións Xurídicas Interpersoais Emma Montanos Ferrín (G000707)","6120G70779","541A","INVESTIGACIÓN"]
["6120G70879 541A","Empresa, Consumo e Dereito José Manuel Busto Lago (G000708)","6120G70879","541A","INVESTIGACIÓN"]
["6120I60379 541A","BELLO JANEIRO, DOMINGO (I000603)","6120I60379","541A","INVESTIGACIÓN"]
["6120I68379 541A","RON LATAS, RICARDO PEDRO (I000683)","6120I68379","541A","INVESTIGACIÓN"]
["6130 122B","FACULTADE DE FILOLOXÍA","6130","122B","BIBLIOTECAS"]
["6130 300C","FACULTADE DE FILOLOXÍA","6130","300C","CENTROS"]
["6130 422D","FACULTADE DE FILOLOXÍA","6130","422D","ENSINANZA UNIVERSITARIA"]
["6130 541A","FACULTADE DE FILOLOXÍA","6130","541A","INVESTIGACIÓN"]
["61300811 122B","CENTRO DE LINGUAS DA CORUÑA/ FERROL","61300811","122B","BIBLIOTECAS"]
["61300811 422D","CENTRO DE LINGUAS DA CORUÑA/ FERROL","61300811","422D","ENSINANZA UNIVERSITARIA"]
["61301110 122B","DEPARTAMENTO DE FILOLOXÍA ESPAÑOLA E LATINA","61301110","122B","BIBLIOTECAS"]
["61301110 422D","DEPARTAMENTO DE FILOLOXÍA ESPAÑOLA E LATINA","61301110","422D","ENSINANZA UNIVERSITARIA"]
["61301110 541A","DEPARTAMENTO DE FILOLOXÍA ESPAÑOLA E LATINA","61301110","541A","INVESTIGACIÓN"]
["6130111001 422D","XORN.15.PROF.PÉREZ PASCUAL.\"NOVOS ENFOQUES NO ESTUDO DA LINGUA?..\"","6130111001","422D","ENSINANZA UNIVERSITARIA"]
["6130111002 422D","MÁSTERERASMUSMUNDUSENESPECTACULOENVIVO.PROF.PAZGAGO-UNIV.LIBREBRUXE","6130111002","422D","ENSINANZA UNIVERSITARIA"]
["6130111004 541A","AX.COM.INV.12/07/13,PROF.LÓPEZ CRIADO,\"XIV CILEC","6130111004","541A","INVESTIGACIÓN"]
["6130111005 541A","AX.COM.INV.12/07/13,PROF.PENA SUEIRO.\"HUMANIDADES DIXITAIS...","6130111005","541A","INVESTIGACIÓN"]
["6130111006 541A","AX,COM.INV.12/07/13.PROF.SANCHEZ PALOMINO.\"SIMP.INT.RELEX","6130111006","541A","INVESTIGACIÓN"]
["6130111061 541A","G.I.: LITERATURA E CULTURA HISPÁNICA G000208","6130111061","541A","INVESTIGACIÓN"]
["6130111062 541A","G.I.: TEXTOS TÉCNICOS E DOUTRINAIS LATINOS G000337","6130111062","541A","INVESTIGACIÓN"]
["6130111063 541A","G.I.: LEXICOGRAFÍA G000375","6130111063","541A","INVESTIGACIÓN"]
["6130111064 541A","G.I.: PRO GALLAECIAM FOVENDAM: RECUPERACIÓN DA HISTORIA, LINGUA, CULTURA E PENSAMENTO EN GALICIA G000473","6130111064","541A","INVESTIGACIÓN"]
["6130111065 541A","G.I.: ESTUDOS ROMÁNICOS E COMPARADOS G000406","6130111065","541A","INVESTIGACIÓN"]
["6130111066 541A","UNIDADE(G.I.): LITERAT.E TECNOL.DA COMUNICACIÓN E000624","6130111066","541A","INVESTIGACIÓN"]
["6130111081 541A","E528, UNID.LINGUAXE NATURAL.LÓPEZ PALMA","6130111081","541A","INVESTIGACIÓN"]
["6130111082 541A","E0687 - UNID. LITERATURA COMPARADA, EDI. DE TEXTOS E TRAD. PROF. RODRIGUEZ FDEZ.","6130111082","541A","INVESTIGACIÓN"]
["61301130 122B","DEPARTAMENTO DE FILOLOXÍA INGLESA","61301130","122B","BIBLIOTECAS"]
["61301130 422D","DEPARTAMENTO DE FILOLOXÍA INGLESA","61301130","422D","ENSINANZA UNIVERSITARIA"]
["61301130 541A","DEPARTAMENTO DE FILOLOXÍA INGLESA","61301130","541A","INVESTIGACIÓN"]
["6130113001 422D","XORN.15 PROF.LORENZO MODIA \"NEW TRENDS IN ENGLISH STUDIES XII\"","6130113001","422D","ENSINANZA UNIVERSITARIA"]
["6130113003 541A","AX.COM.INV.12/07/13,PROF.ALAN FLOYD.XII CONGR AELFE","6130113003","541A","INVESTIGACIÓN"]
["6130113008 422D","XORN.2014 PROF. LORENZO MODIA \"NEW TRENDS IN ENGLISH STUDIES VIII\"","6130113008","422D","ENSINANZA UNIVERSITARIA"]
["6130113061 541A","G.I.: LITERATURA E CULTURA INGLESA MODERNA E CONTEMPORÁNEA G000274","6130113061","541A","INVESTIGACIÓN"]
["6130113062 541A","G.I.RESEARCH GROUP FOR MUGRUPO INV.LTIDIMENSIONAL CORPUS-BASED STUDIES IN ENGLISH G000238","6130113062","541A","INVESTIGACIÓN"]
["6130113063 541A","G.I.: CULTURAS E LITERATURAS DOS ESTADOS UNIDOS DE AMÉRICA G000604","6130113063","541A","INVESTIGACIÓN"]
["61301550 122B","DEPARTAMENTO DE GALEGO-PORTUGUÉS, FRANCÉS E LINGÜÍSTICA","61301550","122B","BIBLIOTECAS"]
["61301550 422D","DEPARTAMENTO DE GALEGO-PORTUGUÉS, FRANCÉS E LINGÜÍSTICA","61301550","422D","ENSINANZA UNIVERSITARIA"]
["61301550 541A","DEPARTAMENTO DE GALEGO-PORTUGUÉS, FRANCÉS E LINGÜÍSTICA","61301550","541A","INVESTIGACIÓN"]
["6130155061 541A","G.I.: LINGUA E  SOCIEDADE  DA INFORMACIÓN (LANGUAGE IN THE INFORMATION SOCIETY) G00079","6130155061","541A","INVESTIGACIÓN"]
["6130155064 541A","UNIDADE (G.I.): LITERATURA GALEGA CONTEMPORÁNEA E000435","6130155064","541A","INVESTIGACIÓN"]
["6130155065 541A","G.I.: INVESTIGACIÓN LINGÜÍSTICA E LITERARIA GALEGA G000497","6130155065","541A","INVESTIGACIÓN"]
["6130155081 541A","E0694- UNID. LINGUA, DISCURSO E SOCIEDADE- PROF. ÁLVAREZ CÁCAMO","6130155081","541A","INVESTIGACIÓN"]
["6130210281 541A","PROX.07.PROF.MORALES LÓPEZ,REF: HUM2007-61936, COMUNIC. NA EMPRESA..","6130210281","541A","INVESTIGACIÓN"]
["6130210283 541A","PROX.07,PROF.TATO GARCÍA,MEC,HUM2007-63484,","6130210283","541A","INVESTIGACIÓN"]
["6130210319 541A","PROX.08.PROF.PORTODAPENA,REF:FFI2008-02481,MºCIENC.INN.","6130210319","541A","INVESTIGACIÓN"]
["6130210321 541A","PROX.08.PROF.ALONSORAMOS,REF:FFI2008-06479-C02-01,MºCIENC","6130210321","541A","INVESTIGACIÓN"]
["6130210365 541A","PROX.09.PROF.PENASUEIRO,REF:FFI2009-08113,MICIIN","6130210365","541A","INVESTIGACIÓN"]
["6130210373 541A","PROX.09.PROF.FERRACESRGUEZ..,REF:FFI2009-11333,MICIIN,","6130210373","541A","INVESTIGACIÓN"]
["6130210394 541A","PROX.10.MICNIN-PROF.TATOGARCÍA-REF.FFI2010-17427\"ELCANCIONERODEPALACIO\"","6130210394","541A","INVESTIGACIÓN"]
["6130210408 541A","PROX.10.MICIIN-PROF.FDEZ.PÉREZ-SANJULIAN.FFI2010-16924.\"PRODUCC.EDITORIALGALIC.","6130210408","541A","INVESTIGACIÓN"]
["6130210410 541A","PROX.10.MICIIN-PROF.MORALESLÓPEZ.FFI2010-18514.\"COMUNICAC.NAEMPRES","6130210410","541A","INVESTIGACIÓN"]
["6130210431 541A","ACC.COMPL.11.MICIIN-PROF.PENASUEIRO-FFI2011-14272-E","6130210431","541A","INVESTIGACIÓN"]
["6130210432 541A","PROX.11.MICIIN-PROF.PORTODAPENA-FFI2011-23064","6130210432","541A","INVESTIGACIÓN"]
["6130210433 541A","PROX.11.MICIIN-PROF.PÉREZPASCUAL-FFI2011-23085","6130210433","541A","INVESTIGACIÓN"]
["6130210434 541A","PROX.11.MICIIN-PROF.ALONSORAMOS-FFI2011-30219-C02-01","6130210434","541A","INVESTIGACIÓN"]
["6130210468 541A","MINECO.12-REF.FFI2012-32801- PROF. FERREIRO FERNÁNDEZ \"GLOSARIO CRITICO DA POESIA\"","6130210468","541A","INVESTIGACIÓN"]
["6130210469 541A","MINECO.12-REF.FFI2012-34362- PROF. PENA SUEIRO \"BIBLIOTECA DIXITAL SIGLO DE ORO IV\"","6130210469","541A","INVESTIGACIÓN"]
["6130210470 541A","MINECO.12-REF.FFI2012-37891- PROF. LÓPEZ FDEZ. \"CRONOLOXÍA DA LITERATURA GALEGA","6130210470","541A","INVESTIGACIÓN"]
["6130210488 541A","MINECO 13-REF.FFI2013-44355-R-PROF. TATO FONTAíÑA","6130210488","541A","INVESTIGACIÓN"]
["6130210504 541A","MINECO 14, REF.FFI2013-42215-P, PROF.MOSKOWICH-SPIEGEL F. \"ETIQUETADO ELECTRÓNICO TEXTOS","6130210504","541A","INVESTIGACIÓN"]
["6130210505 541A","MINECO 14, REF.FFI2013-45690-P,PROF.FERRACES RGUEZ.,\"TEXTOS MÉDICOS LATINOS","6130210505","541A","INVESTIGACIÓN"]
["6130210506 541A","MINECO 14, REF.FFI2013-47746-P, PROF.TATO GARCÍA,\"POESIA  \"MINOR\" TEXTOS E AUTORES CANCIONERILES","6130210506","541A","INVESTIGACIÓN"]
["6130210541 541A","MINECO 16,REF: FFI2015-66767-P, PROF.SIMAL GZLEZ., PROGR. EXCELENCIA","6130210541","541A","INVESTIGACIÓN"]
["6130210549 541A","MINECO 16,REF:FFI2015-65799-P,PROF.PENA SUEIRO,PROGR.EXCELENCIA","6130210549","541A","INVESTIGACIÓN"]
["6130210553 541A","MINECO16,REF:FFI2015-63523-P, PROF.FERREIRO FDEZ.PROGR.EXCELENCIA","6130210553","541A","INVESTIGACIÓN"]
["6130210559 541A","MINECO 16,REF:FFI2015-65939-P,PROF.PÉREZ PASCUAL,PROGR.EXCELENCIA","6130210559","541A","INVESTIGACIÓN"]
["6130210584 541A","MINECO 17,REF:FFI2016-75599-P, PROF. MOSKOWICH-SPIEGEL, PROGR. EXCELENCIA","6130210584","541A","INVESTIGACIÓN"]
["6130210588 541A","MINECO 17, REF:FFI2016-78299-P,PROF. ALONSO RAMOS,PROGR.EXCELENCIA","6130210588","541A","INVESTIGACIÓN"]
["6130210593 541A","MINECO 17,REF:FFI2016-76297-R,PROF.TATO FONTAÍÑA.PROGR. RETOS DA SOCIEDADE","6130210593","541A","INVESTIGACIÓN"]
["6130210599 541A","MINECO 17,REF:FFI2016-78302-P,PROF. TATO GARCÍA, PROGR. EXCELENCIA","6130210599","541A","INVESTIGACIÓN"]
["6130210600 541A","MINECO 17,REF:FFI2016-75110-P,PROF.VALCÁRCEL LÓPEZ,PROGR.EXCELENCIA","6130210600","541A","INVESTIGACIÓN"]
["6130242011 541A","XUNTA10.PROF.CRESPOGARCIA-C.EC.EIN.-PROX.INVEST.BÁSICAREF:10PXIB167061PR","6130242011","541A","INVESTIGACIÓN"]
["6130242022 541A","XUNTA10.PROF.PÉREZPASCUAL-C.EC.EIN.-PROX.INVEST.BÁSICAREF:10PXIB104235PR","6130242022","541A","INVESTIGACIÓN"]
["6130242024 541A","XUNTA10.PROF.SÁNCHEZPALOMINO-C.EC.EIN.-PROX.INVEST.BÁSICAREF:10PXIB104262PR","6130242024","541A","INVESTIGACIÓN"]
["6130242056 541A","XUNTA10.PROF.FDEZ.PÉREZ-SANJUAN-PRG.SECT.REF:10SEC104017PR","6130242056","541A","INVESTIGACIÓN"]
["6130242203 541A","XUNTA12.C.EDUC.PROF.SÁNCHEZPALOMINO-MOD.REDES.REF:CN2012.290","6130242203","541A","INVESTIGACIÓN"]
["6130242221 541A","XUNTA12.C.ED.PROF.ALONSORAMOS-G.DEPOT.CREC.REF:CN2012/08","6130242221","541A","INVESTIGACIÓN"]
["6130242314 541A","XUNTA 13 C.ED.PROF.TATO FONTAÍÑA.Nº:GRC2013-054,GR.REF.COMPET","6130242314","541A","INVESTIGACIÓN"]
["6130242424 541A","XUNTA 14 C.CULT.,EDUC.PROF.LORENZO MODIA Nº R2014/043,MODAL.REDES","6130242424","541A","INVESTIGACIÓN"]
["6130242426 541A","XUNTA 14 C.CULT.,EDUC.PROF.SÁNCHEZ PALOMINO Nº R2014/042,MODAL.REDES","6130242426","541A","INVESTIGACIÓN"]
["6130242505 541A","XUNTA 15,C.CULT.E.OU,PROF.PÉREZ PASCUAL,Nº:GPC2015/028,GRUPOS POTENCIAL CRECEMENTO","6130242505","541A","INVESTIGACIÓN"]
["6130242607 541A","XUNTA 16,C.CULT.EDU. E OU,PROF. SÁNCHEZ PALOMINO,Nº EXP.ED341D R2016/046,PROGR.: REDES","6130242607","541A","INVESTIGACIÓN"]
["6130242711 541A","XUNTA 17-C.EDU E C.ECO- PROF. ALONSO RAMOS M. -ED431B 2017/01","6130242711","541A","INVESTIGACIÓN"]
["6130242719 541A","XUNTA 17-C.EDU E C.ECO- PROF. LORENZO MODIA - ED431D 2017/17","6130242719","541A","INVESTIGACIÓN"]
["6130430044 422D","CONTR. 16 - UNIV. ATENEUM SZKOLA - PROF. PÉREZ PASCUAL (ART. 83 LOU)","6130430044","422D","ENSINANZA UNIVERSITARIA"]
["6130430045 422D","CONTR. 16 - UNIV. ATENEUM SZKOLA - PROF. LORENZO MODIA (ART. 83 LOU)","6130430045","422D","ENSINANZA UNIVERSITARIA"]
["6130430048 422D","CONTR. 16 - UNIV. ATENEUM SZKOLA - PROF. TATO GARCÍA (ART. 83 LOU)","6130430048","422D","ENSINANZA UNIVERSITARIA"]
["6130440033 422D","CONV.13 CONV.XUNTA-RAMON PIÑEIRO(LÓPEZ PERERIA)F.FILOLOXÍ","6130440033","422D","ENSINANZA UNIVERSITARIA"]
["6130470084 422D","CONV.13.CÁTEDRA INDITEX LING. CULT ESPAÑOLA EN DAKA.CENTRO LINGUAS","6130470084","422D","ENSINANZA UNIVERSITARIA"]
["6130470098 422D","CONV.CÁTEDRA INDITEX LINGUA E CULT ESPAÑOLA (4ª/5ª ADDEND).CENTRO LINGUAS","6130470098","422D","ENSINANZA UNIVERSITARIA"]
["6130490046 541A","CONV.17 BECAS LEONARDO A INVESTIGADORES Y CREADORES CULTURALES UDC-FUND. BBVA, PROF: GARCÍA GONZÁLEZ","6130490046","541A","INVESTIGACIÓN"]
["6130613001 422D","UDC.2016-PROF.MARTINEZ LOPEZ-CERVANTES E SHAKESPEAR IV","6130613001","422D","ENSINANZA UNIVERSITARIA"]
["6130613001 541A","UDC.2016-PROF.MARTINEZ LOPEZ-CERVANTES E SHAKESPEAR IV","6130613001","541A","INVESTIGACIÓN"]
["6130613002 422D","CONGRESO TENOR 2017,PROF. LÓPEZ PALMA","6130613002","422D","ENSINANZA UNIVERSITARIA"]
["6130613003 541A","AXUDA C.I.04/05/2017,(CONGR.XORN) PROF.LÓPEZ PALMA. THIRD INT CONF..TENOR 2017","6130613003","541A","INVESTIGACIÓN"]
["6130613004 541A","AXUDA C.I.04/05/2017,(CONGR.XORN) PROF.SÁNCHEZ PALOMINO,XVIII CONGR.INT.LITER.ESP","6130613004","541A","INVESTIGACIÓN"]
["6130613005 422D","AX.UDC.XORN.E CICLOS CONF. 2017,PROF.MTNEZ.LÓPEZ,  PORTUGAL NO SEU CONTEXTO","6130613005","422D","ENSINANZA UNIVERSITARIA"]
["6130613006 422D","XVIII CILEC 2017,PROF.LÓPEZ CRIADO CONGR. INTERN. LITERAT. ESP.COMTEMP.","6130613006","422D","ENSINANZA UNIVERSITARIA"]
["6130613007 541A","AXUDA C.I.23/06/15,PROF.LORENZO MODÍA,VISIT.ENCONTR. INTERN.SEMIN.MARY HAYS","6130613007","541A","INVESTIGACIÓN"]
["6130613008 541A","AX.CI.21/04/16 SANCHEZ PALOMINO-XXVII CONGRESO INTERNACIONAL DE LITERATURA ESPAÑOLA E CONTEMPORANEA","6130613008","541A","INVESTIGACIÓN"]
["6130613009 422D","MEC.ACC.COMPL.HUM2007-29217-E/FILO,PROF.LORENZO MODÍA","6130613009","422D","ENSINANZA UNIVERSITARIA"]
["6130613010 541A","AX.XUNTA AO  POSDOUT.GARCÍA SALIDO,CREACIÓN NOVA LIÑA DE INVESTIGACIÓN","6130613010","541A","INVESTIGACIÓN"]
["6130613012 541A","AX.MINECO PARA GARCÍA GZLEZ,MARCOS,JUAN D CIERVA 2016-INCORPOR.CREACIÓN NOVA LIÑA INVEST.","6130613012","541A","INVESTIGACIÓN"]
["6130613026 541A","AXUD.C.I.24/05/12-PROF.PEREZPASCUAL\"COLOQ.50ANIVERSAR.ASOC.INT.HISPANITAS\"","6130613026","541A","INVESTIGACIÓN"]
["6130613028 422D","AXUDA CONGR.13 \"AELFE\" - PROF. ALAN FLOYD-  REF. BBBDWWF","6130613028","422D","ENSINANZA UNIVERSITARIA"]
["6130613050 422D","PROGRAMA O TEU FUTURO EN BOAS MANS. FAC. FILOLOXÍA","6130613050","422D","ENSINANZA UNIVERSITARIA"]
["6130C00918 422D","CICLO CONF. EST.FILOLÓXICOS NA ACTUALIDADE HOMENAXE FDZ.BERNARDEZ RESP: PENA SUEIRO","6130C00918","422D","ENSINANZA UNIVERSITARIA"]
["6130C01018 422D","NEW TRENDS IN ENGLISH STUDIES XIV.NOVAS TENDENCIAS NOS EST.INGLESES XIV.RESP:LORENZO MODIA","6130C01018","422D","ENSINANZA UNIVERSITARIA"]
["6130C01618 422D","XORNADAS INTERNACIONAIS SOBRE A SIT.LING.EN ITALIA. RESP:TUCCI, EMILIANA","6130C01618","422D","ENSINANZA UNIVERSITARIA"]
["6130D170 422D","DEPARTAMENTO DE LETRAS","6130D170","422D","ENSINANZA UNIVERSITARIA"]
["6130D170 541A","DEPARTAMENTO DE LETRAS","6130D170","541A","INVESTIGACIÓN"]
["6130D17001 422D","AXUD.UDC,XORN. E C.CONF. 2017,PROF.LORENZO MODIA,NEW TRENDS IN ENGLISH STUDIES XIII","6130D17001","422D","ENSINANZA UNIVERSITARIA"]
["6130D17002 422D","AXUD.UDC,CICLO CONF.2017,PROF.LÓPEZ FDEZ. LINGUA,LITERATURA A CULT.HISPÁNICA","6130D17002","422D","ENSINANZA UNIVERSITARIA"]
["6130G07979 541A","Lingua e Sociedade da Información (Language in the Information Society) Margarita Alonso Ramos (G00079)","6130G07979","541A","INVESTIGACIÓN"]
["6130G20879 541A","HISPANIA: Grupo de Investigación en Lingua, Literatura e Cultura Hispánica José Ignacio Pérez Pascual (G000208)","6130G20879","541A","INVESTIGACIÓN"]
["6130G23879 541A","Research Group for Multidimensional Corpus-based Studies in English Isabel Moskowich-Spiegel Fandiño (G000238)","6130G23879","541A","INVESTIGACIÓN"]
["6130G27479 541A","Literatura e cultura inglesa moderna e contemporánea Mª Jesús Lorenzo Modia (G000274)","6130G27479","541A","INVESTIGACIÓN"]
["6130G40679 541A","Estudos Románicos e Comparados Mª Dolores Sánchez Palomino (G000406)","6130G40679","541A","INVESTIGACIÓN"]
["6130G49779 541A","Investigación Lingüística e Literaria Galega Laura Tato Fontaíña (G000497)","6130G49779","541A","INVESTIGACIÓN"]
["6130G60479 541A","Culturas e Literaturas dos Estados Unidos de América Begoña Simal González (G000604)","6130G60479","541A","INVESTIGACIÓN"]
["6130G62479 541A","Literatura e tecnoloxías da Comunicación José Mª Paz Gago (G000624)","6130G62479","541A","INVESTIGACIÓN"]
["6130I07779 541A","VELASCO SOUTO, CARLOS FCO. (I00077)","6130I07779","541A","INVESTIGACIÓN"]
["6130I46879 541A","MORALES LÓPEZ, ESPERANZA (I000468)","6130I46879","541A","INVESTIGACIÓN"]
["6130I56079 541A","SANMARTÍN LÓPEZ-IGLESIAS, ROBERTO (I000560)","6130I56079","541A","INVESTIGACIÓN"]
["6130I74179 541A","GONZÁLEZ MUÑOZ, FERNANDO (I000741)","6130I74179","541A","INVESTIGACIÓN"]
["6130I74879 541A","FERRACES RODRÍGUEZ, ARSENIO (I000748)","6130I74879","541A","INVESTIGACIÓN"]
["6130PIDM 422D","FAC.FILOLOXÍA,PROMOCIÓN,INFORMAC. E DIVULGACIÓN DE MESTRADOS","6130PIDM","422D","ENSINANZA UNIVERSITARIA"]
["6130U52879 541A","Linguaxe Natural Helena López Palma (E000528)","6130U52879","541A","INVESTIGACIÓN"]
["6130U68779 541A","Literatura Comparada, Edición de Textos e Tradución Olivia Rodríguez González (E000687)","6130U68779","541A","INVESTIGACIÓN"]
["6140 122B","FACULTADE DE INFORMÁTICA","6140","122B","BIBLIOTECAS"]
["6140 300C","FACULTADE DE INFORMÁTICA","6140","300C","CENTROS"]
["6140 422D","FACULTADE DE INFORMÁTICA","6140","422D","ENSINANZA UNIVERSITARIA"]
["6140 541A","FACULTADE DE INFORMÁTICA","6140","541A","INVESTIGACIÓN"]
["61400508 541A","CENTRO DE INV.EN TECNOLOXÍAS DA INFORMAC.E AS COMUNICAC.(CITIC).F.INFORM.","61400508","541A","INVESTIGACIÓN"]
["61400VFA 300C","FACULTADE DE INFORMÁTICA. VIAXES FORMACIÓN ALUMNADO","61400VFA","300C","CENTROS"]
["61401030 122B","DEPARTAMENTO DE COMPUTACIÓN","61401030","122B","BIBLIOTECAS"]
["61401030 422D","DEPARTAMENTO DE COMPUTACIÓN","61401030","422D","ENSINANZA UNIVERSITARIA"]
["61401030 541A","DEPARTAMENTO DE COMPUTACIÓN","61401030","541A","INVESTIGACIÓN"]
["6140103001 422D","WORKSHOPINT.,PROF.CASTOYARAMOS\"NEWINSIGHTS..OBRASOC.\"LACAIXA\"","6140103001","422D","ENSINANZA UNIVERSITARIA"]
["6140103002 541A","AX.C.I.22/09/14,PROF.GÓMEZ RGUEZ,\" TALLER SIM.ENTR.\"STARTING GRANT 2014-SH\"","6140103002","541A","INVESTIGACIÓN"]
["6140103061 541A","G.I.: LAB. DE INVEST E DESENV.EN INTELIX. ARTIF. G00074COORD. ALONSO BETANZOS","6140103061","541A","INVESTIGACIÓN"]
["6140103062 541A","G.I.: LABORATORIO DE BASES DE DATOS G00089 -COORD. RODRIGUEZ BRISABOA","6140103062","541A","INVESTIGACIÓN"]
["6140103063 541A","G.I.: VISIÓN ARTIFICIAL E RECOÑECEMENTO DE PATRÓNS G000321- COORD. GLONZALEZ PENEDO","6140103063","541A","INVESTIGACIÓN"]
["6140103064 541A","G.I.: MODELS AND APPLICATIONS OF DISTRIBUTED SYSTEMS G000397 COORD. CABRERO SOUTO","6140103064","541A","INVESTIGACIÓN"]
["6140103066 541A","G.I.: INFORMATION RETRIEVAL LAB G000494- BARREIRO GARCÍA","6140103066","541A","INVESTIGACIÓN"]
["61401100 122B","DEPARTAMENTO DE ELECTRÓNICA E SISTEMAS","61401100","122B","BIBLIOTECAS"]
["61401100 422D","DEPARTAMENTO DE ELECTRÓNICA E SISTEMAS","61401100","422D","ENSINANZA UNIVERSITARIA"]
["61401100 541A","DEPARTAMENTO DE ELECTRÓNICA E SISTEMAS","61401100","541A","INVESTIGACIÓN"]
["6140110001 422D","CURSO VERÁN 2014,\"GEOMETRIC METHODS AND..\" PROF.BRÉGAINS RGUEZ.","6140110001","422D","ENSINANZA UNIVERSITARIA"]
["6140110061 541A","G.I.: TEC. ELECTRÓNICA E CC. G000236- COORD. CASTEDO RIBAS","6140110061","541A","INVESTIGACIÓN"]
["6140110062 541A","G.I.: ARQUITECTURA DE COMPUTADORES G000265- COORD. DOALLO BIEMPICA","6140110062","541A","INVESTIGACIÓN"]
["61401180 122B","DEPARTAMENTO DE MATEMÁTICAS","61401180","122B","BIBLIOTECAS"]
["61401180 422D","DEPARTAMENTO DE MATEMÁTICAS","61401180","422D","ENSINANZA UNIVERSITARIA"]
["61401180 541A","DEPARTAMENTO DE MATEMÁTICAS","61401180","541A","INVESTIGACIÓN"]
["6140118001 541A","CONGR.13 \"XI CONG. GALEGO DE ESTA. E INVEST. OP.\" PROF. LOMBARDÍA CORTINA","6140118001","541A","INVESTIGACIÓN"]
["6140118002 541A","AX.C.I.22/09/14,PROF.PRIETO ANEIROS,\"VISITA PROF.AXEL MODAVE\"","6140118002","541A","INVESTIGACIÓN"]
["6140118003 422D","CONGR.2017, IWFOS2017, PROF. ANEIROS PÉREZ ( 4º INT.WORKSHOP ON FUNCT. AND OPERAT. STATISTICS","6140118003","422D","ENSINANZA UNIVERSITARIA"]
["6140118061 541A","G.I.: MOD., OPTIMIZ. INFERENCIA EST. G000199-COORD.CAO ABAD","6140118061","541A","INVESTIGACIÓN"]
["6140118062 541A","G.I.: MOD. MÉTODOS NUM. EN ENX E CC. APLICADAS G000272- VAZQUEZ CENDÓN","6140118062","541A","INVESTIGACIÓN"]
["61401520 122B","DEPARTAMENTO DE TECNOLOXÍAS DA INFORMACIÓN E AS COMUNICACIÓNS","61401520","122B","BIBLIOTECAS"]
["61401520 422D","DEPARTAMENTO DE TECNOLOXÍAS DA INFORMACIÓN E AS COMUNICACIÓNS","61401520","422D","ENSINANZA UNIVERSITARIA"]
["61401520 541A","DEPARTAMENTO DE TECNOLOXÍAS DA INFORMACIÓN E AS COMUNICACIÓNS","61401520","541A","INVESTIGACIÓN"]
["6140152061 541A","G.I.: LABORATORIO DE ENXEÑARÍA DO SOFTWARE G000275- COORD. ARES CASAL","6140152061","541A","INVESTIGACIÓN"]
["6140152062 541A","G.I.: REDES DE NEUR. ARTIF. E SIST. ADAPT. G000282- COORD. PAZOS SIERRA","6140152062","541A","INVESTIGACIÓN"]
["6140152063 541A","G.I.: LAB. INTERDIS.  DE APLIC. DA INTELIX. ARTIF. G000283- COORD. ARCAY VARELA","6140152063","541A","INVESTIGACIÓN"]
["6140152064 541A","G.I.: TELEMÁTICA G000286 -COORD. CARNEIRO DÍAZ","6140152064","541A","INVESTIGACIÓN"]
["6140210194 541A","PROX.PROF.DOALLOBIEMPICA.TIN2004.07797.C02.02,SOLUCIONES....","6140210194","541A","INVESTIGACIÓN"]
["6140210243 541A","PROX.06.MEC.PROF. CAO ABAD, MODELIZACIÓN,CONTRASTES E INFERENCIA NO PARAM","6140210243","541A","INVESTIGACIÓN"]
["6140210269 541A","PROX06..PROF. CABALAR FDEZ., REF:TIN2006-15455-C03-02  \"LOGICAS?\"","6140210269","541A","INVESTIGACIÓN"]
["6140210270 541A","PROX.06,PROF.RGUEZ.BRISABOA, REF:TIN2006-15071-C03-03 \" SIST.CODIGO","6140210270","541A","INVESTIGACIÓN"]
["6140210292 541A","PROX.07.PROF.DOALLO BIEMPICA,REF:TIN2007-67537-C03-02,\"SOPORTE HARDWARE¿.","6140210292","541A","INVESTIGACIÓN"]
["6140210293 541A","PROX.07,PROF.VAZQUEZ CENDÓN, REF:MTM2007-67596-C02-01, \" MET...","6140210293","541A","INVESTIGACIÓN"]
["6140210294 541A","PROX.07,PROF.SANTOSREYES,REF:TIN2007-64330,\"COMBINAC.TÉCNICASAPREND","6140210294","541A","INVESTIGACIÓN"]
["6140210304 541A","PROX.07 MEC PROF.ALONSO PARDO,REF:HUM2007-66607-C04-03","6140210304","541A","INVESTIGACIÓN"]
["6140210333 541A","PROX.08PROF.CAOABAD,REF:MTM2008-00166,MºCIENC.INN","6140210333","541A","INVESTIGACIÓN"]
["6140210334 541A","PROX.08PROF.BARREIROGARCÍA,REF:TIN2008-06566-C04-04,MºCIEN","6140210334","541A","INVESTIGACIÓN"]
["6140210335 541A","PROX. 08 PROF.ROMERO CARDALDA, REF:TIN2008-06562, Mº CIENC.INN. \" APLIC. METRICAS","6140210335","541A","INVESTIGACIÓN"]
["6140210341 541A","PROX.08,PROF.GARCÍAJURADO,REF:ECO2008-03484.C02-02.MºCIE","6140210341","541A","INVESTIGACIÓN"]
["6140210345 541A","PROX.09.PROF.GUIJARROBERDIÑAS,REF:TIN2009-10748,MICIIN,NOVOSMÉTODOSCOMPUT.","6140210345","541A","INVESTIGACIÓN"]
["6140210348 541A","PROX.09.PROF.PORTOPAZOS-REF:TIN2009-07707-MICIIN\"PROC.INF.MED.REDESNEUROGLIARTIF\"","6140210348","541A","INVESTIGACIÓN"]
["6140210370 541A","PROX.09.PROF.CARNEIRODÍAZ,REF:TIN2009-14203,MICIIN,","6140210370","541A","INVESTIGACIÓN"]
["6140210371 541A","PROX.09.PROF.CABALARFDEZ.,REF:TIN2009-14562-C05-04,MICIIN,\"FEAST","6140210371","541A","INVESTIGACIÓN"]
["6140210374 541A","PROX.09.PROF.RODRIGUEZBRISABOAMICIN-REF.TIN2009-14560-C03-02","6140210374","541A","INVESTIGACIÓN"]
["6140210377 541A","PROX.10.MICIIN-PROF.VAZQUEZCENDÓN-REF.MTM2010-21135-CO2.01-\"MOD.ANL.MATEM¿.","6140210377","541A","INVESTIGACIÓN"]
["6140210378 541A","PROX.10.MICNIN-PROF.PARAMAGABÍA-REF.TIN2010-21246-CO2.01-\"DES.SERV.ESP¿..","6140210378","541A","INVESTIGACIÓN"]
["6140210397 541A","PROX.10.MICIIN-PROF.CASTEDORIBAS-REF.TEC2010-19545-C04-01\"ESTRAT.COOP.YCOGNIT.\"","6140210397","541A","INVESTIGACIÓN"]
["6140210398 541A","PROX.10.MICIIN-PROF.ALONSOPARDO-REF.TIN2010-18552-C03-02\"ANAL.DETEXTOS\"","6140210398","541A","INVESTIGACIÓN"]
["6140210399 541A","PROX.10.MICIIN-PROF.CABRERO SOUTO (ANTES GULIAS).-REF.TIN2010-20959\"INIC.PARALAIMPLT.EINTRG...\"","6140210399","541A","INVESTIGACIÓN"]
["6140210400 541A","PROX.10.MICIIN-INNPACTO-PROF.ESCUDEROCASCÓNCREATIVIR","6140210400","541A","INVESTIGACIÓN"]
["6140210407 541A","PROX.10.MICIIN-PROF.DOALLOBIEMPICA.TIN2010-16735.\"ARQUIT.SIST.HERRAMIENTAS","6140210407","541A","INVESTIGACIÓN"]
["6140210437 541A","PROX.11.MICIIN-PROF.CAOABAD-MTM2011-22392","6140210437","541A","INVESTIGACIÓN"]
["6140210438 541A","PROX.11.MICIIN-PROF.GARCÍAJURADO-MTM2011-27731-C03-01","6140210438","541A","INVESTIGACIÓN"]
["6140210440 541A","PROX.11. MICIIN-PROF. GLEZ.PENEDO -TIN2011-25476","6140210440","541A","INVESTIGACIÓN"]
["6140210441 541A","PROX.11.MICIIN-PROF.SANTOSREYES-TIN2011-27294","6140210441","541A","INVESTIGACIÓN"]
["6140210471 541A","MINECO.12-REF.TIN2012-33867- PROF. BARREIRO GARCÍA \" RECUP. DA INFORMACIÓN E ANAL. \"","6140210471","541A","INVESTIGACIÓN"]
["6140210472 541A","MINECO.12-REF.TIN2012-37954- PROF. ALONSO BETANZOS \"ALGORITMOS DE APREND. COMPUT. \"","6140210472","541A","INVESTIGACIÓN"]
["6140210489 541A","MINECO 13-REF.TEC2013-47141-C4-1-R-PROF.CASTEDO RIBAS","6140210489","541A","INVESTIGACIÓN"]
["6140210490 541A","MINECO 13-REF.TIN2013-40981-R-PROF.SANTOS REYES.","6140210490","541A","INVESTIGACIÓN"]
["6140210491 541A","MINECO 13-REF.TIN2013-46238-C4-3-R-PROF.RGUEZ.BRISABOA","6140210491","541A","INVESTIGACIÓN"]
["6140210492 541A","MINECO 13-REF.TIN2013-46801-C4-3-R-PROF.RGUEZ.LUACES","6140210492","541A","INVESTIGACIÓN"]
["6140210507 541A","MINECO 14, REF.MTM2013-47800-P, PROF.VÁZQUEZ CENDÓN,FEDER \"MODELADO MATEMÁTIC","6140210507","541A","INVESTIGACIÓN"]
["6140210508 541A","MINECO 14, REF.TIN2013-40686-P, PROF.MORET BONILLO,FEDER \"ANÁL.INT.SINAIS NEUROLÓXICA","6140210508","541A","INVESTIGACIÓN"]
["6140210509 541A","MINECO 14, REF.TIN2013-42148-P, PROF.DOALLO BIEMPICA,FEDER \"NOVOS DESAFIOS EN COMPUTACIÓN","6140210509","541A","INVESTIGACIÓN"]
["6140210510 541A","MINECO 14, REF.TIN2013-42149-P, PROF.CABALAR FDEZ.,FEDER \"MERLOT :","6140210510","541A","INVESTIGACIÓN"]
["6140210511 541A","MINECO 14, REF.TIN2013-47090-P, PROF.FARÍÑA MTNEZ.,FEDER \" VOX POPULI: ANÁLISE","6140210511","541A","INVESTIGACIÓN"]
["6140210512 541A","MINECO 14,REF:TEC2014-54968-REDT,PROF.CASTEDO RIBAS,REDES DE EXCELENCIA,\"RED INNOV.SECTOR DEFENSA","6140210512","541A","INVESTIGACIÓN"]
["6140210520 541A","MINECO 15,REF;FFI2014-51978-C2-2-R,PROF.GÓMEZ RGUEZ.MOD.1:RETOS INVEST.TECNS.DA LINGUA ..","6140210520","541A","INVESTIGACIÓN"]
["6140210521 541A","MINECO 15,REF;MTM2014-52876-R,FEDER.PROF.CAO ABAD,MOD.1:RETOS INVEST.INFERENCIA ESTATÍST","6140210521","541A","INVESTIGACIÓN"]
["6140210528 541A","MINECO 15,REF;MTM2014-53395-C3-1-P,PROF.GARCÍA JURADO ,PROGR?EXCELENCIA.MOD.1.PROX.I+D.","6140210528","541A","INVESTIGACIÓN"]
["6140210533 541A","MINECO 16,REF:TIN2015-65069-C2-1-R,PROF.ALONSO BETANZOS,PROGR.RETOS DA SOCIEDADE","6140210533","541A","INVESTIGACIÓN"]
["6140210538 541A","MINECO 16,REF:TIN2015-64282-R, PROF.BARREIRO GARCÍA,PROGR.RETOS DA SOCIEDADE","6140210538","541A","INVESTIGACIÓN"]
["6140210544 541A","MINECO 16,REF:TIN2015-70648-P, PROF.CARNEIRO DÍAZ,CITIC, PROGR.EXCELENCIA","6140210544","541A","INVESTIGACIÓN"]
["6140210552 541A","MINECO16,REF:TIN2015-69951-R, PROF FARIÑA MTNEZ. PROGR.RETOS DA SOCIEDADE","6140210552","541A","INVESTIGACIÓN"]
["6140210554 541A","MINECO16,REF:DPI2015-69948-R,PROF. GZLEZ,PENEDO CITIC, PROGR. RETOS DA SOCIEDADE","6140210554","541A","INVESTIGACIÓN"]
["6140210561 541A","MINECO 17,REF:RTC2016-5143-1,PROF.ORTEGA HORTAS, PROGR. RETOS-COLABORACIÓN","6140210561","541A","INVESTIGACIÓN"]
["6140210567 541A","MINECO 17,REF:TIN2016-75845-P, PROF. DOALLO BIEMPICA, PROGR. EXCELENCIA","6140210567","541A","INVESTIGACIÓN"]
["6140210573 541A","MINECO 17, REF:ESP2016-80079-C2-2-R,PROF.DAFONTE VÁZQUEZ, PROGR:RETOS DA SOCIEDADE","6140210573","541A","INVESTIGACIÓN"]
["6140210582 541A","MINECO 17, REF:TEC2016-75067-C4-1-R.PROF. CASTEDO RIBAS, PROGR. RETOS DA SOCIEDADE","6140210582","541A","INVESTIGACIÓN"]
["6140210597 541A","MINECO 17,REF:TIN2016-78011-C4-1-R,PROF.RGUEZ.BRISABOA, PROGR,RETOS DA SOCIEDADE","6140210597","541A","INVESTIGACIÓN"]
["6140210598 541A","MINECO 17,REF:TIN2016-77158-C4-3-R,PROF.RGUEZ.LUACES,PROGR.RETOS DA SOCIEDADE","6140210598","541A","INVESTIGACIÓN"]
["6140210601 541A","MINECO 17,REF.:MTM2016-76497-R,PROF. VÁZQUEZ CENDÓN. PROGR. RETOS DA SOCIEDADE","6140210601","541A","INVESTIGACIÓN"]
["6140210603 541A","MEIC  17, REF:TEC2016-82030-REDT.PROF. CASTEDO RIBAS, PROGR. REDES DE EXCELENCIA","6140210603","541A","INVESTIGACIÓN"]
["6140210606 541A","MEIC 18.REF:MTM2017-82724-R,PROF.:CAO ABAD,PROGR.RETOS SOCIEDADE","6140210606","541A","INVESTIGACIÓN"]
["6140210607 541A","MEIC 18.REF:MTM2017-87197-C3-1-P,PROF.:GARCÍA JURADO,PROGR.EXCELENCIA","6140210607","541A","INVESTIGACIÓN"]
["6140210612 541A","MEIC 18,REF:TIN2017-85160-C2-1-R,PROF.GÓMEZ RGUEZ.PROGR.RETOS","6140210612","541A","INVESTIGACIÓN"]
["6140210616 541A","MEIC 18,REF:TIN2017-84453-P,PROF.CABALAR FDEZ. PROGR. EXCELENCIA","6140210616","541A","INVESTIGACIÓN"]
["6140220014 541A","PROX.MºDEINDUSTRIA2009-PROF.PAZOSSIERRA-\"TSI-020110-2009-53\"-PHR2.0:REG.DEPERS","6140220014","541A","INVESTIGACIÓN"]
["6140230016 541A","PROX.07I.U.SALUDCARLOSIII.PAZOSSIERRAE.:RD07/0067/0005REDESTEM.INV.COOP","6140230016","541A","INVESTIGACIÓN"]
["6140230018 541A","PROX.08,IU.SALUDCARLOSIII,PROF.GLEZ.PENEDO,EXPTE:PI08/90420","6140230018","541A","INVESTIGACIÓN"]
["6140230022 541A","UNIV.POT.CATAL.PROX.PROF.CASTEDORIBAS\"CONSOLIDER-INGENIO2010,MºCI.INN","6140230022","541A","INVESTIGACIÓN"]
["6140230026 541A","PROX.11-IU.S.CARLOSIII.BARREIRARGUEZANTESPENASCENTENO","6140230026","541A","INVESTIGACIÓN"]
["6140240005 541A","PROX.XUNTA,AX.C.SINGUL.INV.GAL.CITIC,EXPTE:ED431G/01.80% FEDER PO 2014/2020.IPS:PENEDO/GUIJARRO","6140240005","541A","INVESTIGACIÓN"]
["6140240508 541A","PROX.XUNTA,AX.C.SINGUL.INV.GAL.CITIC,EXPTE:ED431G/01.80% FEDER PO 2014/2020.IPS:PENEDO/GUIJARRO","6140240508","541A","INVESTIGACIÓN"]
["6140242017 541A","XUNTA10.PROF.MARTINSANTAMARIA-C.EC.EIN.-PROX.INVEST.BÁSICAREF:10PXIB105180PR","6140242017","541A","INVESTIGACIÓN"]
["6140242040 541A","XUNTA10.PROF.GONZALEZPENEDO.PROGR.SECT.REF:10CSA918054PR","6140242040","541A","INVESTIGACIÓN"]
["6140242049 541A","XUNTA10.PROF.CAOABAD-PRG.SECT.REF:10DPI105003PR","6140242049","541A","INVESTIGACIÓN"]
["6140242051 541A","XUNTA10.PROF.DAPENAJANEIRO-PRG.SECT.REF:10TIC105003PR","6140242051","541A","INVESTIGACIÓN"]
["6140242052 541A","XUNTA10.PROF.ROMEROCARDALDA-PRG.SECT.REF:10TIC105008PR","6140242052","541A","INVESTIGACIÓN"]
["6140242053 541A","XUNTA10.PROF.DORADODELACALLE-PRG.SECT.REF:10SIN105004PR","6140242053","541A","INVESTIGACIÓN"]
["6140242101 541A","XUNTA2011,PROF.ALONSOBETANZOS,MOD.GRUP.REF.COMPETIT","6140242101","541A","INVESTIGACIÓN"]
["6140242105 541A","XUNTA2011,PROF.PAZOSSIERRA,MODAL.GRUP.REFER.COMPETITIVA","6140242105","541A","INVESTIGACIÓN"]
["6140242107 541A","XUNTA2011,PROF.VÁZQUEZCENDÓN,MODAL.GRUP.REFER.COMPETIT","6140242107","541A","INVESTIGACIÓN"]
["6140242202 541A","XUNTA12.C.EDUC.PROF.PAZOSSIERRA-MOD.REDES.REF:CN2012/217","6140242202","541A","INVESTIGACIÓN"]
["6140242210 541A","XUNTA12.C.ED.PROF.GUIJARRO BERDIÑAS-AGRUP.ESTRATX.CITICREF:CN2012/211","6140242210","541A","INVESTIGACIÓN"]
["6140242211 541A","XUNTA12.C.ED.PROF. VILAR FDEZ., J.M.GRUP REF.C.REF:CN2012/130","6140242211","541A","INVESTIGACIÓN"]
["6140242214 541A","XUNTA12.C.ED.PROF.CASTEDORIBAS-G.REF.COMPET.REF:CN2012/287","6140242214","541A","INVESTIGACIÓN"]
["6140242301 541A","XUNTA 13,C.ED.PROF.COSTOYA RAMOS..Nº:EM2013/016. INV.EMERXENTE","6140242301","541A","INVESTIGACIÓN"]
["6140242304 541A","XUNTA 13 C.ED.PROF.PRIETO ANEIROS.Nº:EM2013/052 INV.EMERXENTE","6140242304","541A","INVESTIGACIÓN"]
["6140242308 541A","XUNTA 13 C.ED.PROF.DOALLO BIEMPICA.Nº:GRC2013-055,GR.REF.COMPET-","6140242308","541A","INVESTIGACIÓN"]
["6140242313 541A","XUNTA 13 C.ED.PROF. RGUEZ. BRISABOA.Nº:GRC2013-053,GR.REF.COMPET","6140242313","541A","INVESTIGACIÓN"]
["6140242315 541A","XUNTA 13 C.ED.PROF.BARREIRO GARCÍA.Nº:GPC2013-070,GR.POT.CRECEM.","6140242315","541A","INVESTIGACIÓN"]
["6140242318 541A","XUNTA 13 C.ED.PROF.GZLEZ PENEDO.Nº:GPC2013-065,GR.POT.CRECE","6140242318","541A","INVESTIGACIÓN"]
["6140242406 541A","XUNTA 14 C.CULT.EDUC.PROF.ALONSO BETANZOS Nº GRC2014/035,GRUP.REFE.COMPET.","6140242406","541A","INVESTIGACIÓN"]
["6140242408 541A","XUNTA 14 C.CULT.,EDUC.PROF.CABRERO SOUTO Nº GRC2014/038,GRUP.REFER. COMP","6140242408","541A","INVESTIGACIÓN"]
["6140242412 541A","XUNTA 14 C.CULT.,EDUC.PROF. PAZOS SIERRA, Nº GRC2014/049,GRUP.REFER. COMP","6140242412","541A","INVESTIGACIÓN"]
["6140242415 541A","XUNTA 14 C.CULT.,EDUC.PROF.VÁZQUEZ CENDÓN Nº GRC2014/044,GRUP.REF.COMP","6140242415","541A","INVESTIGACIÓN"]
["6140242416 541A","XUNTA 14 C.CULT.,EDUC.PROF.CARNEIRO DÍAZ Nº GPC2014/045,GRUP.POTENC.CR","6140242416","541A","INVESTIGACIÓN"]
["6140242422 541A","XUNTA 14 C.CULT.,EDUC.PROF.DAPENA JANEIRO Nº R2014/037,MODAL.REDES","6140242422","541A","INVESTIGACIÓN"]
["6140242425 541A","XUNTA 14 C.CULT.,EDUC.PROF.PAZOS SIERRA Nº R2014/039,MODAL.REDES","6140242425","541A","INVESTIGACIÓN"]
["6140242428 541A","XUNTA 14 C.CULT.,EDUC.PROF.TOURIÑO DOMÍNGUEZ Nº R2014/041,MODAL.REDES","6140242428","541A","INVESTIGACIÓN"]
["6140242602 541A","XUNTA 16,C.CULT.EDU.e O.U.,PROF.CASTEDO RIBAS,Nº EXP.:ED431C 2016-045,GRUPOS REFERENC.COMPET.","6140242602","541A","INVESTIGACIÓN"]
["6140242603 541A","XUNTA 16,C.CULT.EDU.e O.U.,PROF.GZLEZ.PENEDO,Nº EXP.:ED431C 2016-047,GRUPOS REFERENC.COMPET.","6140242603","541A","INVESTIGACIÓN"]
["6140242608 541A","XUNTA 16,C.CULT.EDU. E OU,PROF.TOURIÑO DOMINGUEZ,Nº EXP.ED341D R2016/045,PROGR.: REDES","6140242608","541A","INVESTIGACIÓN"]
["6140242609 541A","XUNTA 16C.CULT.EDU. E OU,PROF. CASTEDO RIBAS,Nº EXP.ED341D R2016/012,PROGR.: REDES","6140242609","541A","INVESTIGACIÓN"]
["6140242611 541A","XUNTA 16,FEADER 2016/50B,PROF.DOALLO B.GRUPO OPERATIVO MARIÑAS BETANZOS,PROC.MR331B","6140242611","541A","INVESTIGACIÓN"]
["6140242612 541A","XUNTA 16,C.CULT.EDU E OU,PROF.BARREIRO GARCÍA,Nº EXP.ED431B 2016/035, GR.POTENC.CRECEM.","6140242612","541A","INVESTIGACIÓN"]
["6140242613 541A","XUNTA 16,C.CULT.EDU..,PROF.CAO ABAD,Nº EXP.:ED431C 2016-015,GRC","6140242613","541A","INVESTIGACIÓN"]
["6140242703 541A","XUNTA 17-C.EDU E C.ECO- PROF. TOURIÑO DOMÍNGUEZ -ED431C 2017/04","6140242703","541A","INVESTIGACIÓN"]
["6140242708 541A","XUNTA 17-C.EDU E C.ECO- PROF. RODRIGUEZ BRISABOA -ED431C 2017/58","6140242708","541A","INVESTIGACIÓN"]
["6140242720 541A","XUNTA 17-C.EDU E C.ECO- PROF. PAZOS SIERRA -ED431D 2017/23","6140242720","541A","INVESTIGACIÓN"]
["6140270002 541A","PROX.06MAAT.PROF.GULIASF.REF:FIT-350301-2006-14(MºIND.)\"HIERBAIII\"","6140270002","541A","INVESTIGACIÓN"]
["6140270005 541A","PROX.09,LAMBASTREAMS.L.PROF.GULIASFDEZ.MºINDUSTRIA\"DHHDTSI-020501-2008-147","6140270005","541A","INVESTIGACIÓN"]
["6140270008 541A","PROX.10-BLUSENSTEC-PROF.GULIASFDEZ.REF.TSI-020100-2010-449\"DISP.DEINTERNET","6140270008","541A","INVESTIGACIÓN"]
["6140270009 541A","PROX.11.ALCATEL.PR.CASTEDORIBAS.TECRAILPT-2011-1034-370000.MCIIN","6140270009","541A","INVESTIGACIÓN"]
["6140270017 541A","PROX.14 INXENIA DESARR.TECNOL.S.L.(ART.83 LOU) PROF.GCÍA.JURADO \"SIGSO","6140270017","541A","INVESTIGACIÓN"]
["6140270018 541A","PROX.14,TECNOLOGÍA SIAM ,S.L.(ART.83 LOU)PROF.CABRERO SOUTO,E-TRINING,CPEME","6140270018","541A","INVESTIGACIÓN"]
["6140270019 541A","PROX.14 OSMLAB (ART.83 LOU) PROF.CABRERO SOUTO,E-TRAINING ,C-PEME","6140270019","541A","INVESTIGACIÓN"]
["6140270022 541A","PROX.14 A0 MAYORES SEV. SOC. SL.(ART.83 LOU) PR.RGUEZ BRISABOA.CONEC.PEME","6140270022","541A","INVESTIGACIÓN"]
["6140270023 541A","PROX.14,ENXENIO S.L.(ART.83 LOU)PROF.RGUEZ.BRISABOA.PROGR.CONECTA PEME","6140270023","541A","INVESTIGACIÓN"]
["6140270028 541A","PROX.14,GRUPO ON SEGURIDAD S.L.(ART.83 LOU)PROF.RGUEZ.BRISABOA.PR.CONECTA PEME.RESID.EN CASA","6140270028","541A","INVESTIGACIÓN"]
["6140270029 541A","PROX.14,ALALÁS A.L.(ART.83 LOU)PROF.RGUEZ.BRISABOA.PROGR.CONECTA PEME.RESIDENCIA EN CASA","6140270029","541A","INVESTIGACIÓN"]
["6140270030 541A","PROX.14,NOVAWARE S.L.(ART.83 LOU)PROF.SAAVEDRA PLACES.PROGR.CONECTA PEME.LABOR.ANA.GENÉTICO","6140270030","541A","INVESTIGACIÓN"]
["6140280010 541A","PROX.U.E.01PROF.GULIASFDEZ.\"OPTIBAND-OPTIM-OFBAND.FORIPTV(FP7-ICT-2009-4)","6140280010","541A","INVESTIGACIÓN"]
["6140280037 541A","PROX.UE.PROF.PANBERMÚDEZ,\"SCIIMS\",COORD.BAESYSTEMS,7ºPROGR.MARCO","6140280037","541A","INVESTIGACIÓN"]
["6140280064 541A","UE.12.\"PROWESS\" UNIV.SHEFFIELD- PROF.CASTRO SOUTO.Nº 317820,FP7-ICT-2011-8,","6140280064","541A","INVESTIGACIÓN"]
["6140280074 541A","UE15.WAKEUPCALL,PROF.VÁZQUEZ CENDON, Nº:643045-H2020-MSCA-ITN-EID -2014","6140280074","541A","INVESTIGACIÓN"]
["6140280077 541A","UE15,FORTISSIMO,PROF.FRAGUELA RGUEZ.,Nº:FP7-ICT-609029,COORD.UNIV.EDIMBURGO.FP7-2013-NMP-ICT?","6140280077","541A","INVESTIGACIÓN"]
["6140280079 541A","USA 2015,NICOP,PROF,CASTEDO RIBAS,ONRG, N62909-15-1-2014","6140280079","541A","INVESTIGACIÓN"]
["6140280082 541A","UE 15,\"BIRDS\",Nº:690941,PROF LADRA GZLEZ.COORD.UDC,PROGR.MSCA,H2020, TIPO PROX.:RISE","6140280082","541A","INVESTIGACIÓN"]
["6140280087 541A","PROX.UE,FASTPARSE,PROF.GÓMEZ RGUEZ.H2020-ERC-2016-STG, Nº:714150.","6140280087","541A","INVESTIGACIÓN"]
["6140280088 541A","PROX.UE HOLACLOUD,PROF.PARAPAR LÓPEZ ,LINKNOVATE SCIENCE S.L.H2020-ICT-07-2014","6140280088","541A","INVESTIGACIÓN"]
["6140290004 541A","PROX.2011.FUNDACIÓNBARRIÉ.PROF.DOALLOBIEMPICA.REF:HPC4HPT","6140290004","541A","INVESTIGACIÓN"]
["6140420003 422D","CONV.08MºDEFENSA,PROF.PAZOSSIERRA,APOIOSDOCENTESESCUELAESP.A,ESCAÑO","6140420003","422D","ENSINANZA UNIVERSITARIA"]
["6140430010 541A","CONTR 2014 ITMATI(INST.TEC.MATEMÁTICA INDUSTR.)CONSULT.ESTATÍSTICA.PROFS.FAC.INFORM.","6140430010","541A","INVESTIGACIÓN"]
["6140430013 541A","CONTR 2014 ITMATI.PROF.PRIETO ANEIROS.","6140430013","541A","INVESTIGACIÓN"]
["6140430015 422D","CONTR.2017.UNIV.VIGO, PROF.TOURIÑO DOMÍNGUEZ(ART.83LOU)CURSO FORMAC.ESPEC.","6140430015","422D","ENSINANZA UNIVERSITARIA"]
["6140430018 541A","CONV.2017,UNIV.SANTIAGO,PROF.VÁZQUEZ CENDÓN,ACT.REDE INV. \"REDES 2016 GI-1563 TMATI\"","6140430018","541A","INVESTIGACIÓN"]
["6140430041 541A","CONTR.13- UNIV. DE CÓRDOBA -PROF. SAAVEDRA PLACES (ART. 83 LOU)","6140430041","541A","INVESTIGACIÓN"]
["6140440015 541A","CONV.15 OPORTUNIUS,PROF.GOMEZ RGUEZ.,XUNTA  GAIN,C.CUL.COAS 3 UN.GAL.FOM.ACT.INVEST.","6140440015","541A","INVESTIGACIÓN"]
["6140440033 422D","CONV.13 CONV.XUNTA RAMON PIÑEIRO(GRAÑA,ALONSO)F.INFORMATICA","6140440033","422D","ENSINANZA UNIVERSITARIA"]
["6140440061 422D","CONV.07,C.INN.CESGAE3UNIV.GAL.PROX.MATHEMATICA.CAOABAD.VAZQUEZCENDON","6140440061","422D","ENSINANZA UNIVERSITARIA"]
["6140440066 422D","PROF.RGUEZ.BRISABOA\"WEBCIDADÁCONS.VIVENDA\"XUNTA.CONTR","6140440066","422D","ENSINANZA UNIVERSITARIA"]
["6140470002 422D","CONV.UDC.IMEDIR.06.PAZOSSIERRA.SIST.INF.XEST.HISTÓR.C","6140470002","422D","ENSINANZA UNIVERSITARIA"]
["6140470010 422D","CONV.23.12.05.ENXENIO, S.L..RODRÍGUEZ BRISABOA.ACCIÓNS I.D.i","6140470010","422D","ENSINANZA UNIVERSITARIA"]
["6140470025 422D","CONTR.2016-ROSON ESTUDO FISCAL S.L.PROF.CAO ABAD (ART.83 LOU),PREST.SERV.TÉCN.","6140470025","422D","ENSINANZA UNIVERSITARIA"]
["6140470028 422D","CONTR.17,TACTICS MEDICINA Y DESARROLLO S.L.,PROF.CAO ABAD (ART.83LOU)","6140470028","422D","ENSINANZA UNIVERSITARIA"]
["6140470030 422","CONTR.2017,INDITEX,PROF.CACHEDA SEIJO(ART.83.LOU)ANÁLISE TÉC.","6140470030","422","(SIN DESCRIPCIÓN)"]
["6140470030 422D","CONTR.2017,INDITEX,PROF.CACHEDA SEIJO(ART.83.LOU)ANÁLISE TÉC.","6140470030","422D","ENSINANZA UNIVERSITARIA"]
["6140470033 422D","CONTR.2017,BSH ELECTRODOMÉSTICOS SA, PROF.ARREGUI ÁLVAREZ. PREST.SERV.(ART.83 LOU)","6140470033","422D","ENSINANZA UNIVERSITARIA"]
["6140470068 422D","CONV.20/04/11,ENXENIOS.L.PROF.RGUEZ.BRISABOA,PROX.INV.SERV.PAVIMENTOI","6140470068","422D","ENSINANZA UNIVERSITARIA"]
["6140470071 541A","CONT.2012.ALDABAS.L.,PROF.PAZOSSIERRA,PROX.\"FUTURE-HDA\",CONCEDIDOCDTI","6140470071","541A","INVESTIGACIÓN"]
["6140470072 541A","CONT.12.SANAT.MODELOS.L.PROF.PAZOSSIERRA,PROX.\"FUTURE-HDA.CDTI","6140470072","541A","INVESTIGACIÓN"]
["6140470073 541A","CONV.16.01.12-ENXENIOSL.PROF.SAAVEDRAPLACES-SOLUC.INTEGRALCREAC.VISUALIZAC.","6140470073","541A","INVESTIGACIÓN"]
["6140470076 422D","CONTR.12GABINETETECNICOCOMERICIALDESEG.PROF.SAAVEDRAPLACES","6140470076","422D","ENSINANZA UNIVERSITARIA"]
["6140470085 422D","CONTR.13 DENODO TECHNOLOGIES- PROF. PAN BERMUDEZ (ART. 83 LOU)","6140470085","422D","ENSINANZA UNIVERSITARIA"]
["6140470106 541A","CONVENIO 2018 UDC-EVERIS PARA \"CÁTEDRA EVERIS DE TRANASFORMACIÓN DIXITAL\"","6140470106","541A","INVESTIGACIÓN"]
["6140490014 422D","CONTR.15,FUNDACIÓN P.GAL.CESGA,PROF.TOURIÑO DOMÍNGUEZ.SERV.DOCENT.CURSO FORM (ART. 83,LOU)","6140490014","422D","ENSINANZA UNIVERSITARIA"]
["6140506120 422D","ACC.COMPL.RGUEZ.LUACES.TIN2010-12378-E.MICIN\"XORN.WEBESOA\"","6140506120","422D","ENSINANZA UNIVERSITARIA"]
["6140614000 300C","FIRST LEGO LEAGUE. FAC. INFORMÁTICA","6140614000","300C","CENTROS"]
["6140614001 541A","ESCOLA INTERNACIONAL DE DOUTORAMENTO","6140614001","541A","INVESTIGACIÓN"]
["6140614002 541A","AXUDA C.I.04/05/2017(CONGR.XORN) PROF.CAO ABAD ,IWFOS","6140614002","541A","INVESTIGACIÓN"]
["6140614003 541A","AXUDA C.I.04/05/2017, PROF.DOALLO BIEMPICA,VISITA DR. POUCHES PROGRAM.","6140614003","541A","INVESTIGACIÓN"]
["6140614004 541A","AXUDA C.I.04/05/2017,(ENCONTRO) PROF.PAZOS SIERRA WORKSHOP INT.IMAX.MÉDICA?.","6140614004","541A","INVESTIGACIÓN"]
["6140614005 541A","ACCIÓNCOMPL.10PROF.VILARFERNÁNDEZ-REF:MTM2010-09870-E","6140614005","541A","INVESTIGACIÓN"]
["6140614006 422D","WORKSHOP. 14 - PROF. CASTEDO RIBAS \"OFFICE OF NAVAL RESEARCH GLOBAL\"","6140614006","422D","ENSINANZA UNIVERSITARIA"]
["6140614007 422D","CURSO 15 MÉTODOS NUMÉRICOS EN FINANZAS.PROF. VÁZQUEZ CENDÓN.UNIV.COLOMBIA","6140614007","422D","ENSINANZA UNIVERSITARIA"]
["6140614008 422D","CURSO SSQM2016, PROF.VÁZQUEZ CENDÓN\"SUMMER SCHOOL ON QUANTITATIVE METH","6140614008","422D","ENSINANZA UNIVERSITARIA"]
["6140614009 541A","AX.C.I.26/10/16,PROF.DOALLO BIEMPICA.VISITA DR.POUCHET","6140614009","541A","INVESTIGACIÓN"]
["6140614010 541A","ACCIÓNCOMPL.10PROF.PANBERMÚDEZ-REF:TIN2010-09988-E","6140614010","541A","INVESTIGACIÓN"]
["6140614011 541A","AXUDA C.I.04/05/2017.PROGR.H2020,PROF.PAZOS SIERRA \"REUN?.PROX.ePoWel\"","6140614011","541A","INVESTIGACIÓN"]
["6140614012 541A","AXUDA C.I.04/05/2017,(VIS.ENCONT.)PROF.VILAR FDEZ.XII CONGR GAL ESTATÍSTICA E INV?","6140614012","541A","INVESTIGACIÓN"]
["6140614014 541A","ACCIÓNCOMPL.HISPANO-FRANCESA.09-PROF.VÁZQUEZCENDÓNREF:MTM2009-08328-E","6140614014","541A","INVESTIGACIÓN"]
["6140614016 541A","ACC.COMPL.10MICCINPROF.DORADODELACALLE-REF:SAF2010-08947-E-BIOMARC.","6140614016","541A","INVESTIGACIÓN"]
["6140614023 541A","ACC.COMPL.2011,MINECO,PROF.CABRERO SOUTO.TIN2011-15234-E","6140614023","541A","INVESTIGACIÓN"]
["6140614024 422D","CONGR.13 - PROF. RODRIGUEZ BRISABOA- SISAP","6140614024","422D","ENSINANZA UNIVERSITARIA"]
["6140614050 422D","PROGRAMA O TEU FUTURO EN BOAS MANS. FAC. INFORMÁTICA","6140614050","422D","ENSINANZA UNIVERSITARIA"]
["6140821000 422D","AULADEINFORMÁTICACORUÑAREUNIONS,CONFERENCIASECURSOS.","6140821000","422D","ENSINANZA UNIVERSITARIA"]
["61409905 422D","CONV.XUNTA.ESCOLASDEDOUTORAMENTO-DIR.DOALLOBIEMPICA","61409905","422D","ENSINANZA UNIVERSITARIA"]
["6140ACDO 300C","FACULTADE DE INFORMÁTICA. ACTIVIDADES CULTURAIS, DEPORTIVAS E OUTRAS","6140ACDO","300C","CENTROS"]
["6140C02018 422D","ORGANIZACIÓN DE TORNEOS DE XADREZ E ESPORTS RESP: ANDIÓN FERNÁNDEZ","6140C02018","422D","ENSINANZA UNIVERSITARIA"]
["6140D103 422D","DEPARTAMENTO DE COMPUTACIÓN","6140D103","422D","ENSINANZA UNIVERSITARIA"]
["6140D103 541A","DEPARTAMENTO DE COMPUTACIÓN","6140D103","541A","INVESTIGACIÓN"]
["6140D118 422D","DEPARTAMENTO DE MATEMÁTICAS","6140D118","422D","ENSINANZA UNIVERSITARIA"]
["6140D118 541A","DEPARTAMENTO DE MATEMÁTICAS","6140D118","541A","INVESTIGACIÓN"]
["6140D166 422D","DEPARTAMENTO DE ENXEÑARÍA DE COMPUTADORES","6140D166","422D","ENSINANZA UNIVERSITARIA"]
["6140D166 541A","DEPARTAMENTO DE ENXEÑARÍA DE COMPUTADORES","6140D166","541A","INVESTIGACIÓN"]
["6140G07479 541A","Laboratorio de I+D en Intelixencia Artificial Amparo Alonso Betanzos (G00074)","6140G07479","541A","INVESTIGACIÓN"]
["6140G08979 541A","Laboratorio de Bases de Datos Nieves Rodríguez Brisaboa (G00089)","6140G08979","541A","INVESTIGACIÓN"]
["6140G19979 541A","Modelización, Optimización e Inferencia Estatística Ricardo Cao Abad (G000199)","6140G19979","541A","INVESTIGACIÓN"]
["6140G23679 541A","Grupo de Tecnoloxía Electrónica e Comunicacións Luis Castedo Ribas (G000236)","6140G23679","541A","INVESTIGACIÓN"]
["6140G26579 541A","Grupo de Arquitectura de Computadores Juan TouriñoDomínguez (G000265)","6140G26579","541A","INVESTIGACIÓN"]
["6140G27279 541A","Modelos e métodos numéricos en enxeñaría e ciencias aplicadas Carlos Vázquez Cendón (G000272)","6140G27279","541A","INVESTIGACIÓN"]
["6140G27579 541A","Laboratorio de Enxeñaría do Software Juan Manuel Ares Casal (G000275)","6140G27579","541A","INVESTIGACIÓN"]
["6140G28279 541A","Redes de Neuronas Artificiais e Sistemas Adaptativos-Informática Médica e Diagnóstico Radiolóxico Alejandro Pazos Sierra (G000282)","6140G28279","541A","INVESTIGACIÓN"]
["6140G28379 541A","Laboratorio Interdisciplinar de Aplicacións da Intelixencia Artificial José Carlos Dafonte Vázquez (G000283)","6140G28379","541A","INVESTIGACIÓN"]
["6140G28679 541A","Telemática Víctor Manuel Carneiro Díaz (G000286)","6140G28679","541A","INVESTIGACIÓN"]
["6140G32179 541A","Grupo de Visión Artificial e Recoñecemento de Patróns Manuel F. González Penedo (G000321)","6140G32179","541A","INVESTIGACIÓN"]
["6140G39779 541A","Models and Applications of Distributed Systems David Cabrero Souto (G000397)","6140G39779","541A","INVESTIGACIÓN"]
["6140G49479 541A","Information Retrieval Lab Álvaro Barreiro García (G000494)","6140G49479","541A","INVESTIGACIÓN"]
["6140I69079 541A","ARENAZ SILVA, MANUEL CARLOS (I000690)","6140I69079","541A","INVESTIGACIÓN"]
["6140I69979 541A","COSTOYA RAMOS, MARÍA CRISTINA (I000699)","6140I69979","541A","INVESTIGACIÓN"]
["6140PIDM 422D","FAC. INFORMÁTICA PROMOCIÓN, INFORMACIÓN E DIVULGACIÓN DE MESTRADOS","6140PIDM","422D","ENSINANZA UNIVERSITARIA"]
["6150 122B","FACULTADE DE SOCIOLOXÍA","6150","122B","BIBLIOTECAS"]
["6150 300C","FACULTADE DE SOCIOLOXÍA","6150","300C","CENTROS"]
["6150 422D","FACULTADE DE SOCIOLOXÍA","6150","422D","ENSINANZA UNIVERSITARIA"]
["6150 541A","FACULTADE DE SOCIOLOXÍA","6150","541A","INVESTIGACIÓN"]
["61500VFA 300C","FACULTADE DE SOCIOLOXÍA. VIAXES FORMACIÓN ALUMNADO","61500VFA","300C","CENTROS"]
["61501270 122B","DEPARTAMENTO DE SOCIOLOXÍA E CIENCIA POLÍTICA E DA ADMINISTRACIÓN","61501270","122B","BIBLIOTECAS"]
["61501270 422D","DEPARTAMENTO DE SOCIOLOXÍA E CIENCIA POLÍTICA E DA ADMINISTRACIÓN","61501270","422D","ENSINANZA UNIVERSITARIA"]
["61501270 541A","DEPARTAMENTO DE SOCIOLOXÍA E CIENCIA POLÍTICA E DA ADMINISTRACIÓN","61501270","541A","INVESTIGACIÓN"]
["6150127001 422D","C. VERÁN. 15- PROF. ANDRADE SUÁREZ V CURSO\"A EVOLUCIÓN DO TURISMO NO NA SOC. GLO..\"","6150127001","422D","ENSINANZA UNIVERSITARIA"]
["6150127002 422D","CUR. VERÁN. 13- PROF. FERNÁNDEZ SUÁREZ \"MEDIOS, COMUNICACIÓN E PODER\"","6150127002","422D","ENSINANZA UNIVERSITARIA"]
["6150127062 541A","G.I.: EQUIPO DE SOCIOLOXÍA DAS MIGRACIÓNS INTERNACIONAIS G000259","6150127062","541A","INVESTIGACIÓN"]
["6150127063 541A","G.I.: ORGANIZACIÓNS SOCIAIS, INSTITUCIÓNS E MERCADOS G000474","6150127063","541A","INVESTIGACIÓN"]
["6150127064 541A","G.I.: COMUNICACIÓN, IDENTIDADE E INFLUENCIA SOCIAL G000490","6150127064","541A","INVESTIGACIÓN"]
["6150127065 541A","G.I.: SISTEMAS DE INFORMACIÓN PARA A ANÁLISE  E A PROSPECTIVA G000495","6150127065","541A","INVESTIGACIÓN"]
["6150127066 541A","G.I.: ESTUDOS TERRITORIAIS G000661","6150127066","541A","INVESTIGACIÓN"]
["6150127081 541A","UNID.INV.\"ANÁL.E PROSP.SOCIOPOLÍTICA,\" E000485, COORD.COTILLO PEREIRA","6150127081","541A","INVESTIGACIÓN"]
["6150210312 541A","PROX.08,PROF.RUANOGÓMEZ.REF:CSO2008-00324,,MºCIENC.INN.SEGUR.MARI.","6150210312","541A","INVESTIGACIÓN"]
["6150210329 541A","PROX.08PROF.LÓPEZDELERA,REF:CSO2008-03561,MºCIENC.INN","6150210329","541A","INVESTIGACIÓN"]
["6150210340 541A","PROX.08.PROF.GLEZ.RGUEZ.B.,REF:CSO2008-03337,,MºCIENC.INN,","6150210340","541A","INVESTIGACIÓN"]
["6150210359 541A","PROX.09.PROF.VEIRAVEIRA,REF:CSO2009-08166,MICIIN,\"CAPITAL","6150210359","541A","INVESTIGACIÓN"]
["6150210412 541A","PROX.10.MICIIN-PROF.GARCÍADOCAMPO.CSO2010-16675.\"..MIGRACIÓNSRESID","6150210412","541A","INVESTIGACIÓN"]
["6150210418 541A","PROX.11.MICIIN-PROF.IZQUIERDOESCRIBANO-REF:CSO2011-25091","6150210418","541A","INVESTIGACIÓN"]
["6150210429 541A","PROX.11.MICIIN-PROF.OSOCASAS-FEM2011-26210","6150210429","541A","INVESTIGACIÓN"]
["6150210473 541A","MINECO.12-REF.CSO2012-32901- PROF. MARTINEZ BUJÁN \" XEOGRAFÍAS DO TRABALLO DE COIDAD.\"","6150210473","541A","INVESTIGACIÓN"]
["6150210493 541A","MINECO 13-REF.CSO2013-46794-R-PROF.MASSO LAGO","6150210493","541A","INVESTIGACIÓN"]
["6150210537 541A","MINECO 16,REF:FEM2015-67164-R,PROF.OSO CASAS, PROGR.RETOS DA SOCIEDADE","6150210537","541A","INVESTIGACIÓN"]
["6150210570 541A","MINECO 17, REF:CSO2016-80158-R, PROF.PÉREZ CARAMÉS, PROGR. RETOS DA SOCIEDADE","6150210570","541A","INVESTIGACIÓN"]
["6150210571 541A","MINECO 17, REF:CSO2016-77960-R, PROF. MTNEZ. BUJÁN, PROGR. RETOS DA SOCIEDADE","6150210571","541A","INVESTIGACIÓN"]
["6150210590 541A","MINECO 17,REF:CSO2016-78122-R,PROF. MASSÓ LAGO.PROGR. RETOS DA SOCIEDADE","6150210590","541A","INVESTIGACIÓN"]
["6150220057 541A","PROX.AECID.11.PROF.OSOCASAS\"EVAL.IMPACTOPOLIT.EDUCAT.ENLAMIGRAC¿¿\"","6150220057","541A","INVESTIGACIÓN"]
["6150230027 541A","PROX.10.INST.MUJER,PROF.COBOBEDÍA,EXP.50/10\"CONSENTIMENTOECOACCIÓN","6150230027","541A","INVESTIGACIÓN"]
["6150240003 541A","XUNTA -ASOC.ENXEÑER.SEN FRONTEIRAS AGRUPADA COA UDC.AX.2016,PROX.PROF.FDEZ SUÁREZ","6150240003","541A","INVESTIGACIÓN"]
["6150242058 541A","XUNTA10.PROF.COTILLOPEREIRA-PRG.SECT.REF:10SEC102040PR","6150242058","541A","INVESTIGACIÓN"]
["6150242104 541A","XUNTA2011,PROF.OSOCASAS,MOD.GRUP.REF.COMPET.","6150242104","541A","INVESTIGACIÓN"]
["6150242411 541A","XUNTA 14 C.CULT.,EDUC.PROF.OSO CASAS Nº GRC2014/048,GRUP.REFER. COMPET","6150242411","541A","INVESTIGACIÓN"]
["6150242431 541A","XUNTA 14,VICEPR.UDC - ECOS DO SUR,Nº PR 815 A 2014-23,PROF.PÉREZ CARAMÉS","6150242431","541A","INVESTIGACIÓN"]
["6150242712 541A","XUNTA 17-C.EDU E C.ECO- PROF. CARDESÍN DÍAZ J M- ED431B 2017/42","6150242712","541A","INVESTIGACIÓN"]
["6150280084 541A","UE16,INCASI,PROF.OSO CASAS,Nº:691004, COORD.UNIV.AUTÓNOMA BARCALONA,RISE,MSCA,H2020","6150280084","541A","INVESTIGACIÓN"]
["6150430004 541A","CONV.15 USC-UDC.PROF.CARDESIN DÍAZ.GI:661 GET .\"DES.REDE INVEST.:NOVOS ENF. ANÁLISE TERRITORIAL\"","6150430004","541A","INVESTIGACIÓN"]
["6150430017 541A","CONV.2017,UNIV.SANTIAGO COMP.,PROF.CARDESÍN DÍAZ(GET),NOVOS ENFOQUES ANÁLISE TERRIT. NEDAT","6150430017","541A","INVESTIGACIÓN"]
["6150440009 422D","CONV.14 XUNTA -AXE. TURISMO DE GAL. - PROF. ALVAREZ SOUSA \" MÁSTER UNIV. NOV. PROD. TUR\"","6150440009","422D","ENSINANZA UNIVERSITARIA"]
["6150440092 422D","CONV.2014.XUNTA.AXENCIA TURISMO GALICIA.PROF.ÁLVAREZ SOUSA.MÁSTER","6150440092","422D","ENSINANZA UNIVERSITARIA"]
["6150460008 541A","CONV.2016,CONCELLO CORUÑA,PROF.COBO BEDÍA,4 ACTUACIÓNS INV.DESIGUALDADES E DIVERS,..","6150460008","541A","INVESTIGACIÓN"]
["6150460018 541A","CONV.2017,CONCELLO CORUÑA,PROF.COBO BEDÍA, CEXEF,INVEST.DESIGUALDADES E DIVERSIDADES","6150460018","541A","INVESTIGACIÓN"]
["6150490006 422D","CONTR.13- GRUPO COMPOSTELA DE UNIV.- PROF. TABOADELA ÁLVAREZ (ART. 83 LOU)","6150490006","422D","ENSINANZA UNIVERSITARIA"]
["6150615001 422D","AXUD.UDC,XORN.2017,PROF.GARCÍA DOCAMPO,VI XORN.URBANISMO E SOCIOLOXÍA","6150615001","422D","ENSINANZA UNIVERSITARIA"]
["6150615002 422D","AXUD.UDC,XORN. C.CONF.2017,PROF.PÉREZ CARAMÉS,NOVOS RETOS SOCIAIS NOS EST.POST-BENESTAR","6150615002","422D","ENSINANZA UNIVERSITARIA"]
["6150615003 422D","AXUD.UDC, C.CONF.2017,PROF.COBO BEDIA, II C.CONF.:FEMINÍSMO E GROLOS","6150615003","422D","ENSINANZA UNIVERSITARIA"]
["6150615004 422D","MEC.ACC.COMPL.PROF.IZQUIERDO ESCRIBANO,REF: SEJ2007-30291-E?","6150615004","422D","ENSINANZA UNIVERSITARIA"]
["6150615005 422D","XORN.16-PROF.PEREZ CARAMES-AS MIGRACIONS EN GALICIA. UN CASO DE SUPERDIVERSIDADE","6150615005","422D","ENSINANZA UNIVERSITARIA"]
["6150615006 422D","XORN.16-PROF.MASSO LAGO-A ANALISE DE REDES SOCIAIS:TEORIA, APLICACIONS E CASOS PRACTICOS","6150615006","422D","ENSINANZA UNIVERSITARIA"]
["6150615006 541A","XORN.16-PROF.MASSO LAGO-A ANALISE DE REDES SOCIAIS:TEORIA, APLICACIONS E CASOS PRACTICOS","6150615006","541A","INVESTIGACIÓN"]
["6150615007 422D","AX.CURSO VERÁN 2017,MOD.A.PROF.FDEZ.SUÁREZ, IGUALDADE DE XÉNERO ?","6150615007","422D","ENSINANZA UNIVERSITARIA"]
["6150615008 541A","MCI, ACC.COMPL08. PROF. OSO CASAS,SEJ2007-30782-E,\"IMP. INMIGRACIÓN","6150615008","541A","INVESTIGACIÓN"]
["6150615009 541A","AX.PROG.H2020-PROF. CARDESÍN DIAZ, JOSE Mª \"MARIE CURIE.INNOVATIVE TRAINING NETWORKS\"","6150615009","541A","INVESTIGACIÓN"]
["6150615010 422D","AX.MOVILID.MECD PROGR.REF:MAS2015/0003,UNIV.FRANCES.E ESPAÑ.COORD.PROF.TABOADELA","6150615010","422D","ENSINANZA UNIVERSITARIA"]
["6150615011 422D","IV CURSO Hª TEORÍA. FEMINISTA-2016. PROF. COBO BEDÍA","6150615011","422D","ENSINANZA UNIVERSITARIA"]
["6150615014 541A","ACC.COMPL.09.MºCINN.PROF.LÓPEZDELERA-\"POLITICASDERETORDEEMIGRANTES¿\"","6150615014","541A","INVESTIGACIÓN"]
["6150615017 541A","ACC.COMPL.10.MCIIN.PROF.OSOCASAS.FEM2010-10702-E.\"CONF.INT.NOVAVISIÓNXENERO","6150615017","541A","INVESTIGACIÓN"]
["6150615024 422D","CURSO 2013. PROF. GARCÍA DOCAMPO \"O SIX COMO FERRAMENTA DE ANALISE SOCIOLOXICA\"","6150615024","422D","ENSINANZA UNIVERSITARIA"]
["6150615025 422D","XORN.2013. PROF. OSO CASAS \"SOCIEDADE EN MOVE.,  REDES SOCIAIS E PARTI CIUDADANA\"","6150615025","422D","ENSINANZA UNIVERSITARIA"]
["6150615026 422D","XORN.2013. PROF. MARTÍNEZ BUJAN \"MULLERES MIGRANTES, TRAB. DE COIDADOS E SERV. DO\"","6150615026","422D","ENSINANZA UNIVERSITARIA"]
["6150615050 422D","PROGRAMA O TEU FUTURO EN BOAS MANS. FAC. SOCIOLOXÍA","6150615050","422D","ENSINANZA UNIVERSITARIA"]
["6150C01118 422D","I XORNADA TEORÍA SOCIOLÓXICA.PENSANDO SOCIOLÓXICAMENTE. RESP:RODRÍGUEZ RODRÍGUEZ,M.C.","6150C01118","422D","ENSINANZA UNIVERSITARIA"]
["6150C01418 422D","CURSO REFUGIADOS EN ESPAÑA:¿QUÉ FRONTERAS QUEDAN POR ABRIR?RESP:GOLIAS PÉREZ","6150C01418","422D","ENSINANZA UNIVERSITARIA"]
["6150C02318 422D","V C.VERÁNA EV.TURISMO NO MARCO DA SOC.GLOB:RETOS PARA A SUA PLANIF E XESTR:ANDRADE SUÁREZ","6150C02318","422D","ENSINANZA UNIVERSITARIA"]
["6150D173 422D","DEPARTAMENTO DE SOCIOLOXÍA E CIENCIAS DA COMUNICACIÓN","6150D173","422D","ENSINANZA UNIVERSITARIA"]
["6150D173 541A","DEPARTAMENTO DE SOCIOLOXÍA E CIENCIAS DA COMUNICACIÓN","6150D173","541A","INVESTIGACIÓN"]
["6150G25979 541A","Equipo de socioloxía das migracións internacionais Laura Oso Casas (G000259)","6150G25979","541A","INVESTIGACIÓN"]
["6150G47479 541A","Organizacións sociais, institucións e mercados José Manuel Sánchez Santos (G000474)","6150G47479","541A","INVESTIGACIÓN"]
["6150G66179 541A","Estudos Territoriales José Mª Cardesín Díaz (G000661)","6150G66179","541A","INVESTIGACIÓN"]
["6150I67879 541A","MASSÓ LAGO, MATILDE (I000678)","6150I67879","541A","INVESTIGACIÓN"]
["6160 122B","FACULTADE DE CIENCIAS DA COMUNICACIÓN","6160","122B","BIBLIOTECAS"]
["6160 300C","FACULTADE DE CIENCIAS DA COMUNICACIÓN","6160","300C","CENTROS"]
["6160 422D","FACULTADE DE CIENCIAS DA COMUNICACIÓN","6160","422D","ENSINANZA UNIVERSITARIA"]
["61600VFA 300C","FACULTADE CIENCIAS DA COMUNICACIÓN. VIAXES FORMACIÓN ALUMNADO","61600VFA","300C","CENTROS"]
["6160143064 541A","G.I.: CULTURA E COMUNICACIÓN INTERACTIVA G000665","6160143064","541A","INVESTIGACIÓN"]
["6160470105 422D","MÁSTER EN PRODUCCIÓN XORNALÍSTICA E AUDIOVISUAL","6160470105","422D","ENSINANZA UNIVERSITARIA"]
["6160616050 422D","PROGRAMA O TEU FUTURO EN BOAS MANS. FAC.CC DA COMUNICACIÓN","6160616050","422D","ENSINANZA UNIVERSITARIA"]
["6160G66579 541A","Cultura e Comunicación Interactiva  Ramón P. Rodríguez Montero (G000665)","6160G66579","541A","INVESTIGACIÓN"]
["6160I64379 541A","OSORIO IGLESIAS, OLGA (I000643)","6160I64379","541A","INVESTIGACIÓN"]
["6160I72779 541A","DÍAZ GONZÁLEZ, MARÍA JESÚS (I000727)","6160I72779","541A","INVESTIGACIÓN"]
["6160I72879 541A","QUINTAS FROUFE, NATALIA (I000728)","6160I72879","541A","INVESTIGACIÓN"]
["6170 122B","FACULTADE DE ECONOMÍA E EMPRESA","6170","122B","BIBLIOTECAS"]
["6170 300C","FACULTADE DE ECONOMÍA E EMPRESA","6170","300C","CENTROS"]
["6170 422D","FACULTADE DE ECONOMÍA E EMPRESA","6170","422D","ENSINANZA UNIVERSITARIA"]
["6170 541A","FACULTADE DE ECONOMÍA E EMPRESA","6170","541A","INVESTIGACIÓN"]
["61700VFA 300C","FACULTADE DE ECONOMÍA E EMPRESA. VIAXES FORMACIÓN ALUMNAD0","61700VFA","300C","CENTROS"]
["61701080 122B","DEPARTAMENTO DE ECONOMÍA APLICADA I","61701080","122B","BIBLIOTECAS"]
["61701080 422D","DEPARTAMENTO DE ECONOMÍA APLICADA I","61701080","422D","ENSINANZA UNIVERSITARIA"]
["61701080 541A","DEPARTAMENTO DE ECONOMÍA APLICADA I","61701080","541A","INVESTIGACIÓN"]
["6170108001 422D","C.VERÁN 2015, PROF.SEIJAS DÍAZ,LIDERAZGO E XEST.DE INSTITUC.EDUCATIVAS","6170108001","422D","ENSINANZA UNIVERSITARIA"]
["6170108061 541A","G.I.: ESTUDOS DE HISTORIA DA EMPRESA G000135","6170108061","541A","INVESTIGACIÓN"]
["61701090 122B","DEPARTAMENTO DE ECONOMÍA FINANCEIRA E CONTABILIDADE","61701090","122B","BIBLIOTECAS"]
["61701090 422D","DEPARTAMENTO DE ECONOMÍA FINANCEIRA E CONTABILIDADE","61701090","422D","ENSINANZA UNIVERSITARIA"]
["61701090 541A","DEPARTAMENTO DE ECONOMÍA FINANCEIRA E CONTABILIDADE","61701090","541A","INVESTIGACIÓN"]
["6170109061 541A","G.I.: DIRECCIÓN FINANCEIRA E SISTEMAS DE INFORMACIÓN PARA A XESTIÓN G000146","6170109061","541A","INVESTIGACIÓN"]
["6170109062 541A","G.I.: REGULACIÓN, ECONOMÍA E FINANZAS G000616","6170109062","541A","INVESTIGACIÓN"]
["61701370 122B","DEPARTAMENTO DE ECONOMÍA APLICADA II","61701370","122B","BIBLIOTECAS"]
["61701370 422D","DEPARTAMENTO DE ECONOMÍA APLICADA II","61701370","422D","ENSINANZA UNIVERSITARIA"]
["61701370 541A","DEPARTAMENTO DE ECONOMÍA APLICADA II","61701370","541A","INVESTIGACIÓN"]
["6170137001 541A","ACC.COMPL.Mº ECO.PROF. GÓMEZ SUÁREZ \"XV ENCONTRO ECONOM.APLICADA\"","6170137001","541A","INVESTIGACIÓN"]
["6170137002 541A","AXUDA C.I.31/05/12.PROF. GÓMEZ SUÁREZ \"XV ENCONT. ECON.A","6170137002","541A","INVESTIGACIÓN"]
["61701560 122B","DEPARTAMENTO DE ANÁLISE ECONÓMICA E AMINISTRACIÓN DE EMPRESAS","61701560","122B","BIBLIOTECAS"]
["61701560 422D","DEPARTAMENTO DE ANÁLISE ECONÓMICA E AMINISTRACIÓN DE EMPRESAS","61701560","422D","ENSINANZA UNIVERSITARIA"]
["61701560 541A","DEPARTAMENTO DE ANÁLISE ECONÓMICA E AMINISTRACIÓN DE EMPRESAS","61701560","541A","INVESTIGACIÓN"]
["6170156001 422D","XORN.16-PROF.MNEZ.FDEZ/BLAZQUEZ LOZANO-COMUNICANDO A COMUNICACION","6170156001","422D","ENSINANZA UNIVERSITARIA"]
["6170156001 541A","XORN.16-PROF.MNEZ.FDEZ/BLAZQUEZ LOZANO-COMUNICANDO A COMUNICACION","6170156001","541A","INVESTIGACIÓN"]
["6170156002 422D","C.VERÁN.14 -PROF.MARIZ PÉREZ \"A EDUC. NO SECTOR TURISMO. O NOVO CONTEXTO SOCIO-ECONO.\"","6170156002","422D","ENSINANZA UNIVERSITARIA"]
["6170156003 422D","XORN.15,PROF.NOVO CORTI \"IV TALLER INT.EDASS","6170156003","422D","ENSINANZA UNIVERSITARIA"]
["6170156004 422D","C.VERÁN 2015,PROF.MARIZ PÉREZ, A EDUCACIÓN NO SECTOR TURISMO?..","6170156004","422D","ENSINANZA UNIVERSITARIA"]
["6170156007 422D","XORN..12PROF.NOVOCORTI\"X.INT.DESENVOL.ECONOMICOSOSTIBLE\"","6170156007","422D","ENSINANZA UNIVERSITARIA"]
["6170156008 422D","XORN.2016 PROF. NOVO CORTI -V TALLER INTER. DESENV. ECONO. E SOSTINIBILIDADE","6170156008","422D","ENSINANZA UNIVERSITARIA"]
["6170156061 541A","G.I.: JEAN MONNET DE COMPETITIVIDADE E DESENVOLVEMENTO REXIONAL NA UNIÓN EUROPEA G000451","6170156061","541A","INVESTIGACIÓN"]
["6170156062 541A","G.I.: ESTUDOS ECONÓMICOS: TRANSPORTE, TRABALLO E SOSTENIBILIDADE G000580","6170156062","541A","INVESTIGACIÓN"]
["6170156063 541A","G.I.: MACROECONOMÍA E  SAÚDE  G000476","6170156063","541A","INVESTIGACIÓN"]
["6170156064 541A","GRUP.INV.INVEST.E MARKETING APLICADO G000705, COORD.MTNEZ FDEZ.","6170156064","541A","INVESTIGACIÓN"]
["6170156081 541A","UNID.INV.-ECONOMIC DEVELOPM. AND.SOCIALSUST.,E000719,COORD.NOVO CORTI","6170156081","541A","INVESTIGACIÓN"]
["6170210128 541A","PROX.PEDREIRAANDRADEFD.SEC2002.03182.SIST.TARIFACIONTRANS","6170210128","541A","INVESTIGACIÓN"]
["6170210327 541A","PROX. 08 PROF.GÓMEZ SUÁREZ, REF:ECO2008-04180,","6170210327","541A","INVESTIGACIÓN"]
["6170210426 541A","PROX.11.MICIIN-PROF.GÓMEZSUÁREZ-ECO2011-25490","6170210426","541A","INVESTIGACIÓN"]
["6170210427 541A","PROX.11.MICIIN-PROF.LÓPEZRODRÍGUEZ-ECO2011-28632","6170210427","541A","INVESTIGACIÓN"]
["6170210446 541A","MINECO.12. PROF. IGLESIAS VAZQUEZ. REF. ECO2012-31459 \" VALOR EN RIESGO IND, BURSA\"","6170210446","541A","INVESTIGACIÓN"]
["6170210527 541A","MINECO 15,REF;ECO2014-57711-P,PROF.GÓMEZ SUÁREZ ,PROGR?EXCELENCIA.MOD.1.PROX.I+D.","6170210527","541A","INVESTIGACIÓN"]
["6170210546 541A","MINECO 16,REF:ECO2015-68597-P,PROF.LÓPEZ RGUEZ.,PROGR.EXCELENCIA","6170210546","541A","INVESTIGACIÓN"]
["6170210550 541A","MINECO16,REF:ECO2015-63845-P, PROF.IGLESIAS VÁZQUEZ, PROGR. EXCELENCIA","6170210550","541A","INVESTIGACIÓN"]
["6170210581 541A","MINECO 17, REF:HAR2016-75375-R,PROF.MAIXÉ ALTÉS, PROGR. RETOS DA SOCIEDADE","6170210581","541A","INVESTIGACIÓN"]
["6170210614 541A","MEIC 18,REF:ECO2017-85701-P,PROF.GÓMEZ SUÁREZ.PROGR.EXCELENCIA","6170210614","541A","INVESTIGACIÓN"]
["6170220064 541A","Mº DE SANIDAD. 13- PROF. RIVERA CASTIÑEIRA \"AXUDA DROGODEPENDENCIA\"","6170220064","541A","INVESTIGACIÓN"]
["6170242057 541A","XUNTA10.PROF.GARCÍAÁLVAREZ-PRG.SECT.REF:10SEC100020PR","6170242057","541A","INVESTIGACIÓN"]
["6170242319 541A","XUNTA 13 C.ED.PROF.IGLESIAS VÁZQUEZ.Nº:GPC2013-072,GR.POT.CRECEM","6170242319","541A","INVESTIGACIÓN"]
["6170242402 541A","XUNTA 14 C.CULT,EDUC.PROF.LÓPEZ RGUEZ.Nº EM2014/051,INVEST.EMERXENTES","6170242402","541A","INVESTIGACIÓN"]
["6170242604 541A","XUNTA 16,C.CULT.EDU.e O.U.,PROF.IGLESIAS VÁZQUEZ,Nº EXP:ED431C 2016-007,GR.REFEREN. COMPETIT","6170242604","541A","INVESTIGACIÓN"]
["6170242723 541A","XUNTA 17-C PRES. E VICEPRES, ADMIN PUB E XUSTIZA. PROF:MARTÍNEZ FERNÁNDEZ PR 815A 2017/6","6170242723","541A","INVESTIGACIÓN"]
["6170280069 541A","UE13- ITSSOIN -FP7-SSH-2013-2 - Nº 613177- PROF.REY GARCÍA","6170280069","541A","INVESTIGACIÓN"]
["6170280070 541A","UE12- \"EUROPEAN MULTILATERAL RESEARCH GROUP POLITICAL ECONOMY\" - PROF. FAIÑA MEDIN","6170280070","541A","INVESTIGACIÓN"]
["6170280075 541A","UE15,\"RESFARM\",Nº:649717; COORD.UNIÓNS AGRARIAS UPA.PROF.REGUEIRO FERREIRA;H2020-EE-2014-3.MarketUptake.","6170280075","541A","INVESTIGACIÓN"]
["6170430004 541A","CONV.15 USC-UDC.PROF.CALVO SILVOSA.GI-616-GREFIN.\"DES.REDE INVEST.:NOVOS ENF.ANÁLISE TERRITOR.\"","6170430004","541A","INVESTIGACIÓN"]
["6170430017 541A","CONV.2017,UNIV.SANTIA.COMPOST.PROF.CALVO SILVOSA.NOVOS ENF. ANÁLISE TERRITORIAL NEDAT","6170430017","541A","INVESTIGACIÓN"]
["6170470009 422D","CONTR.16- UNIO INGENIEROS, SL- PROF. ABEAL VÁZQUEZ (ART. 83 LOU)","6170470009","422D","ENSINANZA UNIVERSITARIA"]
["6170470034 422D","CONTR.2017,UNIVERS.INT.RIOJA .PROF.PEREIRA SÁEZ(ART.83 LOU) PREST.SERVIZO","6170470034","422D","ENSINANZA UNIVERSITARIA"]
["6170490019 422D","CONTR.2016,FUAC,PROF.REGUEIRO FERREIRA,(ART.83LOU) PREST.SEVZOS.ESTUDO.EU. EMPREGO CALID","6170490019","422D","ENSINANZA UNIVERSITARIA"]
["6170490042 541A","CONTR.12 FUAC-IGLESIAS GÓMEZ- \" ATLANTIC POW","6170490042","541A","INVESTIGACIÓN"]
["6170617001 422D","PROGRAMA PLURILINGÜE DA FAC. DE ECONOMÍA E EMPRESA","6170617001","422D","ENSINANZA UNIVERSITARIA"]
["6170617002 422D","AX.CURSO VERÁN 2017,MOD.A.PROF.MARIZ PÉREZ,A EDUCACIÓN NO SECTOR TURISMO","6170617002","422D","ENSINANZA UNIVERSITARIA"]
["6170617003 422D","CÁTEDRAEMPRESAFAMILIAR.ABANCA,INDITEX,AGEF","6170617003","422D","ENSINANZA UNIVERSITARIA"]
["6170617004 422D","AX.CURSO VERÁN 2017,MOD.A.PROF.SÁNCHEZ  FDEZ.FERRAMENTAS DE MARKETING?.","6170617004","422D","ENSINANZA UNIVERSITARIA"]
["6170617005 541A","AXUDA C.I.04/05/2017,PROF.NOVO CORTI,IX CONGR.INT.CASOS DOCENT.MARKETING P?","6170617005","541A","INVESTIGACIÓN"]
["6170617006 541A","AX.CI.21/04/16 NOVO CORTI-CIEM 2016","6170617006","541A","INVESTIGACIÓN"]
["6170617007 422D","AX.UDC,XORN.C.CONF.2017,PROF.CALVO SILVOSA, FINANZAS E SECTOR ASEGURADOR?.","6170617007","422D","ENSINANZA UNIVERSITARIA"]
["6170617008 541A","AX.CI.21/04/16 RIVERA CASTIÑEIRA-XII SIMPOSIO HISPANO-RUSO:POL.ECON. Y ECONOMIA ESPAÑA-RUSIA","6170617008","541A","INVESTIGACIÓN"]
["6170617009 422D","AXUD.UDC,XORN.C.CONF.2017,PROF.NOVO CORTI,IV TALLER INT.EDaSS","6170617009","422D","ENSINANZA UNIVERSITARIA"]
["6170617010 422D","AXUD.UDC,XORN.2017,PROF.CALVO BABÍO, IV XOR.INTERCENTROS DE EMPRENDEMENTO?","6170617010","422D","ENSINANZA UNIVERSITARIA"]
["6170617011 422D","CÁTEDRAJEANMONNET.J.FAÍÑA.CURSOSECONFERENCIAS.","6170617011","422D","ENSINANZA UNIVERSITARIA"]
["6170617012 541A","AXUDA C.I.04/05/2017,PROF.PEDREIRA ANDRADE XXV XORN ASEPUMA-","6170617012","541A","INVESTIGACIÓN"]
["6170617018 422D","XORN.14- PROF. CALVO BABÍO -\"III XORN. INTERCENTROS DE EMPRENDEMENTO.UNIV. EMP. SOSTIBLE\"","6170617018","422D","ENSINANZA UNIVERSITARIA"]
["6170617019 422D","XORN.2013 - PROF.CALVO SILVOSA -\"I ECONTR. GALICIA EN CLAVE: RECONST. SOCIOECO..\"","6170617019","422D","ENSINANZA UNIVERSITARIA"]
["6170617020 422D","CURSO.2014 - \"X WORKSHOP DE INVEST. EMPÍRICA EN CONTB. FIANAN\". PROF. GÓMEZ RDGUEZ.","6170617020","422D","ENSINANZA UNIVERSITARIA"]
["6170617021 422D","CURSO. 2014- PROF. MARTINEZ FERNÁNDEZ \"COMUNICANDO A COMUNICACIÓN\"","6170617021","422D","ENSINANZA UNIVERSITARIA"]
["6170617050 422D","PROGRAMA O TEU FUTURO EN BOAS MANS. FAC.ECONOM. E EMPRESA","6170617050","422D","ENSINANZA UNIVERSITARIA"]
["6170C00218 422D","III SIMPOSIO INTERN.SOBRE XESTIÓN DA COMUNICACIÓN-XESCOM. PROF.JUANATEY BOGA","6170C00218","422D","ENSINANZA UNIVERSITARIA"]
["6170D163 422D","DEPARTAMENTO DE ECONOMÍA","6170D163","422D","ENSINANZA UNIVERSITARIA"]
["6170D163 541A","DEPARTAMENTO DE ECONOMÍA","6170D163","541A","INVESTIGACIÓN"]
["6170D164 422D","DEPARTAMENTO DE EMPRESA","6170D164","422D","ENSINANZA UNIVERSITARIA"]
["6170D164 541A","DEPARTAMENTO DE EMPRESA","6170D164","541A","INVESTIGACIÓN"]
["6170G13579 541A","Grupo de Estudos de Historia da Empresa Alberte Martínez López (G000135)","6170G13579","541A","INVESTIGACIÓN"]
["6170G14679 541A","Dirección Financeira e Sistemas de Información para a Xestión Pablo de Llano Monelos (G000146)","6170G14679","541A","INVESTIGACIÓN"]
["6170G45179 541A","Grupo Jean Monnet de Competitividade e Desenvolvemento na Unión Europea Emma María Iglesias Vázquez (G000451)","6170G45179","541A","INVESTIGACIÓN"]
["6170G47679 541A","Macroeconomía e Saúde Berta Rivera Castiñeira (G000476)","6170G47679","541A","INVESTIGACIÓN"]
["6170G61679 541A","Regulación, economía e finanzas Anxo Ramón Calvo Silvosa (G000616)","6170G61679","541A","INVESTIGACIÓN"]
["6170G70579 541A","Investigación e Marketing aplicado Valentin A. Martínez Fernández (G000705)","6170G70579","541A","INVESTIGACIÓN"]
["6170G71979 541A","Economic Development and Social Sustainability M. Isabel Novo Corti (E000719)","6170G71979","541A","INVESTIGACIÓN"]
["6170I36679 541A","SÁNCHEZ SELLERO, Mª CARMEN (I000366)","6170I36679","541A","INVESTIGACIÓN"]
["6170I62179 541A","IGLESIAS ANTELO, SUSANA (I000621)","6170I62179","541A","INVESTIGACIÓN"]
["6170PIDM 422D","FAC.ECONOMÍA E EMPRESA,PROMOCIÓN,INFORMAC. E DIVULGACIÓN DE MESTRADOS","6170PIDM","422D","ENSINANZA UNIVERSITARIA"]
["6200 122B","FACULTADE DE CIENCIAS DO DEPORTE E A EDUCACIÓN FÍSICA","6200","122B","BIBLIOTECAS"]
["6200 300C","FACULTADE DE CIENCIAS DO DEPORTE E A EDUCACIÓN FÍSICA","6200","300C","CENTROS"]
["6200 422D","FACULTADE DE CIENCIAS DO DEPORTE E A EDUCACIÓN FÍSICA","6200","422D","ENSINANZA UNIVERSITARIA"]
["6200 541A","FACULTADE DE CIENCIAS DO DEPORTE E A EDUCACIÓN FÍSICA","6200","541A","INVESTIGACIÓN"]
["62000VFA 300C","FACULTADE CIENCIAS DEPORTE E EDUCACIÓN FÍSICA. VIAXES FORMACIÓN ALUMNADO","62000VFA","300C","CENTROS"]
["62002000 122B","DEPARTAMENTO DE EDUCACIÓN FÍSICA E DEPORTIVA","62002000","122B","BIBLIOTECAS"]
["62002000 422D","DEPARTAMENTO DE EDUCACIÓN FÍSICA E DEPORTIVA","62002000","422D","ENSINANZA UNIVERSITARIA"]
["62002000 541A","DEPARTAMENTO DE EDUCACIÓN FÍSICA E DEPORTIVA","62002000","541A","INVESTIGACIÓN"]
["6200200001 422D","CONF.16-PROF.SIERRA PALMEIRO-III CICLO CONF.ARTES, DEPORTES E CORPOS","6200200001","422D","ENSINANZA UNIVERSITARIA"]
["6200200006 422D","XORN. 2013- PROF. DOPICO CALVO \" CILO DE CON\"ARTES, DEPORTES E CORPOS\"","6200200006","422D","ENSINANZA UNIVERSITARIA"]
["6200200007 422D","CICLO.14- PROF. SIERRA PALMEIRO \"CICLO ARTES, DEPORTES E CORPOS\"","6200200007","422D","ENSINANZA UNIVERSITARIA"]
["6200200061 541A","G.I.: ANÁLISE E AVALIACIÓN DAS CAPACIDADES MOTRICES E CONDUTURAIS NO DEPORTE. INNOVACIÓNS METODOLÓXICAS G000204","6200200061","541A","INVESTIGACIÓN"]
["6200200062 541A","G.I.: EDUCACIÓN, SAÚDE E ACTIVIDADE FÍSICA G000342","6200200062","541A","INVESTIGACIÓN"]
["6200200063 541A","UNIDADE(G.I.): DEPORTE, ACTIV. FÍSICA E SAÚDE NOS MAIORES E000472","6200200063","541A","INVESTIGACIÓN"]
["6200200064 541A","G.I.: ACTIVIDADES ACUÁTICAS E  SOCORRISMO  G000496","6200200064","541A","INVESTIGACIÓN"]
["6200200065 541A","G.I.: APRENDIZAXE E CONTROL DO MOVEMENTO HUMANO EN ACTIVIDADE FÍSICA E DEPORTE G000581","6200200065","541A","INVESTIGACIÓN"]
["6200200066 541A","G.I.: PSICOLOXÍA E SOCIOLOXÍA DO DEPORTE G000605","6200200066","541A","INVESTIGACIÓN"]
["6200200067 541A","GRUP. INV. PERFORMANCE AND HEALTH GROUP- G0710- COORD. IGLESIAS SOLER","6200200067","541A","INVESTIGACIÓN"]
["6200200081 541A","E401-INV. E ANA.DEPORTES EN EQUIPO.FDEZ ROMERO.","6200200081","541A","INVESTIGACIÓN"]
["6200210421 541A","PROX.11.MICIIN-PROF.FDEZ.DELOLMO-DEP2011-22466","6200210421","541A","INVESTIGACIÓN"]
["6200210522 541A","MINECO 15,REF;DEP2014-53896-R,PROF.FDEZ.DEL OLMO,MOD.1:RETOS INVEST.EFECTOS DA COMB.EXERC.","6200210522","541A","INVESTIGACIÓN"]
["6200210557 541A","MINECO 16,REF:PSI2015-65894-R, I.P. NOA FOGELSON , PROGR. RETOS DA SOCIEDADE","6200210557","541A","INVESTIGACIÓN"]
["6200210617 541A","MEIC 18,REF:DEP2017-87601-R, I.P.ÁRIAS RGUEZ.,PABLO,PROGR.RETOS SOCIEDADE","6200210617","541A","INVESTIGACIÓN"]
["6200230029 541A","UNIV.SANTIGO DE C.,PROF.FDEZ.DEL OLMO,PROX.(XUNTA REF:R2014/021)PEG:REDE PSICOLOX.EXP.GAL.","6200230029","541A","INVESTIGACIÓN"]
["6200242204 541A","XUNTA12.C.ED.PROF.FDEZ.DELOLMO-MOD.REDES.REF:CN2012/170","6200242204","541A","INVESTIGACIÓN"]
["6200270020 541A","PROX.14, BELIDEA CONSULT & PROGR,S.L.VALES VÁZQUEZ.E-TRAINING.PR.CON. PEME","6200270020","541A","INVESTIGACIÓN"]
["6200270021 541A","PROX.14,CLUB DEPORTIVO LUGO S.A.D.,ART.83 LOU..VALES VÁZQUEZ,E-TRAINING.","6200270021","541A","INVESTIGACIÓN"]
["6200430008 422D","CONTR.2016-CENTRO FORMAC. E RECURSOS DE LUGO,PROF.AGRASAR CRUZ (ART.83 LOU)","6200430008","422D","ENSINANZA UNIVERSITARIA"]
["6200470020 422D","CONV.SANATORIO QUIRURGICO MODELO,PROF.AGRASAR CRUZ,CÁTEDRA HM TRAUMATOLOXÍA DEPORTE","6200470020","422D","ENSINANZA UNIVERSITARIA"]
["6200620001 422D","CONF.2016-PROF.BOBO ARCE-VI CICLO CONFERENCIAS XÉNERO, ACTIVIDADE FÍSICA E DEPORTE","6200620001","422D","ENSINANZA UNIVERSITARIA"]
["6200620001 541A","CONF.2016-PROF.BOBO ARCE-VI CICLO CONFERENCIAS XÉNERO, ACTIVIDADE FÍSICA E DEPORTE","6200620001","541A","INVESTIGACIÓN"]
["6200620002 422D","CURSO 2014- PROF. LÓPEZ VILLAR \"IOGA PARA MULLERES\"","6200620002","422D","ENSINANZA UNIVERSITARIA"]
["6200620003 422D","AXUD.UDC, 2017,PROF.BOBO ARCE,VII CICLO CONF. XÉNERO,ACT.FÍSICA E DEPORTIVA","6200620003","422D","ENSINANZA UNIVERSITARIA"]
["6200620004 422D","CURSO 14- PROF,LÓPEZ VILLAR,\"CHAN PELVIANO E ACTIVIDADE FÍSICA?...\"","6200620004","422D","ENSINANZA UNIVERSITARIA"]
["6200620005 422D","CURSO ACTIVIDADE FÍSICA E CONCRO MODULOS I E II, PROF.LÓPEZ VILLAR","6200620005","422D","ENSINANZA UNIVERSITARIA"]
["6200620006 422D","SEMINARIO 2014- PROF. BOBO ARCE \"TALLER DE DANZA CONTACTO\"-","6200620006","422D","ENSINANZA UNIVERSITARIA"]
["6200620007 541A","MINECO 2013 RYC INV.NOA FOGELSON, AXUDA ADICIONAL","6200620007","541A","INVESTIGACIÓN"]
["6200620008 422D","CURSO 15\" IOGA EMBARAZADAS\", PROF.LÓPEZ VILLAR","6200620008","422D","ENSINANZA UNIVERSITARIA"]
["6200620009 422D","CURSO 15,INTRODUCCIÓN AO IOGA,PROF. LÓPEZ VILLAR","6200620009","422D","ENSINANZA UNIVERSITARIA"]
["6200620010 422D","CURSO 16 -IOGA DURANTE O EMBARAZO E POSPARTO, CURSO DE FORMACIÓN, PROF. LÓPEZ VILLAR","6200620010","422D","ENSINANZA UNIVERSITARIA"]
["6200620011 541A","AX.CI.21/04/16 GLEZ.VALEIRO-LA SOCIALIZACION EN LA PRACTICA DE LA ANTIVIDAD FISICA","6200620011","541A","INVESTIGACIÓN"]
["6200620012 422D","CURSO 16,PROF.LÓPEZ VILLAR, INTRODUCC AO .MÉTODO FELDENKRAIS","6200620012","422D","ENSINANZA UNIVERSITARIA"]
["6200620013 422D","CURSO.16. PROF.LOPEZ VILLAR \"CURSO DE MINDFUNLNESS\"","6200620013","422D","ENSINANZA UNIVERSITARIA"]
["6200620014 422D","CURSO 2017,PROF.CARRERA L.EVALUACIÓN PROCESO ENSEÑANZA-APREND.DE LA TÁCTICA COLECTIVA","6200620014","422D","ENSINANZA UNIVERSITARIA"]
["6200620050 422D","PROGRAMA O TEU FUTURO EN BOAS MANS. FAC.CC.DEPORTE E EDUC. FÍSICA","6200620050","422D","ENSINANZA UNIVERSITARIA"]
["6200ACDO 300C","FACULTADE DE CC. DO DEPORTE E A EDUCACIÓN FÍSICA. ACTIVIDADES CULTURAIS, DEPORTIVAS E OUTRAS","6200ACDO","300C","CENTROS"]
["6200D157 541A","DEPARTAMENTO DE EDUCACIÓN FÍSICA E DEPORTIVA","6200D157","541A","INVESTIGACIÓN"]
["6200D15701 422D","AXUD.UDC,CICLO CONF.2017,PROF.SIERRA PALMEIRO,IV CICLO: ARTES,DEPORTES E CORPOS","6200D15701","422D","ENSINANZA UNIVERSITARIA"]
["6200G34279 541A","Educación, saúde e actividade física: Estudos de Xénero Miguel González Valeiro (G000342)","6200G34279","541A","INVESTIGACIÓN"]
["6200G40179 541A","Investigación en Ciencias do Deporte. Juan J. Fernández Romero (G000401)","6200G40179","541A","INVESTIGACIÓN"]
["6200G49679 541A","Actividades Acuáticas e Socorrismo José Palacios Aguilar (G000496)","6200G49679","541A","INVESTIGACIÓN"]
["6200G58179 541A","Grupo de aprendizaxe e control do movemento humano en actividade física e deporte Miguel Fernández del Olmo (G000581)","6200G58179","541A","INVESTIGACIÓN"]
["6200G71079 541A","Performance and Health Group Eliseo Iglesias Soler (G000710)","6200G71079","541A","INVESTIGACIÓN"]
["6200PIDM 422D","FAC.CC.DEPORTE E A EDUC.FÍSICA,PROMOCIÓN,INFORMACIÓN DE DIVULGACIÓN DE MESTRADOS","6200PIDM","422D","ENSINANZA UNIVERSITARIA"]
["6300 122B","ESCOLA TÉCNICA SUPERIOR DE ARQUITECTURA","6300","122B","BIBLIOTECAS"]
["6300 300C","ESCOLA TÉCNICA SUPERIOR DE ARQUITECTURA","6300","300C","CENTROS"]
["6300 422D","ESCOLA TÉCNICA SUPERIOR DE ARQUITECTURA","6300","422D","ENSINANZA UNIVERSITARIA"]
["6300 541A","ESCOLA TÉCNICA SUPERIOR DE ARQUITECTURA","6300","541A","INVESTIGACIÓN"]
["63000VFA 300C","ETS ARQUITECTURA. VIAXES FORMACIÓN ALUMNADO","63000VFA","300C","CENTROS"]
["63001040 122B","DEPARTAMENTO DE CONSTRUCCIÓNS ARQUITECTÓNICAS","63001040","122B","BIBLIOTECAS"]
["63001040 422D","DEPARTAMENTO DE CONSTRUCCIÓNS ARQUITECTÓNICAS","63001040","422D","ENSINANZA UNIVERSITARIA"]
["63001040 541A","DEPARTAMENTO DE CONSTRUCCIÓNS ARQUITECTÓNICAS","63001040","541A","INVESTIGACIÓN"]
["6300104001 422D","AXU.COMIS.EXT.UNIV.21/11/14,COORD.SOUTO GARCÍA,\"CICLO CONF.FACHADAS LIXEIRAS E VENTÁS\"","6300104001","422D","ENSINANZA UNIVERSITARIA"]
["6300104061 541A","G.I.: SISTEMAS CONSTRUTIVOS E REHABILITACIÓN G000627","6300104061","541A","INVESTIGACIÓN"]
["63001200 122B","DEPARTAMENTO DE PROXECTOS ARQUITECTÓNICOS E URBANISMO","63001200","122B","BIBLIOTECAS"]
["63001200 422D","DEPARTAMENTO DE PROXECTOS ARQUITECTÓNICOS E URBANISMO","63001200","422D","ENSINANZA UNIVERSITARIA"]
["63001200 541A","DEPARTAMENTO DE PROXECTOS ARQUITECTÓNICOS E URBANISMO","63001200","541A","INVESTIGACIÓN"]
["6300120001 422D","XORN.16-PROF.GLEZ-CEBRIAN TELLO-IV XORNADAS SOBRE INVESTIGACION URBANA. A RESIDENCIA NAS EXPERIFERIAS (3º DESCENSO URBANISTICOS DENDE A ETSAC)","6300120001","422D","ENSINANZA UNIVERSITARIA"]
["6300120002 422D","XORN.2013- PROF. GLEZ. CEBRIAN TELLO \"FENOMENOS CONCRETOS EN TERRIT. DIFUSOS\"","6300120002","422D","ENSINANZA UNIVERSITARIA"]
["6300120003 422D","C. VERÁN 15- PROF.CRESPO GONZALEZ, ESTRATEX. CIDADÁNS PARA TEMPOS DA CRISE4.A LARACHA","6300120003","422D","ENSINANZA UNIVERSITARIA"]
["6300120004 422D","XORN.14 PROF. GLEZ-CEBRIAN TELLO \"II XORN. SOBRE INVESTG. URBANA: DAS COUSAS URB. A ?.\"","6300120004","422D","ENSINANZA UNIVERSITARIA"]
["6300120005 422D","C.VERÁN 14- PROF. DE LA IGLESIA PÉREZ- \"ESTRATEXIAS CIDADÁNS PARA OS TEMPOS DE CRISE\"","6300120005","422D","ENSINANZA UNIVERSITARIA"]
["6300120006 422D","C.VERÁN 14- PROF. VÁZQUEZ MOSQUERA .\"A CONSTR. DO TERRIT.ESTRAT. E REHABILIT. RIANXO\"","6300120006","422D","ENSINANZA UNIVERSITARIA"]
["6300120007 422D","C.VERÁN 2015,PROF.RGUEZ.BLANCO,AS TRANSFORMAC.DA INDUSTRIA NA PAISAXE E NA CIDADE,ARTEIXO","6300120007","422D","ENSINANZA UNIVERSITARIA"]
["6300120008 422D","C.VERÁN 2015,PROF.VÁZQUEZ MOSQUERA, DE PORTO A PORTO,ESTRATEX.REHABIL.,RIANXO","6300120008","422D","ENSINANZA UNIVERSITARIA"]
["6300120061 541A","G.I.: GALICIA CIDADE E TERRITORIO G000636","6300120061","541A","INVESTIGACIÓN"]
["6300120062 541A","G.I.: ARQUITECTURA E URBANISMO SOSTIBLE G000662","6300120062","541A","INVESTIGACIÓN"]
["6300120081 541A","E0688-UNID. PROXECTO, ARQUITECTURA E CIDADE- PROF. PEÑA PEREDA","6300120081","541A","INVESTIGACIÓN"]
["63001240 122B","DEPARTAMENTO DE REPRESENTACIÓN E TEORÍA ARQUITECTÓNICA","63001240","122B","BIBLIOTECAS"]
["63001240 422D","DEPARTAMENTO DE REPRESENTACIÓN E TEORÍA ARQUITECTÓNICA","63001240","422D","ENSINANZA UNIVERSITARIA"]
["63001240 541A","DEPARTAMENTO DE REPRESENTACIÓN E TEORÍA ARQUITECTÓNICA","63001240","541A","INVESTIGACIÓN"]
["6300124001 422D","GRADUADOENARQUITECTURADEINTERIORES.FRANCOTABOADA.","6300124001","422D","ENSINANZA UNIVERSITARIA"]
["6300124002 422D","TÍTULO UNIVERS. EN ARQUIT. INTERIORES 2013-2017 PROF. FRANCO TABOADA","6300124002","422D","ENSINANZA UNIVERSITARIA"]
["6300124003 422D","AXU.COMIS.EXT.UNIV.21/11/14,COORD.LIZANCOS MORA,\"MOITAS GRAFIAS,COMUNICAR ARQUITECTURA 2\"","6300124003","422D","ENSINANZA UNIVERSITARIA"]
["6300124005 422D","GRADUADOARQUIT.INTERIORES.PROF.FRANCOTABOADA(2010-2013.10ªPROM","6300124005","422D","ENSINANZA UNIVERSITARIA"]
["6300124006 422D","GRADUAD.ARQUIT.INTERIO.PR.FRANCOTABOADA(11ªPR.2011-2014","6300124006","422D","ENSINANZA UNIVERSITARIA"]
["6300124007 422D","C.VERÁN 14 -PROF. LIZANCOS MORA \"PROCESOS HABITADOS. AS ARQUITEC. NAS QUE VIVIEN O O?\"","6300124007","422D","ENSINANZA UNIVERSITARIA"]
["6300124008 541A","EGA REVISTA  DE EXPRESIÓN GRÁFICA ARQUITECTÓNICA. DPTO REPRES. E Tª ARQUITECTÓNICA","6300124008","541A","INVESTIGACIÓN"]
["6300124061 541A","G.I.: REPRESENTACIÓN ARQUITECTÓNICA DO PATRIMONIO G000477","6300124061","541A","INVESTIGACIÓN"]
["63001250 122B","DEPARTAMENTO DE TECNOLOXÍA DA CONSTRUCIÓN","63001250","122B","BIBLIOTECAS"]
["63001250 422D","DEPARTAMENTO DE TECNOLOXÍA DA CONSTRUCIÓN","63001250","422D","ENSINANZA UNIVERSITARIA"]
["63001250 541A","DEPARTAMENTO DE TECNOLOXÍA DA CONSTRUCIÓN","63001250","541A","INVESTIGACIÓN"]
["6300125001 422D","XORN.16-PROF.SABIN DIAZ-PERIFERICOS MIRAOIRO TERCEIRO","6300125001","422D","ENSINANZA UNIVERSITARIA"]
["6300125002 422D","XORN.15,PROF.SABÍN DÍAZ,\"SEIS OLLADAS DE PRETO??\"","6300125002","422D","ENSINANZA UNIVERSITARIA"]
["6300125061 541A","G.I ESTRUCTURAS ARQUITECTÓNICAS GEA-G000399","6300125061","541A","INVESTIGACIÓN"]
["63001350 122B","DEPARTAMENTO DE COMPOSICIÓN","63001350","122B","BIBLIOTECAS"]
["63001350 422D","DEPARTAMENTO DE COMPOSICIÓN","63001350","422D","ENSINANZA UNIVERSITARIA"]
["63001350 541A","DEPARTAMENTO DE COMPOSICIÓN","63001350","541A","INVESTIGACIÓN"]
["6300135001 422D","XORN.16-PROF.ALONSO PEREIRA-MODERNIDADE E CONTEMPORANEIDADE NA ARQUITECTURA DE GALICIA IV","6300135001","422D","ENSINANZA UNIVERSITARIA"]
["6300135061 541A","G.I.: TESAURUS DE PATRIMONIO ARTÍSTICO G000363","6300135061","541A","INVESTIGACIÓN"]
["6300135062 541A","G.I.: COMPOSICIÓN ARQUITECTÓNICA E PATRIMONIO  G000376","6300135062","541A","INVESTIGACIÓN"]
["6300135063 541A","G.I.: HISTORIA DA ARQUITECTURA  G000597","6300135063","541A","INVESTIGACIÓN"]
["6300210272 541A","MEYC. PROX.06. REF:MTM2006-14491 PROF.RDGUEZ.SEIJO \" METODOS..","6300210272","541A","INVESTIGACIÓN"]
["6300210496 541A","MINECO 14, REF.BIA2013-42656-P, PROF.ESTÉVEZ CIMADEVILA.FEDER \"SIST.PREFABR.ALTAS PRESTACIÓNS..","6300210496","541A","INVESTIGACIÓN"]
["6300210577 541A","MINECO 17, REF:BIA2016-77184-P,PROF.ESTÉVEZ CIMADEVILA, PROGR.EXCELENCIA","6300210577","541A","INVESTIGACIÓN"]
["6300210578 541A","MINECO 17, REF: BIA2016-79459-R, PROF. PÉREZ VALCARCEL,PROGR.RETOS DA SOCIEDADE","6300210578","541A","INVESTIGACIÓN"]
["6300210579 541A","MINECO 17, REF:MTM2016-78718-P, PROF.RGUEZ.SEIJO, PROGR.EXCELENCIA","6300210579","541A","INVESTIGACIÓN"]
["6300220062 541A","PROX.11.Mº.SNDAD-INSTMUJER-PROF.CARREIROOTERO.\"MUJERE","6300220062","541A","INVESTIGACIÓN"]
["6300270025 541A","PROX.14,FORMOSO FIGUEIRA S.L.(ART.83LOU),PROF.HERMO SÁNCHEZ,(REVERSTOP)CONECTA PEME","6300270025","541A","INVESTIGACIÓN"]
["6300270026 541A","PROX.14,ALUTEC.(ART.83LOU),PROF.HERMO SÁNCHEZ,(REVERSTOP)PRCONECTA PEME","6300270026","541A","INVESTIGACIÓN"]
["6300270027 541A","PROX.14,INST.PARCERO SLU.(ART.83LOU),PROF.HERMO SÁNCHEZ,(REVERSTOP)PR.CONECTA PEME","6300270027","541A","INVESTIGACIÓN"]
["6300430014 422D","CONV.PROX.IACOBUSECOLED'ARCHITEC.PROF.PEÑAPEREDA(ANTESCEBRIÁN)","6300430014","422D","ENSINANZA UNIVERSITARIA"]
["6300430043 422D","CONTR.14- INST. GAL. DE VIVENDA E SOLO- PROF. FERNÁNDEZ MADRID (ART. 83 LOU)","6300430043","422D","ENSINANZA UNIVERSITARIA"]
["6300460001 422D","CONV. 2013- CONCELLO DE LUGO- UDC PROF. PEÑA PEREDA- \"TRAB. TEORICO E INV. EMPRAZ. DE INT\"","6300460001","422D","ENSINANZA UNIVERSITARIA"]
["6300460006 422D","CONV.2016,CONCELLO OURENSE,PROF.CRESPO GZLEZ. DESENV?.EMPRAZAM INTERESE TERMAL","6300460006","422D","ENSINANZA UNIVERSITARIA"]
["6300460011 422D","CONV.2017.CONCELLO DE REDONDELA.PROF. VÁZQUEZ MOSQUERA E RAPOSO ARCEO. ASIST. TÉCNICA.","6300460011","422D","ENSINANZA UNIVERSITARIA"]
["6300460067 422D","CONV. 14- CONCELLO DE POIO-UDC- PROF. PEÑA PEREDA \"TRAB. SOBRE INTERESE URBA. DE COMBARRO\"","6300460067","422D","ENSINANZA UNIVERSITARIA"]
["6300490012 422D","CONV.08,ADENDA 14.FUNDACIO UNIV.OBERTA CATALUNYA.PROF.GARITAONAINDÍA DE VERA","6300490012","422D","ENSINANZA UNIVERSITARIA"]
["6300630001 422D","C.VERAN 2016-PROF.SABIN DIAZ-REFUXIADOS E DESPRAZADOS INERNOS.SOLUCIONS DE ALOXAMENTO","6300630001","422D","ENSINANZA UNIVERSITARIA"]
["6300630002 422D","XORN.16-ETSA-ARTE + ARQUITECTURA","6300630002","422D","ENSINANZA UNIVERSITARIA"]
["6300630003 422D","TALLER DE MAQUETAS E OBRADOIRO DE FABRIC.DIXITAL.PROF. VÁZQUEZ RGUEZ.","6300630003","422D","ENSINANZA UNIVERSITARIA"]
["6300630004 422D","BONO OFAB (TENDA  UDC). ETSA","6300630004","422D","ENSINANZA UNIVERSITARIA"]
["6300630005 422D","AX.CURSO VERÁN 2017,MOD.B.PROF.MTNEZ. SUÁREZ,OBRADOIROS MORFOLIXÍA URBANA","6300630005","422D","ENSINANZA UNIVERSITARIA"]
["6300630006 422D","AX.CURSO VERÁN 2017,MOD.B.PROF.VÁZQUEZ MOSQUERA,LUGARES SINGULARES, XERME?.","6300630006","422D","ENSINANZA UNIVERSITARIA"]
["6300630007 422D","CONGR 2016 ARCADIA IV .PROF.CASARES GALLEGO","6300630007","422D","ENSINANZA UNIVERSITARIA"]
["6300630008 422D","CURSO VERAN 16,MOD.D,PROF.VÁZQUEZ MOSQUERA,O FIN DO RÍO...","6300630008","422D","ENSINANZA UNIVERSITARIA"]
["6300630012 541A","MISASSEIG.12- ACC. COMPLE. REF:37/AC1- PROF. CARREIRO OTERO \"LA MUJER EN EL ÁMBITO..\"","6300630012","541A","INVESTIGACIÓN"]
["6300630013 422D","CURSO.13 PROF. VÁZQUEZ RODRÍGUEZ \"OPTIMIZ. DEL ENTORNO DE TRB. USO DE HERRA. INFO.\"","6300630013","422D","ENSINANZA UNIVERSITARIA"]
["6300630014 422D","CUR.13- PROF. VAZQUEZ RODRIGUEZ \"TALLER DE EMPLEABILIDADE: FERRAM¿¿ \"","6300630014","422D","ENSINANZA UNIVERSITARIA"]
["6300630015 422D","CURS.13 - PROF. VAZQUEZ RÓDRIGUEZ \" CURSO RHINO NIVEL 1-2\"","6300630015","422D","ENSINANZA UNIVERSITARIA"]
["6300630016 422D","AX.C.EXT.UN.6/11/13.PROF.ALONSO PEREIRA,MODERN,E CONT.ARQ.GALICIA II","6300630016","422D","ENSINANZA UNIVERSITARIA"]
["6300630017 422D","AX.C.EXT.UN.6/11/13.PROFPÉREZ VALCÁRCEL,ESTRUCT.TRANSFORMABLES","6300630017","422D","ENSINANZA UNIVERSITARIA"]
["6300630018 422D","CURSO.14 - PROF. VAZQUEZ RODRIGUEZ \"MODO BIM ON, REVIT NIVEL I","6300630018","422D","ENSINANZA UNIVERSITARIA"]
["6300630019 422D","XORN.14- PROF. AGRASAR QUIROGA \"OS TERRIT. DOS ARQUITECTOS. NOVAS PERSPECT\"","6300630019","422D","ENSINANZA UNIVERSITARIA"]
["6300630020 422D","XORN.2015, PROF. AGRASAR QUIROGA  2ª EDIC.\"OS TERRIT. DOS ARQUITECTOS. NOVAS PERSPECT\"","6300630020","422D","ENSINANZA UNIVERSITARIA"]
["6300630021 422D","CURSO.16. PROF. ESTÉVEZ CIMADEVILA \"CURSO DE FORMACIÓN CADWORK-CLT\"","6300630021","422D","ENSINANZA UNIVERSITARIA"]
["6300630022 422D","CURSO.16. PROF. VAZQUEZ RODRIGUEZ \"OBRADOIRO DE FABRICACIÓN. CURSO CORTE LÁSER\"","6300630022","422D","ENSINANZA UNIVERSITARIA"]
["6300630023 541A","AX.C.I.26/10/16,PROF.PERNAS ALONSO,ENCONTRO:APROXIM.METOD.ESTUDO VIVENDA","6300630023","541A","INVESTIGACIÓN"]
["6300630050 422D","PROGRAMA O TEU FUTURO EN BOAS MANS.ETSA","6300630050","422D","ENSINANZA UNIVERSITARIA"]
["6300C01318 422D","CURSO OS ESPAZOS INTERMEDIOS RESP:CARREIRO OTERO","6300C01318","422D","ENSINANZA UNIVERSITARIA"]
["6300C01818 422D","C.VERAN PERIFÉRICOS MIRADOIRO CUARTO RESP: SABÍN DÍAZ","6300C01818","422D","ENSINANZA UNIVERSITARIA"]
["6300C02618 422D","C.VERÁN ESTRADA-RÚA:XERME DE URBANIDADE.ESTRATEX.DE REHAB.RIANXO 5.RESP:VÁZQ.MOSQUERA","6300C02618","422D","ENSINANZA UNIVERSITARIA"]
["6300D161 422D","DEPARTAMENTO DE CONSTRUCCIÓNS E ESTRUTURAS ARQUITECTÓNICAS, CIVÍS E AERONÁUTICAS","6300D161","422D","ENSINANZA UNIVERSITARIA"]
["6300D161 541A","DEPARTAMENTO DE CONSTRUCCIÓNS E ESTRUTURAS ARQUITECTÓNICAS, CIVÍS E AERONÁUTICAS","6300D161","541A","INVESTIGACIÓN"]
["6300D16101 422D","AXUD.UDC, XORN.C.CONF. 2017,PROF.SABÍN DÍAZ, SEIS OLLADAS DE PRETO","6300D16101","422D","ENSINANZA UNIVERSITARIA"]
["6300D168 422D","DEPARTAMENTO DE EXPRESIÓN GRÁFICA ARQUITECTÓNICA","6300D168","422D","ENSINANZA UNIVERSITARIA"]
["6300D168 541A","DEPARTAMENTO DE EXPRESIÓN GRÁFICA ARQUITECTÓNICA","6300D168","541A","INVESTIGACIÓN"]
["6300D171 422D","DEPARTAMENTO DE PROXECTOS ARQUITECTÓNICOS, URBANISMO E COMPOSICIÓN","6300D171","422D","ENSINANZA UNIVERSITARIA"]
["6300D171 541A","DEPARTAMENTO DE PROXECTOS ARQUITECTÓNICOS, URBANISMO E COMPOSICIÓN","6300D171","541A","INVESTIGACIÓN"]
["6300D17101 422D","AXUD.UDC,XORN. E C.CONF. 2017,PROF.ALONSO PEREIRA,MODERN.E CONTEMP.NA ARQUIT,DE GALICIA V","6300D17101","422D","ENSINANZA UNIVERSITARIA"]
["6300D17102 422D","AXUD.UDC,XORN.2017,PROF.CREUS ANDRADE, V XORN.SOBRE INVEST.URBANA","6300D17102","422D","ENSINANZA UNIVERSITARIA"]
["6300D171C1 422D","2018 VI XORN.INVEST.URB:ESPACIOS EN TRÁNSITO (5º DESCENSO URB.DENDE ETSAC)RESP:CREUS ANDR","6300D171C1","422D","ENSINANZA UNIVERSITARIA"]
["6300G37679 541A","Composición Arquitectónica e Patrimonio Fernando Agrasar Quiroga (G000376)","6300G37679","541A","INVESTIGACIÓN"]
["6300G39979 541A","Grupo de Estruturas Arquitectónicas Javier Estévez Cimadevila (G000399)","6300G39979","541A","INVESTIGACIÓN"]
["6300G47779 541A","Representación Arquitectónica do Patrimonio Antonio Gonzalo Amado Lorenzo (G000477)","6300G47779","541A","INVESTIGACIÓN"]
["6300G59779 541A","Historia da Arquitectura José Ramón Alonso Pereira (G000597)","6300G59779","541A","INVESTIGACIÓN"]
["6300G62779 541A","Sistemas Construtivos e Rehabilitación José Benito Rodríguez Cheda (G000627)","6300G62779","541A","INVESTIGACIÓN"]
["6300G63679 541A","Galicia cidade e territorio Juan José Creus Andrade (G000636)","6300G63679","541A","INVESTIGACIÓN"]
["6300G66279 541A","Arquitectura e Urbanismo Sostible Xosé Lois Martínez Suárez (G000662)","6300G66279","541A","INVESTIGACIÓN"]
["6300I70479 541A","COSTA BUJÁN, PABLO (I000704)","6300I70479","541A","INVESTIGACIÓN"]
["6300PIDM 422D","ETSA PROMOCIÓN, INFORMACIÓN E DIVULGACIÓN DE MESTRADOS","6300PIDM","422D","ENSINANZA UNIVERSITARIA"]
["6300U68879 541A","Proxecto, Arquitectura e Cidade Luis Walter Muñoz Fontela (E000688)","6300U68879","541A","INVESTIGACIÓN"]
["6310 122B","ESCOLA TÉCNICA SUPERIOR DE NÁUTICA E MÁQUINAS","6310","122B","BIBLIOTECAS"]
["6310 300C","ESCOLA TÉCNICA SUPERIOR DE NÁUTICA E MÁQUINAS","6310","300C","CENTROS"]
["6310 422D","ESCOLA TÉCNICA SUPERIOR DE NÁUTICA E MÁQUINAS","6310","422D","ENSINANZA UNIVERSITARIA"]
["6310 541A","ESCOLA TÉCNICA SUPERIOR DE NÁUTICA E MÁQUINAS","6310","541A","INVESTIGACIÓN"]
["63100VFA 300C","ETS NÁUTICA E MÁQUINAS. VIAXES FORMACIÓN ALUMNADO","63100VFA","300C","CENTROS"]
["63101490 122B","DEPARTAMENTO DE CIENCIAS DA NAVEGACIÓN E DA TERRA","63101490","122B","BIBLIOTECAS"]
["63101490 422D","DEPARTAMENTO DE CIENCIAS DA NAVEGACIÓN E DA TERRA","63101490","422D","ENSINANZA UNIVERSITARIA"]
["63101490 541A","DEPARTAMENTO DE CIENCIAS DA NAVEGACIÓN E DA TERRA","63101490","541A","INVESTIGACIÓN"]
["6310149001 541A","CONTRATO UDC-AIR HOSTESS.ACT.INVEST.E FORMAC.P.GEA","6310149001","541A","INVESTIGACIÓN"]
["6310149061 541A","G.I.: CAMBIO AMBIENTAL G000147","6310149061","541A","INVESTIGACIÓN"]
["6310149081 541A","E671-CART.NAÚTICA E NAVEG.LÓPEZ VARELA","6310149081","541A","INVESTIGACIÓN"]
["63101510 122B","DEPARTAMENTO DE ENERXÍA E PROPULSIÓN MARIÑA","63101510","122B","BIBLIOTECAS"]
["63101510 422D","DEPARTAMENTO DE ENERXÍA E PROPULSIÓN MARIÑA","63101510","422D","ENSINANZA UNIVERSITARIA"]
["63101510 541A","DEPARTAMENTO DE ENERXÍA E PROPULSIÓN MARIÑA","63101510","541A","INVESTIGACIÓN"]
["6310151061 541A","G.I.: ENERXÍA E PROPULSIÓN G000492","6310151061","541A","INVESTIGACIÓN"]
["6310210354 541A","PROX.09.PROF.MANTEIGA OUTEIRO REF:AYA2009-14648-C02-02,MICIIN","6310210354","541A","INVESTIGACIÓN"]
["6310210457 541A","MINECO.12-REF.AYA2012-39551-C02-02- PROF. MANTEIGA OUTEIRO \"DES. DE APLIC. B. EN INT. ART","6310210457","541A","INVESTIGACIÓN"]
["6310210480 541A","MINECO 13-REF.ESP2013-48318-C2-2-R-PROF.MANTEIGA OUTEIRO","6310210480","541A","INVESTIGACIÓN"]
["6310210517 541A","MINECO 15,REF:ESP2014-55996-C2-2-R.FEDER.PROF.MANTEIGA OUTEIRO.MOD.1:RETOS INVEST.TEC.INTELX.","6310210517","541A","INVESTIGACIÓN"]
["6310430009 422D","CONTR.2016- CONSORCIO ITMATI (INST. TEC. MATEMAT.INDUS. - PROF. CAO RIAL (ART. 83 LOU)","6310430009","422D","ENSINANZA UNIVERSITARIA"]
["6310430009 541A","CONTR.2016- CONSORCIO ITMATI (INST. TEC. MATEMAT.INDUS. - PROF. CAO RIAL (ART. 83 LOU)","6310430009","541A","INVESTIGACIÓN"]
["6310470017 422D","CONTR.16,TECNOL. E SERV.AGRARIOS S.A.,PROF.ROMERO GÓMEZ (ART.83 LOU)","6310470017","422D","ENSINANZA UNIVERSITARIA"]
["6310470024 422D","CONTR. 2016- TECNOLOGIAS Y SERV. AGRARIOS, SA- PROF. SALGADO DON (ART. 83 LOU)","6310470024","422D","ENSINANZA UNIVERSITARIA"]
["6310631001 422D","REVALID.DETARXETASPROFESDAMARINAMERC-ETS.DENAUTICAEMAQUINAS","6310631001","422D","ENSINANZA UNIVERSITARIA"]
["6310631002 422D","MEC ACC.COMPL.MANTEIGA OUTEIRO, AYA2007-28639-E","6310631002","422D","ENSINANZA UNIVERSITARIA"]
["6310631003 422D","CURSO 2013, BUQUES TANQUE.COORD.BAALIÑA INSUA","6310631003","422D","ENSINANZA UNIVERSITARIA"]
["6310631004 422D","AX.CURSO VERÁN 2017,MOD.B.PROF.RGUEZ. ARÓS,INTROD. Á ASTRONOMÍA VISUAL E FOTOGR.","6310631004","422D","ENSINANZA UNIVERSITARIA"]
["6310631007 541A","AXUD.C.I.24/05/12-PROF.LOPEZVARELA\"ANALISEDAVIABILID.USOPROXECCS.CARTOGRAFS.\"","6310631007","541A","INVESTIGACIÓN"]
["6310631008 422D","CURSO.13 \"ARPA\" - RADAR DE PUNTEO AUTOMÁTICO- PROF. BAALIÑA INSUA","6310631008","422D","ENSINANZA UNIVERSITARIA"]
["6310631009 422D","CURSO 2013, GASEROS.COORD.BAALIÑA INSUA","6310631009","422D","ENSINANZA UNIVERSITARIA"]
["6310631010 422D","CURSO 2014, QUIMIQUEROS.COORD.BAALIÑA INSUA","6310631010","422D","ENSINANZA UNIVERSITARIA"]
["6310631011 422D","CURSO 2014- CURSO DE FORM. BÁSICA EN PROTECC. MARÍTIMA- PROF. BAALIÑA INSUA","6310631011","422D","ENSINANZA UNIVERSITARIA"]
["6310631012 422D","Curso Básico de Riesgos Laborales","6310631012","422D","ENSINANZA UNIVERSITARIA"]
["6310631013 422D","PRÁCTICAS ALUMNADO, E.T.S.NAÚTICA E MÁQUINAS","6310631013","422D","ENSINANZA UNIVERSITARIA"]
["6310631014 422D","CURSOS PROFESIONAIS. COORD.BAALIÑA INSUA","6310631014","422D","ENSINANZA UNIVERSITARIA"]
["6310631015 422D","CURSOS MARLINS. COORD.LOURO RGUEZ.","6310631015","422D","ENSINANZA UNIVERSITARIA"]
["6310631016 422D","CURSO VERAN 2016-PROF.RGUEZ.AROS-CURSO BASICO ASTRONOMIA VISUAL E FOTOGRAFICA","6310631016","422D","ENSINANZA UNIVERSITARIA"]
["6310631050 422D","PROGRAMA O TEU FUTURO EN BOAS MANS.ETS. NAÚTUCA E MÁQ.","6310631050","422D","ENSINANZA UNIVERSITARIA"]
["6310C00318 422D","CURSOS  PROFESIONAIS .ETS NAÚTICA E MÁQUINAS. DTOR.LOZÁN LAGO","6310C00318","422D","ENSINANZA UNIVERSITARIA"]
["6310C02718 422D","C.VERÁN INTRODUC. Á ASTRONOMÍA VISUAL E FOTOGRÁFICA (2ª EDIC.) RESP:RODRÍGUEZ ARÓS","6310C02718","422D","ENSINANZA UNIVERSITARIA"]
["6310D160 422D","DEPARTAMENTO DE CIENCIAS DA NAVEGACIÓN E ENXEÑERÍA MARIÑA","6310D160","422D","ENSINANZA UNIVERSITARIA"]
["6310D160 541A","DEPARTAMENTO DE CIENCIAS DA NAVEGACIÓN E ENXEÑERÍA MARIÑA","6310D160","541A","INVESTIGACIÓN"]
["6310G49279 541A","Enerxía e Propulsión José Antonio Orosa García (G000492)","6310G49279","541A","INVESTIGACIÓN"]
["6310I48779 541A","DE LA CAMPA PORTELA, ROSA MARY (I000487)","6310I48779","541A","INVESTIGACIÓN"]
["6310I51679 541A","IGLESIAS BANIELA, SANTIAGO (I000516)","6310I51679","541A","INVESTIGACIÓN"]
["6310I61779 541A","LOURO RODRÍGUEZ, JULIO (I000617)","6310I61779","541A","INVESTIGACIÓN"]
["6310PIDM 422D","ETS NÁUTICA E MÁQUINAS. PROMOCIÓN, INFORMACIÓN E DIVULGACIÓN MESTRADOS","6310PIDM","422D","ENSINANZA UNIVERSITARIA"]
["6320 122B","ESCOLA TÉCNICA SUPERIOR DE ENXEÑEIROS DE CAMIÑOS, CANAIS E PORTOS","6320","122B","BIBLIOTECAS"]
["6320 300C","ESCOLA TÉCNICA SUPERIOR DE ENXEÑEIROS DE CAMIÑOS, CANAIS E PORTOS","6320","300C","CENTROS"]
["6320 422D","ESCOLA TÉCNICA SUPERIOR DE ENXEÑEIROS DE CAMIÑOS, CANAIS E PORTOS","6320","422D","ENSINANZA UNIVERSITARIA"]
["6320 541A","ESCOLA TÉCNICA SUPERIOR DE ENXEÑEIROS DE CAMIÑOS, CANAIS E PORTOS","6320","541A","INVESTIGACIÓN"]
["63200VFA 300C","ETS CAMIÑOS, CANAIS E PORTOS. VIAXES FORMACIÓN ALUMNADO","63200VFA","300C","CENTROS"]
["63201390 122B","DEPARTAMENTO DE MÉTODOS MATEMÁTICOS E DE REPRESENTACIÓN","63201390","122B","BIBLIOTECAS"]
["63201390 541A","DEPARTAMENTO DE MÉTODOS MATEMÁTICOS E DE REPRESENTACIÓN","63201390","541A","INVESTIGACIÓN"]
["6320139061 541A","G.I.: MÉTODOS NUMÉRICOS EN ENXEÑARÍA G000177","6320139061","541A","INVESTIGACIÓN"]
["6320139062 541A","G.I.: FERROCARRÍS E TRANSPORTES G000284","6320139062","541A","INVESTIGACIÓN"]
["6320139081 541A","E292-,GR MODELIZ.E RESOL MODELOS- RGUEZ SEIJO","6320139081","541A","INVESTIGACIÓN"]
["6320139082 541A","E67-VISUAL AVAN.ENXEÑ CIVIL.HDEZ.IBAÑEZ","6320139082","541A","INVESTIGACIÓN"]
["6320210247 541A","PROX.06 PROF. MEDINA RGUEZ ,BIA2006-14742-C02-02, \"UTILIZACIÓN","6320210247","541A","INVESTIGACIÓN"]
["6320210249 541A","PROX..06.NOVALES ORDAX,REF TRA2006.13115...LLANTAS FERROV","6320210249","541A","INVESTIGACIÓN"]
["6320210253 541A","PROX.06,PROF.CASTELEIRO MALDONADO, REF:DPI2006-15275. DESEÑO OPTIM","6320210253","541A","INVESTIGACIÓN"]
["6320210285 541A","PROX.07,PROF. COLOMINAS EZPONDA,MEC ,DPI2007-61214, DESEÑO AVANZADO?","6320210285","541A","INVESTIGACIÓN"]
["6320210300 541A","PROX,07,MEC, PROF. HERNANDEZ IBANEZ, REF: BIA2007-66998","6320210300","541A","INVESTIGACIÓN"]
["6320210372 541A","PROX.09.PROF.CASTELEIROMALDONADO.,REF:DPI2009-14546-C02-01,MICIIN,","6320210372","541A","INVESTIGACIÓN"]
["6320210380 541A","PROX.10.MICNIN-PROF.JURADOALBARRACIN-REF.BIA2010-19989-\"ANAL.OPTM.AERO...\"","6320210380","541A","INVESTIGACIÓN"]
["6320210383 541A","PROX.10.MICNIN-PROF.MARTINEZABELLA-REF.BIA2010-21551\"ADHEREN.EANCLAJE...\"","6320210383","541A","INVESTIGACIÓN"]
["6320210393 541A","PROX.10.MICNIN-PROF.COLOMINASEZPONDA-REF.DPI2010-16496\"MOD.DESIMUL.NUMER¿\"","6320210393","541A","INVESTIGACIÓN"]
["6320210405 541A","PROX.10.MICIIN-PROF.HERNÁNDEZIBÁÑEZ-REF:DPI2010-16238\"DISEÑOOPTIMODECOMP¿.\"","6320210405","541A","INVESTIGACIÓN"]
["6320210416 541A","PROX.11.MICIIN-PROF.CEAGÓMEZREF:CGL2011-28499-C03-03","6320210416","541A","INVESTIGACIÓN"]
["6320210443 541A","PROX.11.MICIIN-PROF.NOVALESORDAX-TRA2011-27913","6320210443","541A","INVESTIGACIÓN"]
["6320210455 541A","MINECO.12-REF.CGL2012-36560- PROF. SAMPER CALVETE \"MOD. DE CALCULO TRANSP. REACT.\"","6320210455","541A","INVESTIGACIÓN"]
["6320210456 541A","MINECO.12-REF.DPI2012-33622- PROF. NAVARRINA MARTINEZ \"TEC. AVANZ. DE OPTIMIZACIÓN .\"","6320210456","541A","INVESTIGACIÓN"]
["6320210477 541A","MINECO 13-REF.CGL2013-46245-R-PROF.CEA GÓMEZ.","6320210477","541A","INVESTIGACIÓN"]
["6320210478 541A","MINECO 13-REF.DPI2013-41893-R-PROF. DÍAZ GARCÍA.","6320210478","541A","INVESTIGACIÓN"]
["6320210479 541A","MINECO 13-REF.DPI2013-44406-R-PROF. GÓMEZ DÍAZ","6320210479","541A","INVESTIGACIÓN"]
["6320210497 541A","MINECO 14, REF.BIA2013-41965-P, PROF.JURADO ALBARRACÍN.FEDER \"OPTIMIZ.SIMULT.AEROELASTI","6320210497","541A","INVESTIGACIÓN"]
["6320210516 541A","MINECO 15.REF:BIA2014-58063-R.FEDER.PROF.GZLEZ.FONTEBOA.MOD.1:RETOS INVEST.HORMIGONES RECIC","6320210516","541A","INVESTIGACIÓN"]
["6320210535 541A","MINECO 16 REF:BIA2015-64672-C4-2-R,PROF.HERRADOR BARRIOS,PROGR.RETOS DA SOCIEDADE","6320210535","541A","INVESTIGACIÓN"]
["6320210539 541A","MINECO 16,REF.:DPI2015-68431-R, PROF.NAVARRINA MTNEZ., PROGR.RETOS DA SOCIEDADE","6320210539","541A","INVESTIGACIÓN"]
["6320210540 541A","MINECO 16,REF.:CGL2015-69094-R, PROF.ANTA ÁLVAREZ., PROGR.RETOS DA SOCIEDADE","6320210540","541A","INVESTIGACIÓN"]
["6320210566 541A","MINECO 17,REF:CGL2016-78281-R,PROF. SAMPER CALVETE,PROGR. RETOS DA SOCIEDADE","6320210566","541A","INVESTIGACIÓN"]
["6320210589 541A","MINECO 17,REF:BIA2016-76656-R,PROFS.JURADO E NIETO .PR.RETOS  SOCIEDADE","6320210589","541A","INVESTIGACIÓN"]
["6320210591 541A","MINECO 17,REF.DPI2016-76934-R,PROF. DÍAZ GARCÍA, PROGR. RETOS DA SOCIEDADE","6320210591","541A","INVESTIGACIÓN"]
["6320210613 541A","MEIC 18,REF:BIA2017-85657-R,PROF.GZLEZ.FONTEBOA.PROGR.RETOS","6320210613","541A","INVESTIGACIÓN"]
["6320210618 541A","MEIC 18,REF:CTM2017-85171-C2-2-R,PROF.CEA GÓMEZ,PROGR.RETOS SOCIEDADE","6320210618","541A","INVESTIGACIÓN"]
["6320210623 541A","MEIC 18,REF:BIA2017-87066-R,PROF.DELGADO MARTIN.PROGR.RETOS SOCIEDADE","6320210623","541A","INVESTIGACIÓN"]
["6320220039 541A","PROX.08,PROF.ORROARCAY,MºFOM.CENIT.\"SIMETRIA\",(UDCENTID.PARTIC.)","6320220039","541A","INVESTIGACIÓN"]
["6320220059 541A","PROX.AECID.11.PROF.VARELAGARCÍA,AP/040801/11","6320220059","541A","INVESTIGACIÓN"]
["6320220067 541A","Mº INTER.D.G.T,2015,PROF.VARELA GARCÍA,REF:SPIP2015-01867 \"ESTUDO DINAM.MOVILID.ESCOLAR ?.","6320220067","541A","INVESTIGACIÓN"]
["6320220069 541A","MºINTER.DGT 2017 PROX.PROF.VARELA GARCÍA,REF:SPIP2017-02340 ANAL.INDICAD.BIG GEO-DATA","6320220069","541A","INVESTIGACIÓN"]
["6320230005 541A","UNIV.SANTIGO DE C.,PROF.VARELA GARCÍA,PROX.\"ECUIDIT II\"  .(XUNTA REF:2014/PG092)","6320230005","541A","INVESTIGACIÓN"]
["6320230009 541A","PROX.06,CEDEX,PROF. RGUEZ.BUGARIN, ...INTEGR. MARITIMO -FERROVIARIA?UDC LIDER.","6320230009","541A","INVESTIGACIÓN"]
["6320240006 541A","XUNTA-ASOC.ENXEÑ.SEN FRONTEIRAS GALICIA AGRUPADA COA UDC,AX.2017,PROX.PROF.VARELA GARCÍA","6320240006","541A","INVESTIGACIÓN"]
["6320242035 541A","XUNTA10.PROF.SAMPERCALVETE.PROGR.SECT.REF:10MDS118028PR","6320242035","541A","INVESTIGACIÓN"]
["6320242103 541A","XUNTA2011,PROF.COLOMINASEZPONDA,MOD.GRUP.REF.COMPETITIVA","6320242103","541A","INVESTIGACIÓN"]
["6320242311 541A","XUNTA 13 C.ED.PROF HERNÁNDEZ IBÁÑEZ.Nº:GRC2013-056,GR.REF.COMP","6320242311","541A","INVESTIGACIÓN"]
["6320242320 541A","XUNTA 13 C.ED.PROF.MTNEZ ABELLA.Nº:GPC2013-059,GR.POT.CRECEM.","6320242320","541A","INVESTIGACIÓN"]
["6320242409 541A","XUNTA 14 C.CULT.,EDUC.PROF.COLOMINAS EZPONDA Nº GRC2014/039,GRUP.REF.COMP","6320242409","541A","INVESTIGACIÓN"]
["6320242419 541A","XUNTA 14 C.CULT.,EDUC.PROF.PÉREZ PÉREZ Nº GPC2014/050,GRUP.P.CR.","6320242419","541A","INVESTIGACIÓN"]
["6320242606 541A","XUNTA 16.C.CULY-EDU E OU,PROF. MTNEZ ABELLA, Nº EXP.:ED431B 2016/060 GR.POTENC.CRECEMENTO","6320242606","541A","INVESTIGACIÓN"]
["6320242705 541A","XUNTA 17-C.EDU E C.ECO- PROF. HERNÁNDEZ IBAÑEZ -ED431C 2017/72","6320242705","541A","INVESTIGACIÓN"]
["6320242722 541A","XUNTA 17-C. PRES E ADMIN PUB E XUSTIZA. PROF: PEÑA GONZÁLEZ PR815A 2017/5","6320242722","541A","INVESTIGACIÓN"]
["6320250031 541A","PROX.AXUDAS APOIO UDC.PROF. PÉREZ ORDÓÑEZ,(C.PEME-AUSC.TALLER INGENIERÍA)","6320250031","541A","INVESTIGACIÓN"]
["6320250032 541A","PROX.AXUDAS APOIO UDC.PROF. PÉREZ ORDÓÑEZ,(C.PEME-INV.CONTROL SL)","6320250032","541A","INVESTIGACIÓN"]
["6320250033 541A","PROX.AXUDAS APOIO UDC.PROF. PÉREZ ORDÓÑEZ,(C.PEME-INDUTEC ING.SL)","6320250033","541A","INVESTIGACIÓN"]
["6320250034 541A","PROX.AXUDAS APOIO UDC.PROF. PÉREZ ORDÓÑEZ,(C.PEME-ECOSIST.2000.SL)","6320250034","541A","INVESTIGACIÓN"]
["6320250035 541A","PROX.AXUDAS APOIO UDC.PROF. MTNEZ.ABELLA(C.PEME-ATI SIST.SL)","6320250035","541A","INVESTIGACIÓN"]
["6320250090 541A","PROX.AXUDAS APOIO UDC.PROF. MTNEZ.ABELLA(C.PEME-K2 EST.ING. SL)","6320250090","541A","INVESTIGACIÓN"]
["6320250091 541A","PROX.AXUDAS APOIO UDC.PROF. MTNEZ.ABELLA(C.PEME-GALAICONTROL)","6320250091","541A","INVESTIGACIÓN"]
["6320270031 541A","PROX.14,AUSCULTACIÓN Y TALLER INGENIERIA S.A.(ART.83 LOU) PROF. PÉREZ ORDÓÑEZ,PROG.CONEC.PEME. PROX.GESTDAM","6320270031","541A","INVESTIGACIÓN"]
["6320270032 541A","PROX.14,INVESTIG.Y CONTROL LUGO,S.L.(ART.83 LOU) PROF. PÉREZ ORDÓÑEZ,PROG.CONEC.PEME. PROX. GESTDAM","6320270032","541A","INVESTIGACIÓN"]
["6320270033 541A","PROX.14,INDUTEC INGENIEROS,SLU(ART.83 LOU) PROF. PÉREZ ORDÓÑEZ,PROG.CONEC.PEME.PROX.GESTDAM","6320270033","541A","INVESTIGACIÓN"]
["6320270034 541A","PROX.14,ECOSISTEMAS 2000,S.L.(ART.83 LOU) PROF. PÉREZ ORDÓÑEZ,PROG.CONEC.PEME,PROX.GESTDAM","6320270034","541A","INVESTIGACIÓN"]
["6320270035 541A","PROX.14,ATI SISTEMAS S.L.(ART.83 LOU) PROFs.MTNEZ ABELLA,GZLEZ FONTEBOA.PR.CONEC.PEME.PROX.INHORMES","6320270035","541A","INVESTIGACIÓN"]
["6320280001 541A","ACCIÓNCOORD.SAMPERCALVETE.COM.EUROPEAENEM-II.REF.FP6-036414.","6320280001","541A","INVESTIGACIÓN"]
["6320280039 541A","PROX.EUROP.09.SAMPERCALVETE\"PEBS\"-LONG-TERMPERFOMANCEOFENGINNE-VIIPROG.","6320280039","541A","INVESTIGACIÓN"]
["6320280062 541A","UN.EU.12-MuSIC-REF:ERC-2012-StG_20111012-PROF.GÓMEZ DÍAZ\"MODELINGANDSIMUL.\"","6320280062","541A","INVESTIGACIÓN"]
["6320280078 541A","UE15,CEBAMA,PROF.SAMPER CALVETE,Nº 662147-H2020-NFRP-06-2014","6320280078","541A","INVESTIGACIÓN"]
["6320290002 541A","PROX.09.GEAR,PROF. MTNEZ.ABELLA.202/PC08/3-03,2,COORD.GERD.GREMIO ENT. RECICL DERRIB.","6320290002","541A","INVESTIGACIÓN"]
["6320440014 541A","CONV.15 XUNTA,C.CULT. PROF.HECTOR GÓMEZ DÍAZ,IP.PROGR.STARTING GRANTS,AX. 3 UNI.GAL","6320440014","541A","INVESTIGACIÓN"]
["6320440018 541A","CONV.17,XUNTA,C.MED.AM-.USC-UDC(COFIN.80%FEDER),PROS.VARELA G.e G. HARGUINDEY,INFR.VERDE G.","6320440018","541A","INVESTIGACIÓN"]
["6320440096 541A","CONV.12XUNTA.C.CULT.PROF.GOMEZDIAZ\"COMPLEM.AXUDALIDERPROG.STARTINGGRANTS\"","6320440096","541A","INVESTIGACIÓN"]
["6320460007 422D","CONTR. 2016,DIPUTAC.CORUÑA,PROF.NÁRDIZ ORTIZ,SERV.ACT?DA EIEL PROV.CORUÑA(F2014) (ART.83 LOU)","6320460007","422D","ENSINANZA UNIVERSITARIA"]
["6320460012 422D","CONV.09.DIPUT.CORUÑA-MODFC.PROX\"MANDEO\"-PORF.PUERTASAGUDO","6320460012","422D","ENSINANZA UNIVERSITARIA"]
["6320460064 422D","DEPUT.2012CONTR.PROF.NARDIZORTIZ\"MANTEMENTOEIELDAPROV.CÑA.\"","6320460064","422D","ENSINANZA UNIVERSITARIA"]
["6320461212 422D","CONV.09.DIPUT.CORUÑA-MODFC.PROX\"MANDEO\"BIS-PORF.SUÁREZ","6320461212","422D","ENSINANZA UNIVERSITARIA"]
["6320470007 422D","CONV.2015, AULA DA COMPAÑÍA DE TRANVIAS DE LA CORUÑA,S.A.PROF.NOVALEX ORDAX.","6320470007","422D","ENSINANZA UNIVERSITARIA"]
["6320470090 541A","CONTR.13 - K2 ESTUDIO DE INGENIERIA, SL- PROF. MARTINEZ ABELLA (ART. 83 LOU)","6320470090","541A","INVESTIGACIÓN"]
["6320470091 541A","CONTR.13- GALAICONTROL SL - PROF. MARTINEZ ABELLA (ART. 83 LOU)","6320470091","541A","INVESTIGACIÓN"]
["6320490003 422D","ACORDO TR.14-AS.ENX.SEN FRONTEIR.VARELA GARCÍA.PROX.HONDURAS.XUNTA AUG","6320490003","422D","ENSINANZA UNIVERSITARIA"]
["6320490011 422D","ACORDO TRAB.15-AS.ENX.SEN FRONTEIR.PR.VARELA GARCÍA.PROX.DIFUSIÓN TECNOLOXÍA...(ART. 83 LOU)","6320490011","422D","ENSINANZA UNIVERSITARIA"]
["6320490015 422D","ACORDO TRAB.15-ASOCIAC,ENX.SEN FRONTEIR.GAL.PROF.VARELA GARCÍA.PROX.EN NASMAR HONDURAS","6320490015","422D","ENSINANZA UNIVERSITARIA"]
["6320490018 422D","ACOR.TRAB.16-ASOC.ENX.SEN FRONTEIR.GAL.PROF.VARELA GARCÍA.3ª FASE-PROX.EN NASMAR HONDUR","6320490018","422D","ENSINANZA UNIVERSITARIA"]
["6320490043 422D","CONV. 12- ENX. SEN FRONTEIRAS-UDC- PROF. VARELA GARCÍA- \"FORT. SOBERANÍA ALIMENT.","6320490043","422D","ENSINANZA UNIVERSITARIA"]
["6320632001 422D","AX.UDC,CICLO CONF.2017,PROF.PENA MOSQUERA,XII CICLO CONF.EXPER.CONSTRUCC.XEST.ENX.CIVIL","6320632001","422D","ENSINANZA UNIVERSITARIA"]
["6320632002 422D","XORN. 14- PROF. VARELA GARCÍA \"APLIC. DAS TECNOL. DA INFORMACIÓN XEOGRÁFICA NA ACC..\"","6320632002","422D","ENSINANZA UNIVERSITARIA"]
["6320632003 422D","C.VERÁN 14- PROF. VÁZQUEZ GONZÁLEZ \"AUGA PARA CONSUMO HUMANO:XESTIÓN DE RR. NATU.\"","6320632003","422D","ENSINANZA UNIVERSITARIA"]
["6320632004 541A","AXUDA C.I.29/04/14 (ENCONTROS) PROF. CASTELEIRO MALDONADO \"REUNIÓN CON LAURA LORENZIS E..","6320632004","541A","INVESTIGACIÓN"]
["6320632005 422D","AXUDA VIC. RR.II.14 - PROF.RODRIGUEZ VELLANDO \"INTERN. MASTER IN WATER ENGINEERING\"","6320632005","422D","ENSINANZA UNIVERSITARIA"]
["6320632006 541A","AX.C.I.22/09/14,PROF.VARELA GARCÍA, SIST.INF.PROD.PROGR.INF.R","6320632006","541A","INVESTIGACIÓN"]
["6320632007 422D","AXUD.COMIS.EXT.UNIVER.21/11/14,COORD.PENA MOSQUERA,\"X CICLO CONF.CONSTR.XEST.ENXEÑAR.CIVIL\"","6320632007","422D","ENSINANZA UNIVERSITARIA"]
["6320632008 541A","AX.PATENTES-PROF.IGNACIO PEREZ PEREZ-\"PROC.LIMPIEZA DE MANCHAS FRESCAS POR DERRAME DE FLUIDOS","6320632008","541A","INVESTIGACIÓN"]
["6320632009 541A","AX.CI.21/04/16 SAMPER CALVETE-V TALLER INTERNACIONAL: SES BENCH V","6320632009","541A","INVESTIGACIÓN"]
["6320632010 541A","AXUDA C.I.04/05/2017,VISITA PROF.VAJA TARIELADZE/CURSO LIE GROUP?PROF.NAVARRINA MTNEZ","6320632010","541A","INVESTIGACIÓN"]
["6320632018 422D","CUR. VERÁN.13- PROF. DELGADO MARTÍN \"CALIDADE DE AUGAS CONTINENT. MOSTREO ¿\"","6320632018","422D","ENSINANZA UNIVERSITARIA"]
["6320632050 422D","PROGRAMA O TEU FUTURO EN BOAS MANS.ETS.E.CAMIÑOS,CANAIS E P.","6320632050","422D","ENSINANZA UNIVERSITARIA"]
["6320ACDO 300C","ESCOLA TÉCNICA SUPERIOR DE CAMIÑOS, CANAIS E PORTOS. ACTIVIDADES CULTURAIS, DEPORTIVAS E OUTRAS","6320ACDO","300C","CENTROS"]
["6320D165 541A","DEPARTAMENTO DE ENXEÑARÍA CIVIL","6320D165","541A","INVESTIGACIÓN"]
["6320G06779 541A","Grupo deVisualización Avanzada e Cartografía Luis Antonio Hernández Ibáñez (G00067)","6320G06779","541A","INVESTIGACIÓN"]
["6320G17779 541A","Grupo de Métodos Numéricos en Enxeñaría Fermín Luis Navarrina Martínez (G000177)","6320G17779","541A","INVESTIGACIÓN"]
["6320G28479 541A","Grupo de Ferrocarrís e Transportes Miguel Rodríguez Bugarín (G000284)","6320G28479","541A","INVESTIGACIÓN"]
["6320I71779 541A","DELGADO MARTÍN,JORGE.FONDOS DE INVESTIGACIÓN. ETS.ENX.CAMIÑOS","6320I71779","541A","INVESTIGACIÓN"]
["6320PIDM 422D","ETS.ENXEÑ. CAMIÑOS,C. E P.PROMOCIÓN,INFORMACIÓN DE DIVULGACIÓN DE MESTRADOS","6320PIDM","422D","ENSINANZA UNIVERSITARIA"]
["6320U29279 541A","Modelización e Resolución de Modelos José M. Rodríguez Seijos (E000292)","6320U29279","541A","INVESTIGACIÓN"]
["6510 122B","FACULTADE DE FISIOTERAPIA","6510","122B","BIBLIOTECAS"]
["6510 300C","FACULTADE DE FISIOTERAPIA","6510","300C","CENTROS"]
["6510 422D","FACULTADE DE FISIOTERAPIA","6510","422D","ENSINANZA UNIVERSITARIA"]
["6510 541A","FACULTADE DE FISIOTERAPIA","6510","541A","INVESTIGACIÓN"]
["65100VFA 300C","FACULTADE DE FISIOTERAPIA. VIAXES FORMACIÓN ALUMNADO","65100VFA","300C","CENTROS"]
["65101450 122B","DEPARTAMENTO DE FISIOTERAPIA","65101450","122B","BIBLIOTECAS"]
["65101450 422D","DEPARTAMENTO DE FISIOTERAPIA","65101450","422D","ENSINANZA UNIVERSITARIA"]
["65101450 541A","DEPARTAMENTO DE FISIOTERAPIA","65101450","541A","INVESTIGACIÓN"]
["6510145001 422D","CICLOCONF.10PROF.LÓPEZGARCÍA\"ACTUALIZACIÓNENFISIOTERAPIARESPIRATORIA\"","6510145001","422D","ENSINANZA UNIVERSITARIA"]
["6510145002 422D","CURSO METOD. DE APOIO Á DOCENCIA -PRÁCTICA EN INGLÉS CURSO 2014/15- DPTO. DE FISIOTERAPIA","6510145002","422D","ENSINANZA UNIVERSITARIA"]
["6510145061 541A","G.I. INTERVENC.PSICOSOCIAL E REHABILIT. FUNCIONAL - G0180-","6510145061","541A","INVESTIGACIÓN"]
["6510145081 541A","E667-UN.INV.FISIOTERÁPIA BASEADA  NA EVIDENCIA-GLEZ.DONIZ","6510145081","541A","INVESTIGACIÓN"]
["6510242423 541A","XUNTA 14 C.CULT.,EDUC.PROF.GZLEZ CABANACH Nº R2014/038,MODAL.REDES","6510242423","541A","INVESTIGACIÓN"]
["6510242724 541A","XUNTA 17-C PRES. E VICEPRES, ADMIN PUB E XUSTIZA. PROF:ROBLES GARCÍA PR 815A 2017/7","6510242724","541A","INVESTIGACIÓN"]
["6510252002 541A","UDC.PROX.COOP.DESV.FONDO0,7%-PROF.JIMENEZDELAMERCED\"ANAL.DIAGNOST.ETERP.\"","6510252002","541A","INVESTIGACIÓN"]
["6510440001 422D","CONTR.13. XUNTA CONS. TRABA. PROF. FERNANDEZ CERVANTES.(ART. 83) \"ELAB. DUN SOPORT.","6510440001","422D","ENSINANZA UNIVERSITARIA"]
["6510600019 422D","PROGR.INT.ADAPT.EEES.PROMOC.MASTEROFIC.07.INTERV.DISCAP.EDEPEND.COORD.GLEZ.CABANACH","6510600019","422D","ENSINANZA UNIVERSITARIA"]
["6510651002 541A","AXUD.C.I.24/05/12-PROF.GONZALEZDONIZ\"EFIC.DAFISIOT.ENPACIENTECONSIN.APNEA\"","6510651002","541A","INVESTIGACIÓN"]
["6510651050 422D","PROGRAMA O TEU FUTURO EN BOAS MANS. FAC. FISIOTERAPIA","6510651050","422D","ENSINANZA UNIVERSITARIA"]
["6510D159 422D","DEPARTAMENTO DE FISIOTERAPIA, MEDICINA E CIENCIAS BIOMÉDICAS","6510D159","422D","ENSINANZA UNIVERSITARIA"]
["6510D159 541A","DEPARTAMENTO DE FISIOTERAPIA, MEDICINA E CIENCIAS BIOMÉDICAS","6510D159","541A","INVESTIGACIÓN"]
["6510G18079 541A","Intervención Psicosocial e Rehabilitación Funcional Ramón González Cabanach (G000180)","6510G18079","541A","INVESTIGACIÓN"]
["6510PIDM 422D","FAC. FISIOTERAPIA PROMOCIÓN, INFORMACIÓN E DIVULGACIÓN DE MESTRADOS","6510PIDM","422D","ENSINANZA UNIVERSITARIA"]
["6520 122B","FACULTADE DE CIENCIAS DA EDUCACIÓN","6520","122B","BIBLIOTECAS"]
["6520 300C","FACULTADE DE CIENCIAS DA EDUCACIÓN","6520","300C","CENTROS"]
["6520 422D","FACULTADE DE CIENCIAS DA EDUCACIÓN","6520","422D","ENSINANZA UNIVERSITARIA"]
["6520 541A","FACULTADE DE CIENCIAS DA EDUCACIÓN","6520","541A","INVESTIGACIÓN"]
["65200VFA 300C","FACULTADE CIENCIAS DA EDUCACIÓN. VIAXES FORMACIÓN ALUMNAD0","65200VFA","300C","CENTROS"]
["65201140 122B","DEPARTAMENTO DE FILOSOFÍA E MÉTODOS DE INVESTIGACIÓN EN EDUCACIÓN","65201140","122B","BIBLIOTECAS"]
["65201140 422D","DEPARTAMENTO DE FILOSOFÍA E MÉTODOS DE INVESTIGACIÓN EN EDUCACIÓN","65201140","422D","ENSINANZA UNIVERSITARIA"]
["65201140 541A","DEPARTAMENTO DE FILOSOFÍA E MÉTODOS DE INVESTIGACIÓN EN EDUCACIÓN","65201140","541A","INVESTIGACIÓN"]
["6520114001 422D","CURSO.15- PROF. MUÑOZ CANTERO \"ESCOLA ÁBACO: APRENDE Y EXPERIMENTA CON ÁBACO?? \"","6520114001","422D","ENSINANZA UNIVERSITARIA"]
["6520114061 541A","G.I.: AVALIACIÓN E CALIDADE EDUCATIVA G000663","6520114061","541A","INVESTIGACIÓN"]
["65201190 122B","DEPARTAMENTO DE PEDAGOXÍA E DIDÁCTICA","65201190","122B","BIBLIOTECAS"]
["65201190 541A","DEPARTAMENTO DE PEDAGOXÍA E DIDÁCTICA","65201190","541A","INVESTIGACIÓN"]
["6520119001 422D","C. DE CERÁN 14- PROF. CANDEDO GUNTURIZ \"VII CURSO TEMÁTICO DE EDUC, INFANTIL DA MARIÑA?\"","6520119001","422D","ENSINANZA UNIVERSITARIA"]
["6520119002 422D","XORN.11-PROF.SÁNCHEZBLANCO,\"IXXORND.SOBREEDUCA.INFANTIL.INVEST.-ACCI.EINNV\"","6520119002","422D","ENSINANZA UNIVERSITARIA"]
["6520119061 541A","G.I.: INNOVACIÓNS EDUCATIVAS G000260","6520119061","541A","INVESTIGACIÓN"]
["6520119062 541A","G.I.: INNOVACIÓN NO ENSINO DAS CIENCIAS E DA MATEMÁTICA G000285","6520119062","541A","INVESTIGACIÓN"]
["6520119063 541A","G.I.: EQUIPO DE INVESTIGACIÓN EDUCATIVA  G000585","6520119063","541A","INVESTIGACIÓN"]
["6520119064 541A","G.I.: POLÍTICA EDUCATIVA, HISTORIA E SOCIEDADE G000625","6520119064","541A","INVESTIGACIÓN"]
["65201210 122B","DEPARTAMENTO DE PSICOLOXÍA","65201210","122B","BIBLIOTECAS"]
["65201210 422D","DEPARTAMENTO DE PSICOLOXÍA","65201210","422D","ENSINANZA UNIVERSITARIA"]
["65201210 541A","DEPARTAMENTO DE PSICOLOXÍA","65201210","541A","INVESTIGACIÓN"]
["6520121003 422D","XORN.2013 PROF. PÁSARO MÉNDEZ\" PSICOLOXÍA HOXE ( 4ª EDICION): EN TORNO Á ADOPCIÓN\"","6520121003","422D","ENSINANZA UNIVERSITARIA"]
["6520121061 541A","G.I.: PERSOA-AMBIENTE G00069","6520121061","541A","INVESTIGACIÓN"]
["6520121062 541A","G.I.: DIAGNÓSTICO MOLECULAR E CONDUTUAL APLICADO Á SAÚDE G000120","6520121062","541A","INVESTIGACIÓN"]
["6520121064 541A","G.I.: PSICOLOXÍA EXPERIMENTAL G000254","6520121064","541A","INVESTIGACIÓN"]
["6520121081 541A","E669-UN.INV.PSICOLOXÍA DA SAÚDE.SIMÓN LÓPEZ","6520121081","541A","INVESTIGACIÓN"]
["6520121082 541A","E0564 - UN- INV. XURÍDICA E PROTECIÓN DO MENOR - PROF. CLEMENTE DÍAZ","6520121082","541A","INVESTIGACIÓN"]
["65201260 122B","DEPARTAMENTO DE DIDÁCTICAS ESPECÍFICAS","65201260","122B","BIBLIOTECAS"]
["65201260 541A","DEPARTAMENTO DE DIDÁCTICAS ESPECÍFICAS","65201260","541A","INVESTIGACIÓN"]
["6520126001 422D","C.VERÁN 2015, RESP.PROF.DIEGUEZ CEQUIEL\", II CURSO CIENCIAS SOCIAIS,EDUC.E SOCIEDADE\"","6520126001","422D","ENSINANZA UNIVERSITARIA"]
["6520126061 541A","GRUP. INV. DIDÁCTICA DAS LINGUAS E CULTURAS G-0697- COORD. COUTO CANTERO","6520126061","541A","INVESTIGACIÓN"]
["65201280 122B","DEPARTAMENTO DE PSICOLOXÍA EVOLUTIVA E DA EDUCACIÓN","65201280","122B","BIBLIOTECAS"]
["65201280 422D","DEPARTAMENTO DE PSICOLOXÍA EVOLUTIVA E DA EDUCACIÓN","65201280","422D","ENSINANZA UNIVERSITARIA"]
["65201280 541A","DEPARTAMENTO DE PSICOLOXÍA EVOLUTIVA E DA EDUCACIÓN","65201280","541A","INVESTIGACIÓN"]
["6520128001 422D","XORN.14 PROF. VALLE ARIAS -\"PSICOLOXÍA HOXE (5ª EDIC.) \"MOTIVACIÓN E APREND. ESCOLAR\"","6520128001","422D","ENSINANZA UNIVERSITARIA"]
["6520128002 422D","XORN.2016,DE ATENCIÓN TEMPERÁ EN GALICIA,PROF. PERNAS, LORENA","6520128002","422D","ENSINANZA UNIVERSITARIA"]
["6520128061 541A","G.I.: PSICOLOXÍA DA EDUCACIÓN G000180","6520128061","541A","INVESTIGACIÓN"]
["6520128062 541A","G.I.: ESTRATEXIAS DE INTERVENCIÓN NA LIGUAXE ORAL E ESCRITA G000271","6520128062","541A","INVESTIGACIÓN"]
["6520128063 541A","G.I.: PSICOLOXÍA DO DESENVOLVEMENTO E DA APRENDIZAXE ESCOLAR G000422","6520128063","541A","INVESTIGACIÓN"]
["6520128064 541A","GRUP. INV. PSICOLOXÍA EDUCATIVA - G0689- COORD. VALLE ARIAS","6520128064","541A","INVESTIGACIÓN"]
["6520128081 541A","E608-PREV.E INTERV.DIFICULT APRENDIZ.NENOS..LÓPEZ LARROSA","6520128081","541A","INVESTIGACIÓN"]
["6520210263 541A","PROX.06.PROF.  VALLE ARIAS. SEJ2006-01518, APLICAC.DUN PROTOCOLO","6520210263","541A","INVESTIGACIÓN"]
["6520210326 541A","PROX.08PROF.TORRESSANTOME.,REF:EDU2008-04858,MºCIENC.INN.","6520210326","541A","INVESTIGACIÓN"]
["6520210403 541A","PROX.10.MICIIN-PROF.PÁSAROMÉNDEZ-REF.PSI2010-15115\"ESTD.DOSPOLIFORMISMOS...\"","6520210403","541A","INVESTIGACIÓN"]
["6520210428 541A","PROX.11.MICIIN-PROF.GARCÍABARROS-EDU2011-27772","6520210428","541A","INVESTIGACIÓN"]
["6520210450 541A","MINECO 12,PROF.NOA FOGELSON.REF:PSI2012-34212. \"CONECTIVIDAD FUNCI","6520210450","541A","INVESTIGACIÓN"]
["6520210461 541A","MINECO.12-REF.EDU2012-39069- PROF. TORRES SANTOMÉ \"VALOR. DO ALUMNADO E PROF..\"","6520210461","541A","INVESTIGACIÓN"]
["6520210499 541A","MINECO 14, REF.EDU2013-44062-P, PROF.VALLE ARIAS, \"RELAC.ENTRE DEBERES ESC. E RENDEM.ACADÉM","6520210499","541A","INVESTIGACIÓN"]
["6520210556 541A","MINECO16 REF:EDU2015-67907-R,PROF.GLEZ.SANMAMED,PROGR.RETOS DA SOCIEDADE","6520210556","541A","INVESTIGACIÓN"]
["6520210596 541A","MINECO 17,REF:EDU2016-79563-R,PROF.GARCÍA BARROS,PROGR.RETOS DA SOCIEDADE","6520210596","541A","INVESTIGACIÓN"]
["6520210611 541A","MEIC 18,REF:EDU2017-82984-P,PROF. VALLE ARIAS,PROGR.EXCELENCIA","6520210611","541A","INVESTIGACIÓN"]
["6520240004 541A","XUNTA-SOLIDARIEDADE.INT.DE GALICIA AGRUPADA COA UDC,AX.2016, PROX.PROF. DE PALMA ÚNGARO","6520240004","541A","INVESTIGACIÓN"]
["6520242026 541A","XUNTA10.PROF.VALLEARIAS-C.EC.EIN.-PROX.INVEST.BÁSICAREF:10PXIB106293PR","6520242026","541A","INVESTIGACIÓN"]
["6520242206 541A","XUNTA12.C.ED.PROF.LAFFÓNLAGE-INV.EMERXREF:EM2012/79","6520242206","541A","INVESTIGACIÓN"]
["6520242317 541A","XUNTA 13 C.ED.PROF.GARCÍA MIRA.Nº:GPC2013-061,GR.POT.CRECEM.","6520242317","541A","INVESTIGACIÓN"]
["6520242321 541A","XUNTA 13 C.ED.PROF.PÁSARO MÉNDEZ.Nº:GPC2013-058,GR.POT.CRECEM.","6520242321","541A","INVESTIGACIÓN"]
["6520242401 541A","XUNTA14 C.CULT.,EDUC.PROF.DEPALMA UNGARO,Nº EM2014/053,INV.EMERXENTES","6520242401","541A","INVESTIGACIÓN"]
["6520242430 541A","XUNTA 14,VICEPR.,AC.SOLID. INT.D.GALICIA COA UDC.PR.SERANTES PAZOS.Nº:2014-7","6520242430","541A","INVESTIGACIÓN"]
["6520242506 541A","XUNTA 15,C.CULT.E.OU,PROF.VALLE ARIAS,Nº:GPC2015/026,GRUPOS POTENCIAL CRECEMENTO","6520242506","541A","INVESTIGACIÓN"]
["6520242614 541A","XUNTA 16,C.CULT.EDU.e O.U.,PROF.PÁSARO MÉNDEZ,Nº EXP.:ED431B 2016-013,GPC.","6520242614","541A","INVESTIGACIÓN"]
["6520242726 541A","XUNTA 17-SOLIDAR.INT.GALICI AGRUPADA UDC.PROF.SERANTES PAZOS.PROX.EDUC.PARA DESENVOLV.","6520242726","541A","INVESTIGACIÓN"]
["6520250067 541A","PROXECTO UDC. APOIO AO PROX. UE \"GLAMURS- PROF. GARCIA MIRA","6520250067","541A","INVESTIGACIÓN"]
["6520270010 541A","PROX.12-FUND.MAPFRE.PROF.LAFFÓNLAGE-PROX.\"RIESGOASOC","6520270010","541A","INVESTIGACIÓN"]
["6520280041 541A","PROX.EUROP.10PROF.GARCIAMIRA-\"PROX.UE\"LOCAW\"","6520280041","541A","INVESTIGACIÓN"]
["6520280067 541A","UE13 GLAMURS, FP7.SSH-2013-1,Nº 613420,DR.DUMITRU, ANTES PROF. GARCÍA MIRA","6520280067","541A","INVESTIGACIÓN"]
["6520280068 541A","UE 13- TRANSIT - FP7-SSH-2013-1 Nº 613169- I.P.ADINA DUMITRU ANTES PROF. GARCIA MIRA","6520280068","541A","INVESTIGACIÓN"]
["6520280073 541A","UE14.ProHospiz,ERASMUS+,PROF.GARCÍA DE LA TORRE,Diakoniezentrum Pirmasens.2014-1-DE02.KA204-001583","6520280073","541A","INVESTIGACIÓN"]
["6520280080 541A","PROX15 GB SURVEY,EMPRESA COLLINGWOOD. PROF. GARCIA MIRA (ART.83 LOU)","6520280080","541A","INVESTIGACIÓN"]
["6520280086 541A","PROX.2016,ERASMUS+KA2 CACTLE PROF.GLEZ.SANMAMED.561495-EPP-1-2015-1-AT-EPPKA2-CBHE-JP","6520280086","541A","INVESTIGACIÓN"]
["6520280089 541A","PROX.EU CONNECTING,I.P.ADINA DUMITRU,H2020-SCC-02-2016-2017 Nº:730222.COORD.TRINITY C.DUBLIN","6520280089","541A","INVESTIGACIÓN"]
["6520290006 541A","PROX.2014,FUNDACIÓ AGRUPACIÓ,PROF. LAFFON LAGE,PREMIO AMBITO PERSOAS MAIORES XXI","6520290006","541A","INVESTIGACIÓN"]
["6520290007 541A","PROX.2015,FUNDACIÓN MAPFRE,PROF.PÁSARO MÉNDEZ.COORD.GI DICONOSA,\"EVAL.INFLUENC.ACTIV.FÍSICA ENVEJECIMIENTO..","6520290007","541A","INVESTIGACIÓN"]
["6520430012 422D","CONTR.2016,UNIVERS.INT.RIOJA .PROF.BOBADILLA PÉREZ (ART.83 LOU) PREST.SERVIZO","6520430012","422D","ENSINANZA UNIVERSITARIA"]
["6520430019 541A","CONV.2017,UNIV.SANTIAGO COMP.PROF.VALLE ARIAS,(GIPED) ACTIV.REDE INV.RIES","6520430019","541A","INVESTIGACIÓN"]
["6520430042 422D","CONTR- 14- UNIV. INTER.DE ANDALUCIA-UDC- PROF. MARTINEZ LOSADA (ART. 83 LOU) \"MÁSTER OFICIAL EN INVEST.\"","6520430042","422D","ENSINANZA UNIVERSITARIA"]
["6520440002 422D","CONTR.13- XUNTA CON. EDUC. PROF. GARCÍA MIRA \"CAMPAÑA DE DIFUSIÓN DE TITULAC.\"","6520440002","422D","ENSINANZA UNIVERSITARIA"]
["6520440013 422D","CONV,15 XUNTA,C.CULT.XIII CONGR.INT.GALEG.-PORTUG.PSICOPEDAGOXÍA,PROF.PERALBO UZQUIANO","6520440013","422D","ENSINANZA UNIVERSITARIA"]
["6520460005 422D","CONTR.16- CONCELLO DE RIANXO- PROF. POSE PORTO (ART. 83 LOU)","6520460005","422D","ENSINANZA UNIVERSITARIA"]
["6520460005 541A","CONTR.16- CONCELLO DE RIANXO- PROF. POSE PORTO (ART. 83 LOU)","6520460005","541A","INVESTIGACIÓN"]
["6520460009 541A","CONV.2016,CONCELLO DA CORUÑA,PROF.POSE PORTO,LIÑAS COOP.PARTIC.E INNOV.DEMOCRÁTICA 2016","6520460009","541A","INVESTIGACIÓN"]
["6520470015 422D","CONTR.16- CONCELLO DE RIANXO- PROF. POSE PORTO (ART. 83 LOU)","6520470015","422D","ENSINANZA UNIVERSITARIA"]
["6520470021 422D","CONT.14 UDC-FOROGAL.FORM.EDICIÓNS.-PROF.GARCÍA MIRA-","6520470021","422D","ENSINANZA UNIVERSITARIA"]
["6520470036 422D","CONTR.2017,UNIVERS.INT.RIOJA .PROF.RIVADULLA LOPEZ(ART.83 LOU) PREST.SERVIZO","6520470036","422D","ENSINANZA UNIVERSITARIA"]
["6520470036 541A","CONTR.2017,UNIVERS.INT.RIOJA .PROF.RIVADULLA LOPEZ(ART.83 LOU) PREST.SERVIZO","6520470036","541A","INVESTIGACIÓN"]
["6520470039 422D","CONTR.2018.COLEGIO PLURILINGÜE MONTEGRANDE.PROF.ESPIÑEIRA BELLON (ART,83LOU).PREST.SERVIZO","6520470039","422D","ENSINANZA UNIVERSITARIA"]
["6520480005 422D","CONV. 17 - COLABORACIÓN ENTRE MESCYT Y OCI DA REP. DOMINICANA E A UDC.","6520480005","422D","ENSINANZA UNIVERSITARIA"]
["6520490002 541A","ACORD COL.2013, UDC-SOLIDAR.INT.GALIC.PROF.RGUEZ.ROMERO. ACAHUALINCA","6520490002","541A","INVESTIGACIÓN"]
["6520490013 422D","ACORDO TRAB.15-SOLIDAR.INTERN.DE GAL.PR.DE PALMA ÚNGARO.PROX.INV.DIMENS.GLOBAL.(ART. 83 LOU)","6520490013","422D","ENSINANZA UNIVERSITARIA"]
["6520490024 422D","CONTR.2017.IN/SEPARABLES.FUNDAC.LUIS SEOANE. PROF. MESÍAS LEMA. (ART. 83 LOU)","6520490024","422D","ENSINANZA UNIVERSITARIA"]
["6520490024 541A","CONTR.2017.IN/SEPARABLES.FUNDAC.LUIS SEOANE. PROF. MESÍAS LEMA. (ART. 83 LOU)","6520490024","541A","INVESTIGACIÓN"]
["6520652001 422D","AX.CURSO VERÁN 2017,MOD.A.PROF.DIÉGUEZ CEQUIEL,III: MEMORIA Hª E CIDADANÍA DEMOCRÁTICA","6520652001","422D","ENSINANZA UNIVERSITARIA"]
["6520652002 422D","AX.XORN.2017,PROF.SOBRINO FREIRE.I XORN. CANDO LER NON SERVE PARA NADA....","6520652002","422D","ENSINANZA UNIVERSITARIA"]
["6520652003 422D","AX.CURSO VERÁN 2017,MOD.A.PROF.BAÑA CASTRO,DIVERSIDADE,INCLUSIÓN E INTERVN SOCIOCOMUNIT.","6520652003","422D","ENSINANZA UNIVERSITARIA"]
["6520652004 422D","AXUD.UDC,CICLO CONF.2017,PROF.LAMAS GZLEZ. C.CONF.LOGOPEDIA","6520652004","422D","ENSINANZA UNIVERSITARIA"]
["6520652005 541A","AXUDA C.I.04/05/2017,(CONGR.XORN) PROF.GZLEZ.SANMAMED,XIV SYMP.INT.PRACTIC?","6520652005","541A","INVESTIGACIÓN"]
["6520652006 541A","AXUDA C.I.04/05/2017,(CONGR.XORN) PROF.NOGUEIRA LÓPEZ,,48º CONGR.ESP.ACÚSTICA?","6520652006","541A","INVESTIGACIÓN"]
["6520652007 422D","CURSO VERÁN 2014 \"FILOSOFÍA PARA NENOS E NENAS..\" PROF. ZAPICO BARBEITO","6520652007","422D","ENSINANZA UNIVERSITARIA"]
["6520652008 422D","AXUD.COM.EXT.UNIV.21/11/14,COORD.PERALBO UZQUIANO,\"XORN SOBRE OS PROGR.DE TRÁNSITO Á COMUNID","6520652008","422D","ENSINANZA UNIVERSITARIA"]
["6520652009 541A","AXUDA C.I.04/05/2017,(ENCONTRO) PROF.G.SANMAMED METODOL.INV.TEC.EDUCATIVA","6520652009","541A","INVESTIGACIÓN"]
["6520652010 541A","AXUDA C.I.04/05/2017,(ENCONTRO) PROF.PÁSARO MÉNDEZ,EST.DO ARTE USO MARCAD.BIOLÓXICOS..","6520652010","541A","INVESTIGACIÓN"]
["6520652011 422D","CURSO VERAN 2016-PROF.BAÑA CASTRO-POLITICAS DE INCLUSION E COMPORTAMENTO SOCIAL","6520652011","422D","ENSINANZA UNIVERSITARIA"]
["6520652012 541A","AXUDA C.I.04/05/2017,(ENCONTRO) PROF.VALLE ARIAS,A APRENDIZ. NA SOCIEDADE DO COÑECEM.","6520652012","541A","INVESTIGACIÓN"]
["6520652013 422D","PRÁCTICAS ALUMNADO, FAC.CC.DA EDUCACIÓN.","6520652013","422D","ENSINANZA UNIVERSITARIA"]
["6520652014 422D","CURSO2017,PROF.BAÑA CASTRO DIVERSIDADE,INCLUSIÓN E INTERVENC. SOCIOCOMUNITARIA","6520652014","422D","ENSINANZA UNIVERSITARIA"]
["6520652029 422D","CICLOCONF.12.PROF.RISSOMIGUEZ/VALLEARIAS\"PSICOLOXÍAHOXE-3ªED-\"","6520652029","422D","ENSINANZA UNIVERSITARIA"]
["6520652030 422D","C.VERÁN 13- PROF. CANDEDO GUNTURIZ \"VII CUR. TEMATICO S/ EDUCACION INFANTIL\"","6520652030","422D","ENSINANZA UNIVERSITARIA"]
["6520652031 422D","C.VERÁN 13- PROF. CRUZ LÓPEZ \"OBRADOIRO DE HUMOR COMO FERRAM PEDAGOX.\"","6520652031","422D","ENSINANZA UNIVERSITARIA"]
["6520652050 422D","PROGRAMA O TEU FUTURO EN BOAS MANS. FAC.CC DA EDUCACIÓN","6520652050","422D","ENSINANZA UNIVERSITARIA"]
["6520C02118 422D","ESCOLA DE DIVERSIDADE,INCLUSIÓN E INTERVENCIÓN SOCIOCOMUNITARIA RESP:BAÑA CASTRO","6520C02118","422D","ENSINANZA UNIVERSITARIA"]
["6520C02818 422D","CURSO 28 ENCUENTROS DE DIDÁCTICA DE LAS CIENCIAS EXPERIMENTALES. RESP. MARTINEZ LOSADA","6520C02818","422D","ENSINANZA UNIVERSITARIA"]
["6520D119 541A","DEPARTAMENTO DE PEDAGOXÍA E DIDÁCTICA","6520D119","541A","INVESTIGACIÓN"]
["6520D121 422D","DEPARTAMENTO DE PSICOLOXÍA","6520D121","422D","ENSINANZA UNIVERSITARIA"]
["6520D121 541A","DEPARTAMENTO DE PSICOLOXÍA","6520D121","541A","INVESTIGACIÓN"]
["6520D162 541A","DEPARTAMENTO DE DIDÁCTICAS ESPECÍFICAS E MÉTODOS DE INVESTIGACIÓN E DIAGNÓSTICO EN EDUCACIÓN","6520D162","541A","INVESTIGACIÓN"]
["6520G06979 541A","Persoa - Ambiente M. Pilar García de la Torre (G00069)","6520G06979","541A","INVESTIGACIÓN"]
["6520G12079 541A","Diagnóstico molecular e condutual aplicado á saúde Eduardo Pásaro Méndez (G000120)","6520G12079","541A","INVESTIGACIÓN"]
["6520G26079 541A","G. Innovacións Educativas Jurjo Torres Santomé (G000260)","6520G26079","541A","INVESTIGACIÓN"]
["6520G27179 541A","Estratexias de Intervención na Linguaxe Oral e Escrita M. del Pilar Vieiro Iglesias (G000271)","6520G27179","541A","INVESTIGACIÓN"]
["6520G28579 541A","Innovación no ensino das Ciencias e da Matemática Mª Cristina Martínez Losada (G000285)","6520G28579","541A","INVESTIGACIÓN"]
["6520G42279 541A","Psicoloxía do desenvolvemento e da aprendizaxe escolar Manuel Peralbo Uzquiano (G000422)","6520G42279","541A","INVESTIGACIÓN"]
["6520G58579 541A","Equipo de Investigación Educativa Mercedes González Sanmamed (G000585)","6520G58579","541A","INVESTIGACIÓN"]
["6520G62579 541A","Política Educativa, Historia e Sociedade Narciso de Gabriel Fernández (G000625)","6520G62579","541A","INVESTIGACIÓN"]
["6520G66379 541A","Avaliación e Calidade Educativa Jesús Miguel Muñoz Cantero (G000663)","6520G66379","541A","INVESTIGACIÓN"]
["6520G68979 541A","Psicoloxía Educativa Antonio Valle Arias (G000689)","6520G68979","541A","INVESTIGACIÓN"]
["6520G69779 541A","Didáctica das Linguas e Culturas Pilar Couto Cantero (G000697)","6520G69779","541A","INVESTIGACIÓN"]
["6520I70379 541A","GONZÁLEZ SEIJAS, ROSA Mª (I000703)","6520I70379","541A","INVESTIGACIÓN"]
["6520I71279 541A","PARDO DE NEYRA, XULIO (I000712)","6520I71279","541A","INVESTIGACIÓN"]
["6520I72979 541A","MESÍAS LEMA, JOSÉ MARÍA (I000729)","6520I72979","541A","INVESTIGACIÓN"]
["6520PIDM 422D","FAC. CIENCIAS DA EDUCACIÓN PROMOCIÓN, INFORMACIÓN E DIVULGACIÓN DE MESTRADOS","6520PIDM","422D","ENSINANZA UNIVERSITARIA"]
["6520U66979 541A","Psicoloxía da Saúde Miguel Ángel Simón López (E000669)","6520U66979","541A","INVESTIGACIÓN"]
["6530 122B","FACULTADE DE CIENCIAS DA SAÚDE","6530","122B","BIBLIOTECAS"]
["6530 300C","FACULTADE DE CIENCIAS DA SAÚDE","6530","300C","CENTROS"]
["6530 422D","FACULTADE DE CIENCIAS DA SAÚDE","6530","422D","ENSINANZA UNIVERSITARIA"]
["6530 541A","FACULTADE DE CIENCIAS DA SAÚDE","6530","541A","INVESTIGACIÓN"]
["65300VFA 300C","FACULTADE CIENCIAS DA SAÚDE. VIAXES FORMACIÓN ALUMNADO","65300VFA","300C","CENTROS"]
["65301440 122B","DEPARTAMENTO DE MEDICINA","65301440","122B","BIBLIOTECAS"]
["65301440 422D","DEPARTAMENTO DE MEDICINA","65301440","422D","ENSINANZA UNIVERSITARIA"]
["65301440 541A","DEPARTAMENTO DE MEDICINA","65301440","541A","INVESTIGACIÓN"]
["6530144061 541A","G.I.: XERONTOLOXÍA G00083","6530144061","541A","INVESTIGACIÓN"]
["6530144062 541A","G.I.: NEUROCIENCIA E CONTROL MOTOR G000134","6530144062","541A","INVESTIGACIÓN"]
["6530144063 541A","G.I.: FISIOPATOLOXÍA ENDOCRINA, NUTRICIONAL E MÉDICA  G000276","6530144063","541A","INVESTIGACIÓN"]
["6530144064 541A","G.I.: TERAPIA CELULAR E MEDICINA REXENERATIVA  G000412","6530144064","541A","INVESTIGACIÓN"]
["6530210313 541A","PROX.08,PROF.MILLAN CALENTI.REF:CSO2008-02168,,MºCIENC.EINN.","6530210313","541A","INVESTIGACIÓN"]
["6530210347 541A","PROX.09.PROF.CUDEIRO MAZAIRA-REF:BFU2009-08169-MICIIN\"PAPELDELASCONEX.FEEDBACK\"","6530210347","541A","INVESTIGACIÓN"]
["6530210500 541A","MINECO 14, REF.BFU2013-45343-P, PROF.RIVADULLA FDEZ.FEDER \"NEUROMODULACIÓN ?","6530210500","541A","INVESTIGACIÓN"]
["6530210562 541A","MINECO 17.REF:RTC-2016-5386-1,PROF. FUENTES BOQUETE.DEVELOPBIOSYSTEM.PR.RETOS-COLABORACI.","6530210562","541A","INVESTIGACIÓN"]
["6530210610 541A","MEIC 18,REF:BFU2017-82296-P PROF.RIVADULLA FDEZ. PROGR.EXCELENCIA","6530210610","541A","INVESTIGACIÓN"]
["6530230030 541A","UNIV.SANTIGO DE C.,PROF.FUENTES BOQUETE, PROX.(XUNTA REF:R2014/050) REDE REDICENT","6530230030","541A","INVESTIGACIÓN"]
["6530242018 541A","XUNTA10.PROF.MEIJIDE FAILDE-C.EC.EIN.-PROX.INVEST.BÁSIC","6530242018","541A","INVESTIGACIÓN"]
["6530242109 541A","XUNTA 2011. (T.S.X G. 11/11/2013) -PROF. CUDEIRO MAZARIA  REF. CN2011/003","6530242109","541A","INVESTIGACIÓN"]
["6530242207 541A","XUNTA12.C.ED.PROF.MASEDA RDGUEZ.-INV.EMERXREF:EM2012/100","6530242207","541A","INVESTIGACIÓN"]
["6530242305 541A","XUNTA 13 C.ED.PROF.SANGIAO ALVARELLOS.Nº:EM2013/011 INV.EMERX","6530242305","541A","INVESTIGACIÓN"]
["6530242417 541A","XUNTA 14 C.CULT.,EDUC.PROF.FUENTES BOQUETE Nº GPC2014/048,GRUP.P.CREC","6530242417","541A","INVESTIGACIÓN"]
["6530242418 541A","XUNTA 14 C.CULT.,EDUC.PROF.MILLÁN CALENTI Nº GPC2014/082,GRUP.POT.CRE","6530242418","541A","INVESTIGACIÓN"]
["6530242706 541A","XUNTA 17-C.EDU E C.ECO- PROF. MILLAN CALENTI -ED431C 2017/49","6530242706","541A","INVESTIGACIÓN"]
["6530242721 541A","XUNTA 17-C.EDU E C.ECO- PROF. LORENZO LÓPEZ L. -ED431F 2017/09","6530242721","541A","INVESTIGACIÓN"]
["6530270011 541A","PROX.12- RECUR. Y SERV. GERONTOLOG. GALLEG, SL- PROF. MILLÁN CALENTI \"APOYO GERONTOLOG\"","6530270011","541A","INVESTIGACIÓN"]
["6530280032 541A","PROX.UE.07PROF.MILLAN CALENTI.\"COMPANIONABLE\",FP7,PRGA.AL.RESEARCH","6530280032","541A","INVESTIGACIÓN"]
["6530280045 541A","PROX.UE.11.PROF.MILLÁN CALENTÍ-\"POCTEP\"CODG.0552ENVEJECIMIENTO+ACTIVO","6530280045","541A","INVESTIGACIÓN"]
["6530280063 541A","UE.12-GRUNDTVIG-UNIV.GABROVO-BULGARIA-PROF.MILLÁN CALENTI","6530280063","541A","INVESTIGACIÓN"]
["6530430016 541A","CONV.2017,UNIV.SANTIAGO,PROF.FUENTES BOQUETE,ACT.REDE REDICENT INV..CELULAS MADRE","6530430016","541A","INVESTIGACIÓN"]
["6530430036 422D","CONV.12-14SERGAS-PROF.ANTÓN APARICIO\"POSGRAO EN COIDADOS PALIATIVOS\"","6530430036","422D","ENSINANZA UNIVERSITARIA"]
["6530490009 541A","CONV.15 FUND.ESP.REUMATOLOXÍA,PROF.DÍAZ PRADO.\"...BANCO?CELULARES...ARTROSIS","6530490009","541A","INVESTIGACIÓN"]
["6530510002 541A","AXUDA ADICIONAL,MINECO RAMÓN Y CAJAL CONV.2015. LORENZO LÓPEZ,LAURA","6530510002","541A","INVESTIGACIÓN"]
["6530653001 541A","AXUDA C.I.04/05/2017,(VISIT.ENCONTR)PROF.SANGIAO ALVARELLOS,SCIENCE XPRESSION 2017","6530653001","541A","INVESTIGACIÓN"]
["6530653002 541A","AXUDA C.I.29/04/14 (ORG. CONG. E XOR.) PROF. AGRASAR CRUZ \"VII XORNADA CIENT. TEAPIA CELULAR\"","6530653002","541A","INVESTIGACIÓN"]
["6530653003 541A","AXUDA C.I.23/03/15,PROF.FUENTES BOQUETE, VIII XORN.TERAPIA CELULAR?.","6530653003","541A","INVESTIGACIÓN"]
["6530653004 541A","ACC. COMPLEMENTARIA TSI2007-29718-E PROF. MILLAN CALENTI","6530653004","541A","INVESTIGACIÓN"]
["6530653005 541A","AXUDA C.I.23/06/15,PROF.SANGIAO ALVARELLOS,VISIT.ENCONTR. SCIENCE XPRESSION 2015","6530653005","541A","INVESTIGACIÓN"]
["6530653006 541A","AX.CI.21/04/16 SANGIAO ALVARELLOS-SCIENCIE XPRESSION 2016","6530653006","541A","INVESTIGACIÓN"]
["6530653007 541A","AX.CI.21/04/16 FUENTES BOQUETE-IX XORNADA CIENTIFICA EN TERAPIA CELULAR E MEDICINA REXENERATIVA","6530653007","541A","INVESTIGACIÓN"]
["6530653008 541A","AX.CI.21/04/16 SANTOS DEL RIEGO-III JORNADA DE INVESTIGACION EN CIENCIAS DE LA SALUD","6530653008","541A","INVESTIGACIÓN"]
["6530653009 541A","AX.CI.21/04/16 SANTOS DEL RIEGO-9º CAJAL WINTER CONFERENCE:NEUROSCIENCIE TODAY, ADVANCING THE FUTURE","6530653009","541A","INVESTIGACIÓN"]
["6530653010 541A","AX.C.I.26/10/16,PROF.AVILA ALVAREZ,ENCONTRO:INTERVENC.ASISTIDA CON ANIMALES","6530653010","541A","INVESTIGACIÓN"]
["6530653011 541A","AX.XUNTA AO  POSDOUT. VAAMONDE GARCÍA,CREACIÓN NOVA LIÑA DE INVESTIGACIÓN","6530653011","541A","INVESTIGACIÓN"]
["6530653012 422D","TIT.EXPERTO UNIV.PERIODONCIA,CIRUXIA E IMPLANT.ORAL.CURSO ESPEC.FA.CC.SAÚDE","6530653012","422D","ENSINANZA UNIVERSITARIA"]
["6530653050 422D","PROGRAMA O TEU FUTURO EN BOAS MANS. FAC. CC DA SAÚDE","6530653050","422D","ENSINANZA UNIVERSITARIA"]
["6530C00718 422D","CURSO DE ESPEC.EN ADESTR. CANINO E INTROD. A INTERVENCION ASISTIDA CON ANIMAIS","6530C00718","422D","ENSINANZA UNIVERSITARIA"]
["6530C02218 422D","C.VERÁN OCIO E LECER PARA A DIVERSIDADE RESP: POUSADA GARCÍA","6530C02218","422D","ENSINANZA UNIVERSITARIA"]
["6530G08379 541A","Xerontoloxía José Carlos Millán Calenti (G00083)","6530G08379","541A","INVESTIGACIÓN"]
["6530G13479 541A","Neurociencia e Control Motor Javier Cudeiro Mazaira (G000134)","6530G13479","541A","INVESTIGACIÓN"]
["6530G27679 541A","Grupo Fisiopatoloxía Endocrina, Nutricional e Médica Fernando Cordido Carballido (G000276)","6530G27679","541A","INVESTIGACIÓN"]
["6530G41279 541A","Terapia Celular e Medicina Rexenerativa Isaac Manuel Fuentes Boquete (G000412)","6530G41279","541A","INVESTIGACIÓN"]
["6530PIDM 422D","FAC. CIENCIAS DA SAÚDE PROMOCIÓN, INFORMACIÓN E DIVULGACIÓN DE MESTRADOS","6530PIDM","422D","ENSINANZA UNIVERSITARIA"]
["6700 122B","ESCOLA UNIVERSITARIA DE ARQUITECTURA TÉCNICA","6700","122B","BIBLIOTECAS"]
["6700 300C","ESCOLA UNIVERSITARIA DE ARQUITECTURA TÉCNICA","6700","300C","CENTROS"]
["6700 422D","ESCOLA UNIVERSITARIA DE ARQUITECTURA TÉCNICA","6700","422D","ENSINANZA UNIVERSITARIA"]
["6700 541A","ESCOLA UNIVERSITARIA DE ARQUITECTURA TÉCNICA","6700","541A","INVESTIGACIÓN"]
["67000VFA 300C","EU ARQUITECTURA TÉCNICA. VIAXES FORMACIÓN ALUMNADO","67000VFA","300C","CENTROS"]
["67001360 122B","DEPARTAMENTO DE TECNOLOXÍA E CIENCIA DA REPRESENTACIÓN GRÁFICA","67001360","122B","BIBLIOTECAS"]
["67001360 541A","DEPARTAMENTO DE TECNOLOXÍA E CIENCIA DA REPRESENTACIÓN GRÁFICA","67001360","541A","INVESTIGACIÓN"]
["6700470003 422D","CONVENIOSDECOLABORACIONE.U.ARQUITECTURATEC,","6700470003","422D","ENSINANZA UNIVERSITARIA"]
["6700490005 422D","CONV.UDC.COAG,E.U.ARQUITECTURATECNICACONVENIOSDECOLABORACION","6700490005","422D","ENSINANZA UNIVERSITARIA"]
["6700670001 422D","AX,COM,EXT.UN.6/11/2013,NOGUEIRA LÓPEZ.\"XOR.DESEN.PROF.AMB.EDIFICAC","6700670001","422D","ENSINANZA UNIVERSITARIA"]
["6700670002 422D","AX.COM.EXT.UNIV..21/11/14.COORD.NOGUEIRA LÓPEZ, \"DESENVOLV.PROF.NO ÁMBITO DA EDIFICACIÓN?.\"","6700670002","422D","ENSINANZA UNIVERSITARIA"]
["6700670006 541A","AXUDA C.I.04/05/2017,(VIS.ENCONT.)PROF.NOGUEIRA LÓPEZ,48º CONGR.ESP. ACÚSTICA","6700670006","541A","INVESTIGACIÓN"]
["6700670008 422D","XORN12.PROF.VÁZQUEZFDEZ.PROJECTMANAGEREENXEÑAR.EDIFICAC.","6700670008","422D","ENSINANZA UNIVERSITARIA"]
["6700670050 422D","PROGRAMA O TEU FUTURO EN BOAS MANS. EU ARQUIT. TÉCNICA","6700670050","422D","ENSINANZA UNIVERSITARIA"]
["6700C00818 422D","CICLO CONF.XESTIÓN DA DIRECC.DE OBRAS RESP: SOUTO GARCÍA","6700C00818","422D","ENSINANZA UNIVERSITARIA"]
["6700PIDM 422D","EUAT. PROMOCIÓN, INFORMACIÓN E DIVULGACIÓN DE MESTRADOS","6700PIDM","422D","ENSINANZA UNIVERSITARIA"]
["7100 122B","FACULTADE DE HUMANIDADES E DOCUMENTACIÓN","7100","122B","BIBLIOTECAS"]
["7100 300C","FACULTADE DE HUMANIDADES E DOCUMENTACIÓN","7100","300C","CENTROS"]
["7100 422D","FACULTADE DE HUMANIDADES E DOCUMENTACIÓN","7100","422D","ENSINANZA UNIVERSITARIA"]
["7100 541A","FACULTADE DE HUMANIDADES E DOCUMENTACIÓN","7100","541A","INVESTIGACIÓN"]
["71000VFA 300C","FACULTADE HUMANIDADES E DOCUMENTACIÓN. VIAXES FORMACIÓN ALUMNADO","71000VFA","300C","CENTROS"]
["71001430 122B","DEPARTAMENTO DE HUMANIDADES","71001430","122B","BIBLIOTECAS"]
["71001430 422D","DEPARTAMENTO DE HUMANIDADES","71001430","422D","ENSINANZA UNIVERSITARIA"]
["71001430 541A","DEPARTAMENTO DE HUMANIDADES","71001430","541A","INVESTIGACIÓN"]
["7100143001 422D","XORN.UDC 2016-XORN.SOBRE A INTELIXENCIA ARTIFICIAL E SOCIEDADE....PROF.GLEZ.FDEZ.","7100143001","422D","ENSINANZA UNIVERSITARIA"]
["7100143006 422D","XORN.2013.PROF.WENCESLAO J GLEZ.XVIIII XORN FILOSOF.E METODOLTEC.VALORES ETICA","7100143006","422D","ENSINANZA UNIVERSITARIA"]
["7100143061 541A","G.I.: FILOSOFÍA E METODOLOXÍA DAS CIENCIAS DO ARTIFICIAL G000452","7100143061","541A","INVESTIGACIÓN"]
["7100143062 541A","G.I.: HISTORIA ANTIGA, ARQUEOLOXÍA E ANÁLISE TERRITORIAL G000493","7100143062","541A","INVESTIGACIÓN"]
["7100143063 541A","G.I.: A HERDANZA DA ILUSTRACIÓN G000500","7100143063","541A","INVESTIGACIÓN"]
["7100143065 541A","G.I.CULTURAECOMUNIC.INTERACTIVA.G665COORD.RECUEROASTRAY","7100143065","541A","INVESTIGACIÓN"]
["7100210395 541A","PROX.10.MICIIN-PROF.MONTEROFENOLLÓS-REF.HAR2010-15866\"INV.ARQ.EUFRATES..\"","7100210395","541A","INVESTIGACIÓN"]
["7100210452 541A","MINECO 12.PROF. TASSET CARMONA,REF:FFI2012-31209","7100210452","541A","INVESTIGACIÓN"]
["7100210545 541A","MINECO 16,REF:HAR2015-64014-C3-2-R,PROF. GARCÍA HURTADO ,PROGR.RETOS DA SOCIEDADE","7100210545","541A","INVESTIGACIÓN"]
["7100210548 541A","MINECO 16,REF:HAR2015-66477-P, PROF.MONTERO FENOLLÓS,PROGR.EXCELENCIA","7100210548","541A","INVESTIGACIÓN"]
["7100210595 541A","MINECO 17,REF:FFI2016-79728-P,PROF.W.GLEZ.FDEZ.,PROGR.EXCELENCIA","7100210595","541A","INVESTIGACIÓN"]
["7100242020 541A","XUNTA10.PROF.MONTEROFENOLLÓS-C.EC.EIN.-PROX.INVEST.BÁSICAREF:10PXIB167197PR","7100242020","541A","INVESTIGACIÓN"]
["7100290008 541A","PROX.2016,FUNDAC.PALARQ,I.P.PROF.MONTERO FENOLLÓS,PROX.ARQU..EN KHIRBET RABUD-PALESTINA","7100290008","541A","INVESTIGACIÓN"]
["7100460004 422D","CONV.2015,DIPUT.CORUÑA,PROF.WENCESLAO J.GLEZ.\"XX XORN. E CONGR.ACADEMIA INT.FILOSOFÍA ?.","7100460004","422D","ENSINANZA UNIVERSITARIA"]
["7100460015 422D","CONV.2015 .C.FERROL PROF.MONTERO FENOLLÓS.PROX.ARQUEOL?.MEDIO ÉUFRATES-SIRIA","7100460015","422D","ENSINANZA UNIVERSITARIA"]
["7100460070 422D","CONV. 14 CONCELLO DE FERROL- UDC- PROF. MONTERO FENOLLÓS \"PROJET KHANUQA AECHEOLOGIE..\"","7100460070","422D","ENSINANZA UNIVERSITARIA"]
["7100490010 422D","CONTR.15,FUNDACIÓN LONXANET PARA PESCA SOSTIBLE, PROF. GARCÍA ALLUT (ART. 83,LOU)","7100490010","422D","ENSINANZA UNIVERSITARIA"]
["7100710001 541A","AXUD.COM.INV.23/03/15,PROF.W.GZLEZ.FDEZ.CONGR.DE ACADEMIA INT. DE FILOSOFÍA DAS CIENCIAS","7100710001","541A","INVESTIGACIÓN"]
["7100710002 422D","XX XORN.FILOSOF.E MET.CIENCIA e CONGR.ACADEMIA INT.FILOSO.CIENCIAS.PROF.WENCESLAO GZLEZ","7100710002","422D","ENSINANZA UNIVERSITARIA"]
["7100710003 422D","AX.CURSO VERÁN 2017,MOD.A.PROF.MONTERO FENOLLÓS,ARQUOLOXÍA NO BERCE DA CIVILIZACIÓN?","7100710003","422D","ENSINANZA UNIVERSITARIA"]
["7100710004 422D","AX.UDC 2017.PROF.SANTOS PITA,XORN.PATRIMONIO MUNDIAL,DESENV. E TURISMO CULTURAL","7100710004","422D","ENSINANZA UNIVERSITARIA"]
["7100710009 422D","XORN.FILOSOFÍA E METODOLOXIA ACTUAL DA CIENCIA.W.GZLEZ","7100710009","422D","ENSINANZA UNIVERSITARIA"]
["7100710012 541A","ACC.COMPL.2011.MºCIIN.PROF.MONTEROFENOLLÓSHAR2011-13543-E.","7100710012","541A","INVESTIGACIÓN"]
["7100710050 422D","PROGRAMA O TEU FUTURO EN BOAS MANS. FAC.HUMANIDADES D DOC.","7100710050","422D","ENSINANZA UNIVERSITARIA"]
["7100ACDO 300C","FACULTADE DE HUMANIDADES E DOCUMENTACIÓN. ACTIVIDADES CULTURAIS, DEPORTIVAS E OUTRAS","7100ACDO","300C","CENTROS"]
["7100C00418 422D","XXIII XORN.FILOSOF.E METOD.ACT.DA CIENCIA,PROF.W.J.GZLEZ.\"XORN.SOBRE CIENCIA E CINE?\"","7100C00418","422D","ENSINANZA UNIVERSITARIA"]
["7100D143 300C","DEPARTAMENTO DE HUMANIDADES","7100D143","300C","CENTROS"]
["7100D143 422D","DEPARTAMENTO DE HUMANIDADES","7100D143","422D","ENSINANZA UNIVERSITARIA"]
["7100D143 541A","DEPARTAMENTO DE HUMANIDADES","7100D143","541A","INVESTIGACIÓN"]
["7100G45279 541A","Filosofía e Metodoloxía das Ciencias do Artificial Wenceslao J. González Fernández (G000452)","7100G45279","541A","INVESTIGACIÓN"]
["7100G49379 541A","Historia, Arqueoloxía, Documentación e Cultura Víctor Alonso Troncoso (G000493)","7100G49379","541A","INVESTIGACIÓN"]
["7100I46179 541A","ROMERO PORTILLA, PAZ (I000461)","7100I46179","541A","INVESTIGACIÓN"]
["7100I52979 541A","GARCÍA HURTADO, MANUEL REYES (I000529)","7100I52979","541A","INVESTIGACIÓN"]
["7100I73679 541A","TASSET CARMONA, JOSÉ LUIS (I000736)","7100I73679","541A","INVESTIGACIÓN"]
["7100I73779 541A","VARELA OROL, CONCEPCIÓN (I000737)","7100I73779","541A","INVESTIGACIÓN"]
["7100I74979 541A","SANTOS PAZ, JOSÉ CARLOS (I000749)","7100I74979","541A","INVESTIGACIÓN"]
["7100PIDM 422D","FACULTADE HUMANIDADES E DOCUMENTACIÓN. PROMOCIÓN, INFORMACION E DIVULGACIÓN MESTRADOS","7100PIDM","422D","ENSINANZA UNIVERSITARIA"]
["7300 122B","ESCOLA POLITÉCNICA SUPERIOR","7300","122B","BIBLIOTECAS"]
["7300 300C","ESCOLA POLITÉCNICA SUPERIOR","7300","300C","CENTROS"]
["7300 422D","ESCOLA POLITÉCNICA SUPERIOR","7300","422D","ENSINANZA UNIVERSITARIA"]
["7300 541A","ESCOLA POLITÉCNICA SUPERIOR","7300","541A","INVESTIGACIÓN"]
["73000VFA 300C","ESCOLA POLITÉCNICA SUPERIOR. VIAXES FORMACIÓN ALUMNADO","73000VFA","300C","CENTROS"]
["7300118063 541A","G.I.: XEOMETRÍA DIFERENCIAL E AS SÚAS APLICACIÓNS  G000291","7300118063","541A","INVESTIGACIÓN"]
["73001470 122B","DEPARTAMENTO DE ENXEÑARÍA NAVAL E OCEÁNICA","73001470","122B","BIBLIOTECAS"]
["73001470 541A","DEPARTAMENTO DE ENXEÑARÍA NAVAL E OCEÁNICA","73001470","541A","INVESTIGACIÓN"]
["7300147001 422D","CURSO.15- PROF. FRAGUELA FORMOSO \"PREVENCIÓN DE RISCOS LABORAIS\"","7300147001","422D","ENSINANZA UNIVERSITARIA"]
["7300147002 422D","XORN.14 - PROF.PENA AGRAS \"XORN. SOBRE ENERXÍA RENOV MARIÑAS. ENERX. EÓLICA OFFSHORE\"","7300147002","422D","ENSINANZA UNIVERSITARIA"]
["7300147003 422D","SEMINARIO 2014 TRANSPORTE POR CARRETERA ?.PROF.CASTRO SANTOS, (Mº FOMENTO EXP.F69/2014)","7300147003","422D","ENSINANZA UNIVERSITARIA"]
["7300147004 422D","XORN.15.PROF.PENA AGRAS,II XORN.TECNOL.NAVAL E OFFSHORE-GNL EN BUQUES","7300147004","422D","ENSINANZA UNIVERSITARIA"]
["7300147063 541A","G.I.: SISTEMAS TÉRMICOS E TRANSFERENCIA DE CALOR G000618","7300147063","541A","INVESTIGACIÓN"]
["73001480 122B","DEPARTAMENTO DE ENXEÑARÍA INDUSTRIAL II","73001480","122B","BIBLIOTECAS"]
["73001480 422D","DEPARTAMENTO DE ENXEÑARÍA INDUSTRIAL II","73001480","422D","ENSINANZA UNIVERSITARIA"]
["73001480 541A","DEPARTAMENTO DE ENXEÑARÍA INDUSTRIAL II","73001480","541A","INVESTIGACIÓN"]
["7300148061 541A","G.I.: LABORATORIO DE ENXEÑARÍA MECÁNICA G00072","7300148061","541A","INVESTIGACIÓN"]
["7300148062 541A","G.I.: CIENCIA E ENXEÑARÍA DE MATERIAIS G000127","7300148062","541A","INVESTIGACIÓN"]
["7300148063 541A","G.I.: LABORATORIO DE ANÁLISE ESTRUCTURAL  G000537","7300148063","541A","INVESTIGACIÓN"]
["7300148064 541A","G.I.: TECNOLOXÍA QUÍMICA E MEDIO AMBIENTE G000205","7300148064","541A","INVESTIGACIÓN"]
["7300148065 541A","G.I.: ENXEÑARÍA E DIRECCIÓN DE PROXECTOS G000355","7300148065","541A","INVESTIGACIÓN"]
["7300148066 541A","G.I.: PROPIEDADES TÉRMICAS E REOLÓXICAS DE MATERIAIS G000660","7300148066","541A","INVESTIGACIÓN"]
["7300210282 541A","PROX.07,PROF.LOUREIRO MONTERO,MEC,BIA2007-67906-C02-02 ANALISE E DESEÑO","7300210282","541A","INVESTIGACIÓN"]
["7300210366 541A","PROX.09.PROF.PENA AGRAS,PEIXE VERDE,PORTO D CELEIRO.PSS.37000.09.30","7300210366","541A","INVESTIGACIÓN"]
["7300210381 541A","PROX.10.MICNIN-PROF.DEL CAÑO GOCHI-REF.BIA2010-20789-C04-02\"CUANT.SOST...\"","7300210381","541A","INVESTIGACIÓN"]
["7300210382 541A","PROX.10.MICNIN-PROF.LOUREIRO,ALFONSO-REF.BIA2010-20839-C02-01\"ANAL.EDIS.GLO..\"","7300210382","541A","INVESTIGACIÓN"]
["7300210442 541A","PROX.11.MICIIN-PROF.DURO FERNÁNDEZ-TIN2011-28753-C02-01","7300210442","541A","INVESTIGACIÓN"]
["7300210447 541A","MINECO 12,PROF.CUADRADO ARANDA.REF:DPI2012-38331-C03-01","7300210447","541A","INVESTIGACIÓN"]
["7300210448 541A","MINECO 12.PROF.GLEZ.CASTRO.REF:DPI2012.32579. \"SIMULACIÓN ENSAMBLAXE","7300210448","541A","INVESTIGACIÓN"]
["7300210454 541A","MINECO.12-REF.ENE2012-38326-C02-01- PROF. FARIÑAS ALVARIÑO \"ESTUD. DO EFECTO DO ACABADO\"","7300210454","541A","INVESTIGACIÓN"]
["7300210495 541A","MINECO 14,REF.BIA2013-48069-C2-2-P, PROF.LOUREIRO MONTERO,FEDER.\"CARACT?UNIONES 3D SEMIRR..","7300210495","541A","INVESTIGACIÓN"]
["7300210523 541A","MINECO 15,REF;TRA2014-59435-P,FEDER,PROF.NAYA VILLAVERDE,PROGR?EXCELENCIA.MOD.1.PROX.I+D","7300210523","541A","INVESTIGACIÓN"]
["7300210534 541A","MINECO 16,REF:DPI2015-65959-C3-1-R,PROF.CUADRADO ARANDA,PROGR.RETOS DA SOCIEDADE","7300210534","541A","INVESTIGACIÓN"]
["7300210565 541A","MINECO 17,REF:RTC-2016-5595-2,PROF.LÓPEZ PEÑA.SAILOR    PROGR. RETOS-COLABORACIÓN","7300210565","541A","INVESTIGACIÓN"]
["7300210569 541A","MINECO 17,REF:DPI2016-77827-R,PROF.GZLEZ. CASTRO,PROGR. RETOS DA SOCIEDADE","7300210569","541A","INVESTIGACIÓN"]
["7300210572 541A","MINECO 17, REF:BIA2016-80358-C2-2-P,PROF.LOUREIRO MONTERO, PROGR.EXCELENCIA","7300210572","541A","INVESTIGACIÓN"]
["7300210574 541A","MINECO 17,REF:DPI2016-81005-P, PROF.DOPICO DOPICO, PROGR.EXCELENCIA","7300210574","541A","INVESTIGACIÓN"]
["7300210609 541A","MEIC 18,REF:TRA2017-86488-R, PROF. NAYA VILLAVERDE.PROGR.RETOS SOCIEDADE","7300210609","541A","INVESTIGACIÓN"]
["7300210620 541A","MEIC 18.REF:BIA2017-85897-R, PROF.RAMIL REGO, PROGR. RETOS SOCIEDADE","7300210620","541A","INVESTIGACIÓN"]
["7300242032 541A","XUNTA10.PROF.SAIZ JABARDO-.PROGR.SECT.REF:10REM265008PR","7300242032","541A","INVESTIGACIÓN"]
["7300242046 541A","XUNTA10.PROF.LÓPEZPEÑA-PRG.SECT.REF:10TMT166006PR","7300242046","541A","INVESTIGACIÓN"]
["7300242303 541A","XUNTA 13 C.ED.PROF.GOSSET,ANNE M.E.Nº:EM2013/009 INV.EMERX","7300242303","541A","INVESTIGACIÓN"]
["7300242309 541A","XUNTA 13 C.ED.PROF.DURO FDEZ..Nº:GRC2013-050,GR.REF.COMPE","7300242309","541A","INVESTIGACIÓN"]
["7300242316 541A","XUNTA 13 C.ED.PROF.CUADRADO ARANDA.Nº:GPC2013-056,GR.POT.CRE","7300242316","541A","INVESTIGACIÓN"]
["7300242322 541A","XUNTA 13 C.ED.PROF.YÁÑEZ CASAL .Nº:GPC2013-071,GR.POT.CRECEM","7300242322","541A","INVESTIGACIÓN"]
["7300242605 541A","XUNTA 16,C.CULT.EDU E OU,PROF. CUADRADO ARANDA,Nº EXP.ED431B 2016/031, GR.POTENC.CRECEM.","7300242605","541A","INVESTIGACIÓN"]
["7300280076 541A","UE15.\"DREAM\",PROF.DURO FDEZ.\"Nº 640891-H2020-FETPROACT-2014","7300280076","541A","INVESTIGACIÓN"]
["7300280093 541A","PROX.EU 2017,ADAPTATION AND IMPLEMENTATION OF FLOATING WIND ENERGY CONVERSION TECHNOLOGY FOR THE ATLANTIC REGION (ARCWIND).PROF: CASTRO SANTOS","7300280093","541A","INVESTIGACIÓN"]
["7300460003 541A","CONTR.2015,CONCELLO ORTIGUEIRA,PROF.LARA COIRA,\"PREST.SERVIZOS?\"(ART.83 LOU)","7300460003","541A","INVESTIGACIÓN"]
["7300470012 422D","CONTR.2015, JEALSA RIANXEIRA,S.A.PROF.LARA COIRA,\"PREST.SERVIZOS?\"(ART.83 LOU)","7300470012","422D","ENSINANZA UNIVERSITARIA"]
["7300470022 422D","CONTR15/09/15,NAVANTIA ASTILL.FENE-FERROL PROF. BOUZA FDEZ,CURSO IMPL.MANT.SIST.OLEOHIDRAUL..","7300470022","422D","ENSINANZA UNIVERSITARIA"]
["7300470023 422D","CONTR03/11/15,NAVANTIA ASTILL.FENE-FERROL PROF. BOUZA FDEZ,CURSO IMPL.MANT.SIST.AUTOMATIZ.","7300470023","422D","ENSINANZA UNIVERSITARIA"]
["7300470026 422D","CONTR.2016.INDUSTRIAS TÉCNICAS DE GALICIA S.A.,PROF.ARCE CEINOS (ART.83 LOU) PROX..TÁCTIL","7300470026","422D","ENSINANZA UNIVERSITARIA"]
["7300470031 422D","CONTR.2017.TRANS.ANTARTIC ENERGÍA SA (CHILE).PROF.LARA COIRA.(ART.83LOU)","7300470031","422D","ENSINANZA UNIVERSITARIA"]
["7300470037 422D","CONTR.2017.BEUMER GROUP TECHNOLOGY IBERIA SL.PROF.LOPEZ LOPEZ(ART.83 LOU) PREST.SERVIZO","7300470037","422D","ENSINANZA UNIVERSITARIA"]
["7300470074 541A","CONTR.12NODOSASL-PROF.ANNEGOSSET-PROX.INNTERCONECTA\"ECODRAGA\"ITC20113086","7300470074","541A","INVESTIGACIÓN"]
["7300470075 422D","CONTR.12APPLUSNORCONTROL,SLU-PROF.LARACOIRA\"FUND.CIUDADENERGIABIERZO\"","7300470075","422D","ENSINANZA UNIVERSITARIA"]
["7300470079 422D","CONT.13- TRANS ANTARTIC ENERGIA .PROF. LARA COIRA  (ART. 83 LOU)","7300470079","422D","ENSINANZA UNIVERSITARIA"]
["7300470079 541A","CONT.13- TRANS ANTARTIC ENERGIA .PROF. LARA COIRA  (ART. 83 LOU)","7300470079","541A","INVESTIGACIÓN"]
["7300470082 422D","CONTR.12- U.T.E. AIMEN- PROF. ALVAREZ FEAL (ART. 83. LOU)","7300470082","422D","ENSINANZA UNIVERSITARIA"]
["7300470087 422D","CONTR.13- PUENTES Y CALZADAS INFR., SL- PROF. ÁLVAREZ FEAL  (ART. 83 LOU)","7300470087","422D","ENSINANZA UNIVERSITARIA"]
["7300470093 541A","CONTR.13 -ALTRAN INNOVACIÓN, S.L.U.- PROF. LARA COIRA (ART. 83 LOU)","7300470093","541A","INVESTIGACIÓN"]
["7300470094 422D","CONV.13 - FUND. REPSOL-UDC - \"AULA REPSOL\" PROF. ZARAGOZA FDEZ.","7300470094","422D","ENSINANZA UNIVERSITARIA"]
["7300480001 422D","CONTR. 16- EMBAJADA DE CANADÁ - PROF. LARA COIRA (ART. 83 LOU)","7300480001","422D","ENSINANZA UNIVERSITARIA"]
["7300480002 422D","CONTR.16- ANABELA DE CARVALHO MARTINS- PROF. LARA COIRA (ART. 83 LOU)","7300480002","422D","ENSINANZA UNIVERSITARIA"]
["7300730001 300C","EDIFICIO DE TALLERES- ESC. POLIT. SUP. FERROL","7300730001","300C","CENTROS"]
["7300730002 422D","XORN.16-PROF.LOPEZ BECEIRO-III XORN.SOBRE MATERIAIS COMPLEXOS:MATERIAIS SIMPLES CON COMPORTAMIENTOS COMPLEXOS","7300730002","422D","ENSINANZA UNIVERSITARIA"]
["7300730003 541A","AXUDA C.I.04/05/2017(ENCONTROS) PROF.ARTIAGA DÍAZ ,MODIF.POLÍMEROS?","7300730003","541A","INVESTIGACIÓN"]
["7300730004 422D","CURSO 2014.PROF.BOUZA FDEZ.\"DESEÑO SIST. ELECTRO-HIDRÁULICOS INDUSTR\"","7300730004","422D","ENSINANZA UNIVERSITARIA"]
["7300730005 422D","XORN.15 PROF.ARTIAGA DÍAZ.IIXOR.SOBRE MATERIAIS COMPLEX..APLICAC.Á INDUSTR.","7300730005","422D","ENSINANZA UNIVERSITARIA"]
["7300730006 422D","XORN.15,PROF.DÍAZ CASAS, \"INSERCIÓN LABORAL NA ENXEÑARÍA\"","7300730006","422D","ENSINANZA UNIVERSITARIA"]
["7300730007 422D","XORN.2013 PROF. ARTIAGA DÍAZ \"UN ACHEGAMENTO AOS NANOMATERIAIS E SIST. COMPL.\"","7300730007","422D","ENSINANZA UNIVERSITARIA"]
["7300730008 422D","AX.MOVILID.MECD PROGR.REF:MAS2015/0017,UNIV.FRANCES.E ESPAÑ.COORD.PROF. ARTIAGA DÍAZ","7300730008","422D","ENSINANZA UNIVERSITARIA"]
["7300730009 422D","CURSO 2017.DISEÑO Y MONTAJE SIST.OLEONEUMÁTICOS INDUSTRIALES. PROF.BOUZA FDEZ.","7300730009","422D","ENSINANZA UNIVERSITARIA"]
["7300730010 422D","AX.MECD 2017,MAS 2015-0017 CURSO 16/17,ESTADÍAS MOVILID.PROF. E ESTUD,UNIV.FRANC.E ESPAÑ.","7300730010","422D","ENSINANZA UNIVERSITARIA"]
["7300730011 422D","AX.MECD 2017,MAS 2015-0017 CURSO 17/18,COOR.L.BECEIRO.ESTAD. MOVIL.PROF/EST,UNIV.FRANC.E ESP.","7300730011","422D","ENSINANZA UNIVERSITARIA"]
["7300730050 422D","PROGRAMA O TEU FUTURO EN BOAS MANS.E.POLITÉCNICA SUPERIOR","7300730050","422D","ENSINANZA UNIVERSITARIA"]
["7300C00118 422D","CURSO DESEÑO SIST. OLEONEUMÁTICOS 1 CON SIEMENS TIA PORTAL: MÓD.INICIACIÓN. PROF. BOUZA FDEZ","7300C00118","422D","ENSINANZA UNIVERSITARIA"]
["7300C00518 422D","CURSO DESEÑO SIST. OLEONEUMÁTICOS 2 CON SIEMENS TIA.MÓDULO PERFECCION. PROF. BOUZA FDEZ","7300C00518","422D","ENSINANZA UNIVERSITARIA"]
["7300C01218 422D","CURSO INSERCIÓN LABORAL ESTUDANTADO DA EPS.RESP:DÍAZ CASÁS","7300C01218","422D","ENSINANZA UNIVERSITARIA"]
["7300D167 422D","DEPARTAMENTO DE ENXEÑARÍA NAVAL E INDUSTRIAL","7300D167","422D","ENSINANZA UNIVERSITARIA"]
["7300D167 541A","DEPARTAMENTO DE ENXEÑARÍA NAVAL E INDUSTRIAL","7300D167","541A","INVESTIGACIÓN"]
["7300G07279 541A","Laboratorio de Enxeñaría Mecánica Javier Cuadrado Aranda (G00072)","7300G07279","541A","INVESTIGACIÓN"]
["7300G12779 541A","Ciencia e Enxeñaría de Materiais José Luis Mier Buenhombre (G000127)","7300G12779","541A","INVESTIGACIÓN"]
["7300G29179 541A","Xeometría Diferencial e as súas Aplicacións Miguel Brozos Vázquez (G000291)","7300G29179","541A","INVESTIGACIÓN"]
["7300G35579 541A","Grupo de enxeñaría e dirección de proxectos Alfredo del Caño Gochi (G000355)","7300G35579","541A","INVESTIGACIÓN"]
["7300G53779 541A","Laboratorio de Análise Estrutural Alfonso Loureiro Montero (G000537)","7300G53779","541A","INVESTIGACIÓN"]
["7300G61879 541A","Sistemas Térmicos e Transferencia de Calor Alberto Arce Ceinos (G000618)","7300G61879","541A","INVESTIGACIÓN"]
["7300G66079 541A","Propiedades térmicas e reolóxicas de materiais Ramón Pedro Artiaga Díaz (G000660)","7300G66079","541A","INVESTIGACIÓN"]
["7500 122B","FACULTADE DE ENFERMARÍA E PODOLOXÍA","7500","122B","BIBLIOTECAS"]
["7500 300C","FACULTADE DE ENFERMARÍA E PODOLOXÍA","7500","300C","CENTROS"]
["7500 422D","FACULTADE DE ENFERMARÍA E PODOLOXÍA","7500","422D","ENSINANZA UNIVERSITARIA"]
["7500 541A","FACULTADE DE ENFERMARÍA E PODOLOXÍA","7500","541A","INVESTIGACIÓN"]
["75000VFA 300C","FACULTADE ENFERMERÍA E PODOLOXÍA. VIAXES FORMACIÓN ALUMNADO","75000VFA","300C","CENTROS"]
["75001460 122B","DEPARTAMENTO DE CIENCIAS DA SAÚDE","75001460","122B","BIBLIOTECAS"]
["75001460 422D","DEPARTAMENTO DE CIENCIAS DA SAÚDE","75001460","422D","ENSINANZA UNIVERSITARIA"]
["75001460 541A","DEPARTAMENTO DE CIENCIAS DA SAÚDE","75001460","541A","INVESTIGACIÓN"]
["7500146061 541A","G.I.: EPIDEMIOLOXÍA CLÍNICA G000664","7500146061","541A","INVESTIGACIÓN"]
["7500146081 541A","E0714- UNID. INV. SAÚDE E PODOLOXÍA - PROF. LÓPEZ LÓPEZ","7500146081","541A","INVESTIGACIÓN"]
["7500146082 541A","UNID.INV.\"INV.MIXTA EN CC. DA SAÚDE\" E000378, COORD.CORONADO CARVAJAL","7500146082","541A","INVESTIGACIÓN"]
["7500146083 541A","E000715,UNID.INV.TERÁPIA OCUPAC.EN INTERV.NON FARMACOL.COORD.ÁVILA ÁLVAREZ","7500146083","541A","INVESTIGACIÓN"]
["7500750001 422D","XORN.16-PROF.CORONADO CARVAJAL-INVESTIGACION E PROMOCION DA SAUDE","7500750001","422D","ENSINANZA UNIVERSITARIA"]
["7500750002 422D","AXUD.UDC, XORN.C.CONF. 2017,PROF.SOBRIDO PRIETO,AVANCES EN ATENCIÓN DE ENFERM.E PODOL.","7500750002","422D","ENSINANZA UNIVERSITARIA"]
["7500750005 422D","SEMINARIO INTER. TERAPIA FAMILIAR Y PRÁCTICA  SISTÉMICA\" -FAC. ENFERM. E PODOLOXÍA","7500750005","422D","ENSINANZA UNIVERSITARIA"]
["7500750006 422D","C. VERÁN 14- PROF. ROSENDE BAUTISTA \" BIOMECANICA DAS ALTEER. DE ANTETPÉ E?. \"","7500750006","422D","ENSINANZA UNIVERSITARIA"]
["7500750007 422D","CURSO 14- PROF. GIL MANSO \"IV CUR. OFICIAL DE DIR DE INSTALA. DE RADIODIAGNOSTICO\"","7500750007","422D","ENSINANZA UNIVERSITARIA"]
["7500750009 422D","XORN.12.PROF.RODRIGUEZMASEDA\"ATENCIÓNSOCIOSANITARIA\"","7500750009","422D","ENSINANZA UNIVERSITARIA"]
["7500750010 300C","CLÍNICA PODOLÓXICA- FAC. DE ENFERMERÍA E POD.","7500750010","300C","CENTROS"]
["7500750050 422D","PROGRAMA O TEU FUTURO EN BOAS MANS. FAC.ENFERM. E PODOLOXÍA","7500750050","422D","ENSINANZA UNIVERSITARIA"]
["7500ACDO 300C","FACULTADE DE ENFERMERÍA E PODOLOXÍA. ACTIVIDADES CULTURAIS, DEPORTIVAS E OUTRAS","7500ACDO","300C","CENTROS"]
["7500C01718 422D","CURSO ÉTICA E INVESTIGACIÓN. RESP: SOBRIDO PRIETO","7500C01718","422D","ENSINANZA UNIVERSITARIA"]
["7500D146 300C","DEPARTAMENTO DE CIENCIAS DA SAÚDE","7500D146","300C","CENTROS"]
["7500D146 422D","DEPARTAMENTO DE CIENCIAS DA SAÚDE","7500D146","422D","ENSINANZA UNIVERSITARIA"]
["7500D146 541A","DEPARTAMENTO DE CIENCIAS DA SAÚDE","7500D146","541A","INVESTIGACIÓN"]
["7500G66479 541A","Epidemioloxía Clínica Sonia Pertega Díaz (G000664)","7500G66479","541A","INVESTIGACIÓN"]
["7500U71479 541A","Saúde e Podoloxía Daniel López López (E000714)","7500U71479","541A","INVESTIGACIÓN"]
["7500U71579 541A","Terapia Ocupacional en Intervencións non Farmacolóxicas Adriana Ivette Ávila Álvarez (E000715)","7500U71579","541A","INVESTIGACIÓN"]
["7600 122B","FACULTADE DE CIENCIAS DO TRABALLO","7600","122B","BIBLIOTECAS"]
["7600 300C","FACULTADE DE CIENCIAS DO TRABALLO","7600","300C","CENTROS"]
["7600 422D","FACULTADE DE CIENCIAS DO TRABALLO","7600","422D","ENSINANZA UNIVERSITARIA"]
["76000VFA 300C","FACULTADE CIENCIAS DO TRABALLO. VIAXES FORMACIÓN ALUMNADO","76000VFA","300C","CENTROS"]
["7600600021 422D","MASTEROFIC.07,XEST.EDIRECC.LABORAL.COORD.GARCÍANÚÑEZ","7600600021","422D","ENSINANZA UNIVERSITARIA"]
["7600760001 422D","AXUD.UDC,XORN.C.CONF.2017,PROF.MUNÍN SÁNCHEZ,A XURISPR.A SALA DO SOCIAL DO TSJG A DEBATE","7600760001","422D","ENSINANZA UNIVERSITARIA"]
["7600760050 422D","PROGRAMA O TEU FUTURO EN BOAS MANS. FAC. CC.DO TRABALLO","7600760050","422D","ENSINANZA UNIVERSITARIA"]
["7600ACDO 300C","FACULTADE DE CIENCIAS DO TRABALLO. ACTIVIDADES CULTURAIS, DEPORTIVAS E OUTRAS","7600ACDO","300C","CENTROS"]
["7600I71879 541A","ALONSO SEOANE, MARÍA JESÚS (I000718)","7600I71879","541A","INVESTIGACIÓN"]
["7700 122B","ESCOLA UNIVERSITARIA POLITÉCNICA","7700","122B","BIBLIOTECAS"]
["7700 300C","ESCOLA UNIVERSITARIA POLITÉCNICA","7700","300C","CENTROS"]
["7700 422D","ESCOLA UNIVERSITARIA POLITÉCNICA","7700","422D","ENSINANZA UNIVERSITARIA"]
["7700 541A","ESCOLA UNIVERSITARIA POLITÉCNICA","7700","541A","INVESTIGACIÓN"]
["77000VFA 300C","ESCOLA UNIVERSITARIA POLITÉCNICA. VIAXES FORMACIÓN ALUMNADO","77000VFA","300C","CENTROS"]
["77001170 122B","DEPARTAMENTO DE ENXEÑARÍA INDUSTRIAL I","77001170","122B","BIBLIOTECAS"]
["77001170 422D","DEPARTAMENTO DE ENXEÑARÍA INDUSTRIAL I","77001170","422D","ENSINANZA UNIVERSITARIA"]
["77001170 541A","DEPARTAMENTO DE ENXEÑARÍA INDUSTRIAL I","77001170","541A","INVESTIGACIÓN"]
["7700117001 422D","C.VERÁN 2015,PROF.RGUEZ.GARCÍA, DESEÑO MECÁNICO 3D CON SOLID EDGE.NIVEL BÁSICO","7700117001","422D","ENSINANZA UNIVERSITARIA"]
["7700117002 422D","C.VERÁN 2015,PROF.COUCE CASANOVA,MODELADO 3D CON SIEMENS NX","7700117002","422D","ENSINANZA UNIVERSITARIA"]
["7700117061 541A","G.I.: CIENCIA E TÉCNICA CIBERNÉTICA G00087","7700117061","541A","INVESTIGACIÓN"]
["7700117081 541A","E672-XEST EFIC,ENERX.ELÉCTRICA.GRAÑA LÓPEZ","7700117081","541A","INVESTIGACIÓN"]
["7700147061 541A","G.I.: INNOVACIÓNS MARIÑAS E00324 (PASOU DE G. A UNID.)","7700147061","541A","INVESTIGACIÓN"]
["7700210481 541A","MINECO 13-REF.MAT2013-41892-R-PROFS. BOUZA PADÍN E BARRAL LOSADA","7700210481","541A","INVESTIGACIÓN"]
["7700242043 541A","XUNTA10.PROF.BARRALLOSADA.PRG.SECT.REF:10TAL172002PR","7700242043","541A","INVESTIGACIÓN"]
["7700242045 541A","XUNTA10.PROF.RAMÍREZGOMEZ-PRG.SECT.REF:10TMT172009PR","7700242045","541A","INVESTIGACIÓN"]
["7700242407 541A","XUNTA 14 C.CULT.,EDUC.PROF.BARRAL LOSADA Nº GRC2014/036,GRUP.REFER. COMPET","7700242407","541A","INVESTIGACIÓN"]
["7700280042 541A","PROX.UE.11,PROF.BARRALLOSADA.\"NanoBioComp\".PIEF-GA-2010-273515","7700280042","541A","INVESTIGACIÓN"]
["7700770000 300C","FIRST LEGO LEAGUE.EU POLITECNICA. FERROL","7700770000","300C","CENTROS"]
["7700770001 422D","C.VERAN 2016-PROF.RGUEZ.GARCIA-DESEÑO MECANICO 3D CON SOLID EDGE.NIVEL BASICO","7700770001","422D","ENSINANZA UNIVERSITARIA"]
["7700770002 422D","C.VERAN 2016-PROF.COUCE CASANOVA-MODELADO 3D CON SIEMENS NX-NIVEL BASICO E INTERMEDIO","7700770002","422D","ENSINANZA UNIVERSITARIA"]
["7700770003 422D","XORN.16-PROF.FDEZ.IBAÑEZ-XI XUNTANZA TECNOLOXICA EMPRESA-UNIVERSIDADE","7700770003","422D","ENSINANZA UNIVERSITARIA"]
["7700770004 422D",".AX.CURSO VERÁN 2017,MOD.C.PROF.COUCE CASANOVA, MODELADO 3D CON SIEMENS NX?","7700770004","422D","ENSINANZA UNIVERSITARIA"]
["7700770005 422D","AX.CURSO VERÁN 2017,MOD.C.PROF.RGUEZ. GARCÍA,INICIACIÓN AO MODELADO 3D E INSTAL. EN EDIFICAC.","7700770005","422D","ENSINANZA UNIVERSITARIA"]
["7700770006 422D","CURSO VERAN 2016,MOD.D,PROF.RGUEZ.GARCÍA. INICIAC.MODELADO 3D??","7700770006","422D","ENSINANZA UNIVERSITARIA"]
["7700770007 422D","CURSO 2017,EDICIÓN TRABALLOS FIN DE GRAO CON LATEX.PROF.SUÁREZ PEÑARANDA","7700770007","422D","ENSINANZA UNIVERSITARIA"]
["7700770015 422D","CUR.VERÁN.13- PROF. RODGUEZ. GARCÍA  \" DESEÑO MEC. 3D CON SOLID EDGE¿\"","7700770015","422D","ENSINANZA UNIVERSITARIA"]
["7700770050 422D","PROGRAMA O TEU FUTURO EN BOAS MANS. E.UNIV.POLITÉCNICA","7700770050","422D","ENSINANZA UNIVERSITARIA"]
["7700ACDO 300C","ESCOLA UNIVERSITARIA POLITÉCNICA. ACTIVIDADES CULTURAIS, DEPORTIVAS E OUTRAS","7700ACDO","300C","CENTROS"]
["7700C01918 422D","XII XUNTANZA TECNOLÓXICA EMPRESA-UNIVERSIDADE. RESP: PIÑÓN PAZOS","7700C01918","422D","ENSINANZA UNIVERSITARIA"]
["7700D117 422D","DEPARTAMENTO DE ENXEÑARÍA INDUSTRIAL","7700D117","422D","ENSINANZA UNIVERSITARIA"]
["7700D117 541A","DEPARTAMENTO DE ENXEÑARÍA INDUSTRIAL","7700D117","541A","INVESTIGACIÓN"]
["7700G08779 541A","Ciencia e Técnica Cibernética José Luis Calvo Rolle (G00087)","7700G08779","541A","INVESTIGACIÓN"]
["7700U32479 541A","Innovacións Mariñas Juan de Dios Rodríguez García (E000324)","7700U32479","541A","INVESTIGACIÓN"]
["7710 122B","ESCOLA UNIVERSITARIA DE DESEÑO INDUSTRIAL","7710","122B","BIBLIOTECAS"]
["7710 300C","ESCOLA UNIVERSITARIA DE DESEÑO INDUSTRIAL","7710","300C","CENTROS"]
["7710 422D","ESCOLA UNIVERSITARIA DE DESEÑO INDUSTRIAL","7710","422D","ENSINANZA UNIVERSITARIA"]
["77100VFA 300C","EU DESEÑO INDUSTRIAL. VIAXES FORMACIÓN ALUMNADO","77100VFA","300C","CENTROS"]
["7710771001 422D","CURSIO 2013 USOS,APL.FIBRA DE CARBONO:Tª E PRACT.PROF. MÉNDEZ SALGUEIRO","7710771001","422D","ENSINANZA UNIVERSITARIA"]
["7710771002 422D","CURSO 2013,HERRAM BÁSICAS DIBUJO E RENDERIZDO EN AUTOMOCIÓN","7710771002","422D","ENSINANZA UNIVERSITARIA"]
["7710771003 422D","CURSO 2015, APLICACIÓNS CAD/CAM/CAE,PROF.REGUEIRO FDEZ.","7710771003","422D","ENSINANZA UNIVERSITARIA"]
["7710771004 541A","AXUDA C.I.04/05/2017,PROGR.H2020,PROF.GUILLÉN SOLORZANO \"AXENDA TRABALLO PROX.SILVERSURFER","7710771004","541A","INVESTIGACIÓN"]
["7710771006 422D","CURSO2012,\"ODES.GRÁF.FERRAMENTASETÉCNICAS-EUDESEÑOINDUSTRIAL","7710771006","422D","ENSINANZA UNIVERSITARIA"]
["7710771007 422D","SEMINA.14 - DIR. DA E.U. DE DESEÑO INDUS. \"ACABADOS SUPERFIC. EN MODELOS Y MAQUETAS IND.\"","7710771007","422D","ENSINANZA UNIVERSITARIA"]
["7710771008 422D","SEMINA.14 - DIR. DA E.U. DE DESEÑO INDUS. \"PLANTEA. ESTRUT. Y REALIZA. DE MODELOS\"","7710771008","422D","ENSINANZA UNIVERSITARIA"]
["7710771009 422D","SEMIN.14,\" HERRAMIENTAS BÁSICAS DE DIBUJO Y RENDERIZADO EN AUTOMOC.\",DRTOR.EU.DESEÑO IND.","7710771009","422D","ENSINANZA UNIVERSITARIA"]
["7710771014 422D","CURSO13 \"DESEÑO DE PRODUTOS CON SOLIDWORKS\"- E.U. DESEÑO INDUSTRIAL","7710771014","422D","ENSINANZA UNIVERSITARIA"]
["7710771015 422D","CURSO13 - PROF. REGUEIRO FDEZ.\"APLICACIÓNS INFORM. COMO FERRAM. PARA UN PROX.\"-","7710771015","422D","ENSINANZA UNIVERSITARIA"]
["7710771016 422D","XORN.2013- PROF. MARTÍNEZ CARBALLO \"O OUTDOOR TRAINING COMO METOD.PARA¿\"","7710771016","422D","ENSINANZA UNIVERSITARIA"]
["7710771050 422D","PROGRAMA O TEU FUTURO EN BOAS MANS. E.U.DESEÑO INDUSTR.","7710771050","422D","ENSINANZA UNIVERSITARIA"]
["7710ACDO 300C","ESCOLA UNIVERSITARIA DE DESEÑO INDUSTRIAL. ACTIVIDADES CULTURAIS, DEPORTIVAS E OUTRAS","7710ACDO","300C","CENTROS"]

{"sheet":"CENTRO","index":5,"n_rows":34,"n_cols":1,"rows_kept":34,"cut":false,"hidden":true,"merged":[]}
["CENTRO DE INNOVACIÓN TÉCNICA EN EDIFICACIÓN E ENXEÑERÍA CIVIL (CITEEC)"]
["CENTRO DE INNOVACIÓN TECNOLÓXICA (CIT)"]
["CENTRO DE INVESTIGACIÓN EN TECNOLOXÍAS DA INFORMACIÓN E AS COMUNICACIÓNS (CITIC)"]
["CONSELLO SOCIAL"]
["ESCOLA POLITÉCNICA SUPERIOR "]
["ESCOLA TÉCNICA SUPERIOR DE ARQUITECTURA"]
["ESCOLA TÉCNICA SUPERIOR DE ENXEÑEIROS DE CAMIÑOS, CANAIS E PORTOS"]
["ESCOLA TÉCNICA SUPERIOR DE NÁUTICA E MÁQUINAS"]
["ESCOLA UNIVERSITARIA DE ARQUITECTURA TÉCNICA"]
["ESCOLA UNIVERSITARIA POLITÉCNICA"]
["FACULTADE DE CIENCIAS"]
["FACULTADE DE CIENCIAS DA EDUCACIÓN"]
["FACULTADE DE CIENCIAS DO DEPORTE E A EDUCACIÓN FÍSICA"]
["FACULTADE DE DEREITO"]
["FACULTADE DE ECONOMÍA E EMPRESA"]
["FACULTADE DE FILOLOXÍA"]
["FACULTADE DE INFORMÁTICA"]
["INSTITUTO UNIVERSITARIO DE CIENCIAS DA SAÚDE"]
["INSTITUTO UNIVERSITARIO DE ESTUDOS EUROPEOS"]
["INSTITUTO UNIVERSITARIO DE ESTUDOS IRLANDESES"]
["INSTITUTO UNIVERSITARIO DE ESTUDOS MARÍTIMOS"]
["INSTITUTO UNIVERSITARIO DE MEDIO AMBIENTE"]
["INSTITUTO UNIVERSITARIO DE XEOLOXÍA"]
["OFICINA DE RELACIÓNS INTERNACIONAIS (ORI)"]
["OFICINA DE TRANSFERENCIA DE RESULTADOS E INVESTIGACIÓN (OTRI)"]
["SERVIZO DE BIBLIOTECA UNIVERSITARIA"]
["SERVIZO DE EXTENSIÓN UNIVERSITARIA"]
["SERVIZO DE INVESTIGACIÓN"]
["SERVIZO DE PATRIMONIO INVENTARIO E XESTIÓN ECONÓMICA"]
["SERVIZOS DE APOIO Á INVESTIGACIÓN (SAI)"]
["UXAI ELVIÑA"]
["UXAI FERROL"]
["UXAI OZA"]
["VICERREITORÍA DO CAMPUS DE FERROL E RESPONSABILIDADE SOCIAL"]

{"sheet":"U.T.","index":6,"n_rows":47,"n_cols":2,"rows_kept":47,"cut":false,"hidden":true,"merged":[]}
["0100","SERVIZO DE PATRIMONIO INVENTARIO E XESTIÓN ECONÓMICA"]
["0200","SERVIZO DE PATRIMONIO INVENTARIO E XESTIÓN ECONÓMICA"]
["0300","SECCION DE EXTENSIÓN UNIVERSITARIA"]
["0305","SERVIZO DE EXTENSIÓN UNIVERSITARIA"]
["0400","SERVIZO DE PATRIMONIO INVENTARIO E XESTIÓN ECONÓMICA"]
["0500","SERVIZO DE INVESTIGACIÓN"]
["0502","SERVIZO DE BIBLIOTECA UNIVERSITARIA"]
["0503","CENTRO DE INVESTIGACIÓN EN TECNOLOXÍAS DA INFORMACIÓN E AS COMUNICACIÓNS (CITIC)"]
["0504","SERVIZOS DE APOIO Á INVESTIGACIÓN (SAI)"]
["0505","OFICINA DE TRANSFERENCIA DE RESULTADOS E INVESTIGACIÓN (OTRI)"]
["0506","CENTRO DE INNOVACIÓN TÉCNICA EN EDIFICACIÓN E ENXEÑERÍA CIVIL (CITEEC)"]
["0507","CENTRO DE INNOVACIÓN TECNOLÓXICA (CIT)"]
["0512","ESCOLA POLITÉCNICA SUPERIOR "]
["0513","OFICINA DE RELACIÓNS INTERNACIONAIS (ORI)"]
["0522","INSTITUTO UNIVERSITARIO DE XEOLOXÍA"]
["0524","INSTITUTO UNIVERSITARIO DE ESTUDOS EUROPEOS"]
["0526","INSTITUTO UNIVERSITARIO DE MEDIO AMBIENTE"]
["0527","INSTITUTO UNIVERSITARIO DE ESTUDOS IRLANDESES"]
["0528","INSTITUTO UNIVERSITARIO DE CIENCIAS DA SAÚDE"]
["0529","INSTITUTO UNIVERSITARIO DE ESTUDOS MARÍTIMOS"]
["0700","SERVIZO DE PATRIMONIO INVENTARIO E XESTIÓN ECONÓMICA"]
["0800","SERVIZO DE PATRIMONIO INVENTARIO E XESTIÓN ECONÓMICA"]
["0900","VICERREITORÍA DO CAMPUS DE FERROL E RESPONSABILIDADE SOCIAL"]
["1000","SERVIZO DE PATRIMONIO INVENTARIO E XESTIÓN ECONÓMICA"]
["1100","CONSELLO SOCIAL"]
["1300","SERVIZO DE PATRIMONIO INVENTARIO E XESTIÓN ECONÓMICA"]
["6100","FACULTADE DE CIENCIAS"]
["6120","FACULTADE DE DEREITO"]
["6130","FACULTADE DE FILOLOXÍA"]
["6140","FACULTADE DE INFORMÁTICA"]
["6150","FACULTADE DE SOCIOLOXÍA"]
["6160","FACULTADE DE CIENCIAS DA COMUNICACIÓN"]
["6170","FACULTADE DE ECONOMÍA E EMPRESA"]
["6200","FACULTADE DE CIENCIAS DO DEPORTE E A EDUCACIÓN FÍSICA"]
["6300","ESCOLA TÉCNICA SUPERIOR DE ARQUITECTURA"]
["6310","ESCOLA TÉCNICA SUPERIOR DE NÁUTICA E MÁQUINAS"]
["6320","ESCOLA TÉCNICA SUPERIOR DE ENXEÑEIROS DE CAMIÑOS, CANAIS E PORTOS"]
["6510","FACULTADE DE FISIOTERAPIA"]
["6520","FACULTADE DE CIENCIAS DA EDUCACIÓN"]
["6530","FACULTADE DE CIENCIAS DO TRABALLO"]
["6700","ESCOLA UNIVERSITARIA DE ARQUITECTURA TÉCNICA"]
["7100","FACULTADE DE HUMANIDADES"]
["7300","ESCOLA POLITÉCNICA SUPERIOR "]
["7500","FACULTADE  DE ENFERMARÍA E PODOLOXÍA"]
["7600","FACULTADE DE CIENCIAS DO TRABALLO"]
["7700","ESCOLA UNIVERSITARIA POLITÉCNICA"]
["7710","ESCOLA UNIVERSITARIA DE DESEÑO INDUSTRIAL "]

{"sheet":"ECON","index":7,"n_rows":266,"n_cols":2,"rows_kept":266,"cut":false,"hidden":true,"merged":[]}
["ECONOMICA","DESCRICION_ECONOMICA"]
[20000,"ARRENDAMENTOS TERREOS E BENS NATURAIS"]
[20200,"ARRENDAMENTO DE EDIFICIOS E OUTRAS CONSTRUCIÓNS"]
[20300,"MAQUINARIA "]
[20301,"INSTALACIÓNS"]
[20302,"UTENSILIOS"]
[20400,"ALUGUEIROS DE MATERIAL DE TRANSPORTE "]
[20500,"ARRENDAMENTO DE MOBILIARIO E AVÍOS"]
[20600,"ARRENDAMENTO DE SISTEMAS PARA PROCESOS DE INFORMACIÓN"]
[20800,"ARRENDAMENTO DOUTRO INMOBILIZADO MATERIAL "]
[20900,"CANONS "]
[20901,"LICENZAS-SOFTWARE"]
[20902,"DE ACCESO A SITIOS WEB E POLO USO DE PRODUTOS DIXITAIS"]
[20916,"DESENVOLVEMENTO E ALOXAMENTO WEB "]
[21000,"REPARAC.INFRAESTR. E BENS NATURAIS "]
[21200,"REPARACION MANTEM.CONSERV.EDIFICIOS E OUTRAS CONSTRUCC. "]
[21300,"MAQUINARIA"]
[21301,"INSTALACIÓNS"]
[21302,"UTENSILIOS"]
[21400,"REPARACIÓNS ELEMENTOS DE TRANSPORTE"]
[21500,"REPARACIÓNS MOBILIARIO E AVÍOS"]
[21600,"REPARACION E MANTEMENTO EQUIPOS PROCESOS INFORMACIÓN. "]
[21800,"MATERIAL BIBILIOGRÁFICO E DOCUMENTAL "]
[21900,"OUTRO MATERIAL INMOBILIZADO "]
[22000,"MATERIAL DE OFICINA DE USO ORDINARIO NON INVENTARIABLE"]
[22001,"PRENSA, REVISTAS, LIBROS E PUBLICACIÓNS "]
[22002,"MAT. OFICINA INFORMATICO NON INVENTARIABLE "]
[22003,"PRÉSTAMOS INTERBIBLIOTECARIOS"]
[22004,"RECURSOS DE INFORMACIÓN. BIBLIOTECAS"]
[22005,"SUBSCRICIÓNS PUBLICACIÓNS PERIÓDICAS"]
[22100,"ENERXÍA ELÉCTRICA "]
[22101,"AUGA "]
[22102,"GASES DE LABORATORIO "]
[22103,"COMBUSTIBLES, LUBRICANTES E ADITIVOS "]
[22104,"VESTUARIO "]
[22105,"EQUIPOS DE PROTECCIÓN INDIVIDUAL.EPI "]
[22106,"PRODUCTOS FARMACÉUTICOS E MATERIAL SANITARIO "]
[22107,"MATERIAL DOCENTE"]
[22108,"MATERIAL DEPORTIVO E CULTURAL "]
[22109,"LABORES DA FABRICA NAC, MOEDA E TIMBRE "]
[22110,"MATERIAL PARA REPARACIÓNS DE EDIFICIOS E OUTRAS CONSTRUCIÓNS"]
[22111,"SUBM. DE REPOSTOS DE MAQUINARIA, FERRAMENTAS E ELEMENTOS DE TRANSPORTE"]
[22112,"SUBMINISTRO DE MATERIAL  ELECTRÓNICO, ELÉCTRICO, COMUNICACIÓNS E AUDIOVISUAIS"]
[22113,"PEQUENO EQUIPAMENTO NON INVENTARIABLE "]
[22115,"SUBMINISTROS NO EXTERIOR "]
[22199,"OUTRAS SUBMINISTRACIONS "]
[22200,"SERVIZOS DE TELECOMUNICACIÓNS"]
[22201,"POSTAIS E MENSAXERÍA"]
[22215,"COMUNICACIÓNS NO EXTERIOR"]
[22299,"OUTRAS COMUNICACIONS "]
[22300,"TRANSPORTES"]
[22400,"PRIMAS DE SEGURO "]
[22500,"TRIBUTOS ESTATAIS "]
[22501,"TRIBUTOS AUTONÓMICOS "]
[22502,"TRIBUTOS LOCAIS "]
[22599,"OUTROS TRIBUTOS "]
[22600,"GASTOS DE FUNCIONAMENTO"]
[2260099,"COMPENSACIÓNS E ANULACIÓNS DE CRÉDITOS DE GASTOS CORRENTES "]
[22601,"ATENCIONS PROTOCOLARIAS E REPRESENTATIVAS "]
[22602,"INFORMACIÓN, DIVULGACIÓN E PUBLICIDADE"]
[22603,"GASTOS XURIDICOS E CONTENCIOSOS "]
[2260301,"SANCIÓNS "]
[22604,"FORMACIÓN E PERFECCIONAMENTO DO PERSOAL"]
[22605,"RELACIONS INSTITUCIONAIS "]
[2260501,"COTAS E INSCR. UDC MEMBROS GOB. POR CARGO"]
[2260502,"COTAS E INSCRICIONS UDC OUTRAS"]
[22606,"REUNIONS, CONFERENCIAS E CURSOS. "]
[22607,"OPOSICIONS, PROBAS SELECTIVAS E PROCESOS ELECTORAIS"]
[2260701,"OPOSICIÓNS E  PROBAS SELECTIVAS"]
[2260702,"PROCESOS ELECTORAIS"]
[22609,"ACTIVIDADES CULTURAIS, DEPORTIVAS E OUTRAS"]
[2260901,"VIAXES FORMACION ALUMNADO "]
[22611,"CONSELLO SOCIAL U.D.C. "]
[22616,"VALEDOR UNIVERSITARIO "]
[22621,"ACTIVIDADES FORMATIVAS ALUMNADO"]
[22699,"OUTROS GASTOS DIVERSOS "]
[22700,"LIMPEZA E ASEO "]
[22701,"SEGURIDADE E VIXILANCIA"]
[22702,"VALORACIÓNS E PERITAXES"]
[22703,"PAQUETARÍA, MENSAXERÍA"]
[22704," XARDINARÍA "]
[22705,"PROCESOS ELECTORAIS "]
[22706,"ESTUDIOS E TRABALLOS TECNICOS "]
[22707,"MANTEMENTOS "]
[2270710,"MAN.AIRE ACONDICIONADO "]
[2270712,"MAN.APARATOS ELEVADORES "]
[2270713,"MAN CALEFACCIÓN "]
[2270714,"MAN.CENTROS DE TRANSFORMACIÓN "]
[2270715,"MAN.GRUPOS ELECTRÓGENOS "]
[2270717,"MAN,EQUIPOS INVESTIG. E DOCENCIA "]
[2270718,"MAN.INSTAL. DE SEGURIDADE "]
[2270719,"MAN. INSTALACIÓNS "]
[2270721,"MAN.VARIOS "]
[2270722,"MAN.INSTAL. ELÉCTRICAS "]
[2270723,"MAN.FOTOCOP.FAXES, IMPRESORAS "]
[2270780,"MATERIALES ASOCIADOS A CONTRATOS DE MANTENIMIENTO "]
[22708,"MANTEMENTOS INFORMATICA "]
[2270801,"MANTEMENTO EQUIPOS INFORMATICOS "]
[2270802,"MANTEMENTOS REDES , COMUNICACIÓNS E SEGURIDADE"]
[2270803,"MANTEMENTOS SOFTWARE "]
[22709,"CERTIFICACION DIXITAL  E SEGURIDADE "]
[22711,"CUSTODIA,DEPOSITO E ALMACENAXE "]
[22712,"CONSULTORÍA E ASESORAMENTO EXTERNO/CONTRATACIÓN SERVIZOS "]
[22799,"OUTROS TRABALLOS "]
[23000,"AXUDAS DE CUSTO"]
[23001,"AXUDAS DE CUSTO.PAS FUNCIONARIO "]
[23002,"AXUDAS DE CUSTO. PAS LABORAL "]
[23003,"AXUD.CUSTO.IMPARTIC.DOCENCIA "]
[23005,"AXUDAS DE CUSTO ELECCIÓNS "]
[23007,"AXUDAS DE CUSTO. PDI FUNCIONARIO "]
[23008,"AXUDAS DE CUSTO.PDI LABORAL "]
[23009,"AXUDAS CUSTO MEMBROS CONSELLO SOCIAL (NON REPR.UDC) "]
[23010,"AXUDAS DE CUSTO.ESTUDANTES "]
[23011,"AXUDAS DE CUSTO.PERSOAS ALLEAS Á UDC "]
[23101,"GASTOS DE VIAXE. PAS FUNCIONARIO "]
[23102,"GASTOS DE VIAXE. PAS LABORAL "]
[23107,"GASTOS DE VIAXE. PDI FUNCIONARIO "]
[23108,"GASTOS DE VIAXE. PDI LABORAL "]
[23109,"GASTOS DE VIAXE MEMBROS CONSELLO SOCIAL(NON REPRESENTANTES DA UDC) "]
[23110,"GASTOS DE VIAXE.ESTUDANTES.  "]
[23111,"GASTOS DE VIAXE PERSOAS ALLEAS Á UDC "]
[23300,"ASISTENCIAS "]
[23301,"PRAZAS PAS "]
[2330101,"AXUDAS DE CUSTO TRIBUNAIS PRAZAS PAS"]
[2330102,"GASTOS DE VIAXE TRIBUNAIS PRAZAS PAS"]
[23302,"PRAZAS PDI "]
[2330201,"AXUDAS DE CUSTO TRIBUNAIS PRAZAS PDI "]
[2330202,"GASTOS DE VIAXE TRIBUNAIS PRAZAS PDI "]
[23303,"TESES DOUTORAMENTO "]
[2330301,"AXUDAS DE CUSTO TRIBUNAIS TESES DOUTORAMENTO "]
[2330302,"GASTOS DE VIAXE TRIBUNAIS TESES DOUTORAMENTO "]
[23305,"ASISTENCIAS  A ORGANOS COLEXIADOS "]
[2330501,"ASISTENC.ORGAN.COLEXIADOS PDI FUNCIONARIO "]
[2330502," ASISTENCIAS ORGANOS COLEXIADOS.PDI LABORAL "]
[2330503," ASISTENCIAS ORGANOS COLEXIADOS. PAS "]
[24000,"EDICIÓN E DISTRIBUCIÓN "]
[31000,"A CURTO PRAZO"]
[31001,"A LONGO PRAZO"]
[31100,"GASTOS DE EMISIÓN, MODIFICACIÓN E CANCELACIÓN"]
[31900,"A CURTO PRAZO"]
[31901,"A LONGO PRAZO"]
[34100,"XUROS DE FIANZAS "]
[35200,"XUROS DE DEMORA "]
[35900,"GASTOS E COMISIÓNS BANCARIAS"]
[35901,"OUTRAS DIFERENZAS NEGATIVAS DE CAMBIO"]
[35909,"OUTROS GASTOS FINANCEIROS"]
[40000,"TRANSF. CORRENTES A ADMON DO ESTADO "]
[4000000,"DOCENTES UDC. COMPENSACIÓN GASTOS DE VIAXE "]
[4000001,"DOCENTES UDC. COMPENSACIÓN GASTOS DE ALOXAMENTO "]
[4000002,"DOCENTES UDC. COMPENSACIÓN GASTOS DE MANUTENCIÓN "]
[40001,"PAGO DOCENTES ARMADA"]
[4000100,"DOCENTES ARMADA. COMPENSACIÓN GASTOS DE VIAXE "]
[4000101,"DOCENTES ARMADA. COMPENSACIÓN GASTOS DE ALOXAMENTO "]
[4000102,"DOCENTES ARMADA. COMPENSACIÓN GASTOS DE MANUTENCIÓN "]
[40002,"PAGO PERSOAL ALLEO "]
[4000200,"PERSOAL ALLEO. COMPENSACIÓN GASTOS DE VIAXE "]
[4000201,"PERSOAL ALLEO. COMPENSACIÓN GASTOS DE ALOXAMENTO "]
[4000202,"PERSOAL ALLEO. COMPENSACIÓN GASTOS DE MANUTENCIÓN "]
[44100,"A CONSORCIOS"]
[44200,"A FUNDACIONES PÚBLICAS"]
[44400,"A OUTRAS ENTIDADES PÚBLICAS "]
[45000,"Á COMUNIDADE AUTÓNOMA DE GALICIA"]
[45001,"A ORGANISMOS E ENTIDADES DEPENDENTES DA COMUNIDADE AUTÓNOMA DE GALICIA"]
[47000,"TRANSF.EMPRESAS PRIVADAS "]
[47001,"COLEGIOS PROFESIONALES"]
[48000,"BOLSAS ESTUDANTES"]
[48001,"AXUDAS ESTUDANTES"]
[48002,"PREMIOS ESTUDANTES "]
[48100,"BOLSAS  PDI"]
[48101,"AXUDAS PDI"]
[48102,"PREMIOS PDI "]
[48200,"BOLSAS PAS"]
[48201,"AXUDAS PAS"]
[4820100,"AXUDAS PAS ENTRANTE"]
[48202,"PREMIOS PAS"]
[48300,"PROGRAMA ERASMUS"]
[48400,"INSTITUCIÓNS SEN FINS DE LUCRO"]
[48400,"INSTITUCIONS SEN FINS DE LUCRO "]
[48800,"INCENTIVOS XUBILACIÓN VOLUNTARIA"]
[48800,"INCENTIVOS XUBILACIÓN VOLUNTARIA "]
[50000,"DOTACIÓN AO FONDO DE CONTINXENCIA DE EXECUCIÓN ORZAMENTARIA"]
[60000,"DE USO XERAL"]
[60001,"PATRIMONIAIS"]
[61000,"INVESTIMENTOS EN TERREOS"]
[62200,"EDIFICIOS E OUTRAS CONSTRUCCIONS "]
[62300,"INSTALACIÓNS  "]
[62301,"MAQUINARIA "]
[62302,"FERRAMENTAS "]
[62304,"ACTUACIÓNS PLAN DE EFICIENCIA ENERXÉTICA"]
[62400,"ELEMENTOS DE TRANSPORTE "]
[62500,"MOBILIARIO E AVÍOS"]
[62600,"SISTEMAS PARA PROCESO DE INFORMACIÓN"]
[62800,"ADQUISICIÓN DE FONDOS BIBLIOGRÁFICOS"]
[64000,"CONVENIOS DE COLABORACIÓN E CONTRATOS  "]
[6400000,"CONTRATACIÓN DE PERSOAL CON CARGO A CONVENIOS"]
[6400001,"CONSULTORÍA E ASESORAMENTO EXTERNO/CONTRATACIÓN SERVIZOS "]
[6400003,"RETRIBUCIÓNS E COMPLEM.SALARIAIS"]
[6400004,"GASTOS VARIOS"]
[6400005,"MATERIAL FUNXIBLE EXCEPTO MATERIAL DE LABORATORIO"]
[6400006,"MATERIAL FUNXIBLE DE LABORATORIO"]
[6400007,"DEREITO DE USO DE INFRAESTRUTURA CIENTÍFICA"]
[6400008,"REUNIÓNS, CONFERENCIAS E CURSOS"]
[6400009,"FERRAMENTAS  DE XESTIÓN DO COÑECEMENTO E A INFORMACIÓN (BB DATOS, WEBS...ETC) "]
[6400010,"GASTOS DE VIAXE. CONVENIOS, CONTRATOS "]
[6400011,"GASTOS DE ALOXAMENTO. CONVENIOS, CONTRATOS "]
[6400012,"GASTOS DE MANUTENCIÓN.CONVENIOS, CONTRATOS "]
[6400013,"COMPENSACIÓN GASTOS DE VIAXE "]
[6400014,"COMPENSACIÓN GASTOS DE ALOXAMENTO "]
[6400015,"COMPENSACIÓN GASTOS DE MANUTENCIÓN "]
[6400016,"BOLSAS ESTUDANTES"]
[6400017,"AXUDAS ESTUDANTES"]
[6400018,"PREMIOS ESTUDANTES "]
[6400077,"COMPENSACIÓN CRÉDITOS SAI."]
[6400088,"COMPENSACIÓNS CRÉDITOS INICIAIS E INCORPORACIÓNS "]
[6400099,"COMPENSACIÓN DE CRÉDITOS NON XUSTIFICADOS "]
[64001,"CONTRATOS DE PERSOAL CON CARGO A PROGRAMAS DE RECURSOS HUMANOS"]
[64002,"SEGUROS DE VIAXE ASOCIADOS A CONVOCATORIA "]
[64005,"FONDO INFRAESTRUTURA UDC. "]
[6400502,"FONDO INFRAESTRUCTURA SAI "]
[64006,"DE ACCESO A SITIOS WEB E REXISTRO DE DOMINIO "]
[64007,"LICENCIAS DE SOFTWARE"]
[64088,"CONTRATOS DE LEASING"]
[64099,"OUTROS INVESTIMENTOS DE CARÁCTER INMATERIAL"]
[64900,"FONDOS DE INVESTIGACIÓN DA UNIVERSIDADE"]
[6490000,"VISITAS ENCONTROS INVESTIGADORES"]
[6490001,"CONGRESOS-XORNADAS INVESTIGACIÓN"]
[6490002,"PARTICIPACIÓN PROGRAMA H2020"]
[6490003,"PATENTES"]
[6490004,"GASTOS VARIOS DOS FONDOS DE INVETIGACIÓN"]
[6490005,"MATERIAL FUNXIBLE DOS FONDOS DE INVESTIGACIÓN, EXCEPTO MATERIAL LABORATORIO"]
[6490006,"MATERIAL FUNXIBLE DE LABORATORIO. FONDOS INVESTIGACIÓN"]
[6490007,"PATENTES.FONDOS INV. "]
[6490008,"COTAS COLOQUIOS,CONGRESOS E ADHESIÓN SOC. CIENTIFICAS "]
[6490010,"GASTOS DE VIAXE. "]
[6490011," GASTOS DE ALOXAMENTO."]
[6490012,"GASTOS DE MANUTENCIÓN."]
[6490013,"COMPENSACIÓN GASTOS DE VIAXE "]
[6490014,"COMPENSACIÓN GASTOS DE ALOXAMENTO "]
[6490015,"COMPENSACIÓN GASTOS DE MANUTENCIÓN "]
[6490016,"CONSULTORÍA E ASESORAMENTO EXTERNO/CONTRATACIÓN SERVIZOS "]
[6490077,"COMPENSACIÓN CRÉDITOS SAI."]
[64902,"PROXECTOS INVESTIGACION "]
[6490200,"PERSOAL"]
[6490201,"ORGANIZACIÓN DE ACTIVIDADES DE DIFUSIÓN"]
[6490202,"COTAS DE COLOQUIOS E CONGRESOS E ADHESIÓNS A SOCIEDADES CIENTÍFICAS"]
[6490203,"RETRIBUCIÓNS E COMPLEM.SALARIAIS.PROX. INV. "]
[6490204,"OUTROS GASTOS"]
[6490205,"MATERIAL FUNXIBLE, EXCEPTO MATERIAL LABORATORIO"]
[6490206,"MATERIAL FUNXIBLE DE LABORATORIO"]
[6490207,"PATENTES"]
[6490208,"FERRAMENTAS DE XESTIÓN DO COÑECEMENTO E A INFORMACIÓN (BASES DE DATOS, WEBS.....ETC)"]
[6490209,"CUSTES INDIRECTOS I P "]
[6490210,"GASTOS DE VIAXE"]
[6490211,"GASTOS DE ALOXAMENTO."]
[6490212,"GASTOS DE MANUTENCIÓN. "]
[6490213,"COMPENSACION GASTOS DE VIAXE "]
[6490214,"COMPENSACIÓN GASTOS DE ALOXAMENTO "]
[6490215,"COMPENSACIÓN GASTOS DE MANUTENCIÓN "]
[6490216,"CONSULTORÍA E ASESORAMENTO EXTERNO/ CONTRATACIÓN DE SERVIZOS."]
[6490217,"GASTOS DERIVADOS DA ELABORACIÓN DO INFORME DE AUDITORÍA"]
[6490218,"CONTRATACIÓN DE SERVIZOS POR DESPRAZAMENTO"]
[6490277,"COMPENSACIÓN CRÉDITOS SAI."]
[6490288,"GASTOS ESTRUCTURAIS "]
[64910,"FONDOS FINANC.A GRUPOS DE INVEST. "]
[64999,"REINTEGROS AXUDAS INVESTIGACIÓN "]
[6499901,"REINTEGROS EXTRAORDINARIOS VPCIT "]

{"sheet":"Ficha Libre","index":8,"n_rows":20,"n_cols":9,"rows_kept":20,"cut":false,"hidden":false,"merged":[[4,1,4,2],[4,7,4,8],[0,4,0,5],[2,1,2,3]]}
[]
[]
[null,{"$f":"CONCATENATE(Personalización!D4,\"  \",Personalización!C6)","v":"   "}]
[]
[null,"Aplicación orzamentaria ",null,"Título da aplicación orzamentaria","Título da aplicación económica","Importe","Descrición da Obra, Subministro ou Servizo.","Plazo de execución"]
["Nº asento","Orgánica Funcional","Económica",null,"(Debe ser adecuada á natureza do gasto)",null,"(Detallarase o máis pormenorizadamente posible)","Data Incio","Data Fin"]
[1]
[2]
[3]
[4]
[5]
[6]
[7]
[8]
[9]
[10]
[11]
[12]
[13]
[14]

{"sheet":"Personalización","index":9,"n_rows":12,"n_cols":3,"rows_kept":12,"cut":false,"hidden":false,"merged":[[5,2,5,7],[36,3,36,5],[8,3,8,5],[11,3,11,5],[13,3,13,5],[16,3,16,5],[18,3,18,5],[21,3,21,5],[23,3,23,5],[26,3,26,5],[28,3,28,5],[31,3,31,5],[33,3,33,5]]}
[]
[]
[]
[null,null,"Código de centro de gasto"]
[]
[null,null,{"$f":"IF(ISBLANK(D4),\" \",VLOOKUP(D4,U.T.!$A:$B,2,0))","v":" "}]
[]
[]
[null,null,"Nome do xefe de negociado de Asuntos Económicos"]
[]
[]
[null,null,"Nome do Responsable do Centro de gasto"]